{"text_format":"1","workbook":"xlsx","n_sheets":11,"sheets":["Points","Accueil","Inscrits","1","2","3","4","Final","Classement","Feuilles de match","Feuil2"],"not_rendered":{"charts":0,"images":2,"macros":1,"external_links":0,"defined_names":67,"comments":5,"pivot_tables":0},"unopened":[],"bounds":{"document_bytes":16777216,"sheet_cells":100000,"rows_first":2000,"rows_last":500,"rows_between":2000,"halvings":0,"cell_chars":16384,"cell_head_chars":4096},"cells_cut":0,"cells_raw":0,"read":"whole","date_system":"1900"}

{"sheet":"Points","index":0,"n_rows":36,"n_cols":4,"rows_kept":36,"cut":false,"hidden":false,"merged":[]}
["Place","R1","R2","R3"]
[1,200,142,93]
[2,180,125,79]
[3,161,109,66]
[4,161,109,66]
[5,143,94,54]
[6,143,94,54]
[7,143,94,54]
[8,143,94,54]
[9,126,80,43]
[10,126,80,43]
[11,126,80,43]
[12,126,80,43]
[13,126,80,43]
[14,126,80,43]
[15,126,80,43]
[16,126,80,43]
[17,110,67,33]
[18,110,67,33]
[19,110,67,33]
[20,110,67,33]
[21,110,67,33]
[22,110,67,33]
[23,110,67,33]
[24,110,67,33]
[25,95,55,24]
[26,95,55,24]
[27,95,55,24]
[28,95,55,24]
[29,95,55,24]
[30,95,55,24]
[31,95,55,24]
[32,95,55,24]
["FNE",-50,-35,-20]
["FE",0,0,0]
["A",0,0,0]

{"sheet":"Accueil","index":1,"n_rows":128,"n_cols":7,"rows_kept":128,"cut":false,"hidden":false,"merged":[[1,2,1,6],[24,3,24,6],[25,3,25,6],[15,2,15,6]]}
["A"]
["F",null,"INFOS UTILES POUR CE TOURNOI"]
[0]
[1,null,"LIGUE","Auvergne-Rhône-Alpes",null,"SAISON","2018/2019"]
[2]
[3,null,"DATE","2018-10-14",null,"TOURNOI","N°1"]
[4]
[5,null,"CLUB","NIGHT BILLARD CLUB",null,"DIVISION","R1"]
["A"]
["F",null,"VILLE DU CLUB","Beauregard",null,"NB JOUEURS",32]
[0]
[1,null,"Nombre de joueurs\nMontants de Division",0]
[2]
[{"$f":"IF(G18=3,3,\"\")","v":3},null,"Nombre de joueurs\nDescendants de Division",8,null,"Nombre de Billards\n8 Pool",6]
["A"]
[0,null,"DISTANCES DES MATCHS"]
[1]
[2,null,"Nb Parties Gagnantes\ndans les Poules\n(côté gagnant)",3,null,"Nb Parties Gagnantes\ndans les Poules\n(côté perdant)",3]
[3]
[{"$f":"IF(D20=4,4,\"\")","v":4},null,"Nb Parties Gagnantes\nen 1/8 de finale",4,null,"Nb Parties Gagnantes\nen 1/4 de finale",4]
[]
["A",null,"Nb Parties Gagnantes\nen 1/2 de finale",4,null,"Nb Parties Gagnantes\nen Finale",5]
[0]
[1]
[2,null,"Nom du fichier des Licenciés","Championnat FFB avec R3.xls"]
[3,null,"Chemin du fichier Licenciés","E:\\FFB\\Logiciel\\Championnat FFB avec R3.xls"]
[{"$f":"IF(G20=4,4,\"\")","v":4}]
[]
["A"]
[0]
[1]
[2]
[3]
[{"$f":"IF(D22=4,4,\"\")","v":4}]
[]
["A"]
[0]
[1]
[2]
[3]
[{"$f":"IF(G22>3,4,\"\")","v":4}]
[{"$f":"IF(G22=5,5,\"\")","v":5}]
[]
[1]
[2]
[3]
[4]
[5]
[6]
[7]
[8]
[9]
[10]
[11]
[12]
[13]
[14]
[15]
[16]
[17]
[18]
[19]
[20]
[21]
[22]
[23]
[24]
["A"]
["B"]
["C"]
["D"]
["E"]
["F"]
["G"]
["H"]
["I"]
["J"]
["K"]
["L"]
["M"]
["N"]
["O"]
["P"]
["Q"]
[]
[]
[]
[]
[]
[]
[]
[]
[]
[]
[]
[]
[]
[]
[]
[]
[]
[]
[]
[]
[]
[]
[]
[]
[]
[]
[]
[]
[]
[]
[]
[]
[]
[]
[]
[]
[]
[]
[]
[]
[]
[]
[]
["DAMIENFFB8POOL"]

{"sheet":"Inscrits","index":2,"n_rows":33,"n_cols":12,"rows_kept":33,"cut":false,"hidden":false,"merged":[[0,11,1,11],[8,11,9,11],[16,11,18,11],[25,11,26,11]]}
["N° Tirage","Nom du Joueur","Classement","Club","N° Licence","Forfait\nNon Excusé","Forfait\nExcusé","Abandon",1,"X",null,1]
[2,{"$f":"IFERROR(VLOOKUP(E2,Feuil2!$A$1:$C$973,2,FALSE),\"En Cours\")","v":"DUARTE JOSE"},1,{"$f":"IFERROR(VLOOKUP(E2,Feuil2!$A$1:$C$973,3,FALSE),\"En Cours\")","v":"ACADEMIE DE BILLARD DE LA VALSERINE"},"146968Y",null,"-",null,2,"-"]
[3,{"$f":"IFERROR(VLOOKUP(E3,Feuil2!$A$1:$C$973,2,FALSE),\"En Cours\")","v":"CROS DAVID"},1,{"$f":"IFERROR(VLOOKUP(E3,Feuil2!$A$1:$C$973,3,FALSE),\"En Cours\")","v":"LES SQUALES"},"144305F",null,"-",null,3]
[1,{"$f":"IFERROR(VLOOKUP(E4,Feuil2!$A$1:$C$973,2,FALSE),\"En Cours\")","v":"DUDIT FABIEN"},1,{"$f":"IFERROR(VLOOKUP(E4,Feuil2!$A$1:$C$973,3,FALSE),\"En Cours\")","v":"BILLARD CLUB DE BOURG EN BRESSE"},"130105B",null,"-",null,4]
[5,{"$f":"IFERROR(VLOOKUP(E5,Feuil2!$A$1:$C$973,2,FALSE),\"En Cours\")","v":"BENABDESSELAM YASSINE"},2,{"$f":"IFERROR(VLOOKUP(E5,Feuil2!$A$1:$C$973,3,FALSE),\"En Cours\")","v":"BILLARD CLUB LYONNAIS 8 POOL"},"163592S",null,"-",null,5]
[4,{"$f":"IFERROR(VLOOKUP(E6,Feuil2!$A$1:$C$973,2,FALSE),\"En Cours\")","v":"GARNIER NICOLAS"},2,{"$f":"IFERROR(VLOOKUP(E6,Feuil2!$A$1:$C$973,3,FALSE),\"En Cours\")","v":"BILLARD CLUB DE BOURG EN BRESSE"},"145371F",null,"-",null,6]
[7,{"$f":"IFERROR(VLOOKUP(E7,Feuil2!$A$1:$C$973,2,FALSE),\"En Cours\")","v":"DE ALMEIDA DUARTE FREDERICO"},3,{"$f":"IFERROR(VLOOKUP(E7,Feuil2!$A$1:$C$973,3,FALSE),\"En Cours\")","v":"BILLARD CLUB DE CLARAFOND ARCINE"},"146972C",null,"-",null,7]
[6,{"$f":"IFERROR(VLOOKUP(E8,Feuil2!$A$1:$C$973,2,FALSE),\"En Cours\")","v":"HERREMAN FRANCOIS"},3,{"$f":"IFERROR(VLOOKUP(E8,Feuil2!$A$1:$C$973,3,FALSE),\"En Cours\")","v":"LES SQUALES"},"137571F",null,"-",null,8]
[8,{"$f":"IFERROR(VLOOKUP(E9,Feuil2!$A$1:$C$973,2,FALSE),\"En Cours\")","v":"POTIQUET SEBASTIEN"},3,{"$f":"IFERROR(VLOOKUP(E9,Feuil2!$A$1:$C$973,3,FALSE),\"En Cours\")","v":"BILLARD CLUB DE BOURG EN BRESSE"},"131278E",null,"-",null,9,null,null,2]
[9,{"$f":"IFERROR(VLOOKUP(E10,Feuil2!$A$1:$C$973,2,FALSE),\"En Cours\")","v":"LAMRANI MEHDI"},3,{"$f":"IFERROR(VLOOKUP(E10,Feuil2!$A$1:$C$973,3,FALSE),\"En Cours\")","v":"BILLARD CLUB PONTOIS"},"159769M",null,"-",null,10]
[11,{"$f":"IFERROR(VLOOKUP(E11,Feuil2!$A$1:$C$973,2,FALSE),\"En Cours\")","v":"TEBBANI AZIZ"},4,{"$f":"IFERROR(VLOOKUP(E11,Feuil2!$A$1:$C$973,3,FALSE),\"En Cours\")","v":"NIGHT BILLARD CLUB"},"128999N",null,"-",null,11]
[13,{"$f":"IFERROR(VLOOKUP(E12,Feuil2!$A$1:$C$973,2,FALSE),\"En Cours\")","v":"PILLOT VINCENT"},4,{"$f":"IFERROR(VLOOKUP(E12,Feuil2!$A$1:$C$973,3,FALSE),\"En Cours\")","v":"BILLARD CLUB PONTOIS"},"145348I",null,"-",null,12]
[10,{"$f":"IFERROR(VLOOKUP(E13,Feuil2!$A$1:$C$973,2,FALSE),\"En Cours\")","v":"CENDRIER DAVID"},4,{"$f":"IFERROR(VLOOKUP(E13,Feuil2!$A$1:$C$973,3,FALSE),\"En Cours\")","v":"ASSOCIATION DU LAKE PUB 74"},"104768O",null,"-",null,13]
[12,{"$f":"IFERROR(VLOOKUP(E14,Feuil2!$A$1:$C$973,2,FALSE),\"En Cours\")","v":"LAZEREG RADIL"},4,{"$f":"IFERROR(VLOOKUP(E14,Feuil2!$A$1:$C$973,3,FALSE),\"En Cours\")","v":"LES SQUALES"},"119728Y",null,"-",null,14]
[16,{"$f":"IFERROR(VLOOKUP(E15,Feuil2!$A$1:$C$973,2,FALSE),\"En Cours\")","v":"BRACEIRO JOSE"},5,{"$f":"IFERROR(VLOOKUP(E15,Feuil2!$A$1:$C$973,3,FALSE),\"En Cours\")","v":"LES SQUALES"},"127310O",null,"-",null,15]
[14,{"$f":"IFERROR(VLOOKUP(E16,Feuil2!$A$1:$C$973,2,FALSE),\"En Cours\")","v":"TASSET JEROME"},5,{"$f":"IFERROR(VLOOKUP(E16,Feuil2!$A$1:$C$973,3,FALSE),\"En Cours\")","v":"CLUB CHAMBERIEN DE BILLARD"},"156368Q",null,"-",null,16]
[15,{"$f":"IFERROR(VLOOKUP(E17,Feuil2!$A$1:$C$973,2,FALSE),\"En Cours\")","v":"LACROIX DYLAN"},5,{"$f":"IFERROR(VLOOKUP(E17,Feuil2!$A$1:$C$973,3,FALSE),\"En Cours\")","v":"NIGHT BILLARD CLUB"},"152192B",null,"-",null,17,null,null,"OU"]
[20,{"$f":"IFERROR(VLOOKUP(E18,Feuil2!$A$1:$C$973,2,FALSE),\"En Cours\")","v":"DELORME STEPHANE"},6,{"$f":"IFERROR(VLOOKUP(E18,Feuil2!$A$1:$C$973,3,FALSE),\"En Cours\")","v":"BILLARD CLUB LYONNAIS 8 POOL"},"163504X",null,"-",null,18]
[19,{"$f":"IFERROR(VLOOKUP(E19,Feuil2!$A$1:$C$973,2,FALSE),\"En Cours\")","v":"LATORRE ANDRE"},6,{"$f":"IFERROR(VLOOKUP(E19,Feuil2!$A$1:$C$973,3,FALSE),\"En Cours\")","v":"LES SQUALES"},"101047L",null,"-",null,19]
[18,{"$f":"IFERROR(VLOOKUP(E20,Feuil2!$A$1:$C$973,2,FALSE),\"En Cours\")","v":"URAY JIMMY"},6,{"$f":"IFERROR(VLOOKUP(E20,Feuil2!$A$1:$C$973,3,FALSE),\"En Cours\")","v":"NIGHT BILLARD CLUB"},"138326G",null,"-",null,20]
[17,{"$f":"IFERROR(VLOOKUP(E21,Feuil2!$A$1:$C$973,2,FALSE),\"En Cours\")","v":"TRIPLET FREDERIC"},6,{"$f":"IFERROR(VLOOKUP(E21,Feuil2!$A$1:$C$973,3,FALSE),\"En Cours\")","v":"CLUB CHAMBERIEN DE BILLARD"},"162070N",null,"-",null,21]
[21,{"$f":"IFERROR(VLOOKUP(E22,Feuil2!$A$1:$C$973,2,FALSE),\"En Cours\")","v":"SOPIC NICOLAS"},7,{"$f":"IFERROR(VLOOKUP(E22,Feuil2!$A$1:$C$973,3,FALSE),\"En Cours\")","v":"NIGHT BILLARD CLUB"},"128998M",null,"-",null,22]
[22,{"$f":"IFERROR(VLOOKUP(E23,Feuil2!$A$1:$C$973,2,FALSE),\"En Cours\")","v":"BONTOUX SYLVIE"},7,{"$f":"IFERROR(VLOOKUP(E23,Feuil2!$A$1:$C$973,3,FALSE),\"En Cours\")","v":"EIGHT'S POOL GAME"},"157880J",null,"-",null,23]
[23,{"$f":"IFERROR(VLOOKUP(E24,Feuil2!$A$1:$C$973,2,FALSE),\"En Cours\")","v":"KUSAR TONY"},8,{"$f":"IFERROR(VLOOKUP(E24,Feuil2!$A$1:$C$973,3,FALSE),\"En Cours\")","v":"BILLARD CLUB DE CLARAFOND ARCINE"},"155700P",null,"-",null,24]
[24,{"$f":"IFERROR(VLOOKUP(E25,Feuil2!$A$1:$C$973,2,FALSE),\"En Cours\")","v":"LETOURNEUR SEBASTIEN"},8,{"$f":"IFERROR(VLOOKUP(E25,Feuil2!$A$1:$C$973,3,FALSE),\"En Cours\")","v":"BILLARD CLUB DE BOURG EN BRESSE"},"135922U",null,"-",null,25]
[25,{"$f":"IFERROR(VLOOKUP(E26,Feuil2!$A$1:$C$973,2,FALSE),\"En Cours\")","v":"SOCKEEL AURORE"},10,{"$f":"IFERROR(VLOOKUP(E26,Feuil2!$A$1:$C$973,3,FALSE),\"En Cours\")","v":"DEVIL'S POOL CLUB"},"157214K",null,"-",null,26,null,null,3]
[26,{"$f":"IFERROR(VLOOKUP(E27,Feuil2!$A$1:$C$973,2,FALSE),\"En Cours\")","v":"BRENDEL CHRISTIAN"},10,{"$f":"IFERROR(VLOOKUP(E27,Feuil2!$A$1:$C$973,3,FALSE),\"En Cours\")","v":"BILLARD CLUB DE BOURG EN BRESSE"},"135920S",null,"-",null,27]
[27,{"$f":"IFERROR(VLOOKUP(E28,Feuil2!$A$1:$C$973,2,FALSE),\"En Cours\")","v":"BRUN CHRISTOPHE"},10,{"$f":"IFERROR(VLOOKUP(E28,Feuil2!$A$1:$C$973,3,FALSE),\"En Cours\")","v":"BILLARD CLUB PONTOIS"},"155902J",null,"-",null,28]
[28,{"$f":"IFERROR(VLOOKUP(E29,Feuil2!$A$1:$C$973,2,FALSE),\"En Cours\")","v":"SOCKEEL YANNICK"},11,{"$f":"IFERROR(VLOOKUP(E29,Feuil2!$A$1:$C$973,3,FALSE),\"En Cours\")","v":"DEVIL'S POOL CLUB"},"159064W",null,"-",null,29]
[29,{"$f":"IFERROR(VLOOKUP(E30,Feuil2!$A$1:$C$973,2,FALSE),\"En Cours\")","v":"BERRAHOU SOLANGE"},12,{"$f":"IFERROR(VLOOKUP(E30,Feuil2!$A$1:$C$973,3,FALSE),\"En Cours\")","v":"ACADEMIE DE BILLARD DE LA VALSERINE"},"153217Q",null,"-",null,30]
[30,{"$f":"IFERROR(VLOOKUP(E31,Feuil2!$A$1:$C$973,2,FALSE),\"En Cours\")","v":"BABEL STEPHANIE"},13,{"$f":"IFERROR(VLOOKUP(E31,Feuil2!$A$1:$C$973,3,FALSE),\"En Cours\")","v":"BILLARD CLUB DE CLARAFOND ARCINE"},"159062T",null,"-",null,31]
[31,{"$f":"IFERROR(VLOOKUP(E32,Feuil2!$A$1:$C$973,2,FALSE),\"En Cours\")","v":"LEPAGE PATRICK"},14,{"$f":"IFERROR(VLOOKUP(E32,Feuil2!$A$1:$C$973,3,FALSE),\"En Cours\")","v":"VEYRE-MONTON BILLARD CLUB"},"145661J",null,"-",null,32]
[32,{"$f":"IFERROR(VLOOKUP(E33,Feuil2!$A$1:$C$973,2,FALSE),\"En Cours\")","v":"CHAIR MOURAD"},12,{"$f":"IFERROR(VLOOKUP(E33,Feuil2!$A$1:$C$973,3,FALSE),\"En Cours\")","v":"NIGHT BILLARD CLUB"},"148985Q",null,"-"]

{"sheet":"1","index":3,"n_rows":21,"n_cols":45,"rows_kept":21,"cut":false,"hidden":false,"merged":[[20,9,20,17],[12,1,12,2],[0,9,0,17],[1,42,1,45],[11,42,11,45],[10,20,10,21]]}
[null,null,null,null,null,null,null,null,null,"MATCHS EN 3 PARTIES GAGNANTES"]
[null,null,null,null,null,null,null,null,null,null,null,null,null,null,null,null,null,null,null,null,null,null,null,null,null,null,null,null,null,null,null,null,null,null,null,null,null,null,null,null,null,null,"QUALIFIES"]
[null,null,null,null,null,null,null,null,null,null,"P1",1,{"$f":"IF(IF(ISNA(VLOOKUP(L3,Inscrits!$A$2:$C$33,2,FALSE)),\"\",VLOOKUP(L3,Inscrits!$A$2:$C$33,2,FALSE))=0,\"\",IF(ISNA(VLOOKUP(L3,Inscrits!$A$2:$C$33,2,FALSE)),\"\",VLOOKUP(L3,Inscrits!$A$2:$C$33,2,FALSE)))","v":"DUDIT FABIEN"},{"$f":"IF(IF(ISNA(VLOOKUP(L3,Inscrits!$A$2:$C$33,3,FALSE)),\"\",\"(\"&(VLOOKUP(L3,Inscrits!$A$2:$C$33,3,FALSE))&\")\")=\"()\",\"\",IF(ISNA(VLOOKUP(L3,Inscrits!$A$2:$C$33,3,FALSE)),\"\",\"(\"&(VLOOKUP(L3,Inscrits!$A$2:$C$33,3,FALSE))&\")\"))","v":"(1)"},null,null,"G1",null,null,null,null,null,null,null,null,null,null,null,"G","P","G","P","G","P","G","P","G","P","G","P","Ga",null,null,"NOM","Ga"]
[null,null,null,null,null,null,null,null,null,{"$f":"IF(OR(AND(O3=\"F\",O5=\"F\"),AND(O3=\"A\",O5=\"A\")),M5,IF(OR(O3=\"F\",O3=\"A\"),M3,IF(OR(O5=\"F\",O5=\"A\"),M5,IF(O3=O5,\"\",(IF(O3<O5,M3,M5))))))","v":""},{"$f":"IF(OR(AND(O3=\"F\",O5=\"F\"),AND(O3=\"A\",O5=\"A\")),N5,IF(OR(O3=\"F\",O3=\"A\"),N3,IF(OR(O5=\"F\",O5=\"A\"),N5,IF(O3=O5,\"\",(IF(O3<O5,N3,N5))))))","v":""},null,"Match 1 - Billard",null,null,null,{"$f":"IF(OR(AND(O3=\"F\",O5=\"F\"),AND(O3=\"A\",O5=\"A\")),M3,IF(OR(O3=\"F\",O3=\"A\"),M5,IF(OR(O5=\"F\",O5=\"A\"),M3,IF(O3=O5,\"\",(IF(O3>O5,M3,M5))))))","v":""},{"$f":"IF(OR(AND(O3=\"F\",O5=\"F\"),AND(O3=\"A\",O5=\"A\")),N3,IF(OR(O3=\"F\",O3=\"A\"),N5,IF(OR(O5=\"F\",O5=\"A\"),N3,IF(O3=O5,\"\",(IF(O3>O5,N3,N5))))))","v":""},null,null,null,null,null,null,1,{"$f":"IF(U6=\"\",\"\",IF(U6=Q4,Q4,Q8))","v":""},null,{"$f":"M3","v":"DUDIT FABIEN"},{"$f":"IF(AB4=M3,IF(O5=\"F\",\"\",O3),0)","v":0},{"$f":"IF(AB4=M3,IF(O3=\"F\",\"\",O5),0)","v":0},{"$f":"IF(AB4=Q4,IF(S8=\"F\",\"\",S4),0)","v":0},{"$f":"IF(AB4=Q4,IF(S4=\"F\",\"\",S8),0)","v":0},{"$f":"IF(AB4=J4,IF(I8=\"F\",\"\",I4),0)","v":0},{"$f":"IF(AB4=J4,IF(I4=\"F\",\"\",I8),0)","v":0},{"$f":"IF(AB4=F6,IF(E10=\"F\",\"\",E6),0)","v":0},{"$f":"IF(AB4=F6,IF(E6=\"F\",\"\",E10),0)","v":0},{"$f":"IF(AB4=F20,IF(E16=\"F\",\"\",E20),0)","v":0},{"$f":"IF(AB4=F20,IF(E20=\"F\",\"\",E16),0)","v":0},{"$f":"SUM(AC4,AE4,AG4,AI4,AK4)","v":0},0,{"$f":"AM4-AN4","v":0},null,null,{"$f":"Z4","v":""},{"$f":"IF(AR4=\"\",\"\",(VLOOKUP(AR4,AB4:AO17,14,FALSE)))","v":""}]
[null,null,null,null,null,null,"G7",null,null,null,null,32,{"$f":"IF(IF(ISNA(VLOOKUP(L5,Inscrits!$A$2:$C$33,2,FALSE)),\"\",VLOOKUP(L5,Inscrits!$A$2:$C$33,2,FALSE))=0,\"\",IF(ISNA(VLOOKUP(L5,Inscrits!$A$2:$C$33,2,FALSE)),\"\",VLOOKUP(L5,Inscrits!$A$2:$C$33,2,FALSE)))","v":"CHAIR MOURAD"},{"$f":"IF(IF(ISNA(VLOOKUP(L5,Inscrits!$A$2:$C$33,3,FALSE)),\"\",\"(\"&(VLOOKUP(L5,Inscrits!$A$2:$C$33,3,FALSE))&\")\")=\"()\",\"\",IF(ISNA(VLOOKUP(L5,Inscrits!$A$2:$C$33,3,FALSE)),\"\",\"(\"&(VLOOKUP(L5,Inscrits!$A$2:$C$33,3,FALSE))&\")\"))","v":"(12)"},null,null,null,null,null,null,"G5",null,null,null,3,{"$f":"IF(B8=\"\",\"\",IF(B8=F6,F6,F10))","v":""},null,{"$f":"M5","v":"CHAIR MOURAD"},{"$f":"IF(AB5=M5,IF(O3=\"F\",\"\",O5),0)","v":0},{"$f":"IF(AB5=M5,IF(O5=\"F\",\"\",O3),0)","v":0},{"$f":"IF(AB5=Q4,IF(S8=\"F\",\"\",S4),0)","v":0},{"$f":"IF(AB5=Q4,IF(S4=\"F\",\"\",S8),0)","v":0},{"$f":"IF(AB5=J4,IF(I8=\"F\",\"\",I4),0)","v":0},{"$f":"IF(AB5=J4,IF(I4=\"F\",\"\",I8),0)","v":0},{"$f":"IF(AB5=F6,IF(E10=\"F\",\"\",E6),0)","v":0},{"$f":"IF(AB5=F6,IF(E6=\"F\",\"\",E10),0)","v":0},{"$f":"IF(AB5=F20,IF(E16=\"F\",\"\",E20),0)","v":0},{"$f":"IF(AB5=F20,IF(E20=\"F\",\"\",E16),0)","v":0},0,0,{"$f":"AM5-AN5","v":0},null,null,{"$f":"Z14","v":""},{"$f":"IF(AR5=\"\",\"\",(VLOOKUP(AR5,AB4:AO17,14,FALSE)))","v":""}]
[null,null,null,null,null,{"$f":"IF(OR(I4=\"F\",I4=\"A\"),J8,IF(OR(I8=\"F\",I8=\"A\"),J4,IF(I4=I8,\"\",(IF(I4>I8,J4,J8)))))","v":""},{"$f":"IF(OR(I4=\"F\",I4=\"A\"),K8,IF(OR(I8=\"F\",I8=\"A\"),K4,IF(I4=I8,\"\",(IF(I4>I8,K4,K8)))))","v":""},null,null,"Match 7 - Billard",null,null,null,null,null,null,"Match 5 - Billard",null,null,null,{"$f":"IF(OR(S4=\"F\",S4=\"A\"),Q8,IF(OR(S8=\"F\",S8=\"A\"),Q4,IF(S4=S8,\"\",(IF(S4>S8,Q4,Q8)))))","v":""},{"$f":"IF(OR(S4=\"F\",S4=\"A\"),R8,IF(OR(S8=\"F\",S8=\"A\"),R4,IF(S4=S8,\"\",(IF(S4>S8,R4,R8)))))","v":""},"A",null,5,{"$f":"IF(B8=\"\",\"\",IF(B8=F6,F10,F6))","v":""},null,{"$f":"M7","v":"TRIPLET FREDERIC"},{"$f":"IF(AB6=M7,IF(O9=\"F\",\"\",O7),0)","v":0},{"$f":"IF(AB6=M7,IF(O7=\"F\",\"\",O9),0)","v":0},{"$f":"IF(AB6=Q8,IF(S4=\"F\",\"\",S8),0)","v":0},{"$f":"IF(AB6=Q8,IF(S8=\"F\",\"\",S4),0)","v":0},{"$f":"IF(AB6=J8,IF(I4=\"F\",\"\",I8),0)","v":0},{"$f":"IF(AB6=J8,IF(I8=\"F\",\"\",I4),0)","v":0},{"$f":"IF(AB6=F6,IF(E10=\"F\",\"\",E6),0)","v":0},{"$f":"IF(AB6=F6,IF(E6=\"F\",\"\",E10),0)","v":0},{"$f":"IF(AB6=F20,IF(E16=\"F\",\"\",E20),0)","v":0},{"$f":"IF(AB6=F20,IF(E20=\"F\",\"\",E16),0)","v":0},0,0,{"$f":"AM6-AN6","v":0},null,null,{"$f":"Z5","v":""},{"$f":"IF(AR6=\"\",\"\",(VLOOKUP(AR6,AB4:AO17,14,FALSE)))","v":""}]
[null,null,"G9",null,null,null,null,null,null,null,null,17,{"$f":"IF(IF(ISNA(VLOOKUP(L7,Inscrits!$A$2:$C$33,2,FALSE)),\"\",VLOOKUP(L7,Inscrits!$A$2:$C$33,2,FALSE))=0,\"\",IF(ISNA(VLOOKUP(L7,Inscrits!$A$2:$C$33,2,FALSE)),\"\",VLOOKUP(L7,Inscrits!$A$2:$C$33,2,FALSE)))","v":"TRIPLET FREDERIC"},{"$f":"IF(IF(ISNA(VLOOKUP(L7,Inscrits!$A$2:$C$33,3,FALSE)),\"\",\"(\"&(VLOOKUP(L7,Inscrits!$A$2:$C$33,3,FALSE))&\")\")=\"()\",\"\",IF(ISNA(VLOOKUP(L7,Inscrits!$A$2:$C$33,3,FALSE)),\"\",\"(\"&(VLOOKUP(L7,Inscrits!$A$2:$C$33,3,FALSE))&\")\"))","v":"(6)"},null,null,null,null,null,null,null,null,null,null,7,{"$f":"IF(F6=\"\",\"\",IF(F6=J4,J8,J4))","v":""},null,{"$f":"M9","v":"BRACEIRO JOSE"},{"$f":"IF(AB7=M9,IF(O7=\"F\",\"\",O9),0)","v":0},{"$f":"IF(AB7=M9,IF(O9=\"F\",\"\",O7),0)","v":0},{"$f":"IF(AB7=Q8,IF(S4=\"F\",\"\",S8),0)","v":0},{"$f":"IF(AB7=Q8,IF(S8=\"F\",\"\",S4),0)","v":0},{"$f":"IF(AB7=J8,IF(I4=\"F\",\"\",I8),0)","v":0},{"$f":"IF(AB7=J8,IF(I8=\"F\",\"\",I4),0)","v":0},{"$f":"IF(AB7=F6,IF(E10=\"F\",\"\",E6),0)","v":0},{"$f":"IF(AB7=F6,IF(E6=\"F\",\"\",E10),0)","v":0},{"$f":"IF(AB7=F20,IF(E16=\"F\",\"\",E20),0)","v":0},{"$f":"IF(AB7=F20,IF(E20=\"F\",\"\",E16),0)","v":0},0,0,{"$f":"AM7-AN7","v":0},null,null,{"$f":"Z15","v":""},{"$f":"IF(AR7=\"\",\"\",(VLOOKUP(AR7,AB4:AO17,14,FALSE)))","v":""}]
["S",{"$f":"IF(OR(E6=\"F\",E6=\"A\"),F10,IF(OR(E10=\"F\",E10=\"A\"),F6,IF(E6=E10,\"\",(IF(E6>E10,F6,F10)))))","v":""},{"$f":"IF(OR(E6=\"F\",E6=\"A\"),G10,IF(OR(E10=\"F\",E10=\"A\"),G6,IF(E6=E10,\"\",(IF(E6>E10,G6,G10)))))","v":""},null,null,"Match 9 - Billard",null,null,null,{"$f":"IF(OR(AND(O7=\"F\",O9=\"F\"),AND(O7=\"A\",O9=\"A\")),M9,IF(OR(O7=\"F\",O7=\"A\"),M7,IF(OR(O9=\"F\",O9=\"A\"),M9,IF(O7=O9,\"\",(IF(O7<O9,M7,M9))))))","v":""},{"$f":"IF(OR(AND(O7=\"F\",O9=\"F\"),AND(O7=\"A\",O9=\"A\")),N9,IF(OR(O7=\"F\",O7=\"A\"),N7,IF(OR(O9=\"F\",O9=\"A\"),N9,IF(O7=O9,\"\",(IF(O7<O9,N7,N9))))))","v":""},null,"Match 2 - Billard",null,null,null,{"$f":"IF(OR(AND(O7=\"F\",O9=\"F\"),AND(O7=\"A\",O9=\"A\")),M7,IF(OR(O7=\"F\",O7=\"A\"),M9,IF(OR(O9=\"F\",O9=\"A\"),M7,IF(O7=O9,\"\",(IF(O7>O9,M7,M9))))))","v":""},{"$f":"IF(OR(AND(O7=\"F\",O9=\"F\"),AND(O7=\"A\",O9=\"A\")),N7,IF(OR(O7=\"F\",O7=\"A\"),N9,IF(OR(O9=\"F\",O9=\"A\"),N7,IF(O7=O9,\"\",(IF(O7>O9,N7,N9))))))","v":""}]
[null,null,null,null,null,null,null,null,null,null,"P2",16,{"$f":"IF(IF(ISNA(VLOOKUP(L9,Inscrits!$A$2:$C$33,2,FALSE)),\"\",VLOOKUP(L9,Inscrits!$A$2:$C$33,2,FALSE))=0,\"\",IF(ISNA(VLOOKUP(L9,Inscrits!$A$2:$C$33,2,FALSE)),\"\",VLOOKUP(L9,Inscrits!$A$2:$C$33,2,FALSE)))","v":"BRACEIRO JOSE"},{"$f":"IF(IF(ISNA(VLOOKUP(L9,Inscrits!$A$2:$C$33,3,FALSE)),\"\",\"(\"&(VLOOKUP(L9,Inscrits!$A$2:$C$33,3,FALSE))&\")\")=\"()\",\"\",IF(ISNA(VLOOKUP(L9,Inscrits!$A$2:$C$33,3,FALSE)),\"\",\"(\"&(VLOOKUP(L9,Inscrits!$A$2:$C$33,3,FALSE))&\")\"))","v":"(5)"},null,null,"G2"]
[null,null,null,null,null,{"$f":"IF(OR(S14=\"F\",S14=\"A\"),Q14,IF(OR(S18=\"F\",S18=\"A\"),Q18,IF(S14=S18,\"\",(IF(S14<S18,Q14,Q18)))))","v":""},{"$f":"IF(OR(S14=\"F\",S14=\"A\"),R14,IF(OR(S18=\"F\",S18=\"A\"),R18,IF(S14=S18,\"\",(IF(S14<S18,R14,R18)))))","v":""}]
[null,null,null,null,null,null,"P6",null,null,null,null,null,null,null,null,null,null,null,null,null,"QUALIFIES"]
[null,null,null,null,null,null,null,null,null,null,null,null,null,null,null,null,null,null,null,null,null,null,null,null,null,null,null,null,null,null,null,null,null,null,null,null,null,null,null,null,null,null,"ELIMINES"]
[null,"QUALIFIES",null,null,null,null,null,null,null,null,"P3",9,{"$f":"IF(IF(ISNA(VLOOKUP(L13,Inscrits!$A$2:$C$33,2,FALSE)),\"\",VLOOKUP(L13,Inscrits!$A$2:$C$33,2,FALSE))=0,\"\",IF(ISNA(VLOOKUP(L13,Inscrits!$A$2:$C$33,2,FALSE)),\"\",VLOOKUP(L13,Inscrits!$A$2:$C$33,2,FALSE)))","v":"LAMRANI MEHDI"},{"$f":"IF(IF(ISNA(VLOOKUP(L13,Inscrits!$A$2:$C$33,3,FALSE)),\"\",\"(\"&(VLOOKUP(L13,Inscrits!$A$2:$C$33,3,FALSE))&\")\")=\"()\",\"\",IF(ISNA(VLOOKUP(L13,Inscrits!$A$2:$C$33,3,FALSE)),\"\",\"(\"&(VLOOKUP(L13,Inscrits!$A$2:$C$33,3,FALSE))&\")\"))","v":"(3)"},null,null,"G3",null,null,null,null,null,null,null,null,null,null,null,"G","P","G","P","G","P","G","P","G","P","G","P","Ga",null,null,"NOM","Ga"]
[null,null,null,null,null,null,null,null,null,{"$f":"IF(OR(AND(O13=\"F\",O15=\"F\"),AND(O13=\"A\",O15=\"A\")),M15,IF(OR(O13=\"F\",O13=\"A\"),M13,IF(OR(O15=\"F\",O15=\"A\"),M15,IF(O13=O15,\"\",(IF(O13<O15,M13,M15))))))","v":""},{"$f":"IF(OR(AND(O13=\"F\",O15=\"F\"),AND(O13=\"A\",O15=\"A\")),N15,IF(OR(O13=\"F\",O13=\"A\"),N13,IF(OR(O15=\"F\",O15=\"A\"),N15,IF(O13=O15,\"\",(IF(O13<O15,N13,N15))))))","v":""},null,"Match 3 - Billard",null,null,null,{"$f":"IF(OR(AND(O13=\"F\",O15=\"F\"),AND(O13=\"A\",O15=\"A\")),M13,IF(OR(O13=\"F\",O13=\"A\"),M15,IF(OR(O15=\"F\",O15=\"A\"),M13,IF(O13=O15,\"\",(IF(O13>O15,M13,M15))))))","v":""},{"$f":"IF(OR(AND(O13=\"F\",O15=\"F\"),AND(O13=\"A\",O15=\"A\")),N13,IF(OR(O13=\"F\",O13=\"A\"),N15,IF(OR(O15=\"F\",O15=\"A\"),N13,IF(O13=O15,\"\",(IF(O13>O15,N13,N15))))))","v":""},null,null,null,null,null,null,2,{"$f":"IF(U16=\"\",\"\",IF(U16=Q14,Q14,Q18))","v":""},null,{"$f":"M13","v":"LAMRANI MEHDI"},{"$f":"IF(AB14=M13,IF(O15=\"F\",\"\",O13),0)","v":0},{"$f":"IF(AB14=M13,IF(O13=\"F\",\"\",O15),0)","v":0},{"$f":"IF(AB14=Q14,IF(S18=\"F\",\"\",S14),0)","v":0},{"$f":"IF(AB14=Q14,IF(S14=\"F\",\"\",S18),0)","v":0},{"$f":"IF(AB14=J14,IF(I18=\"F\",\"\",I14),0)","v":0},{"$f":"IF(AB14=J14,IF(I14=\"F\",\"\",I18),0)","v":0},{"$f":"IF(AB14=F16,IF(E20=\"F\",\"\",E16),0)","v":0},{"$f":"IF(AB14=F16,IF(E16=\"F\",\"\",E20),0)","v":0},{"$f":"IF(AB14=F10,IF(E6=\"F\",\"\",E10),0)","v":0},{"$f":"IF(AB14=F10,IF(E10=\"F\",\"\",E6),0)","v":0},{"$f":"SUM(AC14,AE14,AG14,AI14,AK14)","v":0},0,{"$f":"AM14-AN14","v":0},null,null,{"$f":"Z6","v":""},{"$f":"IF(AR14=\"\",\"\",(VLOOKUP(AR14,AB4:AO17,14,FALSE)))","v":""}]
[null,null,null,null,null,null,"G8",null,null,null,null,24,{"$f":"IF(IF(ISNA(VLOOKUP(L15,Inscrits!$A$2:$C$33,2,FALSE)),\"\",VLOOKUP(L15,Inscrits!$A$2:$C$33,2,FALSE))=0,\"\",IF(ISNA(VLOOKUP(L15,Inscrits!$A$2:$C$33,2,FALSE)),\"\",VLOOKUP(L15,Inscrits!$A$2:$C$33,2,FALSE)))","v":"LETOURNEUR SEBASTIEN"},{"$f":"IF(IF(ISNA(VLOOKUP(L15,Inscrits!$A$2:$C$33,3,FALSE)),\"\",\"(\"&(VLOOKUP(L15,Inscrits!$A$2:$C$33,3,FALSE))&\")\")=\"()\",\"\",IF(ISNA(VLOOKUP(L15,Inscrits!$A$2:$C$33,3,FALSE)),\"\",\"(\"&(VLOOKUP(L15,Inscrits!$A$2:$C$33,3,FALSE))&\")\"))","v":"(8)"},null,null,null,null,null,null,"G6",null,null,null,4,{"$f":"IF(B18=\"\",\"\",IF(B18=F16,F16,F20))","v":""},null,{"$f":"M15","v":"LETOURNEUR SEBASTIEN"},{"$f":"IF(AB15=M15,IF(O13=\"F\",\"\",O15),0)","v":0},{"$f":"IF(AB15=M15,IF(O15=\"F\",\"\",O13),0)","v":0},{"$f":"IF(AB15=Q14,IF(S18=\"F\",\"\",S14),0)","v":0},{"$f":"IF(AB15=Q14,IF(S14=\"F\",\"\",S18),0)","v":0},{"$f":"IF(AB15=J14,IF(I18=\"F\",\"\",I14),0)","v":0},{"$f":"IF(AB15=J14,IF(I14=\"F\",\"\",I18),0)","v":0},{"$f":"IF(AB15=F16,IF(E20=\"F\",\"\",E16),0)","v":0},{"$f":"IF(AB15=F16,IF(E16=\"F\",\"\",E20),0)","v":0},{"$f":"IF(AB15=F10,IF(E6=\"F\",\"\",E10),0)","v":0},{"$f":"IF(AB15=F10,IF(E10=\"F\",\"\",E6),0)","v":0},0,0,{"$f":"AM15-AN15","v":0},null,null,{"$f":"Z16","v":""},{"$f":"IF(AR15=\"\",\"\",(VLOOKUP(AR15,AB4:AO17,14,FALSE)))","v":""}]
[null,null,null,null,null,{"$f":"IF(OR(I14=\"F\",I14=\"A\"),J18,IF(OR(I18=\"F\",I18=\"A\"),J14,IF(I14=I18,\"\",(IF(I14>I18,J14,J18)))))","v":""},{"$f":"IF(OR(I14=\"F\",I14=\"A\"),K18,IF(OR(I18=\"F\",I18=\"A\"),K14,IF(I14=I18,\"\",(IF(I14>I18,K14,K18)))))","v":""},null,null,"Match 8 - Billard",null,null,null,null,null,null,"Match 6 - Billard",null,null,null,{"$f":"IF(OR(S14=\"F\",S14=\"A\"),Q18,IF(OR(S18=\"F\",S18=\"A\"),Q14,IF(S14=S18,\"\",(IF(S14>S18,Q14,Q18)))))","v":""},{"$f":"IF(OR(S14=\"F\",S14=\"A\"),R18,IF(OR(S18=\"F\",S18=\"A\"),R14,IF(S14=S18,\"\",(IF(S14>S18,R14,R18)))))","v":""},"B",null,6,{"$f":"IF(B18=\"\",\"\",IF(B18=F16,F20,F16))","v":""},null,{"$f":"M17","v":"SOCKEEL AURORE"},{"$f":"IF(AB16=M17,IF(O19=\"F\",\"\",O17),0)","v":0},{"$f":"IF(AB16=M17,IF(O17=\"F\",\"\",O19),0)","v":0},{"$f":"IF(AB16=Q18,IF(S14=\"F\",\"\",S18),0)","v":0},{"$f":"IF(AB16=Q18,IF(S18=\"F\",\"\",S14),0)","v":0},{"$f":"IF(AB16=J18,IF(I14=\"F\",\"\",I18),0)","v":0},{"$f":"IF(AB16=J18,IF(I18=\"F\",\"\",I14),0)","v":0},{"$f":"IF(AB16=F16,IF(E20=\"F\",\"\",E16),0)","v":0},{"$f":"IF(AB16=F16,IF(E16=\"F\",\"\",E20),0)","v":0},{"$f":"IF(AB16=F10,IF(E6=\"F\",\"\",E10),0)","v":0},{"$f":"IF(AB16=F10,IF(E10=\"F\",\"\",E6),0)","v":0},0,0,{"$f":"AM16-AN16","v":0},null,null,{"$f":"Z7","v":""},{"$f":"IF(AR16=\"\",\"\",(VLOOKUP(AR16,AB4:AO17,14,FALSE)))","v":""}]
[null,null,"G10",null,null,null,null,null,null,null,null,25,{"$f":"IF(IF(ISNA(VLOOKUP(L17,Inscrits!$A$2:$C$33,2,FALSE)),\"\",VLOOKUP(L17,Inscrits!$A$2:$C$33,2,FALSE))=0,\"\",IF(ISNA(VLOOKUP(L17,Inscrits!$A$2:$C$33,2,FALSE)),\"\",VLOOKUP(L17,Inscrits!$A$2:$C$33,2,FALSE)))","v":"SOCKEEL AURORE"},{"$f":"IF(IF(ISNA(VLOOKUP(L17,Inscrits!$A$2:$C$33,3,FALSE)),\"\",\"(\"&(VLOOKUP(L17,Inscrits!$A$2:$C$33,3,FALSE))&\")\")=\"()\",\"\",IF(ISNA(VLOOKUP(L17,Inscrits!$A$2:$C$33,3,FALSE)),\"\",\"(\"&(VLOOKUP(L17,Inscrits!$A$2:$C$33,3,FALSE))&\")\"))","v":"(10)"},null,null,null,null,null,null,null,null,null,null,8,{"$f":"IF(F16=\"\",\"\",IF(F16=J14,J18,J14))","v":""},null,{"$f":"M19","v":"POTIQUET SEBASTIEN"},{"$f":"IF(AB17=M19,IF(O17=\"F\",\"\",O19),0)","v":0},{"$f":"IF(AB17=M19,IF(O19=\"F\",\"\",O17),0)","v":0},{"$f":"IF(AB17=Q18,IF(S14=\"F\",\"\",S18),0)","v":0},{"$f":"IF(AB17=Q18,IF(S18=\"F\",\"\",S14),0)","v":0},{"$f":"IF(AB17=J18,IF(I14=\"F\",\"\",I18),0)","v":0},{"$f":"IF(AB17=J18,IF(I18=\"F\",\"\",I14),0)","v":0},{"$f":"IF(AB17=F16,IF(E20=\"F\",\"\",E16),0)","v":0},{"$f":"IF(AB17=F16,IF(E16=\"F\",\"\",E20),0)","v":0},{"$f":"IF(AB17=F10,IF(E6=\"F\",\"\",E10),0)","v":0},{"$f":"IF(AB17=F10,IF(E10=\"F\",\"\",E6),0)","v":0},0,{"$f":"SUM(AD17,AF17,AH17,AJ17,AL17)","v":0},{"$f":"AM17-AN17","v":0},null,null,{"$f":"Z17","v":""},{"$f":"IF(AR17=\"\",\"\",(VLOOKUP(AR17,AB4:AO17,14,FALSE)))","v":""}]
["T",{"$f":"IF(OR(E16=\"F\",E16=\"A\"),F20,IF(OR(E20=\"F\",E20=\"A\"),F16,IF(E16=E20,\"\",(IF(E16>E20,F16,F20)))))","v":""},{"$f":"IF(OR(E16=\"F\",E16=\"A\"),G20,IF(OR(E20=\"F\",E20=\"A\"),G16,IF(E16=E20,\"\",(IF(E16>E20,G16,G20)))))","v":""},null,null,"Match 10 - Billard",null,null,null,{"$f":"IF(OR(AND(O17=\"F\",O19=\"F\"),AND(O17=\"A\",O19=\"A\")),M19,IF(OR(O17=\"F\",O17=\"A\"),M17,IF(OR(O19=\"F\",O19=\"A\"),M19,IF(O17=O19,\"\",(IF(O17<O19,M17,M19))))))","v":""},{"$f":"IF(OR(AND(O17=\"F\",O19=\"F\"),AND(O17=\"A\",O19=\"A\")),N19,IF(OR(O17=\"F\",O17=\"A\"),N17,IF(OR(O19=\"F\",O19=\"A\"),N19,IF(O17=O19,\"\",(IF(O17<O19,N17,N19))))))","v":""},null,"Match 4 - Billard",null,null,null,{"$f":"IF(OR(AND(O17=\"F\",O19=\"F\"),AND(O17=\"A\",O19=\"A\")),M17,IF(OR(O17=\"F\",O17=\"A\"),M19,IF(OR(O19=\"F\",O19=\"A\"),M17,IF(O17=O19,\"\",(IF(O17>O19,M17,M19))))))","v":""},{"$f":"IF(OR(AND(O17=\"F\",O19=\"F\"),AND(O17=\"A\",O19=\"A\")),N17,IF(OR(O17=\"F\",O17=\"A\"),N19,IF(OR(O19=\"F\",O19=\"A\"),N17,IF(O17=O19,\"\",(IF(O17>O19,N17,N19))))))","v":""}]
[null,null,null,null,null,null,null,null,null,null,"P4",8,{"$f":"IF(IF(ISNA(VLOOKUP(L19,Inscrits!$A$2:$C$33,2,FALSE)),\"\",VLOOKUP(L19,Inscrits!$A$2:$C$33,2,FALSE))=0,\"\",IF(ISNA(VLOOKUP(L19,Inscrits!$A$2:$C$33,2,FALSE)),\"\",VLOOKUP(L19,Inscrits!$A$2:$C$33,2,FALSE)))","v":"POTIQUET SEBASTIEN"},{"$f":"IF(IF(ISNA(VLOOKUP(L19,Inscrits!$A$2:$C$33,3,FALSE)),\"\",\"(\"&(VLOOKUP(L19,Inscrits!$A$2:$C$33,3,FALSE))&\")\")=\"()\",\"\",IF(ISNA(VLOOKUP(L19,Inscrits!$A$2:$C$33,3,FALSE)),\"\",\"(\"&(VLOOKUP(L19,Inscrits!$A$2:$C$33,3,FALSE))&\")\"))","v":"(3)"},null,null,"G4"]
[null,null,null,null,null,{"$f":"IF(OR(S4=\"F\",S4=\"A\"),Q4,IF(OR(S8=\"F\",S8=\"A\"),Q8,IF(S4=S8,\"\",(IF(S4<S8,Q4,Q8)))))","v":""},{"$f":"IF(OR(S4=\"F\",S4=\"A\"),R4,IF(OR(S8=\"F\",S8=\"A\"),R8,IF(S4=S8,\"\",(IF(S4<S8,R4,R8)))))","v":""}]
[null,null,null,null,null,null,"P5",null,null,{"$f":"IF(Accueil!G18=3,\"\",\"MATCHS EN 2 GAGNANTES COTE PERDANT\")","v":""}]

{"sheet":"2","index":4,"n_rows":21,"n_cols":45,"rows_kept":21,"cut":false,"hidden":false,"merged":[[20,9,20,17],[0,9,0,17],[12,1,12,2],[10,20,10,21],[1,42,1,45],[11,42,11,45]]}
[null,null,null,null,null,null,null,null,null,"MATCHS EN 3 PARTIES GAGNANTES"]
[null,null,null,null,null,null,null,null,null,null,null,null,null,null,null,null,null,null,null,null,null,null,null,null,null,null,null,null,null,null,null,null,null,null,null,null,null,null,null,null,null,null,"QUALIFIES"]
[null,null,null,null,null,null,null,null,null,null,"P1",5,{"$f":"IF(IF(ISNA(VLOOKUP(L3,Inscrits!$A$2:$C$33,2,FALSE)),\"\",VLOOKUP(L3,Inscrits!$A$2:$C$33,2,FALSE))=0,\"\",IF(ISNA(VLOOKUP(L3,Inscrits!$A$2:$C$33,2,FALSE)),\"\",VLOOKUP(L3,Inscrits!$A$2:$C$33,2,FALSE)))","v":"BENABDESSELAM YASSINE"},{"$f":"IF(IF(ISNA(VLOOKUP(L3,Inscrits!$A$2:$C$33,3,FALSE)),\"\",\"(\"&(VLOOKUP(L3,Inscrits!$A$2:$C$33,3,FALSE))&\")\")=\"()\",\"\",IF(ISNA(VLOOKUP(L3,Inscrits!$A$2:$C$33,3,FALSE)),\"\",\"(\"&(VLOOKUP(L3,Inscrits!$A$2:$C$33,3,FALSE))&\")\"))","v":"(2)"},null,null,"G1",null,null,null,null,null,null,null,null,null,null,null,"G","P","G","P","G","P","G","P","G","P","G","P","Ga",null,null,"NOM","Ga"]
[null,null,null,null,null,null,null,null,null,{"$f":"IF(OR(AND(O3=\"F\",O5=\"F\"),AND(O3=\"A\",O5=\"A\")),M5,IF(OR(O3=\"F\",O3=\"A\"),M3,IF(OR(O5=\"F\",O5=\"A\"),M5,IF(O3=O5,\"\",(IF(O3<O5,M3,M5))))))","v":""},{"$f":"IF(OR(AND(O3=\"F\",O5=\"F\"),AND(O3=\"A\",O5=\"A\")),N5,IF(OR(O3=\"F\",O3=\"A\"),N3,IF(OR(O5=\"F\",O5=\"A\"),N5,IF(O3=O5,\"\",(IF(O3<O5,N3,N5))))))","v":""},null,"Match 1 - Billard",null,null,null,{"$f":"IF(OR(AND(O3=\"F\",O5=\"F\"),AND(O3=\"A\",O5=\"A\")),M3,IF(OR(O3=\"F\",O3=\"A\"),M5,IF(OR(O5=\"F\",O5=\"A\"),M3,IF(O3=O5,\"\",(IF(O3>O5,M3,M5))))))","v":""},{"$f":"IF(OR(AND(O3=\"F\",O5=\"F\"),AND(O3=\"A\",O5=\"A\")),N3,IF(OR(O3=\"F\",O3=\"A\"),N5,IF(OR(O5=\"F\",O5=\"A\"),N3,IF(O3=O5,\"\",(IF(O3>O5,N3,N5))))))","v":""},null,null,null,null,null,null,1,{"$f":"IF(U6=\"\",\"\",IF(U6=Q4,Q4,Q8))","v":""},null,{"$f":"M3","v":"BENABDESSELAM YASSINE"},{"$f":"IF(AB4=M3,IF(O5=\"F\",\"\",O3),0)","v":0},{"$f":"IF(AB4=M3,IF(O3=\"F\",\"\",O5),0)","v":0},{"$f":"IF(AB4=Q4,IF(S8=\"F\",\"\",S4),0)","v":0},{"$f":"IF(AB4=Q4,IF(S4=\"F\",\"\",S8),0)","v":0},{"$f":"IF(AB4=J4,IF(I8=\"F\",\"\",I4),0)","v":0},{"$f":"IF(AB4=J4,IF(I4=\"F\",\"\",I8),0)","v":0},{"$f":"IF(AB4=F6,IF(E10=\"F\",\"\",E6),0)","v":0},{"$f":"IF(AB4=F6,IF(E6=\"F\",\"\",E10),0)","v":0},{"$f":"IF(AB4=F20,IF(E16=\"F\",\"\",E20),0)","v":0},{"$f":"IF(AB4=F20,IF(E20=\"F\",\"\",E16),0)","v":0},{"$f":"SUM(AC4,AE4,AG4,AI4,AK4)","v":0},0,{"$f":"AM4-AN4","v":0},null,null,{"$f":"Z4","v":""},{"$f":"IF(AR4=\"\",\"\",(VLOOKUP(AR4,AB4:AO17,14,FALSE)))","v":""}]
[null,null,null,null,null,null,"G7",null,null,null,null,28,{"$f":"IF(IF(ISNA(VLOOKUP(L5,Inscrits!$A$2:$C$33,2,FALSE)),\"\",VLOOKUP(L5,Inscrits!$A$2:$C$33,2,FALSE))=0,\"\",IF(ISNA(VLOOKUP(L5,Inscrits!$A$2:$C$33,2,FALSE)),\"\",VLOOKUP(L5,Inscrits!$A$2:$C$33,2,FALSE)))","v":"SOCKEEL YANNICK"},{"$f":"IF(IF(ISNA(VLOOKUP(L5,Inscrits!$A$2:$C$33,3,FALSE)),\"\",\"(\"&(VLOOKUP(L5,Inscrits!$A$2:$C$33,3,FALSE))&\")\")=\"()\",\"\",IF(ISNA(VLOOKUP(L5,Inscrits!$A$2:$C$33,3,FALSE)),\"\",\"(\"&(VLOOKUP(L5,Inscrits!$A$2:$C$33,3,FALSE))&\")\"))","v":"(11)"},null,null,null,null,null,null,"G5",null,null,null,3,{"$f":"IF(B8=\"\",\"\",IF(B8=F6,F6,F10))","v":""},null,{"$f":"M5","v":"SOCKEEL YANNICK"},{"$f":"IF(AB5=M5,IF(O3=\"F\",\"\",O5),0)","v":0},{"$f":"IF(AB5=M5,IF(O5=\"F\",\"\",O3),0)","v":0},{"$f":"IF(AB5=Q4,IF(S8=\"F\",\"\",S4),0)","v":0},{"$f":"IF(AB5=Q4,IF(S4=\"F\",\"\",S8),0)","v":0},{"$f":"IF(AB5=J4,IF(I8=\"F\",\"\",I4),0)","v":0},{"$f":"IF(AB5=J4,IF(I4=\"F\",\"\",I8),0)","v":0},{"$f":"IF(AB5=F6,IF(E10=\"F\",\"\",E6),0)","v":0},{"$f":"IF(AB5=F6,IF(E6=\"F\",\"\",E10),0)","v":0},{"$f":"IF(AB5=F20,IF(E16=\"F\",\"\",E20),0)","v":0},{"$f":"IF(AB5=F20,IF(E20=\"F\",\"\",E16),0)","v":0},0,0,{"$f":"AM5-AN5","v":0},null,null,{"$f":"Z14","v":""},{"$f":"IF(AR5=\"\",\"\",(VLOOKUP(AR5,AB4:AO17,14,FALSE)))","v":""}]
[null,null,null,null,null,{"$f":"IF(OR(I4=\"F\",I4=\"A\"),J8,IF(OR(I8=\"F\",I8=\"A\"),J4,IF(I4=I8,\"\",(IF(I4>I8,J4,J8)))))","v":""},{"$f":"IF(OR(I4=\"F\",I4=\"A\"),K8,IF(OR(I8=\"F\",I8=\"A\"),K4,IF(I4=I8,\"\",(IF(I4>I8,K4,K8)))))","v":""},null,null,"Match 7 - Billard",null,null,null,null,null,null,"Match 5 - Billard",null,null,null,{"$f":"IF(OR(S4=\"F\",S4=\"A\"),Q8,IF(OR(S8=\"F\",S8=\"A\"),Q4,IF(S4=S8,\"\",(IF(S4>S8,Q4,Q8)))))","v":""},{"$f":"IF(OR(S4=\"F\",S4=\"A\"),R8,IF(OR(S8=\"F\",S8=\"A\"),R4,IF(S4=S8,\"\",(IF(S4>S8,R4,R8)))))","v":""},"C",null,5,{"$f":"IF(B8=\"\",\"\",IF(B8=F6,F10,F6))","v":""},null,{"$f":"M7","v":"SOPIC NICOLAS"},{"$f":"IF(AB6=M7,IF(O9=\"F\",\"\",O7),0)","v":0},{"$f":"IF(AB6=M7,IF(O7=\"F\",\"\",O9),0)","v":0},{"$f":"IF(AB6=Q8,IF(S4=\"F\",\"\",S8),0)","v":0},{"$f":"IF(AB6=Q8,IF(S8=\"F\",\"\",S4),0)","v":0},{"$f":"IF(AB6=J8,IF(I4=\"F\",\"\",I8),0)","v":0},{"$f":"IF(AB6=J8,IF(I8=\"F\",\"\",I4),0)","v":0},{"$f":"IF(AB6=F6,IF(E10=\"F\",\"\",E6),0)","v":0},{"$f":"IF(AB6=F6,IF(E6=\"F\",\"\",E10),0)","v":0},{"$f":"IF(AB6=F20,IF(E16=\"F\",\"\",E20),0)","v":0},{"$f":"IF(AB6=F20,IF(E20=\"F\",\"\",E16),0)","v":0},0,0,{"$f":"AM6-AN6","v":0},null,null,{"$f":"Z5","v":""},{"$f":"IF(AR6=\"\",\"\",(VLOOKUP(AR6,AB4:AO17,14,FALSE)))","v":""}]
[null,null,"G9",null,null,null,null,null,null,null,null,21,{"$f":"IF(IF(ISNA(VLOOKUP(L7,Inscrits!$A$2:$C$33,2,FALSE)),\"\",VLOOKUP(L7,Inscrits!$A$2:$C$33,2,FALSE))=0,\"\",IF(ISNA(VLOOKUP(L7,Inscrits!$A$2:$C$33,2,FALSE)),\"\",VLOOKUP(L7,Inscrits!$A$2:$C$33,2,FALSE)))","v":"SOPIC NICOLAS"},{"$f":"IF(IF(ISNA(VLOOKUP(L7,Inscrits!$A$2:$C$33,3,FALSE)),\"\",\"(\"&(VLOOKUP(L7,Inscrits!$A$2:$C$33,3,FALSE))&\")\")=\"()\",\"\",IF(ISNA(VLOOKUP(L7,Inscrits!$A$2:$C$33,3,FALSE)),\"\",\"(\"&(VLOOKUP(L7,Inscrits!$A$2:$C$33,3,FALSE))&\")\"))","v":"(7)"},null,null,null,null,null,null,null,null,null,null,7,{"$f":"IF(F6=\"\",\"\",IF(F6=J4,J8,J4))","v":""},null,{"$f":"M9","v":"LAZEREG RADIL"},{"$f":"IF(AB7=M9,IF(O7=\"F\",\"\",O9),0)","v":0},{"$f":"IF(AB7=M9,IF(O9=\"F\",\"\",O7),0)","v":0},{"$f":"IF(AB7=Q8,IF(S4=\"F\",\"\",S8),0)","v":0},{"$f":"IF(AB7=Q8,IF(S8=\"F\",\"\",S4),0)","v":0},{"$f":"IF(AB7=J8,IF(I4=\"F\",\"\",I8),0)","v":0},{"$f":"IF(AB7=J8,IF(I8=\"F\",\"\",I4),0)","v":0},{"$f":"IF(AB7=F6,IF(E10=\"F\",\"\",E6),0)","v":0},{"$f":"IF(AB7=F6,IF(E6=\"F\",\"\",E10),0)","v":0},{"$f":"IF(AB7=F20,IF(E16=\"F\",\"\",E20),0)","v":0},{"$f":"IF(AB7=F20,IF(E20=\"F\",\"\",E16),0)","v":0},0,0,{"$f":"AM7-AN7","v":0},null,null,{"$f":"Z15","v":""},{"$f":"IF(AR7=\"\",\"\",(VLOOKUP(AR7,AB4:AO17,14,FALSE)))","v":""}]
["U",{"$f":"IF(OR(E6=\"F\",E6=\"A\"),F10,IF(OR(E10=\"F\",E10=\"A\"),F6,IF(E6=E10,\"\",(IF(E6>E10,F6,F10)))))","v":""},{"$f":"IF(OR(E6=\"F\",E6=\"A\"),G10,IF(OR(E10=\"F\",E10=\"A\"),G6,IF(E6=E10,\"\",(IF(E6>E10,G6,G10)))))","v":""},null,null,"Match 9 - Billard",null,null,null,{"$f":"IF(OR(AND(O7=\"F\",O9=\"F\"),AND(O7=\"A\",O9=\"A\")),M9,IF(OR(O7=\"F\",O7=\"A\"),M7,IF(OR(O9=\"F\",O9=\"A\"),M9,IF(O7=O9,\"\",(IF(O7<O9,M7,M9))))))","v":""},{"$f":"IF(OR(AND(O7=\"F\",O9=\"F\"),AND(O7=\"A\",O9=\"A\")),N9,IF(OR(O7=\"F\",O7=\"A\"),N7,IF(OR(O9=\"F\",O9=\"A\"),N9,IF(O7=O9,\"\",(IF(O7<O9,N7,N9))))))","v":""},null,"Match 2 - Billard",null,null,null,{"$f":"IF(OR(AND(O7=\"F\",O9=\"F\"),AND(O7=\"A\",O9=\"A\")),M7,IF(OR(O7=\"F\",O7=\"A\"),M9,IF(OR(O9=\"F\",O9=\"A\"),M7,IF(O7=O9,\"\",(IF(O7>O9,M7,M9))))))","v":""},{"$f":"IF(OR(AND(O7=\"F\",O9=\"F\"),AND(O7=\"A\",O9=\"A\")),N7,IF(OR(O7=\"F\",O7=\"A\"),N9,IF(OR(O9=\"F\",O9=\"A\"),N7,IF(O7=O9,\"\",(IF(O7>O9,N7,N9))))))","v":""}]
[null,null,null,null,null,null,null,null,null,null,"P2",12,{"$f":"IF(IF(ISNA(VLOOKUP(L9,Inscrits!$A$2:$C$33,2,FALSE)),\"\",VLOOKUP(L9,Inscrits!$A$2:$C$33,2,FALSE))=0,\"\",IF(ISNA(VLOOKUP(L9,Inscrits!$A$2:$C$33,2,FALSE)),\"\",VLOOKUP(L9,Inscrits!$A$2:$C$33,2,FALSE)))","v":"LAZEREG RADIL"},{"$f":"IF(IF(ISNA(VLOOKUP(L9,Inscrits!$A$2:$C$33,3,FALSE)),\"\",\"(\"&(VLOOKUP(L9,Inscrits!$A$2:$C$33,3,FALSE))&\")\")=\"()\",\"\",IF(ISNA(VLOOKUP(L9,Inscrits!$A$2:$C$33,3,FALSE)),\"\",\"(\"&(VLOOKUP(L9,Inscrits!$A$2:$C$33,3,FALSE))&\")\"))","v":"(4)"},null,null,"G2"]
[null,null,null,null,null,{"$f":"IF(OR(S14=\"F\",S14=\"A\"),Q14,IF(OR(S18=\"F\",S18=\"A\"),Q18,IF(S14=S18,\"\",(IF(S14<S18,Q14,Q18)))))","v":""},{"$f":"IF(OR(S14=\"F\",S14=\"A\"),R14,IF(OR(S18=\"F\",S18=\"A\"),R18,IF(S14=S18,\"\",(IF(S14<S18,R14,R18)))))","v":""}]
[null,null,null,null,null,null,"P6",null,null,null,null,null,null,null,null,null,null,null,null,null,"QUALIFIES"]
[null,null,null,null,null,null,null,null,null,null,null,null,null,null,null,null,null,null,null,null,null,null,null,null,null,null,null,null,null,null,null,null,null,null,null,null,null,null,null,null,null,null,"ELIMINES"]
[null,"QUALIFIES",null,null,null,null,null,null,null,null,"P3",13,{"$f":"IF(IF(ISNA(VLOOKUP(L13,Inscrits!$A$2:$C$33,2,FALSE)),\"\",VLOOKUP(L13,Inscrits!$A$2:$C$33,2,FALSE))=0,\"\",IF(ISNA(VLOOKUP(L13,Inscrits!$A$2:$C$33,2,FALSE)),\"\",VLOOKUP(L13,Inscrits!$A$2:$C$33,2,FALSE)))","v":"PILLOT VINCENT"},{"$f":"IF(IF(ISNA(VLOOKUP(L13,Inscrits!$A$2:$C$33,3,FALSE)),\"\",\"(\"&(VLOOKUP(L13,Inscrits!$A$2:$C$33,3,FALSE))&\")\")=\"()\",\"\",IF(ISNA(VLOOKUP(L13,Inscrits!$A$2:$C$33,3,FALSE)),\"\",\"(\"&(VLOOKUP(L13,Inscrits!$A$2:$C$33,3,FALSE))&\")\"))","v":"(4)"},null,null,"G3",null,null,null,null,null,null,null,null,null,null,null,"G","P","G","P","G","P","G","P","G","P","G","P","Ga",null,null,"NOM","Ga"]
[null,null,null,null,null,null,null,null,null,{"$f":"IF(OR(AND(O13=\"F\",O15=\"F\"),AND(O13=\"A\",O15=\"A\")),M15,IF(OR(O13=\"F\",O13=\"A\"),M13,IF(OR(O15=\"F\",O15=\"A\"),M15,IF(O13=O15,\"\",(IF(O13<O15,M13,M15))))))","v":""},{"$f":"IF(OR(AND(O13=\"F\",O15=\"F\"),AND(O13=\"A\",O15=\"A\")),N15,IF(OR(O13=\"F\",O13=\"A\"),N13,IF(OR(O15=\"F\",O15=\"A\"),N15,IF(O13=O15,\"\",(IF(O13<O15,N13,N15))))))","v":""},null,"Match 3 - Billard",null,null,null,{"$f":"IF(OR(AND(O13=\"F\",O15=\"F\"),AND(O13=\"A\",O15=\"A\")),M13,IF(OR(O13=\"F\",O13=\"A\"),M15,IF(OR(O15=\"F\",O15=\"A\"),M13,IF(O13=O15,\"\",(IF(O13>O15,M13,M15))))))","v":""},{"$f":"IF(OR(AND(O13=\"F\",O15=\"F\"),AND(O13=\"A\",O15=\"A\")),N13,IF(OR(O13=\"F\",O13=\"A\"),N15,IF(OR(O15=\"F\",O15=\"A\"),N13,IF(O13=O15,\"\",(IF(O13>O15,N13,N15))))))","v":""},null,null,null,null,null,null,2,{"$f":"IF(U16=\"\",\"\",IF(U16=Q14,Q14,Q18))","v":""},null,{"$f":"M13","v":"PILLOT VINCENT"},{"$f":"IF(AB14=M13,IF(O15=\"F\",\"\",O13),0)","v":0},{"$f":"IF(AB14=M13,IF(O13=\"F\",\"\",O15),0)","v":0},{"$f":"IF(AB14=Q14,IF(S18=\"F\",\"\",S14),0)","v":0},{"$f":"IF(AB14=Q14,IF(S14=\"F\",\"\",S18),0)","v":0},{"$f":"IF(AB14=J14,IF(I18=\"F\",\"\",I14),0)","v":0},{"$f":"IF(AB14=J14,IF(I14=\"F\",\"\",I18),0)","v":0},{"$f":"IF(AB14=F16,IF(E20=\"F\",\"\",E16),0)","v":0},{"$f":"IF(AB14=F16,IF(E16=\"F\",\"\",E20),0)","v":0},{"$f":"IF(AB14=F10,IF(E6=\"F\",\"\",E10),0)","v":0},{"$f":"IF(AB14=F10,IF(E10=\"F\",\"\",E6),0)","v":0},{"$f":"SUM(AC14,AE14,AG14,AI14,AK14)","v":0},0,{"$f":"AM14-AN14","v":0},null,null,{"$f":"Z6","v":""},{"$f":"IF(AR14=\"\",\"\",(VLOOKUP(AR14,AB4:AO17,14,FALSE)))","v":""}]
[null,null,null,null,null,null,"G8",null,null,null,null,20,{"$f":"IF(IF(ISNA(VLOOKUP(L15,Inscrits!$A$2:$C$33,2,FALSE)),\"\",VLOOKUP(L15,Inscrits!$A$2:$C$33,2,FALSE))=0,\"\",IF(ISNA(VLOOKUP(L15,Inscrits!$A$2:$C$33,2,FALSE)),\"\",VLOOKUP(L15,Inscrits!$A$2:$C$33,2,FALSE)))","v":"DELORME STEPHANE"},{"$f":"IF(IF(ISNA(VLOOKUP(L15,Inscrits!$A$2:$C$33,3,FALSE)),\"\",\"(\"&(VLOOKUP(L15,Inscrits!$A$2:$C$33,3,FALSE))&\")\")=\"()\",\"\",IF(ISNA(VLOOKUP(L15,Inscrits!$A$2:$C$33,3,FALSE)),\"\",\"(\"&(VLOOKUP(L15,Inscrits!$A$2:$C$33,3,FALSE))&\")\"))","v":"(6)"},null,null,null,null,null,null,"G6",null,null,null,4,{"$f":"IF(B18=\"\",\"\",IF(B18=F16,F16,F20))","v":""},null,{"$f":"M15","v":"DELORME STEPHANE"},{"$f":"IF(AB15=M15,IF(O13=\"F\",\"\",O15),0)","v":0},{"$f":"IF(AB15=M15,IF(O15=\"F\",\"\",O13),0)","v":0},{"$f":"IF(AB15=Q14,IF(S18=\"F\",\"\",S14),0)","v":0},{"$f":"IF(AB15=Q14,IF(S14=\"F\",\"\",S18),0)","v":0},{"$f":"IF(AB15=J14,IF(I18=\"F\",\"\",I14),0)","v":0},{"$f":"IF(AB15=J14,IF(I14=\"F\",\"\",I18),0)","v":0},{"$f":"IF(AB15=F16,IF(E20=\"F\",\"\",E16),0)","v":0},{"$f":"IF(AB15=F16,IF(E16=\"F\",\"\",E20),0)","v":0},{"$f":"IF(AB15=F10,IF(E6=\"F\",\"\",E10),0)","v":0},{"$f":"IF(AB15=F10,IF(E10=\"F\",\"\",E6),0)","v":0},0,0,{"$f":"AM15-AN15","v":0},null,null,{"$f":"Z16","v":""},{"$f":"IF(AR15=\"\",\"\",(VLOOKUP(AR15,AB4:AO17,14,FALSE)))","v":""}]
[null,null,null,null,null,{"$f":"IF(OR(I14=\"F\",I14=\"A\"),J18,IF(OR(I18=\"F\",I18=\"A\"),J14,IF(I14=I18,\"\",(IF(I14>I18,J14,J18)))))","v":""},{"$f":"IF(OR(I14=\"F\",I14=\"A\"),K18,IF(OR(I18=\"F\",I18=\"A\"),K14,IF(I14=I18,\"\",(IF(I14>I18,K14,K18)))))","v":""},null,null,"Match 8 - Billard",null,null,null,null,null,null,"Match 6 - Billard",null,null,null,{"$f":"IF(OR(S14=\"F\",S14=\"A\"),Q18,IF(OR(S18=\"F\",S18=\"A\"),Q14,IF(S14=S18,\"\",(IF(S14>S18,Q14,Q18)))))","v":""},{"$f":"IF(OR(S14=\"F\",S14=\"A\"),R18,IF(OR(S18=\"F\",S18=\"A\"),R14,IF(S14=S18,\"\",(IF(S14>S18,R14,R18)))))","v":""},"D",null,6,{"$f":"IF(B18=\"\",\"\",IF(B18=F16,F20,F16))","v":""},null,{"$f":"M17","v":"BERRAHOU SOLANGE"},{"$f":"IF(AB16=M17,IF(O19=\"F\",\"\",O17),0)","v":0},{"$f":"IF(AB16=M17,IF(O17=\"F\",\"\",O19),0)","v":0},{"$f":"IF(AB16=Q18,IF(S14=\"F\",\"\",S18),0)","v":0},{"$f":"IF(AB16=Q18,IF(S18=\"F\",\"\",S14),0)","v":0},{"$f":"IF(AB16=J18,IF(I14=\"F\",\"\",I18),0)","v":0},{"$f":"IF(AB16=J18,IF(I18=\"F\",\"\",I14),0)","v":0},{"$f":"IF(AB16=F16,IF(E20=\"F\",\"\",E16),0)","v":0},{"$f":"IF(AB16=F16,IF(E16=\"F\",\"\",E20),0)","v":0},{"$f":"IF(AB16=F10,IF(E6=\"F\",\"\",E10),0)","v":0},{"$f":"IF(AB16=F10,IF(E10=\"F\",\"\",E6),0)","v":0},0,0,{"$f":"AM16-AN16","v":0},null,null,{"$f":"Z7","v":""},{"$f":"IF(AR16=\"\",\"\",(VLOOKUP(AR16,AB4:AO17,14,FALSE)))","v":""}]
[null,null,"G10",null,null,null,null,null,null,null,null,29,{"$f":"IF(IF(ISNA(VLOOKUP(L17,Inscrits!$A$2:$C$33,2,FALSE)),\"\",VLOOKUP(L17,Inscrits!$A$2:$C$33,2,FALSE))=0,\"\",IF(ISNA(VLOOKUP(L17,Inscrits!$A$2:$C$33,2,FALSE)),\"\",VLOOKUP(L17,Inscrits!$A$2:$C$33,2,FALSE)))","v":"BERRAHOU SOLANGE"},{"$f":"IF(IF(ISNA(VLOOKUP(L17,Inscrits!$A$2:$C$33,3,FALSE)),\"\",\"(\"&(VLOOKUP(L17,Inscrits!$A$2:$C$33,3,FALSE))&\")\")=\"()\",\"\",IF(ISNA(VLOOKUP(L17,Inscrits!$A$2:$C$33,3,FALSE)),\"\",\"(\"&(VLOOKUP(L17,Inscrits!$A$2:$C$33,3,FALSE))&\")\"))","v":"(12)"},null,null,null,null,null,null,null,null,null,null,8,{"$f":"IF(F16=\"\",\"\",IF(F16=J14,J18,J14))","v":""},null,{"$f":"M19","v":"GARNIER NICOLAS"},{"$f":"IF(AB17=M19,IF(O17=\"F\",\"\",O19),0)","v":0},{"$f":"IF(AB17=M19,IF(O19=\"F\",\"\",O17),0)","v":0},{"$f":"IF(AB17=Q18,IF(S14=\"F\",\"\",S18),0)","v":0},{"$f":"IF(AB17=Q18,IF(S18=\"F\",\"\",S14),0)","v":0},{"$f":"IF(AB17=J18,IF(I14=\"F\",\"\",I18),0)","v":0},{"$f":"IF(AB17=J18,IF(I18=\"F\",\"\",I14),0)","v":0},{"$f":"IF(AB17=F16,IF(E20=\"F\",\"\",E16),0)","v":0},{"$f":"IF(AB17=F16,IF(E16=\"F\",\"\",E20),0)","v":0},{"$f":"IF(AB17=F10,IF(E6=\"F\",\"\",E10),0)","v":0},{"$f":"IF(AB17=F10,IF(E10=\"F\",\"\",E6),0)","v":0},0,0,{"$f":"AM17-AN17","v":0},null,null,{"$f":"Z17","v":""},{"$f":"IF(AR17=\"\",\"\",(VLOOKUP(AR17,AB4:AO17,14,FALSE)))","v":""}]
["V",{"$f":"IF(OR(E16=\"F\",E16=\"A\"),F20,IF(OR(E20=\"F\",E20=\"A\"),F16,IF(E16=E20,\"\",(IF(E16>E20,F16,F20)))))","v":""},{"$f":"IF(OR(E16=\"F\",E16=\"A\"),G20,IF(OR(E20=\"F\",E20=\"A\"),G16,IF(E16=E20,\"\",(IF(E16>E20,G16,G20)))))","v":""},null,null,"Match 10 - Billard",null,null,null,{"$f":"IF(OR(AND(O17=\"F\",O19=\"F\"),AND(O17=\"A\",O19=\"A\")),M19,IF(OR(O17=\"F\",O17=\"A\"),M17,IF(OR(O19=\"F\",O19=\"A\"),M19,IF(O17=O19,\"\",(IF(O17<O19,M17,M19))))))","v":""},{"$f":"IF(OR(AND(O17=\"F\",O19=\"F\"),AND(O17=\"A\",O19=\"A\")),N19,IF(OR(O17=\"F\",O17=\"A\"),N17,IF(OR(O19=\"F\",O19=\"A\"),N19,IF(O17=O19,\"\",(IF(O17<O19,N17,N19))))))","v":""},null,"Match 4 - Billard",null,null,null,{"$f":"IF(OR(AND(O17=\"F\",O19=\"F\"),AND(O17=\"A\",O19=\"A\")),M17,IF(OR(O17=\"F\",O17=\"A\"),M19,IF(OR(O19=\"F\",O19=\"A\"),M17,IF(O17=O19,\"\",(IF(O17>O19,M17,M19))))))","v":""},{"$f":"IF(OR(AND(O17=\"F\",O19=\"F\"),AND(O17=\"A\",O19=\"A\")),N17,IF(OR(O17=\"F\",O17=\"A\"),N19,IF(OR(O19=\"F\",O19=\"A\"),N17,IF(O17=O19,\"\",(IF(O17>O19,N17,N19))))))","v":""}]
[null,null,null,null,null,null,null,null,null,null,"P4",4,{"$f":"IF(IF(ISNA(VLOOKUP(L19,Inscrits!$A$2:$C$33,2,FALSE)),\"\",VLOOKUP(L19,Inscrits!$A$2:$C$33,2,FALSE))=0,\"\",IF(ISNA(VLOOKUP(L19,Inscrits!$A$2:$C$33,2,FALSE)),\"\",VLOOKUP(L19,Inscrits!$A$2:$C$33,2,FALSE)))","v":"GARNIER NICOLAS"},{"$f":"IF(IF(ISNA(VLOOKUP(L19,Inscrits!$A$2:$C$33,3,FALSE)),\"\",\"(\"&(VLOOKUP(L19,Inscrits!$A$2:$C$33,3,FALSE))&\")\")=\"()\",\"\",IF(ISNA(VLOOKUP(L19,Inscrits!$A$2:$C$33,3,FALSE)),\"\",\"(\"&(VLOOKUP(L19,Inscrits!$A$2:$C$33,3,FALSE))&\")\"))","v":"(2)"},null,null,"G4"]
[null,null,null,null,null,{"$f":"IF(OR(S4=\"F\",S4=\"A\"),Q4,IF(OR(S8=\"F\",S8=\"A\"),Q8,IF(S4=S8,\"\",(IF(S4<S8,Q4,Q8)))))","v":""},{"$f":"IF(OR(S4=\"F\",S4=\"A\"),R4,IF(OR(S8=\"F\",S8=\"A\"),R8,IF(S4=S8,\"\",(IF(S4<S8,R4,R8)))))","v":""}]
[null,null,null,null,null,null,"P5",null,null,{"$f":"IF(Accueil!G18=3,\"\",\"MATCHS EN 2 GAGNANTES COTE PERDANT\")","v":""}]

{"sheet":"3","index":5,"n_rows":21,"n_cols":45,"rows_kept":21,"cut":false,"hidden":false,"merged":[[20,9,20,17],[0,9,0,17],[12,1,12,2],[10,20,10,21],[1,42,1,45],[11,42,11,45]]}
[null,null,null,null,null,null,null,null,null,"MATCHS EN 3 PARTIES GAGNANTES"]
[null,null,null,null,null,null,null,null,null,null,null,null,null,null,null,null,null,null,null,null,null,null,null,null,null,null,null,null,null,null,null,null,null,null,null,null,null,null,null,null,null,null,"QUALIFIES"]
[null,null,null,null,null,null,null,null,null,null,"P1",3,{"$f":"IF(IF(ISNA(VLOOKUP(L3,Inscrits!$A$2:$C$33,2,FALSE)),\"\",VLOOKUP(L3,Inscrits!$A$2:$C$33,2,FALSE))=0,\"\",IF(ISNA(VLOOKUP(L3,Inscrits!$A$2:$C$33,2,FALSE)),\"\",VLOOKUP(L3,Inscrits!$A$2:$C$33,2,FALSE)))","v":"CROS DAVID"},{"$f":"IF(IF(ISNA(VLOOKUP(L3,Inscrits!$A$2:$C$33,3,FALSE)),\"\",\"(\"&(VLOOKUP(L3,Inscrits!$A$2:$C$33,3,FALSE))&\")\")=\"()\",\"\",IF(ISNA(VLOOKUP(L3,Inscrits!$A$2:$C$33,3,FALSE)),\"\",\"(\"&(VLOOKUP(L3,Inscrits!$A$2:$C$33,3,FALSE))&\")\"))","v":"(1)"},null,null,"G1",null,null,null,null,null,null,null,null,null,null,null,"G","P","G","P","G","P","G","P","G","P","G","P","Ga",null,null,"NOM","Ga"]
[null,null,null,null,null,null,null,null,null,{"$f":"IF(OR(AND(O3=\"F\",O5=\"F\"),AND(O3=\"A\",O5=\"A\")),M5,IF(OR(O3=\"F\",O3=\"A\"),M3,IF(OR(O5=\"F\",O5=\"A\"),M5,IF(O3=O5,\"\",(IF(O3<O5,M3,M5))))))","v":""},{"$f":"IF(OR(AND(O3=\"F\",O5=\"F\"),AND(O3=\"A\",O5=\"A\")),N5,IF(OR(O3=\"F\",O3=\"A\"),N3,IF(OR(O5=\"F\",O5=\"A\"),N5,IF(O3=O5,\"\",(IF(O3<O5,N3,N5))))))","v":""},null,"Match 1 - Billard",null,null,null,{"$f":"IF(OR(AND(O3=\"F\",O5=\"F\"),AND(O3=\"A\",O5=\"A\")),M3,IF(OR(O3=\"F\",O3=\"A\"),M5,IF(OR(O5=\"F\",O5=\"A\"),M3,IF(O3=O5,\"\",(IF(O3>O5,M3,M5))))))","v":""},{"$f":"IF(OR(AND(O3=\"F\",O5=\"F\"),AND(O3=\"A\",O5=\"A\")),N3,IF(OR(O3=\"F\",O3=\"A\"),N5,IF(OR(O5=\"F\",O5=\"A\"),N3,IF(O3=O5,\"\",(IF(O3>O5,N3,N5))))))","v":""},null,null,null,null,null,null,1,{"$f":"IF(U6=\"\",\"\",IF(U6=Q4,Q4,Q8))","v":""},null,{"$f":"M3","v":"CROS DAVID"},{"$f":"IF(AB4=M3,IF(O5=\"F\",\"\",O3),0)","v":0},{"$f":"IF(AB4=M3,IF(O3=\"F\",\"\",O5),0)","v":0},{"$f":"IF(AB4=Q4,IF(S8=\"F\",\"\",S4),0)","v":0},{"$f":"IF(AB4=Q4,IF(S4=\"F\",\"\",S8),0)","v":0},{"$f":"IF(AB4=J4,IF(I8=\"F\",\"\",I4),0)","v":0},{"$f":"IF(AB4=J4,IF(I4=\"F\",\"\",I8),0)","v":0},{"$f":"IF(AB4=F6,IF(E10=\"F\",\"\",E6),0)","v":0},{"$f":"IF(AB4=F6,IF(E6=\"F\",\"\",E10),0)","v":0},{"$f":"IF(AB4=F20,IF(E16=\"F\",\"\",E20),0)","v":0},{"$f":"IF(AB4=F20,IF(E20=\"F\",\"\",E16),0)","v":0},{"$f":"SUM(AC4,AE4,AG4,AI4,AK4)","v":0},0,{"$f":"AM4-AN4","v":0},null,null,{"$f":"Z4","v":""},{"$f":"IF(AR4=\"\",\"\",(VLOOKUP(AR4,AB4:AO17,14,FALSE)))","v":""}]
[null,null,null,null,null,null,"G7",null,null,null,null,30,{"$f":"IF(IF(ISNA(VLOOKUP(L5,Inscrits!$A$2:$C$33,2,FALSE)),\"\",VLOOKUP(L5,Inscrits!$A$2:$C$33,2,FALSE))=0,\"\",IF(ISNA(VLOOKUP(L5,Inscrits!$A$2:$C$33,2,FALSE)),\"\",VLOOKUP(L5,Inscrits!$A$2:$C$33,2,FALSE)))","v":"BABEL STEPHANIE"},{"$f":"IF(IF(ISNA(VLOOKUP(L5,Inscrits!$A$2:$C$33,3,FALSE)),\"\",\"(\"&(VLOOKUP(L5,Inscrits!$A$2:$C$33,3,FALSE))&\")\")=\"()\",\"\",IF(ISNA(VLOOKUP(L5,Inscrits!$A$2:$C$33,3,FALSE)),\"\",\"(\"&(VLOOKUP(L5,Inscrits!$A$2:$C$33,3,FALSE))&\")\"))","v":"(13)"},null,null,null,null,null,null,"G5",null,null,null,3,{"$f":"IF(B8=\"\",\"\",IF(B8=F6,F6,F10))","v":""},null,{"$f":"M5","v":"BABEL STEPHANIE"},{"$f":"IF(AB5=M5,IF(O3=\"F\",\"\",O5),0)","v":0},{"$f":"IF(AB5=M5,IF(O5=\"F\",\"\",O3),0)","v":0},{"$f":"IF(AB5=Q4,IF(S8=\"F\",\"\",S4),0)","v":0},{"$f":"IF(AB5=Q4,IF(S4=\"F\",\"\",S8),0)","v":0},{"$f":"IF(AB5=J4,IF(I8=\"F\",\"\",I4),0)","v":0},{"$f":"IF(AB5=J4,IF(I4=\"F\",\"\",I8),0)","v":0},{"$f":"IF(AB5=F6,IF(E10=\"F\",\"\",E6),0)","v":0},{"$f":"IF(AB5=F6,IF(E6=\"F\",\"\",E10),0)","v":0},{"$f":"IF(AB5=F20,IF(E16=\"F\",\"\",E20),0)","v":0},{"$f":"IF(AB5=F20,IF(E20=\"F\",\"\",E16),0)","v":0},0,0,{"$f":"AM5-AN5","v":0},null,null,{"$f":"Z14","v":""},{"$f":"IF(AR5=\"\",\"\",(VLOOKUP(AR5,AB4:AO17,14,FALSE)))","v":""}]
[null,null,null,null,null,{"$f":"IF(OR(I4=\"F\",I4=\"A\"),J8,IF(OR(I8=\"F\",I8=\"A\"),J4,IF(I4=I8,\"\",(IF(I4>I8,J4,J8)))))","v":""},{"$f":"IF(OR(I4=\"F\",I4=\"A\"),K8,IF(OR(I8=\"F\",I8=\"A\"),K4,IF(I4=I8,\"\",(IF(I4>I8,K4,K8)))))","v":""},null,null,"Match 7 - Billard",null,null,null,null,null,null,"Match 5 - Billard",null,null,null,{"$f":"IF(OR(S4=\"F\",S4=\"A\"),Q8,IF(OR(S8=\"F\",S8=\"A\"),Q4,IF(S4=S8,\"\",(IF(S4>S8,Q4,Q8)))))","v":""},{"$f":"IF(OR(S4=\"F\",S4=\"A\"),R8,IF(OR(S8=\"F\",S8=\"A\"),R4,IF(S4=S8,\"\",(IF(S4>S8,R4,R8)))))","v":""},"E",null,5,{"$f":"IF(B8=\"\",\"\",IF(B8=F6,F10,F6))","v":""},null,{"$f":"M7","v":"LATORRE ANDRE"},{"$f":"IF(AB6=M7,IF(O9=\"F\",\"\",O7),0)","v":0},{"$f":"IF(AB6=M7,IF(O7=\"F\",\"\",O9),0)","v":0},{"$f":"IF(AB6=Q8,IF(S4=\"F\",\"\",S8),0)","v":0},{"$f":"IF(AB6=Q8,IF(S8=\"F\",\"\",S4),0)","v":0},{"$f":"IF(AB6=J8,IF(I4=\"F\",\"\",I8),0)","v":0},{"$f":"IF(AB6=J8,IF(I8=\"F\",\"\",I4),0)","v":0},{"$f":"IF(AB6=F6,IF(E10=\"F\",\"\",E6),0)","v":0},{"$f":"IF(AB6=F6,IF(E6=\"F\",\"\",E10),0)","v":0},{"$f":"IF(AB6=F20,IF(E16=\"F\",\"\",E20),0)","v":0},{"$f":"IF(AB6=F20,IF(E20=\"F\",\"\",E16),0)","v":0},0,0,{"$f":"AM6-AN6","v":0},null,null,{"$f":"Z5","v":""},{"$f":"IF(AR6=\"\",\"\",(VLOOKUP(AR6,AB4:AO17,14,FALSE)))","v":""}]
[null,null,"G9",null,null,null,null,null,null,null,null,19,{"$f":"IF(IF(ISNA(VLOOKUP(L7,Inscrits!$A$2:$C$33,2,FALSE)),\"\",VLOOKUP(L7,Inscrits!$A$2:$C$33,2,FALSE))=0,\"\",IF(ISNA(VLOOKUP(L7,Inscrits!$A$2:$C$33,2,FALSE)),\"\",VLOOKUP(L7,Inscrits!$A$2:$C$33,2,FALSE)))","v":"LATORRE ANDRE"},{"$f":"IF(IF(ISNA(VLOOKUP(L7,Inscrits!$A$2:$C$33,3,FALSE)),\"\",\"(\"&(VLOOKUP(L7,Inscrits!$A$2:$C$33,3,FALSE))&\")\")=\"()\",\"\",IF(ISNA(VLOOKUP(L7,Inscrits!$A$2:$C$33,3,FALSE)),\"\",\"(\"&(VLOOKUP(L7,Inscrits!$A$2:$C$33,3,FALSE))&\")\"))","v":"(6)"},null,null,null,null,null,null,null,null,null,null,7,{"$f":"IF(F6=\"\",\"\",IF(F6=J4,J8,J4))","v":""},null,{"$f":"M9","v":"TASSET JEROME"},{"$f":"IF(AB7=M9,IF(O7=\"F\",\"\",O9),0)","v":0},{"$f":"IF(AB7=M9,IF(O9=\"F\",\"\",O7),0)","v":0},{"$f":"IF(AB7=Q8,IF(S4=\"F\",\"\",S8),0)","v":0},{"$f":"IF(AB7=Q8,IF(S8=\"F\",\"\",S4),0)","v":0},{"$f":"IF(AB7=J8,IF(I4=\"F\",\"\",I8),0)","v":0},{"$f":"IF(AB7=J8,IF(I8=\"F\",\"\",I4),0)","v":0},{"$f":"IF(AB7=F6,IF(E10=\"F\",\"\",E6),0)","v":0},{"$f":"IF(AB7=F6,IF(E6=\"F\",\"\",E10),0)","v":0},{"$f":"IF(AB7=F20,IF(E16=\"F\",\"\",E20),0)","v":0},{"$f":"IF(AB7=F20,IF(E20=\"F\",\"\",E16),0)","v":0},0,0,{"$f":"AM7-AN7","v":0},null,null,{"$f":"Z15","v":""},{"$f":"IF(AR7=\"\",\"\",(VLOOKUP(AR7,AB4:AO17,14,FALSE)))","v":""}]
["W",{"$f":"IF(OR(E6=\"F\",E6=\"A\"),F10,IF(OR(E10=\"F\",E10=\"A\"),F6,IF(E6=E10,\"\",(IF(E6>E10,F6,F10)))))","v":""},{"$f":"IF(OR(E6=\"F\",E6=\"A\"),G10,IF(OR(E10=\"F\",E10=\"A\"),G6,IF(E6=E10,\"\",(IF(E6>E10,G6,G10)))))","v":""},null,null,"Match 9 - Billard",null,null,null,{"$f":"IF(OR(AND(O7=\"F\",O9=\"F\"),AND(O7=\"A\",O9=\"A\")),M9,IF(OR(O7=\"F\",O7=\"A\"),M7,IF(OR(O9=\"F\",O9=\"A\"),M9,IF(O7=O9,\"\",(IF(O7<O9,M7,M9))))))","v":""},{"$f":"IF(OR(AND(O7=\"F\",O9=\"F\"),AND(O7=\"A\",O9=\"A\")),N9,IF(OR(O7=\"F\",O7=\"A\"),N7,IF(OR(O9=\"F\",O9=\"A\"),N9,IF(O7=O9,\"\",(IF(O7<O9,N7,N9))))))","v":""},null,"Match 2 - Billard",null,null,null,{"$f":"IF(OR(AND(O7=\"F\",O9=\"F\"),AND(O7=\"A\",O9=\"A\")),M7,IF(OR(O7=\"F\",O7=\"A\"),M9,IF(OR(O9=\"F\",O9=\"A\"),M7,IF(O7=O9,\"\",(IF(O7>O9,M7,M9))))))","v":""},{"$f":"IF(OR(AND(O7=\"F\",O9=\"F\"),AND(O7=\"A\",O9=\"A\")),N7,IF(OR(O7=\"F\",O7=\"A\"),N9,IF(OR(O9=\"F\",O9=\"A\"),N7,IF(O7=O9,\"\",(IF(O7>O9,N7,N9))))))","v":""}]
[null,null,null,null,null,null,null,null,null,null,"P2",14,{"$f":"IF(IF(ISNA(VLOOKUP(L9,Inscrits!$A$2:$C$33,2,FALSE)),\"\",VLOOKUP(L9,Inscrits!$A$2:$C$33,2,FALSE))=0,\"\",IF(ISNA(VLOOKUP(L9,Inscrits!$A$2:$C$33,2,FALSE)),\"\",VLOOKUP(L9,Inscrits!$A$2:$C$33,2,FALSE)))","v":"TASSET JEROME"},{"$f":"IF(IF(ISNA(VLOOKUP(L9,Inscrits!$A$2:$C$33,3,FALSE)),\"\",\"(\"&(VLOOKUP(L9,Inscrits!$A$2:$C$33,3,FALSE))&\")\")=\"()\",\"\",IF(ISNA(VLOOKUP(L9,Inscrits!$A$2:$C$33,3,FALSE)),\"\",\"(\"&(VLOOKUP(L9,Inscrits!$A$2:$C$33,3,FALSE))&\")\"))","v":"(5)"},null,null,"G2"]
[null,null,null,null,null,{"$f":"IF(OR(S14=\"F\",S14=\"A\"),Q14,IF(OR(S18=\"F\",S18=\"A\"),Q18,IF(S14=S18,\"\",(IF(S14<S18,Q14,Q18)))))","v":""},{"$f":"IF(OR(S14=\"F\",S14=\"A\"),R14,IF(OR(S18=\"F\",S18=\"A\"),R18,IF(S14=S18,\"\",(IF(S14<S18,R14,R18)))))","v":""}]
[null,null,null,null,null,null,"P6",null,null,null,null,null,null,null,null,null,null,null,null,null,"QUALIFIES"]
[null,null,null,null,null,null,null,null,null,null,null,null,null,null,null,null,null,null,null,null,null,null,null,null,null,null,null,null,null,null,null,null,null,null,null,null,null,null,null,null,null,null,"ELIMINES"]
[null,"QUALIFIES",null,null,null,null,null,null,null,null,"P3",11,{"$f":"IF(IF(ISNA(VLOOKUP(L13,Inscrits!$A$2:$C$33,2,FALSE)),\"\",VLOOKUP(L13,Inscrits!$A$2:$C$33,2,FALSE))=0,\"\",IF(ISNA(VLOOKUP(L13,Inscrits!$A$2:$C$33,2,FALSE)),\"\",VLOOKUP(L13,Inscrits!$A$2:$C$33,2,FALSE)))","v":"TEBBANI AZIZ"},{"$f":"IF(IF(ISNA(VLOOKUP(L13,Inscrits!$A$2:$C$33,3,FALSE)),\"\",\"(\"&(VLOOKUP(L13,Inscrits!$A$2:$C$33,3,FALSE))&\")\")=\"()\",\"\",IF(ISNA(VLOOKUP(L13,Inscrits!$A$2:$C$33,3,FALSE)),\"\",\"(\"&(VLOOKUP(L13,Inscrits!$A$2:$C$33,3,FALSE))&\")\"))","v":"(4)"},null,null,"G3",null,null,null,null,null,null,null,null,null,null,null,"G","P","G","P","G","P","G","P","G","P","G","P","Ga",null,null,"NOM","Ga"]
[null,null,null,null,null,null,null,null,null,{"$f":"IF(OR(AND(O13=\"F\",O15=\"F\"),AND(O13=\"A\",O15=\"A\")),M15,IF(OR(O13=\"F\",O13=\"A\"),M13,IF(OR(O15=\"F\",O15=\"A\"),M15,IF(O13=O15,\"\",(IF(O13<O15,M13,M15))))))","v":""},{"$f":"IF(OR(AND(O13=\"F\",O15=\"F\"),AND(O13=\"A\",O15=\"A\")),N15,IF(OR(O13=\"F\",O13=\"A\"),N13,IF(OR(O15=\"F\",O15=\"A\"),N15,IF(O13=O15,\"\",(IF(O13<O15,N13,N15))))))","v":""},null,"Match 3 - Billard",null,null,null,{"$f":"IF(OR(AND(O13=\"F\",O15=\"F\"),AND(O13=\"A\",O15=\"A\")),M13,IF(OR(O13=\"F\",O13=\"A\"),M15,IF(OR(O15=\"F\",O15=\"A\"),M13,IF(O13=O15,\"\",(IF(O13>O15,M13,M15))))))","v":""},{"$f":"IF(OR(AND(O13=\"F\",O15=\"F\"),AND(O13=\"A\",O15=\"A\")),N13,IF(OR(O13=\"F\",O13=\"A\"),N15,IF(OR(O15=\"F\",O15=\"A\"),N13,IF(O13=O15,\"\",(IF(O13>O15,N13,N15))))))","v":""},null,null,null,null,null,null,2,{"$f":"IF(U16=\"\",\"\",IF(U16=Q14,Q14,Q18))","v":""},null,{"$f":"M13","v":"TEBBANI AZIZ"},{"$f":"IF(AB14=M13,IF(O15=\"F\",\"\",O13),0)","v":0},{"$f":"IF(AB14=M13,IF(O13=\"F\",\"\",O15),0)","v":0},{"$f":"IF(AB14=Q14,IF(S18=\"F\",\"\",S14),0)","v":0},{"$f":"IF(AB14=Q14,IF(S14=\"F\",\"\",S18),0)","v":0},{"$f":"IF(AB14=J14,IF(I18=\"F\",\"\",I14),0)","v":0},{"$f":"IF(AB14=J14,IF(I14=\"F\",\"\",I18),0)","v":0},{"$f":"IF(AB14=F16,IF(E20=\"F\",\"\",E16),0)","v":0},{"$f":"IF(AB14=F16,IF(E16=\"F\",\"\",E20),0)","v":0},{"$f":"IF(AB14=F10,IF(E6=\"F\",\"\",E10),0)","v":0},{"$f":"IF(AB14=F10,IF(E10=\"F\",\"\",E6),0)","v":0},{"$f":"SUM(AC14,AE14,AG14,AI14,AK14)","v":0},0,{"$f":"AM14-AN14","v":0},null,null,{"$f":"Z6","v":""},{"$f":"IF(AR14=\"\",\"\",(VLOOKUP(AR14,AB4:AO17,14,FALSE)))","v":""}]
[null,null,null,null,null,null,"G8",null,null,null,null,22,{"$f":"IF(IF(ISNA(VLOOKUP(L15,Inscrits!$A$2:$C$33,2,FALSE)),\"\",VLOOKUP(L15,Inscrits!$A$2:$C$33,2,FALSE))=0,\"\",IF(ISNA(VLOOKUP(L15,Inscrits!$A$2:$C$33,2,FALSE)),\"\",VLOOKUP(L15,Inscrits!$A$2:$C$33,2,FALSE)))","v":"BONTOUX SYLVIE"},{"$f":"IF(IF(ISNA(VLOOKUP(L15,Inscrits!$A$2:$C$33,3,FALSE)),\"\",\"(\"&(VLOOKUP(L15,Inscrits!$A$2:$C$33,3,FALSE))&\")\")=\"()\",\"\",IF(ISNA(VLOOKUP(L15,Inscrits!$A$2:$C$33,3,FALSE)),\"\",\"(\"&(VLOOKUP(L15,Inscrits!$A$2:$C$33,3,FALSE))&\")\"))","v":"(7)"},null,null,null,null,null,null,"G6",null,null,null,4,{"$f":"IF(B18=\"\",\"\",IF(B18=F16,F16,F20))","v":""},null,{"$f":"M15","v":"BONTOUX SYLVIE"},{"$f":"IF(AB15=M15,IF(O13=\"F\",\"\",O15),0)","v":0},{"$f":"IF(AB15=M15,IF(O15=\"F\",\"\",O13),0)","v":0},{"$f":"IF(AB15=Q14,IF(S18=\"F\",\"\",S14),0)","v":0},{"$f":"IF(AB15=Q14,IF(S14=\"F\",\"\",S18),0)","v":0},{"$f":"IF(AB15=J14,IF(I18=\"F\",\"\",I14),0)","v":0},{"$f":"IF(AB15=J14,IF(I14=\"F\",\"\",I18),0)","v":0},{"$f":"IF(AB15=F16,IF(E20=\"F\",\"\",E16),0)","v":0},{"$f":"IF(AB15=F16,IF(E16=\"F\",\"\",E20),0)","v":0},{"$f":"IF(AB15=F10,IF(E6=\"F\",\"\",E10),0)","v":0},{"$f":"IF(AB15=F10,IF(E10=\"F\",\"\",E6),0)","v":0},0,0,{"$f":"AM15-AN15","v":0},null,null,{"$f":"Z16","v":""},{"$f":"IF(AR15=\"\",\"\",(VLOOKUP(AR15,AB4:AO17,14,FALSE)))","v":""}]
[null,null,null,null,null,{"$f":"IF(OR(I14=\"F\",I14=\"A\"),J18,IF(OR(I18=\"F\",I18=\"A\"),J14,IF(I14=I18,\"\",(IF(I14>I18,J14,J18)))))","v":""},{"$f":"IF(OR(I14=\"F\",I14=\"A\"),K18,IF(OR(I18=\"F\",I18=\"A\"),K14,IF(I14=I18,\"\",(IF(I14>I18,K14,K18)))))","v":""},null,null,"Match 8 - Billard",null,null,null,null,null,null,"Match 6 - Billard",null,null,null,{"$f":"IF(OR(S14=\"F\",S14=\"A\"),Q18,IF(OR(S18=\"F\",S18=\"A\"),Q14,IF(S14=S18,\"\",(IF(S14>S18,Q14,Q18)))))","v":""},{"$f":"IF(OR(S14=\"F\",S14=\"A\"),R18,IF(OR(S18=\"F\",S18=\"A\"),R14,IF(S14=S18,\"\",(IF(S14>S18,R14,R18)))))","v":""},"F",null,6,{"$f":"IF(B18=\"\",\"\",IF(B18=F16,F20,F16))","v":""},null,{"$f":"M17","v":"BRUN CHRISTOPHE"},{"$f":"IF(AB16=M17,IF(O19=\"F\",\"\",O17),0)","v":0},{"$f":"IF(AB16=M17,IF(O17=\"F\",\"\",O19),0)","v":0},{"$f":"IF(AB16=Q18,IF(S14=\"F\",\"\",S18),0)","v":0},{"$f":"IF(AB16=Q18,IF(S18=\"F\",\"\",S14),0)","v":0},{"$f":"IF(AB16=J18,IF(I14=\"F\",\"\",I18),0)","v":0},{"$f":"IF(AB16=J18,IF(I18=\"F\",\"\",I14),0)","v":0},{"$f":"IF(AB16=F16,IF(E20=\"F\",\"\",E16),0)","v":0},{"$f":"IF(AB16=F16,IF(E16=\"F\",\"\",E20),0)","v":0},{"$f":"IF(AB16=F10,IF(E6=\"F\",\"\",E10),0)","v":0},{"$f":"IF(AB16=F10,IF(E10=\"F\",\"\",E6),0)","v":0},0,0,{"$f":"AM16-AN16","v":0},null,null,{"$f":"Z7","v":""},{"$f":"IF(AR16=\"\",\"\",(VLOOKUP(AR16,AB4:AO17,14,FALSE)))","v":""}]
[null,null,"G10",null,null,null,null,null,null,null,null,27,{"$f":"IF(IF(ISNA(VLOOKUP(L17,Inscrits!$A$2:$C$33,2,FALSE)),\"\",VLOOKUP(L17,Inscrits!$A$2:$C$33,2,FALSE))=0,\"\",IF(ISNA(VLOOKUP(L17,Inscrits!$A$2:$C$33,2,FALSE)),\"\",VLOOKUP(L17,Inscrits!$A$2:$C$33,2,FALSE)))","v":"BRUN CHRISTOPHE"},{"$f":"IF(IF(ISNA(VLOOKUP(L17,Inscrits!$A$2:$C$33,3,FALSE)),\"\",\"(\"&(VLOOKUP(L17,Inscrits!$A$2:$C$33,3,FALSE))&\")\")=\"()\",\"\",IF(ISNA(VLOOKUP(L17,Inscrits!$A$2:$C$33,3,FALSE)),\"\",\"(\"&(VLOOKUP(L17,Inscrits!$A$2:$C$33,3,FALSE))&\")\"))","v":"(10)"},null,null,null,null,null,null,null,null,null,null,8,{"$f":"IF(F16=\"\",\"\",IF(F16=J14,J18,J14))","v":""},null,{"$f":"M19","v":"HERREMAN FRANCOIS"},{"$f":"IF(AB17=M19,IF(O17=\"F\",\"\",O19),0)","v":0},{"$f":"IF(AB17=M19,IF(O19=\"F\",\"\",O17),0)","v":0},{"$f":"IF(AB17=Q18,IF(S14=\"F\",\"\",S18),0)","v":0},{"$f":"IF(AB17=Q18,IF(S18=\"F\",\"\",S14),0)","v":0},{"$f":"IF(AB17=J18,IF(I14=\"F\",\"\",I18),0)","v":0},{"$f":"IF(AB17=J18,IF(I18=\"F\",\"\",I14),0)","v":0},{"$f":"IF(AB17=F16,IF(E20=\"F\",\"\",E16),0)","v":0},{"$f":"IF(AB17=F16,IF(E16=\"F\",\"\",E20),0)","v":0},{"$f":"IF(AB17=F10,IF(E6=\"F\",\"\",E10),0)","v":0},{"$f":"IF(AB17=F10,IF(E10=\"F\",\"\",E6),0)","v":0},0,0,{"$f":"AM17-AN17","v":0},null,null,{"$f":"Z17","v":""},{"$f":"IF(AR17=\"\",\"\",(VLOOKUP(AR17,AB4:AO17,14,FALSE)))","v":""}]
["X",{"$f":"IF(OR(E16=\"F\",E16=\"A\"),F20,IF(OR(E20=\"F\",E20=\"A\"),F16,IF(E16=E20,\"\",(IF(E16>E20,F16,F20)))))","v":""},{"$f":"IF(OR(E16=\"F\",E16=\"A\"),G20,IF(OR(E20=\"F\",E20=\"A\"),G16,IF(E16=E20,\"\",(IF(E16>E20,G16,G20)))))","v":""},null,null,"Match 10 - Billard",null,null,null,{"$f":"IF(OR(AND(O17=\"F\",O19=\"F\"),AND(O17=\"A\",O19=\"A\")),M19,IF(OR(O17=\"F\",O17=\"A\"),M17,IF(OR(O19=\"F\",O19=\"A\"),M19,IF(O17=O19,\"\",(IF(O17<O19,M17,M19))))))","v":""},{"$f":"IF(OR(AND(O17=\"F\",O19=\"F\"),AND(O17=\"A\",O19=\"A\")),N19,IF(OR(O17=\"F\",O17=\"A\"),N17,IF(OR(O19=\"F\",O19=\"A\"),N19,IF(O17=O19,\"\",(IF(O17<O19,N17,N19))))))","v":""},null,"Match 4 - Billard",null,null,null,{"$f":"IF(OR(AND(O17=\"F\",O19=\"F\"),AND(O17=\"A\",O19=\"A\")),M17,IF(OR(O17=\"F\",O17=\"A\"),M19,IF(OR(O19=\"F\",O19=\"A\"),M17,IF(O17=O19,\"\",(IF(O17>O19,M17,M19))))))","v":""},{"$f":"IF(OR(AND(O17=\"F\",O19=\"F\"),AND(O17=\"A\",O19=\"A\")),N17,IF(OR(O17=\"F\",O17=\"A\"),N19,IF(OR(O19=\"F\",O19=\"A\"),N17,IF(O17=O19,\"\",(IF(O17>O19,N17,N19))))))","v":""}]
[null,null,null,null,null,null,null,null,null,null,"P4",6,{"$f":"IF(IF(ISNA(VLOOKUP(L19,Inscrits!$A$2:$C$33,2,FALSE)),\"\",VLOOKUP(L19,Inscrits!$A$2:$C$33,2,FALSE))=0,\"\",IF(ISNA(VLOOKUP(L19,Inscrits!$A$2:$C$33,2,FALSE)),\"\",VLOOKUP(L19,Inscrits!$A$2:$C$33,2,FALSE)))","v":"HERREMAN FRANCOIS"},{"$f":"IF(IF(ISNA(VLOOKUP(L19,Inscrits!$A$2:$C$33,3,FALSE)),\"\",\"(\"&(VLOOKUP(L19,Inscrits!$A$2:$C$33,3,FALSE))&\")\")=\"()\",\"\",IF(ISNA(VLOOKUP(L19,Inscrits!$A$2:$C$33,3,FALSE)),\"\",\"(\"&(VLOOKUP(L19,Inscrits!$A$2:$C$33,3,FALSE))&\")\"))","v":"(3)"},null,null,"G4"]
[null,null,null,null,null,{"$f":"IF(OR(S4=\"F\",S4=\"A\"),Q4,IF(OR(S8=\"F\",S8=\"A\"),Q8,IF(S4=S8,\"\",(IF(S4<S8,Q4,Q8)))))","v":""},{"$f":"IF(OR(S4=\"F\",S4=\"A\"),R4,IF(OR(S8=\"F\",S8=\"A\"),R8,IF(S4=S8,\"\",(IF(S4<S8,R4,R8)))))","v":""}]
[null,null,null,null,null,null,"P5",null,null,{"$f":"IF(Accueil!G18=3,\"\",\"MATCHS EN 2 GAGNANTES COTE PERDANT\")","v":""}]

{"sheet":"4","index":6,"n_rows":21,"n_cols":45,"rows_kept":21,"cut":false,"hidden":false,"merged":[[20,9,20,17],[0,9,0,17],[1,42,1,45],[11,42,11,45],[12,1,12,2],[10,20,10,21]]}
[null,null,null,null,null,null,null,null,null,"MATCHS EN 3 PARTIES GAGNANTES"]
[null,null,null,null,null,null,null,null,null,null,null,null,null,null,null,null,null,null,null,null,null,null,null,null,null,null,null,null,null,null,null,null,null,null,null,null,null,null,null,null,null,null,"QUALIFIES"]
[null,null,null,null,null,null,null,null,null,null,"P2",7,{"$f":"IF(IF(ISNA(VLOOKUP(L3,Inscrits!$A$2:$C$33,2,FALSE)),\"\",VLOOKUP(L3,Inscrits!$A$2:$C$33,2,FALSE))=0,\"\",IF(ISNA(VLOOKUP(L3,Inscrits!$A$2:$C$33,2,FALSE)),\"\",VLOOKUP(L3,Inscrits!$A$2:$C$33,2,FALSE)))","v":"DE ALMEIDA DUARTE FREDERICO"},{"$f":"IF(IF(ISNA(VLOOKUP(L3,Inscrits!$A$2:$C$33,3,FALSE)),\"\",\"(\"&(VLOOKUP(L3,Inscrits!$A$2:$C$33,3,FALSE))&\")\")=\"()\",\"\",IF(ISNA(VLOOKUP(L3,Inscrits!$A$2:$C$33,3,FALSE)),\"\",\"(\"&(VLOOKUP(L3,Inscrits!$A$2:$C$33,3,FALSE))&\")\"))","v":"(3)"},null,null,"G1",null,null,null,null,null,null,null,null,null,null,null,"G","P","G","P","G","P","G","P","G","P","G","P","Ga",null,null,"NOM","Ga"]
[null,null,null,null,null,null,null,null,null,{"$f":"IF(OR(AND(O3=\"F\",O5=\"F\"),AND(O3=\"A\",O5=\"A\")),M5,IF(OR(O3=\"F\",O3=\"A\"),M3,IF(OR(O5=\"F\",O5=\"A\"),M5,IF(O3=O5,\"\",(IF(O3<O5,M3,M5))))))","v":""},{"$f":"IF(OR(AND(O3=\"F\",O5=\"F\"),AND(O3=\"A\",O5=\"A\")),N5,IF(OR(O3=\"F\",O3=\"A\"),N3,IF(OR(O5=\"F\",O5=\"A\"),N5,IF(O3=O5,\"\",(IF(O3<O5,N3,N5))))))","v":""},null,"Match 1 - Billard",null,null,null,{"$f":"IF(OR(AND(O3=\"F\",O5=\"F\"),AND(O3=\"A\",O5=\"A\")),M3,IF(OR(O3=\"F\",O3=\"A\"),M5,IF(OR(O5=\"F\",O5=\"A\"),M3,IF(O3=O5,\"\",(IF(O3>O5,M3,M5))))))","v":""},{"$f":"IF(OR(AND(O3=\"F\",O5=\"F\"),AND(O3=\"A\",O5=\"A\")),N3,IF(OR(O3=\"F\",O3=\"A\"),N5,IF(OR(O5=\"F\",O5=\"A\"),N3,IF(O3=O5,\"\",(IF(O3>O5,N3,N5))))))","v":""},null,null,null,null,null,null,1,{"$f":"IF(U6=\"\",\"\",IF(U6=Q4,Q4,Q8))","v":""},null,{"$f":"M3","v":"DE ALMEIDA DUARTE FREDERICO"},{"$f":"IF(AB4=M3,IF(O5=\"F\",\"\",O3),0)","v":0},{"$f":"IF(AB4=M3,IF(O3=\"F\",\"\",O5),0)","v":0},{"$f":"IF(AB4=Q4,IF(S8=\"F\",\"\",S4),0)","v":0},{"$f":"IF(AB4=Q4,IF(S4=\"F\",\"\",S8),0)","v":0},{"$f":"IF(AB4=J4,IF(I8=\"F\",\"\",I4),0)","v":0},{"$f":"IF(AB4=J4,IF(I4=\"F\",\"\",I8),0)","v":0},{"$f":"IF(AB4=F6,IF(E10=\"F\",\"\",E6),0)","v":0},{"$f":"IF(AB4=F6,IF(E6=\"F\",\"\",E10),0)","v":0},{"$f":"IF(AB4=F20,IF(E16=\"F\",\"\",E20),0)","v":0},{"$f":"IF(AB4=F20,IF(E20=\"F\",\"\",E16),0)","v":0},{"$f":"SUM(AC4,AE4,AG4,AI4,AK4)","v":0},0,{"$f":"AM4-AN4","v":0},null,null,{"$f":"Z4","v":""},{"$f":"IF(AR4=\"\",\"\",(VLOOKUP(AR4,AB4:AO17,14,FALSE)))","v":""}]
[null,null,null,null,null,null,"G7",null,null,null,null,26,{"$f":"IF(IF(ISNA(VLOOKUP(L5,Inscrits!$A$2:$C$33,2,FALSE)),\"\",VLOOKUP(L5,Inscrits!$A$2:$C$33,2,FALSE))=0,\"\",IF(ISNA(VLOOKUP(L5,Inscrits!$A$2:$C$33,2,FALSE)),\"\",VLOOKUP(L5,Inscrits!$A$2:$C$33,2,FALSE)))","v":"BRENDEL CHRISTIAN"},{"$f":"IF(IF(ISNA(VLOOKUP(L5,Inscrits!$A$2:$C$33,3,FALSE)),\"\",\"(\"&(VLOOKUP(L5,Inscrits!$A$2:$C$33,3,FALSE))&\")\")=\"()\",\"\",IF(ISNA(VLOOKUP(L5,Inscrits!$A$2:$C$33,3,FALSE)),\"\",\"(\"&(VLOOKUP(L5,Inscrits!$A$2:$C$33,3,FALSE))&\")\"))","v":"(10)"},null,null,null,null,null,null,"G5",null,null,null,3,{"$f":"IF(B8=\"\",\"\",IF(B8=F6,F6,F10))","v":""},null,{"$f":"M5","v":"BRENDEL CHRISTIAN"},{"$f":"IF(AB5=M5,IF(O3=\"F\",\"\",O5),0)","v":0},{"$f":"IF(AB5=M5,IF(O5=\"F\",\"\",O3),0)","v":0},{"$f":"IF(AB5=Q4,IF(S8=\"F\",\"\",S4),0)","v":0},{"$f":"IF(AB5=Q4,IF(S4=\"F\",\"\",S8),0)","v":0},{"$f":"IF(AB5=J4,IF(I8=\"F\",\"\",I4),0)","v":0},{"$f":"IF(AB5=J4,IF(I4=\"F\",\"\",I8),0)","v":0},{"$f":"IF(AB5=F6,IF(E10=\"F\",\"\",E6),0)","v":0},{"$f":"IF(AB5=F6,IF(E6=\"F\",\"\",E10),0)","v":0},{"$f":"IF(AB5=F20,IF(E16=\"F\",\"\",E20),0)","v":0},{"$f":"IF(AB5=F20,IF(E20=\"F\",\"\",E16),0)","v":0},0,0,{"$f":"AM5-AN5","v":0},null,null,{"$f":"Z14","v":""},{"$f":"IF(AR5=\"\",\"\",(VLOOKUP(AR5,AB4:AO17,14,FALSE)))","v":""}]
[null,null,null,null,null,{"$f":"IF(OR(I4=\"F\",I4=\"A\"),J8,IF(OR(I8=\"F\",I8=\"A\"),J4,IF(I4=I8,\"\",(IF(I4>I8,J4,J8)))))","v":""},{"$f":"IF(OR(I4=\"F\",I4=\"A\"),K8,IF(OR(I8=\"F\",I8=\"A\"),K4,IF(I4=I8,\"\",(IF(I4>I8,K4,K8)))))","v":""},null,null,"Match 7 - Billard",null,null,null,null,null,null,"Match 5 - Billard",null,null,null,{"$f":"IF(OR(S4=\"F\",S4=\"A\"),Q8,IF(OR(S8=\"F\",S8=\"A\"),Q4,IF(S4=S8,\"\",(IF(S4>S8,Q4,Q8)))))","v":""},{"$f":"IF(OR(S4=\"F\",S4=\"A\"),R8,IF(OR(S8=\"F\",S8=\"A\"),R4,IF(S4=S8,\"\",(IF(S4>S8,R4,R8)))))","v":""},"G",null,5,{"$f":"IF(B8=\"\",\"\",IF(B8=F6,F10,F6))","v":""},null,{"$f":"M7","v":"KUSAR TONY"},{"$f":"IF(AB6=M7,IF(O9=\"F\",\"\",O7),0)","v":0},{"$f":"IF(AB6=M7,IF(O7=\"F\",\"\",O9),0)","v":0},{"$f":"IF(AB6=Q8,IF(S4=\"F\",\"\",S8),0)","v":0},{"$f":"IF(AB6=Q8,IF(S8=\"F\",\"\",S4),0)","v":0},{"$f":"IF(AB6=J8,IF(I4=\"F\",\"\",I8),0)","v":0},{"$f":"IF(AB6=J8,IF(I8=\"F\",\"\",I4),0)","v":0},{"$f":"IF(AB6=F6,IF(E10=\"F\",\"\",E6),0)","v":0},{"$f":"IF(AB6=F6,IF(E6=\"F\",\"\",E10),0)","v":0},{"$f":"IF(AB6=F20,IF(E16=\"F\",\"\",E20),0)","v":0},{"$f":"IF(AB6=F20,IF(E20=\"F\",\"\",E16),0)","v":0},0,0,{"$f":"AM6-AN6","v":0},null,null,{"$f":"Z5","v":""},{"$f":"IF(AR6=\"\",\"\",(VLOOKUP(AR6,AB4:AO17,14,FALSE)))","v":""}]
[null,null,"G9",null,null,null,null,null,null,null,null,23,{"$f":"IF(IF(ISNA(VLOOKUP(L7,Inscrits!$A$2:$C$33,2,FALSE)),\"\",VLOOKUP(L7,Inscrits!$A$2:$C$33,2,FALSE))=0,\"\",IF(ISNA(VLOOKUP(L7,Inscrits!$A$2:$C$33,2,FALSE)),\"\",VLOOKUP(L7,Inscrits!$A$2:$C$33,2,FALSE)))","v":"KUSAR TONY"},{"$f":"IF(IF(ISNA(VLOOKUP(L7,Inscrits!$A$2:$C$33,3,FALSE)),\"\",\"(\"&(VLOOKUP(L7,Inscrits!$A$2:$C$33,3,FALSE))&\")\")=\"()\",\"\",IF(ISNA(VLOOKUP(L7,Inscrits!$A$2:$C$33,3,FALSE)),\"\",\"(\"&(VLOOKUP(L7,Inscrits!$A$2:$C$33,3,FALSE))&\")\"))","v":"(8)"},null,null,null,null,null,null,null,null,null,null,7,{"$f":"IF(F6=\"\",\"\",IF(F6=J4,J8,J4))","v":""},null,{"$f":"M9","v":"CENDRIER DAVID"},{"$f":"IF(AB7=M9,IF(O7=\"F\",\"\",O9),0)","v":0},{"$f":"IF(AB7=M9,IF(O9=\"F\",\"\",O7),0)","v":0},{"$f":"IF(AB7=Q8,IF(S4=\"F\",\"\",S8),0)","v":0},{"$f":"IF(AB7=Q8,IF(S8=\"F\",\"\",S4),0)","v":0},{"$f":"IF(AB7=J8,IF(I4=\"F\",\"\",I8),0)","v":0},{"$f":"IF(AB7=J8,IF(I8=\"F\",\"\",I4),0)","v":0},{"$f":"IF(AB7=F6,IF(E10=\"F\",\"\",E6),0)","v":0},{"$f":"IF(AB7=F6,IF(E6=\"F\",\"\",E10),0)","v":0},{"$f":"IF(AB7=F20,IF(E16=\"F\",\"\",E20),0)","v":0},{"$f":"IF(AB7=F20,IF(E20=\"F\",\"\",E16),0)","v":0},0,0,{"$f":"AM7-AN7","v":0},null,null,{"$f":"Z15","v":""},{"$f":"IF(AR7=\"\",\"\",(VLOOKUP(AR7,AB4:AO17,14,FALSE)))","v":""}]
["Y",{"$f":"IF(OR(E6=\"F\",E6=\"A\"),F10,IF(OR(E10=\"F\",E10=\"A\"),F6,IF(E6=E10,\"\",(IF(E6>E10,F6,F10)))))","v":""},{"$f":"IF(OR(E6=\"F\",E6=\"A\"),G10,IF(OR(E10=\"F\",E10=\"A\"),G6,IF(E6=E10,\"\",(IF(E6>E10,G6,G10)))))","v":""},null,null,"Match 9 - Billard",null,null,null,{"$f":"IF(OR(AND(O7=\"F\",O9=\"F\"),AND(O7=\"A\",O9=\"A\")),M9,IF(OR(O7=\"F\",O7=\"A\"),M7,IF(OR(O9=\"F\",O9=\"A\"),M9,IF(O7=O9,\"\",(IF(O7<O9,M7,M9))))))","v":""},{"$f":"IF(OR(AND(O7=\"F\",O9=\"F\"),AND(O7=\"A\",O9=\"A\")),N9,IF(OR(O7=\"F\",O7=\"A\"),N7,IF(OR(O9=\"F\",O9=\"A\"),N9,IF(O7=O9,\"\",(IF(O7<O9,N7,N9))))))","v":""},null,"Match 2 - Billard",null,null,null,{"$f":"IF(OR(AND(O7=\"F\",O9=\"F\"),AND(O7=\"A\",O9=\"A\")),M7,IF(OR(O7=\"F\",O7=\"A\"),M9,IF(OR(O9=\"F\",O9=\"A\"),M7,IF(O7=O9,\"\",(IF(O7>O9,M7,M9))))))","v":""},{"$f":"IF(OR(AND(O7=\"F\",O9=\"F\"),AND(O7=\"A\",O9=\"A\")),N7,IF(OR(O7=\"F\",O7=\"A\"),N9,IF(OR(O9=\"F\",O9=\"A\"),N7,IF(O7=O9,\"\",(IF(O7>O9,N7,N9))))))","v":""}]
[null,null,null,null,null,null,null,null,null,null,"P2",10,{"$f":"IF(IF(ISNA(VLOOKUP(L9,Inscrits!$A$2:$C$33,2,FALSE)),\"\",VLOOKUP(L9,Inscrits!$A$2:$C$33,2,FALSE))=0,\"\",IF(ISNA(VLOOKUP(L9,Inscrits!$A$2:$C$33,2,FALSE)),\"\",VLOOKUP(L9,Inscrits!$A$2:$C$33,2,FALSE)))","v":"CENDRIER DAVID"},{"$f":"IF(IF(ISNA(VLOOKUP(L9,Inscrits!$A$2:$C$33,3,FALSE)),\"\",\"(\"&(VLOOKUP(L9,Inscrits!$A$2:$C$33,3,FALSE))&\")\")=\"()\",\"\",IF(ISNA(VLOOKUP(L9,Inscrits!$A$2:$C$33,3,FALSE)),\"\",\"(\"&(VLOOKUP(L9,Inscrits!$A$2:$C$33,3,FALSE))&\")\"))","v":"(4)"},null,null,"G2"]
[null,null,null,null,null,{"$f":"IF(OR(S14=\"F\",S14=\"A\"),Q14,IF(OR(S18=\"F\",S18=\"A\"),Q18,IF(S14=S18,\"\",(IF(S14<S18,Q14,Q18)))))","v":""},{"$f":"IF(OR(S14=\"F\",S14=\"A\"),R14,IF(OR(S18=\"F\",S18=\"A\"),R18,IF(S14=S18,\"\",(IF(S14<S18,R14,R18)))))","v":""}]
[null,null,null,null,null,null,"P6",null,null,null,null,null,null,null,null,null,null,null,null,null,"QUALIFIES"]
[null,null,null,null,null,null,null,null,null,null,null,null,null,null,null,null,null,null,null,null,null,null,null,null,null,null,null,null,null,null,null,null,null,null,null,null,null,null,null,null,null,null,"ELIMINES"]
[null,"QUALIFIES",null,null,null,null,null,null,null,null,"P3",15,{"$f":"IF(IF(ISNA(VLOOKUP(L13,Inscrits!$A$2:$C$33,2,FALSE)),\"\",VLOOKUP(L13,Inscrits!$A$2:$C$33,2,FALSE))=0,\"\",IF(ISNA(VLOOKUP(L13,Inscrits!$A$2:$C$33,2,FALSE)),\"\",VLOOKUP(L13,Inscrits!$A$2:$C$33,2,FALSE)))","v":"LACROIX DYLAN"},{"$f":"IF(IF(ISNA(VLOOKUP(L13,Inscrits!$A$2:$C$33,3,FALSE)),\"\",\"(\"&(VLOOKUP(L13,Inscrits!$A$2:$C$33,3,FALSE))&\")\")=\"()\",\"\",IF(ISNA(VLOOKUP(L13,Inscrits!$A$2:$C$33,3,FALSE)),\"\",\"(\"&(VLOOKUP(L13,Inscrits!$A$2:$C$33,3,FALSE))&\")\"))","v":"(5)"},null,null,"G3",null,null,null,null,null,null,null,null,null,null,null,"G","P","G","P","G","P","G","P","G","P","G","P","Ga",null,null,"NOM","Ga"]
[null,null,null,null,null,null,null,null,null,{"$f":"IF(OR(AND(O13=\"F\",O15=\"F\"),AND(O13=\"A\",O15=\"A\")),M15,IF(OR(O13=\"F\",O13=\"A\"),M13,IF(OR(O15=\"F\",O15=\"A\"),M15,IF(O13=O15,\"\",(IF(O13<O15,M13,M15))))))","v":""},{"$f":"IF(OR(AND(O13=\"F\",O15=\"F\"),AND(O13=\"A\",O15=\"A\")),N15,IF(OR(O13=\"F\",O13=\"A\"),N13,IF(OR(O15=\"F\",O15=\"A\"),N15,IF(O13=O15,\"\",(IF(O13<O15,N13,N15))))))","v":""},null,"Match 3 - Billard",null,null,null,{"$f":"IF(OR(AND(O13=\"F\",O15=\"F\"),AND(O13=\"A\",O15=\"A\")),M13,IF(OR(O13=\"F\",O13=\"A\"),M15,IF(OR(O15=\"F\",O15=\"A\"),M13,IF(O13=O15,\"\",(IF(O13>O15,M13,M15))))))","v":""},{"$f":"IF(OR(AND(O13=\"F\",O15=\"F\"),AND(O13=\"A\",O15=\"A\")),N13,IF(OR(O13=\"F\",O13=\"A\"),N15,IF(OR(O15=\"F\",O15=\"A\"),N13,IF(O13=O15,\"\",(IF(O13>O15,N13,N15))))))","v":""},null,null,null,null,null,null,2,{"$f":"IF(U16=\"\",\"\",IF(U16=Q14,Q14,Q18))","v":""},null,{"$f":"M13","v":"LACROIX DYLAN"},{"$f":"IF(AB14=M13,IF(O15=\"F\",\"\",O13),0)","v":0},{"$f":"IF(AB14=M13,IF(O13=\"F\",\"\",O15),0)","v":0},{"$f":"IF(AB14=Q14,IF(S18=\"F\",\"\",S14),0)","v":0},{"$f":"IF(AB14=Q14,IF(S14=\"F\",\"\",S18),0)","v":0},{"$f":"IF(AB14=J14,IF(I18=\"F\",\"\",I14),0)","v":0},{"$f":"IF(AB14=J14,IF(I14=\"F\",\"\",I18),0)","v":0},{"$f":"IF(AB14=F16,IF(E20=\"F\",\"\",E16),0)","v":0},{"$f":"IF(AB14=F16,IF(E16=\"F\",\"\",E20),0)","v":0},{"$f":"IF(AB14=F10,IF(E6=\"F\",\"\",E10),0)","v":0},{"$f":"IF(AB14=F10,IF(E10=\"F\",\"\",E6),0)","v":0},{"$f":"SUM(AC14,AE14,AG14,AI14,AK14)","v":0},0,{"$f":"AM14-AN14","v":0},null,null,{"$f":"Z6","v":""},{"$f":"IF(AR14=\"\",\"\",(VLOOKUP(AR14,AB4:AO17,14,FALSE)))","v":""}]
[null,null,null,null,null,null,"G8",null,null,null,null,18,{"$f":"IF(IF(ISNA(VLOOKUP(L15,Inscrits!$A$2:$C$33,2,FALSE)),\"\",VLOOKUP(L15,Inscrits!$A$2:$C$33,2,FALSE))=0,\"\",IF(ISNA(VLOOKUP(L15,Inscrits!$A$2:$C$33,2,FALSE)),\"\",VLOOKUP(L15,Inscrits!$A$2:$C$33,2,FALSE)))","v":"URAY JIMMY"},{"$f":"IF(IF(ISNA(VLOOKUP(L15,Inscrits!$A$2:$C$33,3,FALSE)),\"\",\"(\"&(VLOOKUP(L15,Inscrits!$A$2:$C$33,3,FALSE))&\")\")=\"()\",\"\",IF(ISNA(VLOOKUP(L15,Inscrits!$A$2:$C$33,3,FALSE)),\"\",\"(\"&(VLOOKUP(L15,Inscrits!$A$2:$C$33,3,FALSE))&\")\"))","v":"(6)"},null,null,null,null,null,null,"G6",null,null,null,4,{"$f":"IF(B18=\"\",\"\",IF(B18=F16,F16,F20))","v":""},null,{"$f":"M15","v":"URAY JIMMY"},{"$f":"IF(AB15=M15,IF(O13=\"F\",\"\",O15),0)","v":0},{"$f":"IF(AB15=M15,IF(O15=\"F\",\"\",O13),0)","v":0},{"$f":"IF(AB15=Q14,IF(S18=\"F\",\"\",S14),0)","v":0},{"$f":"IF(AB15=Q14,IF(S14=\"F\",\"\",S18),0)","v":0},{"$f":"IF(AB15=J14,IF(I18=\"F\",\"\",I14),0)","v":0},{"$f":"IF(AB15=J14,IF(I14=\"F\",\"\",I18),0)","v":0},{"$f":"IF(AB15=F16,IF(E20=\"F\",\"\",E16),0)","v":0},{"$f":"IF(AB15=F16,IF(E16=\"F\",\"\",E20),0)","v":0},{"$f":"IF(AB15=F10,IF(E6=\"F\",\"\",E10),0)","v":0},{"$f":"IF(AB15=F10,IF(E10=\"F\",\"\",E6),0)","v":0},0,0,{"$f":"AM15-AN15","v":0},null,null,{"$f":"Z16","v":""},{"$f":"IF(AR15=\"\",\"\",(VLOOKUP(AR15,AB4:AO17,14,FALSE)))","v":""}]
[null,null,null,null,null,{"$f":"IF(OR(I14=\"F\",I14=\"A\"),J18,IF(OR(I18=\"F\",I18=\"A\"),J14,IF(I14=I18,\"\",(IF(I14>I18,J14,J18)))))","v":""},{"$f":"IF(OR(I14=\"F\",I14=\"A\"),K18,IF(OR(I18=\"F\",I18=\"A\"),K14,IF(I14=I18,\"\",(IF(I14>I18,K14,K18)))))","v":""},null,null,"Match 8 - Billard",null,null,null,null,null,null,"Match 6 - Billard",null,null,null,{"$f":"IF(OR(S14=\"F\",S14=\"A\"),Q18,IF(OR(S18=\"F\",S18=\"A\"),Q14,IF(S14=S18,\"\",(IF(S14>S18,Q14,Q18)))))","v":""},{"$f":"IF(OR(S14=\"F\",S14=\"A\"),R18,IF(OR(S18=\"F\",S18=\"A\"),R14,IF(S14=S18,\"\",(IF(S14>S18,R14,R18)))))","v":""},"H",null,6,{"$f":"IF(B18=\"\",\"\",IF(B18=F16,F20,F16))","v":""},null,{"$f":"M17","v":"LEPAGE PATRICK"},{"$f":"IF(AB16=M17,IF(O19=\"F\",\"\",O17),0)","v":0},{"$f":"IF(AB16=M17,IF(O17=\"F\",\"\",O19),0)","v":0},{"$f":"IF(AB16=Q18,IF(S14=\"F\",\"\",S18),0)","v":0},{"$f":"IF(AB16=Q18,IF(S18=\"F\",\"\",S14),0)","v":0},{"$f":"IF(AB16=J18,IF(I14=\"F\",\"\",I18),0)","v":0},{"$f":"IF(AB16=J18,IF(I18=\"F\",\"\",I14),0)","v":0},{"$f":"IF(AB16=F16,IF(E20=\"F\",\"\",E16),0)","v":0},{"$f":"IF(AB16=F16,IF(E16=\"F\",\"\",E20),0)","v":0},{"$f":"IF(AB16=F10,IF(E6=\"F\",\"\",E10),0)","v":0},{"$f":"IF(AB16=F10,IF(E10=\"F\",\"\",E6),0)","v":0},0,0,{"$f":"AM16-AN16","v":0},null,null,{"$f":"Z7","v":""},{"$f":"IF(AR16=\"\",\"\",(VLOOKUP(AR16,AB4:AO17,14,FALSE)))","v":""}]
[null,null,"G10",null,null,null,null,null,null,null,null,31,{"$f":"IF(IF(ISNA(VLOOKUP(L17,Inscrits!$A$2:$C$33,2,FALSE)),\"\",VLOOKUP(L17,Inscrits!$A$2:$C$33,2,FALSE))=0,\"\",IF(ISNA(VLOOKUP(L17,Inscrits!$A$2:$C$33,2,FALSE)),\"\",VLOOKUP(L17,Inscrits!$A$2:$C$33,2,FALSE)))","v":"LEPAGE PATRICK"},{"$f":"IF(IF(ISNA(VLOOKUP(L17,Inscrits!$A$2:$C$33,3,FALSE)),\"\",\"(\"&(VLOOKUP(L17,Inscrits!$A$2:$C$33,3,FALSE))&\")\")=\"()\",\"\",IF(ISNA(VLOOKUP(L17,Inscrits!$A$2:$C$33,3,FALSE)),\"\",\"(\"&(VLOOKUP(L17,Inscrits!$A$2:$C$33,3,FALSE))&\")\"))","v":"(14)"},null,null,null,null,null,null,null,null,null,null,8,{"$f":"IF(F16=\"\",\"\",IF(F16=J14,J18,J14))","v":""},null,{"$f":"M19","v":"DUARTE JOSE"},{"$f":"IF(AB17=M19,IF(O17=\"F\",\"\",O19),0)","v":0},{"$f":"IF(AB17=M19,IF(O19=\"F\",\"\",O17),0)","v":0},{"$f":"IF(AB17=Q18,IF(S14=\"F\",\"\",S18),0)","v":0},{"$f":"IF(AB17=Q18,IF(S18=\"F\",\"\",S14),0)","v":0},{"$f":"IF(AB17=J18,IF(I14=\"F\",\"\",I18),0)","v":0},{"$f":"IF(AB17=J18,IF(I18=\"F\",\"\",I14),0)","v":0},{"$f":"IF(AB17=F16,IF(E20=\"F\",\"\",E16),0)","v":0},{"$f":"IF(AB17=F16,IF(E16=\"F\",\"\",E20),0)","v":0},{"$f":"IF(AB17=F10,IF(E6=\"F\",\"\",E10),0)","v":0},{"$f":"IF(AB17=F10,IF(E10=\"F\",\"\",E6),0)","v":0},0,0,{"$f":"AM17-AN17","v":0},null,null,{"$f":"Z17","v":""},{"$f":"IF(AR17=\"\",\"\",(VLOOKUP(AR17,AB4:AO17,14,FALSE)))","v":""}]
["Z",{"$f":"IF(OR(E16=\"F\",E16=\"A\"),F20,IF(OR(E20=\"F\",E20=\"A\"),F16,IF(E16=E20,\"\",(IF(E16>E20,F16,F20)))))","v":""},{"$f":"IF(OR(E16=\"F\",E16=\"A\"),G20,IF(OR(E20=\"F\",E20=\"A\"),G16,IF(E16=E20,\"\",(IF(E16>E20,G16,G20)))))","v":""},null,null,"Match 10 - Billard",null,null,null,{"$f":"IF(OR(AND(O17=\"F\",O19=\"F\"),AND(O17=\"A\",O19=\"A\")),M19,IF(OR(O17=\"F\",O17=\"A\"),M17,IF(OR(O19=\"F\",O19=\"A\"),M19,IF(O17=O19,\"\",(IF(O17<O19,M17,M19))))))","v":""},{"$f":"IF(OR(AND(O17=\"F\",O19=\"F\"),AND(O17=\"A\",O19=\"A\")),N19,IF(OR(O17=\"F\",O17=\"A\"),N17,IF(OR(O19=\"F\",O19=\"A\"),N19,IF(O17=O19,\"\",(IF(O17<O19,N17,N19))))))","v":""},null,"Match 4 - Billard",null,null,null,{"$f":"IF(OR(AND(O17=\"F\",O19=\"F\"),AND(O17=\"A\",O19=\"A\")),M17,IF(OR(O17=\"F\",O17=\"A\"),M19,IF(OR(O19=\"F\",O19=\"A\"),M17,IF(O17=O19,\"\",(IF(O17>O19,M17,M19))))))","v":""},{"$f":"IF(OR(AND(O17=\"F\",O19=\"F\"),AND(O17=\"A\",O19=\"A\")),N17,IF(OR(O17=\"F\",O17=\"A\"),N19,IF(OR(O19=\"F\",O19=\"A\"),N17,IF(O17=O19,\"\",(IF(O17>O19,N17,N19))))))","v":""}]
[null,null,null,null,null,null,null,null,null,null,"P4",2,{"$f":"IF(IF(ISNA(VLOOKUP(L19,Inscrits!$A$2:$C$33,2,FALSE)),\"\",VLOOKUP(L19,Inscrits!$A$2:$C$33,2,FALSE))=0,\"\",IF(ISNA(VLOOKUP(L19,Inscrits!$A$2:$C$33,2,FALSE)),\"\",VLOOKUP(L19,Inscrits!$A$2:$C$33,2,FALSE)))","v":"DUARTE JOSE"},{"$f":"IF(IF(ISNA(VLOOKUP(L19,Inscrits!$A$2:$C$33,3,FALSE)),\"\",\"(\"&(VLOOKUP(L19,Inscrits!$A$2:$C$33,3,FALSE))&\")\")=\"()\",\"\",IF(ISNA(VLOOKUP(L19,Inscrits!$A$2:$C$33,3,FALSE)),\"\",\"(\"&(VLOOKUP(L19,Inscrits!$A$2:$C$33,3,FALSE))&\")\"))","v":"(1)"},null,null,"G4"]
[null,null,null,null,null,{"$f":"IF(OR(S4=\"F\",S4=\"A\"),Q4,IF(OR(S8=\"F\",S8=\"A\"),Q8,IF(S4=S8,\"\",(IF(S4<S8,Q4,Q8)))))","v":""},{"$f":"IF(OR(S4=\"F\",S4=\"A\"),R4,IF(OR(S8=\"F\",S8=\"A\"),R8,IF(S4=S8,\"\",(IF(S4<S8,R4,R8)))))","v":""}]
[null,null,null,null,null,null,"P5",null,null,{"$f":"IF(Accueil!G18=3,\"\",\"MATCHS EN 2 GAGNANTES COTE PERDANT\")","v":""}]

{"sheet":"Final","index":7,"n_rows":35,"n_cols":35,"rows_kept":35,"cut":false,"hidden":false,"merged":[[1,5,1,7],[1,9,1,11],[1,13,1,15],[0,1,0,3],[1,1,1,3],[0,13,0,15],[0,9,0,11],[0,5,0,7]]}
[null,"1/8 de finale",null,null,null,"1/4 de finale",null,null,null,"1/2 finale",null,null,null,"Finale"]
[null,{"$f":"\"(\"&Accueil!D20&\" manches)\"","v":"(4 manches)"},null,null,null,{"$f":"\"(\"&Accueil!G20&\" manches)\"","v":"(4 manches)"},null,null,null,{"$f":"\"(\"&Accueil!D22&\" manches)\"","v":"(4 manches)"},null,null,null,{"$f":"\"(\"&Accueil!G22&\" manches)\"","v":"(5 manches)"}]
[null,"Match 1 - Billard",null,null,null,null,null,null,null,null,null,null,null,null,null,null,null,null,null,null,null,"JOUEURS","1/8","1/4","1/2","Finale","GA Final",null,"JOUEURS","GA Poules",null,"JOUEURS","GA Poules","GA Final","GA TOTAL"]
["A",{"$f":"IF('1'!U6=0,\"\",'1'!U6)","v":""},{"$f":"IF('1'!V6=0,\"\",'1'!V6)","v":""},null,null,null,null,null,null,null,null,null,null,null,null,null,null,null,null,null,null,{"$f":"B4","v":""},{"$f":"IF(AND(D4=\"A\",D5=\"A\"),0,IF(D4=\"A\",-D5,IF(D5=\"A\",D4,D4-D5)))","v":0},{"$f":"IF(F5=V4,IF(AND(H5=\"A\",H7=\"A\"),0,IF(OR(W4>0,D5=\"A\"),IF(H5=\"A\",-H7,IF(H7=\"A\",H5,H5-H7)),0)),0)","v":0},{"$f":"IF(J6=V4,IF(AND(L6=\"A\",L12=\"A\"),0,IF(OR(X4>0,H7=\"A\"),IF(L6=\"A\",-L12,IF(L12=\"A\",L6,L6-L12)),0)),0)","v":0},{"$f":"IF(N9=V4,IF(AND(P9=\"A\",P21=\"A\"),0,IF(OR(Y4>0,L12=\"A\"),IF(P9=\"A\",-P21,IF(P21=\"A\",P9,P9-P21)),0)),0)","v":0},{"$f":"SUM(W4:Z4)","v":0},null,{"$f":"'1'!AR4","v":""},{"$f":"'1'!AS4","v":""},null,{"$f":"IF(Inscrits!B2=0,\"\",Inscrits!B2)","v":"DUARTE JOSE"},{"$f":"VLOOKUP(AF4,$AC$4:$AD$35,2,FALSE)","v":{"$error":"#N/A"}},{"$f":"VLOOKUP(AF4,$V$4:$AA$35,6,FALSE)","v":{"$error":"#N/A"}},{"$f":"AG4+AH4","v":{"$error":"#N/A"}}]
["W",{"$f":"IF('3'!B8=0,\"\",'3'!B8)","v":""},{"$f":"IF('3'!C8=0,\"\",'3'!C8)","v":""},null,null,{"$f":"IF(AND(D4=\"A\",D5=\"A\"),B4,IF(D4=\"A\",B5,IF(D5=\"A\",B4,IF(D4=D5,\"\",(IF(D4>D5,B4,B5))))))","v":""},{"$f":"IF(AND(D4=\"A\",D5=\"A\"),C4,IF(D4=\"A\",C5,IF(D5=\"A\",C4,IF(D4=D5,\"\",(IF(D4>D5,C4,C5))))))","v":""},null,null,null,null,null,null,null,null,null,null,null,null,null,null,{"$f":"B5","v":""},{"$f":"IF(AND(D4=\"A\",D5=\"A\"),0,IF(D5=\"A\",-D4,IF(D4=\"A\",D5,D5-D4)))","v":0},{"$f":"IF(F5=V5,IF(AND(H5=\"A\",H7=\"A\"),0,IF(OR(W5>0,D4=\"A\"),IF(H5=\"A\",-H7,IF(H7=\"A\",H5,H5-H7)),0)),0)","v":0},{"$f":"IF(J6=V5,IF(AND(L6=\"A\",L12=\"A\"),0,IF(OR(X5>0,H7=\"A\"),IF(L6=\"A\",-L12,IF(L12=\"A\",L6,L6-L12)),0)),0)","v":0},{"$f":"IF(N9=V5,IF(AND(P9=\"A\",P21=\"A\"),0,IF(OR(Y5>0,L12=\"A\"),IF(P9=\"A\",-P21,IF(P21=\"A\",P9,P9-P21)),0)),0)","v":0},{"$f":"SUM(W5:Z5)","v":0},null,{"$f":"'1'!AR5","v":""},{"$f":"'1'!AS5","v":""},null,{"$f":"IF(Inscrits!B3=0,\"\",Inscrits!B3)","v":"CROS DAVID"},{"$f":"VLOOKUP(AF5,$AC$4:$AD$35,2,FALSE)","v":{"$error":"#N/A"}},{"$f":"VLOOKUP(AF5,$V$4:$AA$35,6,FALSE)","v":{"$error":"#N/A"}},{"$error":"#N/A"}]
[null,"Match 2 - Billard",null,null,null,"Match 9 - Billard",null,null,null,{"$f":"IF(AND(H5=\"A\",H7=\"A\"),F5,IF(H5=\"A\",F7,IF(H7=\"A\",F5,IF(H5=H7,\"\",(IF(H5>H7,F5,F7))))))","v":""},{"$f":"IF(AND(H5=\"A\",H7=\"A\"),G5,IF(H5=\"A\",G7,IF(H7=\"A\",G5,IF(H5=H7,\"\",(IF(H5>H7,G5,G7))))))","v":""},null,null,null,null,null,null,null,null,null,null,{"$f":"B7","v":""},{"$f":"IF(AND(D7=\"A\",D8=\"A\"),0,IF(D7=\"A\",-D8,IF(D8=\"A\",D7,D7-D8)))","v":0},{"$f":"IF(F7=V6,IF(AND(H5=\"A\",H7=\"A\"),0,IF(OR(W6>0,D8=\"A\"),IF(H7=\"A\",-H5,IF(H5=\"A\",H7,H7-H5)),0)),0)","v":0},{"$f":"IF(J6=V6,IF(AND(L6=\"A\",L12=\"A\"),0,IF(OR(X6>0,H5=\"A\"),IF(L6=\"A\",-L12,IF(L12=\"A\",L6,L6-L12)),0)),0)","v":0},{"$f":"IF(N9=V6,IF(AND(P9=\"A\",P21=\"A\"),0,IF(OR(Y6>0,L12=\"A\"),IF(P9=\"A\",-P21,IF(P21=\"A\",P9,P9-P21)),0)),0)","v":0},0,null,{"$f":"'1'!AR6","v":""},{"$f":"'1'!AS6","v":""},null,{"$f":"IF(Inscrits!B4=0,\"\",Inscrits!B4)","v":"DUDIT FABIEN"},{"$error":"#N/A"},{"$error":"#N/A"},{"$error":"#N/A"}]
["B",{"$f":"IF('1'!U16=0,\"\",'1'!U16)","v":""},{"$f":"IF('1'!V16=0,\"\",'1'!V16)","v":""},null,null,{"$f":"IF(AND(D7=\"A\",D8=\"A\"),B7,IF(D7=\"A\",B8,IF(D8=\"A\",B7,IF(D7=D8,\"\",(IF(D7>D8,B7,B8))))))","v":""},{"$f":"IF(AND(D7=\"A\",D8=\"A\"),C7,IF(D7=\"A\",C8,IF(D8=\"A\",C7,IF(D7=D8,\"\",(IF(D7>D8,C7,C8))))))","v":""},null,null,null,null,null,null,null,null,null,null,null,null,null,null,{"$f":"B8","v":""},{"$f":"IF(AND(D7=\"A\",D8=\"A\"),0,IF(D8=\"A\",-D7,IF(D7=\"A\",D8,D8-D7)))","v":0},{"$f":"IF(F7=V7,IF(AND(H5=\"A\",H7=\"A\"),0,IF(OR(W7>0,D7=\"A\"),IF(H7=\"A\",-H5,IF(H5=\"A\",H7,H7-H5)),0)),0)","v":0},{"$f":"IF(J6=V7,IF(AND(L6=\"A\",L12=\"A\"),0,IF(OR(X7>0,H5=\"A\"),IF(L6=\"A\",-L12,IF(L12=\"A\",L6,L6-L12)),0)),0)","v":0},{"$f":"IF(N9=V7,IF(AND(P9=\"A\",P21=\"A\"),0,IF(OR(Y7>0,L12=\"A\"),IF(P9=\"A\",-P21,IF(P21=\"A\",P9,P9-P21)),0)),0)","v":0},0,null,{"$f":"'1'!AR7","v":""},{"$f":"'1'!AS7","v":""},null,{"$f":"IF(Inscrits!B5=0,\"\",Inscrits!B5)","v":"BENABDESSELAM YASSINE"},{"$error":"#N/A"},{"$error":"#N/A"},{"$error":"#N/A"}]
["X",{"$f":"IF('4'!B18=0,\"\",'4'!B18)","v":""},{"$f":"IF('4'!C18=0,\"\",'4'!C18)","v":""},null,null,null,null,null,null,null,null,null,null,null,null,null,null,null,null,null,null,{"$f":"B10","v":""},{"$f":"IF(AND(D10=\"A\",D11=\"A\"),0,IF(D10=\"A\",-D11,IF(D11=\"A\",D10,D10-D11)))","v":0},{"$f":"IF(F11=V8,IF(AND(H11=\"A\",H13=\"A\"),0,IF(OR(W8>0,D11=\"A\"),IF(H11=\"A\",-H13,IF(H13=\"A\",H11,H11-H13)),0)),0)","v":0},{"$f":"IF(J12=V8,IF(AND(L6=\"A\",L12=\"A\"),0,IF(OR(X8>0,H13=\"A\"),IF(L12=\"A\",-L6,IF(L6=\"A\",L12,L12-L6)),0)),0)","v":0},{"$f":"IF(N9=V8,IF(AND(P9=\"A\",P21=\"A\"),0,IF(OR(Y8>0,L6=\"A\"),IF(P9=\"A\",-P21,IF(P21=\"A\",P9,P9-P21)),0)),0)","v":0},0,null,{"$f":"'1'!AR14","v":""},{"$f":"'1'!AS14","v":""},null,{"$f":"IF(Inscrits!B6=0,\"\",Inscrits!B6)","v":"GARNIER NICOLAS"},{"$error":"#N/A"},{"$error":"#N/A"},{"$error":"#N/A"}]
[null,"Match 3 - Billard",null,null,null,null,null,null,null,"Match 13 - Billard",null,null,null,{"$f":"IF(AND(L6=\"A\",L12=\"A\"),J6,IF(L6=\"A\",J12,IF(L12=\"A\",J6,IF(L6=L12,\"\",(IF(L6>L12,J6,J12))))))","v":""},{"$f":"IF(AND(L6=\"A\",L12=\"A\"),K6,IF(L6=\"A\",K12,IF(L12=\"A\",K6,IF(L6=L12,\"\",(IF(L6>L12,K6,K12))))))","v":""},null,null,null,null,null,null,{"$f":"B11","v":""},{"$f":"IF(AND(D10=\"A\",D11=\"A\"),0,IF(D11=\"A\",-D10,IF(D10=\"A\",D11,D11-D10)))","v":0},{"$f":"IF(F11=V9,IF(AND(H11=\"A\",H13=\"A\"),0,IF(OR(W9>0,D10=\"A\"),IF(H11=\"A\",-H13,IF(H13=\"A\",H11,H11-H13)),0)),0)","v":0},{"$f":"IF(J12=V9,IF(AND(L6=\"A\",L12=\"A\"),0,IF(OR(X9>0,H13=\"A\"),IF(L12=\"A\",-L6,IF(L6=\"A\",L12,L12-L6)),0)),0)","v":0},{"$f":"IF(N9=V9,IF(AND(P9=\"A\",P21=\"A\"),0,IF(OR(Y9>0,L6=\"A\"),IF(P9=\"A\",-P21,IF(P21=\"A\",P9,P9-P21)),0)),0)","v":0},0,null,{"$f":"'1'!AR15","v":""},{"$f":"'1'!AS15","v":""},null,{"$f":"IF(Inscrits!B7=0,\"\",Inscrits!B7)","v":"DE ALMEIDA DUARTE FREDERICO"},{"$error":"#N/A"},{"$error":"#N/A"},{"$error":"#N/A"}]
["C",{"$f":"IF('2'!U6=0,\"\",'2'!U6)","v":""},{"$f":"IF('2'!V6=0,\"\",'2'!V6)","v":""},null,null,null,null,null,null,null,null,null,null,null,null,null,null,null,null,null,null,{"$f":"B13","v":""},{"$f":"IF(AND(D13=\"A\",D14=\"A\"),0,IF(D13=\"A\",-D14,IF(D14=\"A\",D13,D13-D14)))","v":0},{"$f":"IF(F13=V10,IF(AND(H11=\"A\",H13=\"A\"),0,IF(OR(W10>0,D14=\"A\"),IF(H13=\"A\",-H11,IF(H11=\"A\",H13,H13-H11)),0)),0)","v":0},{"$f":"IF(J12=V10,IF(AND(L6=\"A\",L12=\"A\"),0,IF(OR(X10>0,H11=\"A\"),IF(L12=\"A\",-L6,IF(L6=\"A\",L12,L12-L6)),0)),0)","v":0},{"$f":"IF(N9=V10,IF(AND(P9=\"A\",P21=\"A\"),0,IF(OR(Y10>0,L6=\"A\"),IF(P9=\"A\",-P21,IF(P21=\"A\",P9,P9-P21)),0)),0)","v":0},0,null,{"$f":"'1'!AR16","v":""},{"$f":"'1'!AS16","v":""},null,{"$f":"IF(Inscrits!B8=0,\"\",Inscrits!B8)","v":"HERREMAN FRANCOIS"},{"$error":"#N/A"},{"$error":"#N/A"},{"$error":"#N/A"}]
["Y",{"$f":"IF('4'!B8=0,\"\",'4'!B8)","v":""},{"$f":"IF('4'!C8=0,\"\",'4'!C8)","v":""},null,null,{"$f":"IF(AND(D10=\"A\",D11=\"A\"),B10,IF(D10=\"A\",B11,IF(D11=\"A\",B10,IF(D10=D11,\"\",(IF(D10>D11,B10,B11))))))","v":""},{"$f":"IF(AND(D10=\"A\",D11=\"A\"),C10,IF(D10=\"A\",C11,IF(D11=\"A\",C10,IF(D10=D11,\"\",(IF(D10>D11,C10,C11))))))","v":""},null,null,null,null,null,null,null,null,null,null,null,null,null,null,{"$f":"B14","v":""},{"$f":"IF(AND(D13=\"A\",D14=\"A\"),0,IF(D14=\"A\",-D13,IF(D13=\"A\",D14,D14-D13)))","v":0},{"$f":"IF(F13=V11,IF(AND(H11=\"A\",H13=\"A\"),0,IF(OR(W11>0,D13=\"A\"),IF(H13=\"A\",-H11,IF(H11=\"A\",H13,H13-H11)),0)),0)","v":0},{"$f":"IF(J12=V11,IF(AND(L6=\"A\",L12=\"A\"),0,IF(OR(X11>0,H11=\"A\"),IF(L12=\"A\",-L6,IF(L6=\"A\",L12,L12-L6)),0)),0)","v":0},{"$f":"IF(N9=V11,IF(AND(P9=\"A\",P21=\"A\"),0,IF(OR(Y11>0,L6=\"A\"),IF(P9=\"A\",-P21,IF(P21=\"A\",P9,P9-P21)),0)),0)","v":0},0,null,{"$f":"'1'!AR17","v":""},{"$f":"'1'!AS17","v":""},null,{"$f":"IF(Inscrits!B9=0,\"\",Inscrits!B9)","v":"POTIQUET SEBASTIEN"},{"$error":"#N/A"},{"$error":"#N/A"},{"$error":"#N/A"}]
[null,"Match 4 - Billard",null,null,null,"Match 10 - Billard",null,null,null,{"$f":"IF(AND(H11=\"A\",H13=\"A\"),F11,IF(H11=\"A\",F13,IF(H13=\"A\",F11,IF(H11=H13,\"\",(IF(H11>H13,F11,F13))))))","v":""},{"$f":"IF(AND(H11=\"A\",H13=\"A\"),G11,IF(H11=\"A\",G13,IF(H13=\"A\",G11,IF(H11=H13,\"\",(IF(H11>H13,G11,G13))))))","v":""},null,null,null,null,null,null,null,null,null,null,{"$f":"B16","v":""},{"$f":"IF(AND(D16=\"A\",D17=\"A\"),0,IF(D16=\"A\",-D17,IF(D17=\"A\",D16,D16-D17)))","v":0},{"$f":"IF(F17=V12,IF(AND(H17=\"A\",H19=\"A\"),0,IF(OR(W12>0,D17=\"A\"),IF(H17=\"A\",-H19,IF(H19=\"A\",H17,H17-H19)),0)),0)","v":0},{"$f":"IF(J18=V12,IF(AND(L18=\"A\",L24=\"A\"),0,IF(OR(X12>0,H19=\"A\"),IF(L18=\"A\",-L24,IF(L24=\"A\",L18,L18-L24)),0)),0)","v":0},{"$f":"IF(N21=V12,IF(AND(P9=\"A\",P21=\"A\"),0,IF(OR(Y12>0,L24=\"A\"),IF(P21=\"A\",-P9,IF(P9=\"A\",P21,P21-P9)),0)),0)","v":0},0,null,{"$f":"'2'!AR4","v":""},{"$f":"'2'!AS4","v":""},null,{"$f":"IF(Inscrits!B10=0,\"\",Inscrits!B10)","v":"LAMRANI MEHDI"},{"$error":"#N/A"},{"$error":"#N/A"},{"$error":"#N/A"}]
["D",{"$f":"IF('2'!U16=0,\"\",'2'!U16)","v":""},{"$f":"IF('2'!V16=0,\"\",'2'!V16)","v":""},null,null,{"$f":"IF(AND(D13=\"A\",D14=\"A\"),B13,IF(D13=\"A\",B14,IF(D14=\"A\",B13,IF(D13=D14,\"\",(IF(D13>D14,B13,B14))))))","v":""},{"$f":"IF(AND(D13=\"A\",D14=\"A\"),C13,IF(D13=\"A\",C14,IF(D14=\"A\",C13,IF(D13=D14,\"\",(IF(D13>D14,C13,C14))))))","v":""},null,null,null,null,null,null,null,null,null,null,null,null,null,null,{"$f":"B17","v":""},{"$f":"IF(AND(D16=\"A\",D17=\"A\"),0,IF(D17=\"A\",-D16,IF(D16=\"A\",D17,D17-D16)))","v":0},{"$f":"IF(F17=V13,IF(AND(H17=\"A\",H19=\"A\"),0,IF(OR(W13>0,D16=\"A\"),IF(H17=\"A\",-H19,IF(H19=\"A\",H17,H17-H19)),0)),0)","v":0},{"$f":"IF(J18=V13,IF(AND(L18=\"A\",L24=\"A\"),0,IF(OR(X13>0,H19=\"A\"),IF(L18=\"A\",-L24,IF(L24=\"A\",L18,L18-L24)),0)),0)","v":0},{"$f":"IF(N21=V13,IF(AND(P9=\"A\",P21=\"A\"),0,IF(OR(Y13>0,L24=\"A\"),IF(P21=\"A\",-P9,IF(P9=\"A\",P21,P21-P9)),0)),0)","v":0},0,null,{"$f":"'2'!AR5","v":""},{"$f":"'2'!AS5","v":""},null,{"$f":"IF(Inscrits!B11=0,\"\",Inscrits!B11)","v":"TEBBANI AZIZ"},{"$error":"#N/A"},{"$error":"#N/A"},{"$error":"#N/A"}]
["Z",{"$f":"IF('3'!B18=0,\"\",'3'!B18)","v":""},{"$f":"IF('3'!C18=0,\"\",'3'!C18)","v":""},null,null,null,null,null,null,null,null,null,null,null,null,null,null,null,null,null,null,{"$f":"B19","v":""},{"$f":"IF(AND(D19=\"A\",D20=\"A\"),0,IF(D19=\"A\",-D20,IF(D20=\"A\",D19,D19-D20)))","v":0},{"$f":"IF(F19=V14,IF(AND(H17=\"A\",H19=\"A\"),0,IF(OR(W14>0,D20=\"A\"),IF(H19=\"A\",-H17,IF(H17=\"A\",H19,H19-H17)),0)),0)","v":0},{"$f":"IF(J18=V14,IF(AND(L18=\"A\",L24=\"A\"),0,IF(OR(X14>0,H17=\"A\"),IF(L18=\"A\",-L24,IF(L24=\"A\",L18,L18-L24)),0)),0)","v":0},{"$f":"IF(N21=V14,IF(AND(P9=\"A\",P21=\"A\"),0,IF(OR(Y14>0,L24=\"A\"),IF(P21=\"A\",-P9,IF(P9=\"A\",P21,P21-P9)),0)),0)","v":0},0,null,{"$f":"'2'!AR6","v":""},{"$f":"'2'!AS6","v":""},null,{"$f":"IF(Inscrits!B12=0,\"\",Inscrits!B12)","v":"PILLOT VINCENT"},{"$error":"#N/A"},{"$error":"#N/A"},{"$error":"#N/A"}]
[null,"Match 5 - Billard",null,null,null,null,null,null,null,null,null,null,null,"Match 15 - Billard",null,null,null,{"$f":"IF(AND(P9=\"A\",P21=\"A\"),N9,IF(P9=\"A\",N21,IF(P21=\"A\",N9,IF(P9=P21,\"\",(IF(P9>P21,N9,N21))))))","v":""},{"$f":"IF(AND(P9=\"F\",P21=\"F\"),O9,IF(P9=\"F\",O21,IF(P21=\"F\",O9,IF(P9=P21,\"\",(IF(P9>P21,O9,O21))))))","v":""},null,null,{"$f":"B20","v":""},{"$f":"IF(AND(D19=\"A\",D20=\"A\"),0,IF(D20=\"A\",-D19,IF(D19=\"A\",D20,D20-D19)))","v":0},{"$f":"IF(F19=V15,IF(AND(H17=\"A\",H19=\"A\"),0,IF(OR(W15>0,D19=\"A\"),IF(H19=\"A\",-H17,IF(H17=\"A\",H19,H19-H17)),0)),0)","v":0},{"$f":"IF(J18=V15,IF(AND(L18=\"A\",L24=\"A\"),0,IF(OR(X15>0,H17=\"A\"),IF(L18=\"A\",-L24,IF(L24=\"A\",L18,L18-L24)),0)),0)","v":0},{"$f":"IF(N21=V15,IF(AND(P9=\"A\",P21=\"A\"),0,IF(OR(Y15>0,L24=\"A\"),IF(P21=\"A\",-P9,IF(P9=\"A\",P21,P21-P9)),0)),0)","v":0},0,null,{"$f":"'2'!AR7","v":""},{"$f":"'2'!AS7","v":""},null,{"$f":"IF(Inscrits!B13=0,\"\",Inscrits!B13)","v":"CENDRIER DAVID"},{"$error":"#N/A"},{"$error":"#N/A"},{"$error":"#N/A"}]
["E",{"$f":"IF('3'!U6=0,\"\",'3'!U6)","v":""},{"$f":"IF('3'!V6=0,\"\",'3'!V6)","v":""},null,null,null,null,null,null,null,null,null,null,null,null,null,null,null,null,null,null,{"$f":"B22","v":""},{"$f":"IF(AND(D22=\"A\",D23=\"A\"),0,IF(D22=\"A\",-D23,IF(D23=\"A\",D22,D22-D23)))","v":0},{"$f":"IF(F23=V16,IF(AND(H23=\"A\",H25=\"A\"),0,IF(OR(W16>0,D23=\"A\"),IF(H23=\"A\",-H25,IF(H25=\"A\",H23,H23-H25)),0)),0)","v":0},{"$f":"IF(J24=V16,IF(AND(L18=\"A\",L24=\"A\"),0,IF(OR(X16>0,H25=\"A\"),IF(L24=\"A\",-L18,IF(L18=\"A\",L24,L24-L18)),0)),0)","v":0},{"$f":"IF(N21=V16,IF(AND(P9=\"A\",P21=\"A\"),0,IF(OR(Y16>0,L18=\"A\"),IF(P21=\"A\",-P9,IF(P9=\"A\",P21,P21-P9)),0)),0)","v":0},0,null,{"$f":"'2'!AR14","v":""},{"$f":"'2'!AS14","v":""},null,{"$f":"IF(Inscrits!B14=0,\"\",Inscrits!B14)","v":"LAZEREG RADIL"},{"$error":"#N/A"},{"$error":"#N/A"},{"$error":"#N/A"}]
["S",{"$f":"IF('2'!B8=0,\"\",'2'!B8)","v":""},{"$f":"IF('2'!C8=0,\"\",'2'!C8)","v":""},null,null,{"$f":"IF(AND(D16=\"A\",D17=\"A\"),B16,IF(D16=\"A\",B17,IF(D17=\"A\",B16,IF(D16=D17,\"\",(IF(D16>D17,B16,B17))))))","v":""},{"$f":"IF(AND(D16=\"A\",D17=\"A\"),C16,IF(D16=\"A\",C17,IF(D17=\"A\",C16,IF(D16=D17,\"\",(IF(D16>D17,C16,C17))))))","v":""},null,null,null,null,null,null,null,null,null,null,null,null,null,null,{"$f":"B23","v":""},{"$f":"IF(AND(D22=\"A\",D23=\"A\"),0,IF(D23=\"A\",-D22,IF(D22=\"A\",D23,D23-D22)))","v":0},{"$f":"IF(F23=V17,IF(AND(H23=\"A\",H25=\"A\"),0,IF(OR(W17>0,D22=\"A\"),IF(H23=\"A\",-H25,IF(H25=\"A\",H23,H23-H25)),0)),0)","v":0},{"$f":"IF(J24=V17,IF(AND(L18=\"A\",L24=\"A\"),0,IF(OR(X17>0,H25=\"A\"),IF(L24=\"A\",-L18,IF(L18=\"A\",L24,L24-L18)),0)),0)","v":0},{"$f":"IF(N21=V17,IF(AND(P9=\"A\",P21=\"A\"),0,IF(OR(Y17>0,L18=\"A\"),IF(P21=\"A\",-P9,IF(P9=\"A\",P21,P21-P9)),0)),0)","v":0},0,null,{"$f":"'2'!AR15","v":""},{"$f":"'2'!AS15","v":""},null,{"$f":"IF(Inscrits!B15=0,\"\",Inscrits!B15)","v":"BRACEIRO JOSE"},{"$error":"#N/A"},{"$error":"#N/A"},{"$error":"#N/A"}]
[null,"Match 6 - Billard",null,null,null,"Match 11 - Billard",null,null,null,{"$f":"IF(AND(H17=\"A\",H19=\"A\"),F17,IF(H17=\"A\",F19,IF(H19=\"A\",F17,IF(H17=H19,\"\",(IF(H17>H19,F17,F19))))))","v":""},{"$f":"IF(AND(H17=\"A\",H19=\"A\"),G17,IF(H17=\"A\",G19,IF(H19=\"A\",G17,IF(H17=H19,\"\",(IF(H17>H19,G17,G19))))))","v":""},null,null,null,null,null,null,null,null,null,null,{"$f":"B25","v":""},{"$f":"IF(AND(D25=\"A\",D26=\"A\"),0,IF(D25=\"A\",-D26,IF(D26=\"A\",D25,D25-D26)))","v":0},{"$f":"IF(F25=V18,IF(AND(H23=\"A\",H25=\"A\"),0,IF(OR(W18>0,D26=\"A\"),IF(H25=\"A\",-H23,IF(H23=\"A\",H25,H25-H23)),0)),0)","v":0},{"$f":"IF(J24=V18,IF(AND(L18=\"A\",L24=\"A\"),0,IF(OR(X18>0,H23=\"A\"),IF(L24=\"A\",-L18,IF(L18=\"A\",L24,L24-L18)),0)),0)","v":0},{"$f":"IF(N21=V18,IF(AND(P9=\"A\",P21=\"A\"),0,IF(OR(Y18>0,L18=\"A\"),IF(P21=\"A\",-P9,IF(P9=\"A\",P21,P21-P9)),0)),0)","v":0},0,null,{"$f":"'2'!AR16","v":""},{"$f":"'2'!AS16","v":""},null,{"$f":"IF(Inscrits!B16=0,\"\",Inscrits!B16)","v":"TASSET JEROME"},{"$error":"#N/A"},{"$error":"#N/A"},{"$error":"#N/A"}]
["F",{"$f":"IF('3'!U16=0,\"\",'3'!U16)","v":""},{"$f":"IF('3'!V16=0,\"\",'3'!V16)","v":""},null,null,{"$f":"IF(AND(D19=\"A\",D20=\"A\"),B19,IF(D19=\"A\",B20,IF(D20=\"A\",B19,IF(D19=D20,\"\",(IF(D19>D20,B19,B20))))))","v":""},{"$f":"IF(AND(D19=\"A\",D20=\"A\"),C19,IF(D19=\"A\",C20,IF(D20=\"A\",C19,IF(D19=D20,\"\",(IF(D19>D20,C19,C20))))))","v":""},null,null,null,null,null,null,null,null,null,null,null,null,null,null,{"$f":"B26","v":""},{"$f":"IF(AND(D25=\"A\",D26=\"A\"),0,IF(D26=\"A\",-D25,IF(D25=\"A\",D26,D26-D25)))","v":0},{"$f":"IF(F25=V19,IF(AND(H23=\"A\",H25=\"A\"),0,IF(OR(W19>0,D25=\"A\"),IF(H25=\"A\",-H23,IF(H23=\"A\",H25,H25-H23)),0)),0)","v":0},{"$f":"IF(J24=V19,IF(AND(L18=\"A\",L24=\"A\"),0,IF(OR(X19>0,H23=\"A\"),IF(L24=\"A\",-L18,IF(L18=\"A\",L24,L24-L18)),0)),0)","v":0},{"$f":"IF(N21=V19,IF(AND(P9=\"A\",P21=\"A\"),0,IF(OR(Y19>0,L18=\"A\"),IF(P21=\"A\",-P9,IF(P9=\"A\",P21,P21-P9)),0)),0)","v":0},0,null,{"$f":"'2'!AR17","v":""},{"$f":"'2'!AS17","v":""},null,{"$f":"IF(Inscrits!B17=0,\"\",Inscrits!B17)","v":"LACROIX DYLAN"},{"$error":"#N/A"},{"$error":"#N/A"},{"$error":"#N/A"}]
["T",{"$f":"IF('1'!B18=0,\"\",'1'!B18)","v":""},{"$f":"IF('1'!C18=0,\"\",'1'!C18)","v":""},null,null,null,null,null,null,null,null,null,null,null,null,null,null,null,null,null,null,{"$f":"'1'!AR14","v":""},null,null,null,null,0,null,{"$f":"'3'!AR4","v":""},{"$f":"'3'!AS4","v":""},null,{"$f":"IF(Inscrits!B18=0,\"\",Inscrits!B18)","v":"DELORME STEPHANE"},{"$error":"#N/A"},{"$error":"#N/A"},{"$error":"#N/A"}]
[null,"Match 7 - Billard",null,null,null,null,null,null,null,"Match 14 - Billard",null,null,null,{"$f":"IF(AND(L18=\"A\",L24=\"A\"),J18,IF(L18=\"A\",J24,IF(L24=\"A\",J18,IF(L18=L24,\"\",(IF(L18>L24,J18,J24))))))","v":""},{"$f":"IF(AND(L18=\"A\",L24=\"A\"),K18,IF(L18=\"A\",K24,IF(L24=\"A\",K18,IF(L18=L24,\"\",(IF(L18>L24,K18,K24))))))","v":""},null,null,null,null,null,null,{"$f":"'1'!AR15","v":""},null,null,null,null,0,null,{"$f":"'3'!AR5","v":""},{"$f":"'3'!AS5","v":""},null,{"$f":"IF(Inscrits!B19=0,\"\",Inscrits!B19)","v":"LATORRE ANDRE"},{"$error":"#N/A"},{"$error":"#N/A"},{"$error":"#N/A"}]
["G",{"$f":"IF('4'!U6=0,\"\",'4'!U6)","v":""},{"$f":"IF('4'!V6=0,\"\",'4'!V6)","v":""},null,null,null,null,null,null,null,null,null,null,null,null,null,null,null,null,null,null,{"$f":"'1'!AR16","v":""},null,null,null,null,0,null,{"$f":"'3'!AR6","v":""},{"$f":"'3'!AS6","v":""},null,{"$f":"IF(Inscrits!B20=0,\"\",Inscrits!B20)","v":"URAY JIMMY"},{"$error":"#N/A"},{"$error":"#N/A"},{"$error":"#N/A"}]
["U",{"$f":"IF('1'!B8=0,\"\",'1'!B8)","v":""},{"$f":"IF('1'!C8=0,\"\",'1'!C8)","v":""},null,null,{"$f":"IF(AND(D22=\"A\",D23=\"A\"),B22,IF(D22=\"A\",B23,IF(D23=\"A\",B22,IF(D22=D23,\"\",(IF(D22>D23,B22,B23))))))","v":""},{"$f":"IF(AND(D22=\"A\",D23=\"A\"),C22,IF(D22=\"A\",C23,IF(D23=\"A\",C22,IF(D22=D23,\"\",(IF(D22>D23,C22,C23))))))","v":""},null,null,null,null,null,null,null,null,null,null,null,null,null,null,{"$f":"'1'!AR17","v":""},null,null,null,null,0,null,{"$f":"'3'!AR7","v":""},{"$f":"'3'!AS7","v":""},null,{"$f":"IF(Inscrits!B21=0,\"\",Inscrits!B21)","v":"TRIPLET FREDERIC"},{"$error":"#N/A"},{"$error":"#N/A"},{"$error":"#N/A"}]
[null,"Match 8 - Billard",null,null,null,"Match 12 - Billard",null,null,null,{"$f":"IF(AND(H23=\"A\",H25=\"A\"),F23,IF(H23=\"A\",F25,IF(H25=\"A\",F23,IF(H23=H25,\"\",(IF(H23>H25,F23,F25))))))","v":""},{"$f":"IF(AND(H23=\"A\",H25=\"A\"),G23,IF(H23=\"A\",G25,IF(H25=\"A\",G23,IF(H23=H25,\"\",(IF(H23>H25,G23,G25))))))","v":""},null,null,null,null,null,null,null,null,null,null,{"$f":"'2'!AR14","v":""},null,null,null,null,0,null,{"$f":"'3'!AR14","v":""},{"$f":"'3'!AS14","v":""},null,{"$f":"IF(Inscrits!B22=0,\"\",Inscrits!B22)","v":"SOPIC NICOLAS"},{"$error":"#N/A"},{"$error":"#N/A"},{"$error":"#N/A"}]
["H",{"$f":"IF('4'!U16=0,\"\",'4'!U16)","v":""},{"$f":"IF('4'!V16=0,\"\",'4'!V16)","v":""},null,null,{"$f":"IF(AND(D25=\"A\",D26=\"A\"),B25,IF(D25=\"A\",B26,IF(D26=\"A\",B25,IF(D25=D26,\"\",(IF(D25>D26,B25,B26))))))","v":""},{"$f":"IF(AND(D25=\"A\",D26=\"A\"),C25,IF(D25=\"A\",C26,IF(D26=\"A\",C25,IF(D25=D26,\"\",(IF(D25>D26,C25,C26))))))","v":""},null,null,null,null,null,null,null,null,null,null,null,null,null,null,{"$f":"'2'!AR15","v":""},null,null,null,null,0,null,{"$f":"'3'!AR15","v":""},{"$f":"'3'!AS15","v":""},null,{"$f":"IF(Inscrits!B23=0,\"\",Inscrits!B23)","v":"BONTOUX SYLVIE"},{"$error":"#N/A"},{"$error":"#N/A"},{"$error":"#N/A"}]
["V",{"$f":"IF('2'!B18=0,\"\",'2'!B18)","v":""},{"$f":"IF('2'!C18=0,\"\",'2'!C18)","v":""},null,null,null,null,null,null,null,null,null,null,null,null,null,null,null,null,null,null,{"$f":"'2'!AR16","v":""},null,null,null,null,0,null,{"$f":"'3'!AR16","v":""},{"$f":"'3'!AS16","v":""},null,{"$f":"IF(Inscrits!B24=0,\"\",Inscrits!B24)","v":"KUSAR TONY"},{"$error":"#N/A"},{"$error":"#N/A"},{"$error":"#N/A"}]
[null,null,null,null,null,null,null,null,null,null,null,null,null,null,null,null,null,null,null,null,null,{"$f":"'2'!AR17","v":""},null,null,null,null,0,null,{"$f":"'3'!AR17","v":""},{"$f":"'3'!AS17","v":""},null,{"$f":"IF(Inscrits!B25=0,\"\",Inscrits!B25)","v":"LETOURNEUR SEBASTIEN"},{"$error":"#N/A"},{"$error":"#N/A"},{"$error":"#N/A"}]
[null,null,null,null,null,null,null,null,null,null,null,null,null,null,null,null,null,null,null,null,null,{"$f":"'3'!AR14","v":""},null,null,null,null,0,null,{"$f":"'4'!AR4","v":""},{"$f":"'4'!AS4","v":""},null,{"$f":"IF(Inscrits!B26=0,\"\",Inscrits!B26)","v":"SOCKEEL AURORE"},{"$error":"#N/A"},{"$error":"#N/A"},{"$error":"#N/A"}]
[null,null,null,null,null,null,null,null,null,null,null,null,null,null,null,null,null,null,null,null,null,{"$f":"'3'!AR15","v":""},null,null,null,null,0,null,{"$f":"'4'!AR5","v":""},{"$f":"'4'!AS5","v":""},null,{"$f":"IF(Inscrits!B27=0,\"\",Inscrits!B27)","v":"BRENDEL CHRISTIAN"},{"$error":"#N/A"},{"$error":"#N/A"},{"$error":"#N/A"}]
[null,null,null,null,null,null,null,null,null,null,null,null,null,null,null,null,null,null,null,null,null,{"$f":"'3'!AR16","v":""},null,null,null,null,0,null,{"$f":"'4'!AR6","v":""},{"$f":"'4'!AS6","v":""},null,{"$f":"IF(Inscrits!B28=0,\"\",Inscrits!B28)","v":"BRUN CHRISTOPHE"},{"$error":"#N/A"},{"$error":"#N/A"},{"$error":"#N/A"}]
[null,null,null,null,null,null,null,null,null,null,null,null,null,null,null,null,null,null,null,null,null,{"$f":"'3'!AR17","v":""},null,null,null,null,0,null,{"$f":"'4'!AR7","v":""},{"$f":"'4'!AS7","v":""},null,{"$f":"IF(Inscrits!B29=0,\"\",Inscrits!B29)","v":"SOCKEEL YANNICK"},{"$error":"#N/A"},{"$error":"#N/A"},{"$error":"#N/A"}]
[null,null,null,null,null,null,null,null,null,null,null,null,null,null,null,null,null,null,null,null,null,{"$f":"'4'!AR14","v":""},null,null,null,null,0,null,{"$f":"'4'!AR14","v":""},{"$f":"'4'!AS14","v":""},null,{"$f":"IF(Inscrits!B30=0,\"\",Inscrits!B30)","v":"BERRAHOU SOLANGE"},{"$error":"#N/A"},{"$error":"#N/A"},{"$error":"#N/A"}]
[null,null,null,null,null,null,null,null,null,null,null,null,null,null,null,null,null,null,null,null,null,{"$f":"'4'!AR15","v":""},null,null,null,null,0,null,{"$f":"'4'!AR15","v":""},{"$f":"'4'!AS15","v":""},null,{"$f":"IF(Inscrits!B31=0,\"\",Inscrits!B31)","v":"BABEL STEPHANIE"},{"$error":"#N/A"},{"$error":"#N/A"},{"$error":"#N/A"}]
[null,null,null,null,null,null,null,null,null,null,null,null,null,null,null,null,null,null,null,null,null,{"$f":"'4'!AR16","v":""},null,null,null,null,0,null,{"$f":"'4'!AR16","v":""},{"$f":"'4'!AS16","v":""},null,{"$f":"IF(Inscrits!B32=0,\"\",Inscrits!B32)","v":"LEPAGE PATRICK"},{"$error":"#N/A"},{"$error":"#N/A"},{"$error":"#N/A"}]
[null,null,null,null,null,null,null,null,null,null,null,null,null,null,null,null,null,null,null,null,null,{"$f":"'4'!AR17","v":""},null,null,null,null,0,null,{"$f":"'4'!AR17","v":""},{"$f":"'4'!AS17","v":""},null,{"$f":"IF(Inscrits!B33=0,\"\",Inscrits!B33)","v":"CHAIR MOURAD"},{"$error":"#N/A"},{"$error":"#N/A"},{"$error":"#N/A"}]

{"sheet":"Classement","index":8,"n_rows":33,"n_cols":11,"rows_kept":33,"cut":false,"hidden":false,"merged":[]}
[null,null,"Formules Initiales","Nom & Prénom","Place","Points","GA","Club","Ville","Licence","Division"]
[null,null,1,{"$f":"Final!R15","v":""},null,{"$f":"IF(ISNA(IF(LEFT(Division,2)=\"R1\",VLOOKUP(E2,Points!$A$2:$D$36,2,FALSE),IF(LEFT(Division,2)=\"R2\",VLOOKUP(E2,Points!$A$2:$D$36,3,FALSE),IF(LEFT(Division,2)=\"R3\",VLOOKUP(E2,Points!$A$2:$D$36,4,FALSE),\"DIV ???\")))),0,IF(LEFT(Division,2)=\"R1\",VLOOKUP(E2,Points!$A$2:$D$36,2,FALSE),IF(LEFT(Division,2)=\"R2\",VLOOKUP(E2,Points!$A$2:$D$36,3,FALSE),IF(LEFT(Division,2)=\"R3\",VLOOKUP(E2,Points!$A$2:$D$36,4,FALSE),\"DIV ???\"))))","v":0},{"$f":"IF(ISERROR(VLOOKUP(D2,Final!$AF$4:$AI$35,4,FALSE)),\"\",VLOOKUP(D2,Final!$AF$4:$AI$35,4,FALSE))","v":""},{"$f":"IF(ISNA(VLOOKUP(D2,Inscrits!B:E,3,FALSE)),\"\",VLOOKUP(D2,Inscrits!B:E,3,FALSE))","v":""},{"$f":"IF(ISNA(VLOOKUP(D2,Inscrits!B:E,4,FALSE)),\"\",VLOOKUP(D2,Inscrits!B:E,4,FALSE))","v":""},{"$f":"IF(ISNA(VLOOKUP(D2,Inscrits!B:E,5,FALSE)),\"\",VLOOKUP(D2,Inscrits!B:E,5,FALSE))","v":""},{"$f":"IF(NB_JOUEURS_UP>0,IF(LEN(Division)=2,\"R\"&RIGHT(Division,1)-1&\"\",IF(LEN(Division)=3,IF(RIGHT(LEFT(Division,2),1)=\"2\",\"R1\",IF(Nb_R2=1,\"R2\",\"R\"&RIGHT(LEFT(Division,2),1)-1&\"\"&RIGHT(Division,1)&\"\")),IF(LEN(Division)=4,IF(RIGHT(LEFT(Division,2),1)=\"2\",\"R1\",\"R\"&RIGHT(LEFT(Division,2),1)-1&\"\"&RIGHT(LEFT(Division,3),1)&\"\"),\"?\"))),Division)","v":"R1"}]
[null,null,2,{"$f":"IF(Final!P21=\"A\",Final!N21,IF(Final!P9=\"A\",Final!N9,IF(Final!P9<Final!P21,Final!N9,Final!N21)))","v":""},null,{"$f":"IF(ISNA(IF(LEFT(Division,2)=\"R1\",VLOOKUP(E3,Points!$A$2:$D$36,2,FALSE),IF(LEFT(Division,2)=\"R2\",VLOOKUP(E3,Points!$A$2:$D$36,3,FALSE),IF(LEFT(Division,2)=\"R3\",VLOOKUP(E3,Points!$A$2:$D$36,4,FALSE),\"DIV ???\")))),0,IF(LEFT(Division,2)=\"R1\",VLOOKUP(E3,Points!$A$2:$D$36,2,FALSE),IF(LEFT(Division,2)=\"R2\",VLOOKUP(E3,Points!$A$2:$D$36,3,FALSE),IF(LEFT(Division,2)=\"R3\",VLOOKUP(E3,Points!$A$2:$D$36,4,FALSE),\"DIV ???\"))))","v":0},{"$f":"IF(ISERROR(VLOOKUP(D3,Final!$AF$4:$AI$35,4,FALSE)),\"\",VLOOKUP(D3,Final!$AF$4:$AI$35,4,FALSE))","v":""},{"$f":"IF(ISNA(VLOOKUP(D3,Inscrits!B:E,3,FALSE)),\"\",VLOOKUP(D3,Inscrits!B:E,3,FALSE))","v":""},{"$f":"IF(ISNA(VLOOKUP(D3,Inscrits!B:E,4,FALSE)),\"\",VLOOKUP(D3,Inscrits!B:E,4,FALSE))","v":""},{"$f":"IF(ISNA(VLOOKUP(D3,Inscrits!B:E,5,FALSE)),\"\",VLOOKUP(D3,Inscrits!B:E,5,FALSE))","v":""},{"$f":"IF(NB_JOUEURS_UP>1,IF(LEN(Division)=2,\"R\"&RIGHT(Division,1)-1&\"\",IF(LEN(Division)=3,IF(RIGHT(LEFT(Division,2),1)=\"2\",\"R1\",IF(Nb_R2=1,\"R2\",\"R\"&RIGHT(LEFT(Division,2),1)-1&\"\"&RIGHT(Division,1)&\"\")),IF(LEN(Division)=4,IF(RIGHT(LEFT(Division,2),1)=\"2\",\"R1\",\"R\"&RIGHT(LEFT(Division,2),1)-1&\"\"&RIGHT(LEFT(Division,3),1)&\"\"),\"?\"))),Division)","v":"R1"}]
[null,null,3,{"$f":"IF(Final!L12=\"A\",Final!J12,IF(Final!L6=\"A\",Final!J6,IF(Final!L6<Final!L12,Final!J6,Final!J12)))","v":""},null,{"$f":"IF(ISNA(IF(LEFT(Division,2)=\"R1\",VLOOKUP(E4,Points!$A$2:$D$36,2,FALSE),IF(LEFT(Division,2)=\"R2\",VLOOKUP(E4,Points!$A$2:$D$36,3,FALSE),IF(LEFT(Division,2)=\"R3\",VLOOKUP(E4,Points!$A$2:$D$36,4,FALSE),\"DIV ???\")))),0,IF(LEFT(Division,2)=\"R1\",VLOOKUP(E4,Points!$A$2:$D$36,2,FALSE),IF(LEFT(Division,2)=\"R2\",VLOOKUP(E4,Points!$A$2:$D$36,3,FALSE),IF(LEFT(Division,2)=\"R3\",VLOOKUP(E4,Points!$A$2:$D$36,4,FALSE),\"DIV ???\"))))","v":0},{"$f":"IF(ISERROR(VLOOKUP(D4,Final!$AF$4:$AI$35,4,FALSE)),\"\",VLOOKUP(D4,Final!$AF$4:$AI$35,4,FALSE))","v":""},{"$f":"IF(ISNA(VLOOKUP(D4,Inscrits!B:E,3,FALSE)),\"\",VLOOKUP(D4,Inscrits!B:E,3,FALSE))","v":""},{"$f":"IF(ISNA(VLOOKUP(D4,Inscrits!B:E,4,FALSE)),\"\",VLOOKUP(D4,Inscrits!B:E,4,FALSE))","v":""},{"$f":"IF(ISNA(VLOOKUP(D4,Inscrits!B:E,5,FALSE)),\"\",VLOOKUP(D4,Inscrits!B:E,5,FALSE))","v":""},{"$f":"IF(NB_JOUEURS_UP>2,IF(LEN(Division)=2,\"R\"&RIGHT(Division,1)-1&\"\",IF(LEN(Division)=3,IF(RIGHT(LEFT(Division,2),1)=\"2\",\"R1\",IF(Nb_R2=1,\"R2\",\"R\"&RIGHT(LEFT(Division,2),1)-1&\"\"&RIGHT(Division,1)&\"\")),IF(LEN(Division)=4,IF(RIGHT(LEFT(Division,2),1)=\"2\",\"R1\",\"R\"&RIGHT(LEFT(Division,2),1)-1&\"\"&RIGHT(LEFT(Division,3),1)&\"\"),\"?\"))),Division)","v":"R1"}]
[null,null,4,{"$f":"IF(Final!L24=\"A\",Final!J24,IF(Final!L18=\"A\",Final!J18,IF(Final!L18<Final!L24,Final!J18,Final!J24)))","v":""},null,{"$f":"IF(ISNA(IF(LEFT(Division,2)=\"R1\",VLOOKUP(E5,Points!$A$2:$D$36,2,FALSE),IF(LEFT(Division,2)=\"R2\",VLOOKUP(E5,Points!$A$2:$D$36,3,FALSE),IF(LEFT(Division,2)=\"R3\",VLOOKUP(E5,Points!$A$2:$D$36,4,FALSE),\"DIV ???\")))),0,IF(LEFT(Division,2)=\"R1\",VLOOKUP(E5,Points!$A$2:$D$36,2,FALSE),IF(LEFT(Division,2)=\"R2\",VLOOKUP(E5,Points!$A$2:$D$36,3,FALSE),IF(LEFT(Division,2)=\"R3\",VLOOKUP(E5,Points!$A$2:$D$36,4,FALSE),\"DIV ???\"))))","v":0},{"$f":"IF(ISERROR(VLOOKUP(D5,Final!$AF$4:$AI$35,4,FALSE)),\"\",VLOOKUP(D5,Final!$AF$4:$AI$35,4,FALSE))","v":""},{"$f":"IF(ISNA(VLOOKUP(D5,Inscrits!B:E,3,FALSE)),\"\",VLOOKUP(D5,Inscrits!B:E,3,FALSE))","v":""},{"$f":"IF(ISNA(VLOOKUP(D5,Inscrits!B:E,4,FALSE)),\"\",VLOOKUP(D5,Inscrits!B:E,4,FALSE))","v":""},{"$f":"IF(ISNA(VLOOKUP(D5,Inscrits!B:E,5,FALSE)),\"\",VLOOKUP(D5,Inscrits!B:E,5,FALSE))","v":""},{"$f":"IF(NB_JOUEURS_UP>3,IF(LEN(Division)=2,\"R\"&RIGHT(Division,1)-1&\"\",IF(LEN(Division)=3,IF(RIGHT(LEFT(Division,2),1)=\"2\",\"R1\",IF(Nb_R2=1,\"R2\",\"R\"&RIGHT(LEFT(Division,2),1)-1&\"\"&RIGHT(Division,1)&\"\")),IF(LEN(Division)=4,IF(RIGHT(LEFT(Division,2),1)=\"2\",\"R1\",\"R\"&RIGHT(LEFT(Division,2),1)-1&\"\"&RIGHT(LEFT(Division,3),1)&\"\"),\"?\"))),Division)","v":"R1"}]
[null,null,5,{"$f":"IF(Final!H7=\"A\",Final!F7,IF(Final!H5=\"A\",Final!F5,IF(Final!H5<Final!H7,Final!F5,Final!F7)))","v":""},null,{"$f":"IF(ISNA(IF(LEFT(Division,2)=\"R1\",VLOOKUP(E6,Points!$A$2:$D$36,2,FALSE),IF(LEFT(Division,2)=\"R2\",VLOOKUP(E6,Points!$A$2:$D$36,3,FALSE),IF(LEFT(Division,2)=\"R3\",VLOOKUP(E6,Points!$A$2:$D$36,4,FALSE),\"DIV ???\")))),0,IF(LEFT(Division,2)=\"R1\",VLOOKUP(E6,Points!$A$2:$D$36,2,FALSE),IF(LEFT(Division,2)=\"R2\",VLOOKUP(E6,Points!$A$2:$D$36,3,FALSE),IF(LEFT(Division,2)=\"R3\",VLOOKUP(E6,Points!$A$2:$D$36,4,FALSE),\"DIV ???\"))))","v":0},{"$f":"IF(ISERROR(VLOOKUP(D6,Final!$AF$4:$AI$35,4,FALSE)),\"\",VLOOKUP(D6,Final!$AF$4:$AI$35,4,FALSE))","v":""},{"$f":"IF(ISNA(VLOOKUP(D6,Inscrits!B:E,3,FALSE)),\"\",VLOOKUP(D6,Inscrits!B:E,3,FALSE))","v":""},{"$f":"IF(ISNA(VLOOKUP(D6,Inscrits!B:E,4,FALSE)),\"\",VLOOKUP(D6,Inscrits!B:E,4,FALSE))","v":""},{"$f":"IF(ISNA(VLOOKUP(D6,Inscrits!B:E,5,FALSE)),\"\",VLOOKUP(D6,Inscrits!B:E,5,FALSE))","v":""},{"$f":"IF(NB_JOUEURS_UP>4,IF(LEN(Division)=2,\"R\"&RIGHT(Division,1)-1&\"\",IF(LEN(Division)=3,IF(RIGHT(LEFT(Division,2),1)=\"2\",\"R1\",IF(Nb_R2=1,\"R2\",\"R\"&RIGHT(LEFT(Division,2),1)-1&\"\"&RIGHT(Division,1)&\"\")),IF(LEN(Division)=4,IF(RIGHT(LEFT(Division,2),1)=\"2\",\"R1\",\"R\"&RIGHT(LEFT(Division,2),1)-1&\"\"&RIGHT(LEFT(Division,3),1)&\"\"),\"?\"))),Division)","v":"R1"}]
[null,null,6,{"$f":"IF(Final!H13=\"A\",Final!F13,IF(Final!H11=\"A\",Final!F11,IF(Final!H11<Final!H13,Final!F11,Final!F13)))","v":""},null,{"$f":"IF(ISNA(IF(LEFT(Division,2)=\"R1\",VLOOKUP(E7,Points!$A$2:$D$36,2,FALSE),IF(LEFT(Division,2)=\"R2\",VLOOKUP(E7,Points!$A$2:$D$36,3,FALSE),IF(LEFT(Division,2)=\"R3\",VLOOKUP(E7,Points!$A$2:$D$36,4,FALSE),\"DIV ???\")))),0,IF(LEFT(Division,2)=\"R1\",VLOOKUP(E7,Points!$A$2:$D$36,2,FALSE),IF(LEFT(Division,2)=\"R2\",VLOOKUP(E7,Points!$A$2:$D$36,3,FALSE),IF(LEFT(Division,2)=\"R3\",VLOOKUP(E7,Points!$A$2:$D$36,4,FALSE),\"DIV ???\"))))","v":0},{"$f":"IF(ISERROR(VLOOKUP(D7,Final!$AF$4:$AI$35,4,FALSE)),\"\",VLOOKUP(D7,Final!$AF$4:$AI$35,4,FALSE))","v":""},{"$f":"IF(ISNA(VLOOKUP(D7,Inscrits!B:E,3,FALSE)),\"\",VLOOKUP(D7,Inscrits!B:E,3,FALSE))","v":""},{"$f":"IF(ISNA(VLOOKUP(D7,Inscrits!B:E,4,FALSE)),\"\",VLOOKUP(D7,Inscrits!B:E,4,FALSE))","v":""},{"$f":"IF(ISNA(VLOOKUP(D7,Inscrits!B:E,5,FALSE)),\"\",VLOOKUP(D7,Inscrits!B:E,5,FALSE))","v":""},{"$f":"IF(NB_JOUEURS_UP>5,IF(LEN(Division)=2,\"R\"&RIGHT(Division,1)-1&\"\",IF(LEN(Division)=3,IF(RIGHT(LEFT(Division,2),1)=\"2\",\"R1\",IF(Nb_R2=1,\"R2\",\"R\"&RIGHT(LEFT(Division,2),1)-1&\"\"&RIGHT(Division,1)&\"\")),IF(LEN(Division)=4,IF(RIGHT(LEFT(Division,2),1)=\"2\",\"R1\",\"R\"&RIGHT(LEFT(Division,2),1)-1&\"\"&RIGHT(LEFT(Division,3),1)&\"\"),\"?\"))),Division)","v":"R1"}]
[null,null,7,{"$f":"IF(Final!H19=\"A\",Final!F19,IF(Final!H17=\"A\",Final!F17,IF(Final!H17<Final!H19,Final!F17,Final!F19)))","v":""},null,{"$f":"IF(ISNA(IF(LEFT(Division,2)=\"R1\",VLOOKUP(E8,Points!$A$2:$D$36,2,FALSE),IF(LEFT(Division,2)=\"R2\",VLOOKUP(E8,Points!$A$2:$D$36,3,FALSE),IF(LEFT(Division,2)=\"R3\",VLOOKUP(E8,Points!$A$2:$D$36,4,FALSE),\"DIV ???\")))),0,IF(LEFT(Division,2)=\"R1\",VLOOKUP(E8,Points!$A$2:$D$36,2,FALSE),IF(LEFT(Division,2)=\"R2\",VLOOKUP(E8,Points!$A$2:$D$36,3,FALSE),IF(LEFT(Division,2)=\"R3\",VLOOKUP(E8,Points!$A$2:$D$36,4,FALSE),\"DIV ???\"))))","v":0},{"$f":"IF(ISERROR(VLOOKUP(D8,Final!$AF$4:$AI$35,4,FALSE)),\"\",VLOOKUP(D8,Final!$AF$4:$AI$35,4,FALSE))","v":""},{"$f":"IF(ISNA(VLOOKUP(D8,Inscrits!B:E,3,FALSE)),\"\",VLOOKUP(D8,Inscrits!B:E,3,FALSE))","v":""},{"$f":"IF(ISNA(VLOOKUP(D8,Inscrits!B:E,4,FALSE)),\"\",VLOOKUP(D8,Inscrits!B:E,4,FALSE))","v":""},{"$f":"IF(ISNA(VLOOKUP(D8,Inscrits!B:E,5,FALSE)),\"\",VLOOKUP(D8,Inscrits!B:E,5,FALSE))","v":""},{"$f":"IF(NB_JOUEURS_UP>6,IF(LEN(Division)=2,\"R\"&RIGHT(Division,1)-1&\"\",IF(LEN(Division)=3,IF(RIGHT(LEFT(Division,2),1)=\"2\",\"R1\",IF(Nb_R2=1,\"R2\",\"R\"&RIGHT(LEFT(Division,2),1)-1&\"\"&RIGHT(Division,1)&\"\")),IF(LEN(Division)=4,IF(RIGHT(LEFT(Division,2),1)=\"2\",\"R1\",\"R\"&RIGHT(LEFT(Division,2),1)-1&\"\"&RIGHT(LEFT(Division,3),1)&\"\"),\"?\"))),Division)","v":"R1"}]
[null,null,8,{"$f":"IF(Final!H25=\"A\",Final!F25,IF(Final!H23=\"A\",Final!F23,IF(Final!H23<Final!H25,Final!F23,Final!F25)))","v":""},null,{"$f":"IF(ISNA(IF(LEFT(Division,2)=\"R1\",VLOOKUP(E9,Points!$A$2:$D$36,2,FALSE),IF(LEFT(Division,2)=\"R2\",VLOOKUP(E9,Points!$A$2:$D$36,3,FALSE),IF(LEFT(Division,2)=\"R3\",VLOOKUP(E9,Points!$A$2:$D$36,4,FALSE),\"DIV ???\")))),0,IF(LEFT(Division,2)=\"R1\",VLOOKUP(E9,Points!$A$2:$D$36,2,FALSE),IF(LEFT(Division,2)=\"R2\",VLOOKUP(E9,Points!$A$2:$D$36,3,FALSE),IF(LEFT(Division,2)=\"R3\",VLOOKUP(E9,Points!$A$2:$D$36,4,FALSE),\"DIV ???\"))))","v":0},{"$f":"IF(ISERROR(VLOOKUP(D9,Final!$AF$4:$AI$35,4,FALSE)),\"\",VLOOKUP(D9,Final!$AF$4:$AI$35,4,FALSE))","v":""},{"$f":"IF(ISNA(VLOOKUP(D9,Inscrits!B:E,3,FALSE)),\"\",VLOOKUP(D9,Inscrits!B:E,3,FALSE))","v":""},{"$f":"IF(ISNA(VLOOKUP(D9,Inscrits!B:E,4,FALSE)),\"\",VLOOKUP(D9,Inscrits!B:E,4,FALSE))","v":""},{"$f":"IF(ISNA(VLOOKUP(D9,Inscrits!B:E,5,FALSE)),\"\",VLOOKUP(D9,Inscrits!B:E,5,FALSE))","v":""},{"$f":"IF(NB_JOUEURS_UP>7,IF(LEN(Division)=2,\"R\"&RIGHT(Division,1)-1&\"\",IF(LEN(Division)=3,IF(RIGHT(LEFT(Division,2),1)=\"2\",\"R1\",IF(Nb_R2=1,\"R2\",\"R\"&RIGHT(LEFT(Division,2),1)-1&\"\"&RIGHT(Division,1)&\"\")),IF(LEN(Division)=4,IF(RIGHT(LEFT(Division,2),1)=\"2\",\"R1\",\"R\"&RIGHT(LEFT(Division,2),1)-1&\"\"&RIGHT(LEFT(Division,3),1)&\"\"),\"?\"))),Division)","v":"R1"}]
[null,null,9,{"$f":"IF(Final!D5=\"A\",Final!B5,IF(Final!D4=\"A\",Final!B4,IF(Final!D4<Final!D5,Final!B4,Final!B5)))","v":""},null,{"$f":"IF(ISNA(IF(LEFT(Division,2)=\"R1\",VLOOKUP(E10,Points!$A$2:$D$36,2,FALSE),IF(LEFT(Division,2)=\"R2\",VLOOKUP(E10,Points!$A$2:$D$36,3,FALSE),IF(LEFT(Division,2)=\"R3\",VLOOKUP(E10,Points!$A$2:$D$36,4,FALSE),\"DIV ???\")))),0,IF(LEFT(Division,2)=\"R1\",VLOOKUP(E10,Points!$A$2:$D$36,2,FALSE),IF(LEFT(Division,2)=\"R2\",VLOOKUP(E10,Points!$A$2:$D$36,3,FALSE),IF(LEFT(Division,2)=\"R3\",VLOOKUP(E10,Points!$A$2:$D$36,4,FALSE),\"DIV ???\"))))","v":0},{"$f":"IF(ISERROR(VLOOKUP(D10,Final!$AF$4:$AI$35,4,FALSE)),\"\",VLOOKUP(D10,Final!$AF$4:$AI$35,4,FALSE))","v":""},{"$f":"IF(ISNA(VLOOKUP(D10,Inscrits!B:E,3,FALSE)),\"\",VLOOKUP(D10,Inscrits!B:E,3,FALSE))","v":""},{"$f":"IF(ISNA(VLOOKUP(D10,Inscrits!B:E,4,FALSE)),\"\",VLOOKUP(D10,Inscrits!B:E,4,FALSE))","v":""},{"$f":"IF(ISNA(VLOOKUP(D10,Inscrits!B:E,5,FALSE)),\"\",VLOOKUP(D10,Inscrits!B:E,5,FALSE))","v":""},{"$f":"Division","v":"R1"}]
[null,null,10,{"$f":"IF(Final!D8=\"A\",Final!B8,IF(Final!D7=\"A\",Final!B7,IF(Final!D7<Final!D8,Final!B7,Final!B8)))","v":""},null,{"$f":"IF(ISNA(IF(LEFT(Division,2)=\"R1\",VLOOKUP(E11,Points!$A$2:$D$36,2,FALSE),IF(LEFT(Division,2)=\"R2\",VLOOKUP(E11,Points!$A$2:$D$36,3,FALSE),IF(LEFT(Division,2)=\"R3\",VLOOKUP(E11,Points!$A$2:$D$36,4,FALSE),\"DIV ???\")))),0,IF(LEFT(Division,2)=\"R1\",VLOOKUP(E11,Points!$A$2:$D$36,2,FALSE),IF(LEFT(Division,2)=\"R2\",VLOOKUP(E11,Points!$A$2:$D$36,3,FALSE),IF(LEFT(Division,2)=\"R3\",VLOOKUP(E11,Points!$A$2:$D$36,4,FALSE),\"DIV ???\"))))","v":0},{"$f":"IF(ISERROR(VLOOKUP(D11,Final!$AF$4:$AI$35,4,FALSE)),\"\",VLOOKUP(D11,Final!$AF$4:$AI$35,4,FALSE))","v":""},{"$f":"IF(ISNA(VLOOKUP(D11,Inscrits!B:E,3,FALSE)),\"\",VLOOKUP(D11,Inscrits!B:E,3,FALSE))","v":""},{"$f":"IF(ISNA(VLOOKUP(D11,Inscrits!B:E,4,FALSE)),\"\",VLOOKUP(D11,Inscrits!B:E,4,FALSE))","v":""},{"$f":"IF(ISNA(VLOOKUP(D11,Inscrits!B:E,5,FALSE)),\"\",VLOOKUP(D11,Inscrits!B:E,5,FALSE))","v":""},{"$f":"Division","v":"R1"}]
[null,null,11,{"$f":"IF(Final!D11=\"A\",Final!B11,IF(Final!D10=\"A\",Final!B10,IF(Final!D10<Final!D11,Final!B10,Final!B11)))","v":""},null,{"$f":"IF(ISNA(IF(LEFT(Division,2)=\"R1\",VLOOKUP(E12,Points!$A$2:$D$36,2,FALSE),IF(LEFT(Division,2)=\"R2\",VLOOKUP(E12,Points!$A$2:$D$36,3,FALSE),IF(LEFT(Division,2)=\"R3\",VLOOKUP(E12,Points!$A$2:$D$36,4,FALSE),\"DIV ???\")))),0,IF(LEFT(Division,2)=\"R1\",VLOOKUP(E12,Points!$A$2:$D$36,2,FALSE),IF(LEFT(Division,2)=\"R2\",VLOOKUP(E12,Points!$A$2:$D$36,3,FALSE),IF(LEFT(Division,2)=\"R3\",VLOOKUP(E12,Points!$A$2:$D$36,4,FALSE),\"DIV ???\"))))","v":0},{"$f":"IF(ISERROR(VLOOKUP(D12,Final!$AF$4:$AI$35,4,FALSE)),\"\",VLOOKUP(D12,Final!$AF$4:$AI$35,4,FALSE))","v":""},{"$f":"IF(ISNA(VLOOKUP(D12,Inscrits!B:E,3,FALSE)),\"\",VLOOKUP(D12,Inscrits!B:E,3,FALSE))","v":""},{"$f":"IF(ISNA(VLOOKUP(D12,Inscrits!B:E,4,FALSE)),\"\",VLOOKUP(D12,Inscrits!B:E,4,FALSE))","v":""},{"$f":"IF(ISNA(VLOOKUP(D12,Inscrits!B:E,5,FALSE)),\"\",VLOOKUP(D12,Inscrits!B:E,5,FALSE))","v":""},"R1"]
[null,null,12,{"$f":"IF(Final!D14=\"A\",Final!B14,IF(Final!D13=\"A\",Final!B13,IF(Final!D13<Final!D14,Final!B13,Final!B14)))","v":""},null,{"$f":"IF(ISNA(IF(LEFT(Division,2)=\"R1\",VLOOKUP(E13,Points!$A$2:$D$36,2,FALSE),IF(LEFT(Division,2)=\"R2\",VLOOKUP(E13,Points!$A$2:$D$36,3,FALSE),IF(LEFT(Division,2)=\"R3\",VLOOKUP(E13,Points!$A$2:$D$36,4,FALSE),\"DIV ???\")))),0,IF(LEFT(Division,2)=\"R1\",VLOOKUP(E13,Points!$A$2:$D$36,2,FALSE),IF(LEFT(Division,2)=\"R2\",VLOOKUP(E13,Points!$A$2:$D$36,3,FALSE),IF(LEFT(Division,2)=\"R3\",VLOOKUP(E13,Points!$A$2:$D$36,4,FALSE),\"DIV ???\"))))","v":0},{"$f":"IF(ISERROR(VLOOKUP(D13,Final!$AF$4:$AI$35,4,FALSE)),\"\",VLOOKUP(D13,Final!$AF$4:$AI$35,4,FALSE))","v":""},{"$f":"IF(ISNA(VLOOKUP(D13,Inscrits!B:E,3,FALSE)),\"\",VLOOKUP(D13,Inscrits!B:E,3,FALSE))","v":""},{"$f":"IF(ISNA(VLOOKUP(D13,Inscrits!B:E,4,FALSE)),\"\",VLOOKUP(D13,Inscrits!B:E,4,FALSE))","v":""},{"$f":"IF(ISNA(VLOOKUP(D13,Inscrits!B:E,5,FALSE)),\"\",VLOOKUP(D13,Inscrits!B:E,5,FALSE))","v":""},"R1"]
[null,null,13,{"$f":"IF(Final!D17=\"A\",Final!B17,IF(Final!D16=\"A\",Final!B16,IF(Final!D16<Final!D17,Final!B16,Final!B17)))","v":""},null,{"$f":"IF(ISNA(IF(LEFT(Division,2)=\"R1\",VLOOKUP(E14,Points!$A$2:$D$36,2,FALSE),IF(LEFT(Division,2)=\"R2\",VLOOKUP(E14,Points!$A$2:$D$36,3,FALSE),IF(LEFT(Division,2)=\"R3\",VLOOKUP(E14,Points!$A$2:$D$36,4,FALSE),\"DIV ???\")))),0,IF(LEFT(Division,2)=\"R1\",VLOOKUP(E14,Points!$A$2:$D$36,2,FALSE),IF(LEFT(Division,2)=\"R2\",VLOOKUP(E14,Points!$A$2:$D$36,3,FALSE),IF(LEFT(Division,2)=\"R3\",VLOOKUP(E14,Points!$A$2:$D$36,4,FALSE),\"DIV ???\"))))","v":0},{"$f":"IF(ISERROR(VLOOKUP(D14,Final!$AF$4:$AI$35,4,FALSE)),\"\",VLOOKUP(D14,Final!$AF$4:$AI$35,4,FALSE))","v":""},{"$f":"IF(ISNA(VLOOKUP(D14,Inscrits!B:E,3,FALSE)),\"\",VLOOKUP(D14,Inscrits!B:E,3,FALSE))","v":""},{"$f":"IF(ISNA(VLOOKUP(D14,Inscrits!B:E,4,FALSE)),\"\",VLOOKUP(D14,Inscrits!B:E,4,FALSE))","v":""},{"$f":"IF(ISNA(VLOOKUP(D14,Inscrits!B:E,5,FALSE)),\"\",VLOOKUP(D14,Inscrits!B:E,5,FALSE))","v":""},"R1"]
[null,null,14,{"$f":"IF(Final!D20=\"A\",Final!B20,IF(Final!D19=\"A\",Final!B19,IF(Final!D19<Final!D20,Final!B19,Final!B20)))","v":""},null,{"$f":"IF(ISNA(IF(LEFT(Division,2)=\"R1\",VLOOKUP(E15,Points!$A$2:$D$36,2,FALSE),IF(LEFT(Division,2)=\"R2\",VLOOKUP(E15,Points!$A$2:$D$36,3,FALSE),IF(LEFT(Division,2)=\"R3\",VLOOKUP(E15,Points!$A$2:$D$36,4,FALSE),\"DIV ???\")))),0,IF(LEFT(Division,2)=\"R1\",VLOOKUP(E15,Points!$A$2:$D$36,2,FALSE),IF(LEFT(Division,2)=\"R2\",VLOOKUP(E15,Points!$A$2:$D$36,3,FALSE),IF(LEFT(Division,2)=\"R3\",VLOOKUP(E15,Points!$A$2:$D$36,4,FALSE),\"DIV ???\"))))","v":0},{"$f":"IF(ISERROR(VLOOKUP(D15,Final!$AF$4:$AI$35,4,FALSE)),\"\",VLOOKUP(D15,Final!$AF$4:$AI$35,4,FALSE))","v":""},{"$f":"IF(ISNA(VLOOKUP(D15,Inscrits!B:E,3,FALSE)),\"\",VLOOKUP(D15,Inscrits!B:E,3,FALSE))","v":""},{"$f":"IF(ISNA(VLOOKUP(D15,Inscrits!B:E,4,FALSE)),\"\",VLOOKUP(D15,Inscrits!B:E,4,FALSE))","v":""},{"$f":"IF(ISNA(VLOOKUP(D15,Inscrits!B:E,5,FALSE)),\"\",VLOOKUP(D15,Inscrits!B:E,5,FALSE))","v":""},"R1"]
[null,null,15,{"$f":"IF(Final!D23=\"A\",Final!B23,IF(Final!D22=\"A\",Final!B22,IF(Final!D22<Final!D23,Final!B22,Final!B23)))","v":""},null,{"$f":"IF(ISNA(IF(LEFT(Division,2)=\"R1\",VLOOKUP(E16,Points!$A$2:$D$36,2,FALSE),IF(LEFT(Division,2)=\"R2\",VLOOKUP(E16,Points!$A$2:$D$36,3,FALSE),IF(LEFT(Division,2)=\"R3\",VLOOKUP(E16,Points!$A$2:$D$36,4,FALSE),\"DIV ???\")))),0,IF(LEFT(Division,2)=\"R1\",VLOOKUP(E16,Points!$A$2:$D$36,2,FALSE),IF(LEFT(Division,2)=\"R2\",VLOOKUP(E16,Points!$A$2:$D$36,3,FALSE),IF(LEFT(Division,2)=\"R3\",VLOOKUP(E16,Points!$A$2:$D$36,4,FALSE),\"DIV ???\"))))","v":0},{"$f":"IF(ISERROR(VLOOKUP(D16,Final!$AF$4:$AI$35,4,FALSE)),\"\",VLOOKUP(D16,Final!$AF$4:$AI$35,4,FALSE))","v":""},{"$f":"IF(ISNA(VLOOKUP(D16,Inscrits!B:E,3,FALSE)),\"\",VLOOKUP(D16,Inscrits!B:E,3,FALSE))","v":""},{"$f":"IF(ISNA(VLOOKUP(D16,Inscrits!B:E,4,FALSE)),\"\",VLOOKUP(D16,Inscrits!B:E,4,FALSE))","v":""},{"$f":"IF(ISNA(VLOOKUP(D16,Inscrits!B:E,5,FALSE)),\"\",VLOOKUP(D16,Inscrits!B:E,5,FALSE))","v":""},"R1"]
[null,null,16,{"$f":"IF(Final!D26=\"A\",Final!B26,IF(Final!D25=\"A\",Final!B25,IF(Final!D25<Final!D26,Final!B25,Final!B26)))","v":""},null,{"$f":"IF(ISNA(IF(LEFT(Division,2)=\"R1\",VLOOKUP(E17,Points!$A$2:$D$36,2,FALSE),IF(LEFT(Division,2)=\"R2\",VLOOKUP(E17,Points!$A$2:$D$36,3,FALSE),IF(LEFT(Division,2)=\"R3\",VLOOKUP(E17,Points!$A$2:$D$36,4,FALSE),\"DIV ???\")))),0,IF(LEFT(Division,2)=\"R1\",VLOOKUP(E17,Points!$A$2:$D$36,2,FALSE),IF(LEFT(Division,2)=\"R2\",VLOOKUP(E17,Points!$A$2:$D$36,3,FALSE),IF(LEFT(Division,2)=\"R3\",VLOOKUP(E17,Points!$A$2:$D$36,4,FALSE),\"DIV ???\"))))","v":0},{"$f":"IF(ISERROR(VLOOKUP(D17,Final!$AF$4:$AI$35,4,FALSE)),\"\",VLOOKUP(D17,Final!$AF$4:$AI$35,4,FALSE))","v":""},{"$f":"IF(ISNA(VLOOKUP(D17,Inscrits!B:E,3,FALSE)),\"\",VLOOKUP(D17,Inscrits!B:E,3,FALSE))","v":""},{"$f":"IF(ISNA(VLOOKUP(D17,Inscrits!B:E,4,FALSE)),\"\",VLOOKUP(D17,Inscrits!B:E,4,FALSE))","v":""},{"$f":"IF(ISNA(VLOOKUP(D17,Inscrits!B:E,5,FALSE)),\"\",VLOOKUP(D17,Inscrits!B:E,5,FALSE))","v":""},"R1"]
[null,null,17,{"$f":"'1'!AR14","v":""},null,{"$f":"IF(ISNA(IF(LEFT(Division,2)=\"R1\",VLOOKUP(E18,Points!$A$2:$D$36,2,FALSE),IF(LEFT(Division,2)=\"R2\",VLOOKUP(E18,Points!$A$2:$D$36,3,FALSE),IF(LEFT(Division,2)=\"R3\",VLOOKUP(E18,Points!$A$2:$D$36,4,FALSE),\"DIV ???\")))),0,IF(LEFT(Division,2)=\"R1\",VLOOKUP(E18,Points!$A$2:$D$36,2,FALSE),IF(LEFT(Division,2)=\"R2\",VLOOKUP(E18,Points!$A$2:$D$36,3,FALSE),IF(LEFT(Division,2)=\"R3\",VLOOKUP(E18,Points!$A$2:$D$36,4,FALSE),\"DIV ???\"))))","v":0},{"$f":"IF(ISERROR(VLOOKUP(D18,Final!$AF$4:$AI$35,4,FALSE)),\"\",VLOOKUP(D18,Final!$AF$4:$AI$35,4,FALSE))","v":""},{"$f":"IF(ISNA(VLOOKUP(D18,Inscrits!B:E,3,FALSE)),\"\",VLOOKUP(D18,Inscrits!B:E,3,FALSE))","v":""},{"$f":"IF(ISNA(VLOOKUP(D18,Inscrits!B:E,4,FALSE)),\"\",VLOOKUP(D18,Inscrits!B:E,4,FALSE))","v":""},{"$f":"IF(ISNA(VLOOKUP(D18,Inscrits!B:E,5,FALSE)),\"\",VLOOKUP(D18,Inscrits!B:E,5,FALSE))","v":""},"R1"]
[null,null,18,{"$f":"'1'!AR15","v":""},null,{"$f":"IF(ISNA(IF(LEFT(Division,2)=\"R1\",VLOOKUP(E19,Points!$A$2:$D$36,2,FALSE),IF(LEFT(Division,2)=\"R2\",VLOOKUP(E19,Points!$A$2:$D$36,3,FALSE),IF(LEFT(Division,2)=\"R3\",VLOOKUP(E19,Points!$A$2:$D$36,4,FALSE),\"DIV ???\")))),0,IF(LEFT(Division,2)=\"R1\",VLOOKUP(E19,Points!$A$2:$D$36,2,FALSE),IF(LEFT(Division,2)=\"R2\",VLOOKUP(E19,Points!$A$2:$D$36,3,FALSE),IF(LEFT(Division,2)=\"R3\",VLOOKUP(E19,Points!$A$2:$D$36,4,FALSE),\"DIV ???\"))))","v":0},{"$f":"IF(ISERROR(VLOOKUP(D19,Final!$AF$4:$AI$35,4,FALSE)),\"\",VLOOKUP(D19,Final!$AF$4:$AI$35,4,FALSE))","v":""},{"$f":"IF(ISNA(VLOOKUP(D19,Inscrits!B:E,3,FALSE)),\"\",VLOOKUP(D19,Inscrits!B:E,3,FALSE))","v":""},{"$f":"IF(ISNA(VLOOKUP(D19,Inscrits!B:E,4,FALSE)),\"\",VLOOKUP(D19,Inscrits!B:E,4,FALSE))","v":""},{"$f":"IF(ISNA(VLOOKUP(D19,Inscrits!B:E,5,FALSE)),\"\",VLOOKUP(D19,Inscrits!B:E,5,FALSE))","v":""},"R1"]
[null,null,19,{"$f":"'2'!AR14","v":""},null,{"$f":"IF(ISNA(IF(LEFT(Division,2)=\"R1\",VLOOKUP(E20,Points!$A$2:$D$36,2,FALSE),IF(LEFT(Division,2)=\"R2\",VLOOKUP(E20,Points!$A$2:$D$36,3,FALSE),IF(LEFT(Division,2)=\"R3\",VLOOKUP(E20,Points!$A$2:$D$36,4,FALSE),\"DIV ???\")))),0,IF(LEFT(Division,2)=\"R1\",VLOOKUP(E20,Points!$A$2:$D$36,2,FALSE),IF(LEFT(Division,2)=\"R2\",VLOOKUP(E20,Points!$A$2:$D$36,3,FALSE),IF(LEFT(Division,2)=\"R3\",VLOOKUP(E20,Points!$A$2:$D$36,4,FALSE),\"DIV ???\"))))","v":0},{"$f":"IF(ISERROR(VLOOKUP(D20,Final!$AF$4:$AI$35,4,FALSE)),\"\",VLOOKUP(D20,Final!$AF$4:$AI$35,4,FALSE))","v":""},{"$f":"IF(ISNA(VLOOKUP(D20,Inscrits!B:E,3,FALSE)),\"\",VLOOKUP(D20,Inscrits!B:E,3,FALSE))","v":""},{"$f":"IF(ISNA(VLOOKUP(D20,Inscrits!B:E,4,FALSE)),\"\",VLOOKUP(D20,Inscrits!B:E,4,FALSE))","v":""},{"$f":"IF(ISNA(VLOOKUP(D20,Inscrits!B:E,5,FALSE)),\"\",VLOOKUP(D20,Inscrits!B:E,5,FALSE))","v":""},"R1"]
[null,null,20,{"$f":"'2'!AR15","v":""},null,{"$f":"IF(ISNA(IF(LEFT(Division,2)=\"R1\",VLOOKUP(E21,Points!$A$2:$D$36,2,FALSE),IF(LEFT(Division,2)=\"R2\",VLOOKUP(E21,Points!$A$2:$D$36,3,FALSE),IF(LEFT(Division,2)=\"R3\",VLOOKUP(E21,Points!$A$2:$D$36,4,FALSE),\"DIV ???\")))),0,IF(LEFT(Division,2)=\"R1\",VLOOKUP(E21,Points!$A$2:$D$36,2,FALSE),IF(LEFT(Division,2)=\"R2\",VLOOKUP(E21,Points!$A$2:$D$36,3,FALSE),IF(LEFT(Division,2)=\"R3\",VLOOKUP(E21,Points!$A$2:$D$36,4,FALSE),\"DIV ???\"))))","v":0},{"$f":"IF(ISERROR(VLOOKUP(D21,Final!$AF$4:$AI$35,4,FALSE)),\"\",VLOOKUP(D21,Final!$AF$4:$AI$35,4,FALSE))","v":""},{"$f":"IF(ISNA(VLOOKUP(D21,Inscrits!B:E,3,FALSE)),\"\",VLOOKUP(D21,Inscrits!B:E,3,FALSE))","v":""},{"$f":"IF(ISNA(VLOOKUP(D21,Inscrits!B:E,4,FALSE)),\"\",VLOOKUP(D21,Inscrits!B:E,4,FALSE))","v":""},{"$f":"IF(ISNA(VLOOKUP(D21,Inscrits!B:E,5,FALSE)),\"\",VLOOKUP(D21,Inscrits!B:E,5,FALSE))","v":""},"R1"]
[null,null,21,{"$f":"'3'!AR14","v":""},null,{"$f":"IF(ISNA(IF(LEFT(Division,2)=\"R1\",VLOOKUP(E22,Points!$A$2:$D$36,2,FALSE),IF(LEFT(Division,2)=\"R2\",VLOOKUP(E22,Points!$A$2:$D$36,3,FALSE),IF(LEFT(Division,2)=\"R3\",VLOOKUP(E22,Points!$A$2:$D$36,4,FALSE),\"DIV ???\")))),0,IF(LEFT(Division,2)=\"R1\",VLOOKUP(E22,Points!$A$2:$D$36,2,FALSE),IF(LEFT(Division,2)=\"R2\",VLOOKUP(E22,Points!$A$2:$D$36,3,FALSE),IF(LEFT(Division,2)=\"R3\",VLOOKUP(E22,Points!$A$2:$D$36,4,FALSE),\"DIV ???\"))))","v":0},{"$f":"IF(ISERROR(VLOOKUP(D22,Final!$AF$4:$AI$35,4,FALSE)),\"\",VLOOKUP(D22,Final!$AF$4:$AI$35,4,FALSE))","v":""},{"$f":"IF(ISNA(VLOOKUP(D22,Inscrits!B:E,3,FALSE)),\"\",VLOOKUP(D22,Inscrits!B:E,3,FALSE))","v":""},{"$f":"IF(ISNA(VLOOKUP(D22,Inscrits!B:E,4,FALSE)),\"\",VLOOKUP(D22,Inscrits!B:E,4,FALSE))","v":""},{"$f":"IF(ISNA(VLOOKUP(D22,Inscrits!B:E,5,FALSE)),\"\",VLOOKUP(D22,Inscrits!B:E,5,FALSE))","v":""},"R1"]
[null,null,22,{"$f":"'3'!AR15","v":""},null,{"$f":"IF(ISNA(IF(LEFT(Division,2)=\"R1\",VLOOKUP(E23,Points!$A$2:$D$36,2,FALSE),IF(LEFT(Division,2)=\"R2\",VLOOKUP(E23,Points!$A$2:$D$36,3,FALSE),IF(LEFT(Division,2)=\"R3\",VLOOKUP(E23,Points!$A$2:$D$36,4,FALSE),\"DIV ???\")))),0,IF(LEFT(Division,2)=\"R1\",VLOOKUP(E23,Points!$A$2:$D$36,2,FALSE),IF(LEFT(Division,2)=\"R2\",VLOOKUP(E23,Points!$A$2:$D$36,3,FALSE),IF(LEFT(Division,2)=\"R3\",VLOOKUP(E23,Points!$A$2:$D$36,4,FALSE),\"DIV ???\"))))","v":0},{"$f":"IF(ISERROR(VLOOKUP(D23,Final!$AF$4:$AI$35,4,FALSE)),\"\",VLOOKUP(D23,Final!$AF$4:$AI$35,4,FALSE))","v":""},{"$f":"IF(ISNA(VLOOKUP(D23,Inscrits!B:E,3,FALSE)),\"\",VLOOKUP(D23,Inscrits!B:E,3,FALSE))","v":""},{"$f":"IF(ISNA(VLOOKUP(D23,Inscrits!B:E,4,FALSE)),\"\",VLOOKUP(D23,Inscrits!B:E,4,FALSE))","v":""},{"$f":"IF(ISNA(VLOOKUP(D23,Inscrits!B:E,5,FALSE)),\"\",VLOOKUP(D23,Inscrits!B:E,5,FALSE))","v":""},{"$f":"Division","v":"R1"}]
[null,null,23,{"$f":"'4'!AR14","v":""},null,{"$f":"IF(ISNA(IF(LEFT(Division,2)=\"R1\",VLOOKUP(E24,Points!$A$2:$D$36,2,FALSE),IF(LEFT(Division,2)=\"R2\",VLOOKUP(E24,Points!$A$2:$D$36,3,FALSE),IF(LEFT(Division,2)=\"R3\",VLOOKUP(E24,Points!$A$2:$D$36,4,FALSE),\"DIV ???\")))),0,IF(LEFT(Division,2)=\"R1\",VLOOKUP(E24,Points!$A$2:$D$36,2,FALSE),IF(LEFT(Division,2)=\"R2\",VLOOKUP(E24,Points!$A$2:$D$36,3,FALSE),IF(LEFT(Division,2)=\"R3\",VLOOKUP(E24,Points!$A$2:$D$36,4,FALSE),\"DIV ???\"))))","v":0},{"$f":"IF(ISERROR(VLOOKUP(D24,Final!$AF$4:$AI$35,4,FALSE)),\"\",VLOOKUP(D24,Final!$AF$4:$AI$35,4,FALSE))","v":""},{"$f":"IF(ISNA(VLOOKUP(D24,Inscrits!B:E,3,FALSE)),\"\",VLOOKUP(D24,Inscrits!B:E,3,FALSE))","v":""},{"$f":"IF(ISNA(VLOOKUP(D24,Inscrits!B:E,4,FALSE)),\"\",VLOOKUP(D24,Inscrits!B:E,4,FALSE))","v":""},{"$f":"IF(ISNA(VLOOKUP(D24,Inscrits!B:E,5,FALSE)),\"\",VLOOKUP(D24,Inscrits!B:E,5,FALSE))","v":""},"R1"]
[null,null,24,{"$f":"'4'!AR15","v":""},null,{"$f":"IF(ISNA(IF(LEFT(Division,2)=\"R1\",VLOOKUP(E25,Points!$A$2:$D$36,2,FALSE),IF(LEFT(Division,2)=\"R2\",VLOOKUP(E25,Points!$A$2:$D$36,3,FALSE),IF(LEFT(Division,2)=\"R3\",VLOOKUP(E25,Points!$A$2:$D$36,4,FALSE),\"DIV ???\")))),0,IF(LEFT(Division,2)=\"R1\",VLOOKUP(E25,Points!$A$2:$D$36,2,FALSE),IF(LEFT(Division,2)=\"R2\",VLOOKUP(E25,Points!$A$2:$D$36,3,FALSE),IF(LEFT(Division,2)=\"R3\",VLOOKUP(E25,Points!$A$2:$D$36,4,FALSE),\"DIV ???\"))))","v":0},{"$f":"IF(ISERROR(VLOOKUP(D25,Final!$AF$4:$AI$35,4,FALSE)),\"\",VLOOKUP(D25,Final!$AF$4:$AI$35,4,FALSE))","v":""},{"$f":"IF(ISNA(VLOOKUP(D25,Inscrits!B:E,3,FALSE)),\"\",VLOOKUP(D25,Inscrits!B:E,3,FALSE))","v":""},{"$f":"IF(ISNA(VLOOKUP(D25,Inscrits!B:E,4,FALSE)),\"\",VLOOKUP(D25,Inscrits!B:E,4,FALSE))","v":""},{"$f":"IF(ISNA(VLOOKUP(D25,Inscrits!B:E,5,FALSE)),\"\",VLOOKUP(D25,Inscrits!B:E,5,FALSE))","v":""},"R1"]
[null,null,25,{"$f":"'1'!AR16","v":""},null,{"$f":"IF(ISNA(IF(LEFT(Division,2)=\"R1\",VLOOKUP(E26,Points!$A$2:$D$36,2,FALSE),IF(LEFT(Division,2)=\"R2\",VLOOKUP(E26,Points!$A$2:$D$36,3,FALSE),IF(LEFT(Division,2)=\"R3\",VLOOKUP(E26,Points!$A$2:$D$36,4,FALSE),\"DIV ???\")))),0,IF(LEFT(Division,2)=\"R1\",VLOOKUP(E26,Points!$A$2:$D$36,2,FALSE),IF(LEFT(Division,2)=\"R2\",VLOOKUP(E26,Points!$A$2:$D$36,3,FALSE),IF(LEFT(Division,2)=\"R3\",VLOOKUP(E26,Points!$A$2:$D$36,4,FALSE),\"DIV ???\"))))","v":0},{"$f":"IF(ISERROR(VLOOKUP(D26,Final!$AF$4:$AI$35,4,FALSE)),\"\",VLOOKUP(D26,Final!$AF$4:$AI$35,4,FALSE))","v":""},{"$f":"IF(ISNA(VLOOKUP(D26,Inscrits!B:E,3,FALSE)),\"\",VLOOKUP(D26,Inscrits!B:E,3,FALSE))","v":""},{"$f":"IF(ISNA(VLOOKUP(D26,Inscrits!B:E,4,FALSE)),\"\",VLOOKUP(D26,Inscrits!B:E,4,FALSE))","v":""},{"$f":"IF(ISNA(VLOOKUP(D26,Inscrits!B:E,5,FALSE)),\"\",VLOOKUP(D26,Inscrits!B:E,5,FALSE))","v":""},{"$f":"IF(NB_JOUEURS_DOWN>7,\"Relégué(e)\",Division)","v":"Relégué(e)"}]
[null,null,26,{"$f":"'1'!AR17","v":""},null,{"$f":"IF(ISNA(IF(LEFT(Division,2)=\"R1\",VLOOKUP(E27,Points!$A$2:$D$36,2,FALSE),IF(LEFT(Division,2)=\"R2\",VLOOKUP(E27,Points!$A$2:$D$36,3,FALSE),IF(LEFT(Division,2)=\"R3\",VLOOKUP(E27,Points!$A$2:$D$36,4,FALSE),\"DIV ???\")))),0,IF(LEFT(Division,2)=\"R1\",VLOOKUP(E27,Points!$A$2:$D$36,2,FALSE),IF(LEFT(Division,2)=\"R2\",VLOOKUP(E27,Points!$A$2:$D$36,3,FALSE),IF(LEFT(Division,2)=\"R3\",VLOOKUP(E27,Points!$A$2:$D$36,4,FALSE),\"DIV ???\"))))","v":0},{"$f":"IF(ISERROR(VLOOKUP(D27,Final!$AF$4:$AI$35,4,FALSE)),\"\",VLOOKUP(D27,Final!$AF$4:$AI$35,4,FALSE))","v":""},{"$f":"IF(ISNA(VLOOKUP(D27,Inscrits!B:E,3,FALSE)),\"\",VLOOKUP(D27,Inscrits!B:E,3,FALSE))","v":""},{"$f":"IF(ISNA(VLOOKUP(D27,Inscrits!B:E,4,FALSE)),\"\",VLOOKUP(D27,Inscrits!B:E,4,FALSE))","v":""},{"$f":"IF(ISNA(VLOOKUP(D27,Inscrits!B:E,5,FALSE)),\"\",VLOOKUP(D27,Inscrits!B:E,5,FALSE))","v":""},{"$f":"IF(NB_JOUEURS_DOWN>6,\"Relégué(e)\",Division)","v":"Relégué(e)"}]
[null,null,27,{"$f":"'2'!AR16","v":""},null,{"$f":"IF(ISNA(IF(LEFT(Division,2)=\"R1\",VLOOKUP(E28,Points!$A$2:$D$36,2,FALSE),IF(LEFT(Division,2)=\"R2\",VLOOKUP(E28,Points!$A$2:$D$36,3,FALSE),IF(LEFT(Division,2)=\"R3\",VLOOKUP(E28,Points!$A$2:$D$36,4,FALSE),\"DIV ???\")))),0,IF(LEFT(Division,2)=\"R1\",VLOOKUP(E28,Points!$A$2:$D$36,2,FALSE),IF(LEFT(Division,2)=\"R2\",VLOOKUP(E28,Points!$A$2:$D$36,3,FALSE),IF(LEFT(Division,2)=\"R3\",VLOOKUP(E28,Points!$A$2:$D$36,4,FALSE),\"DIV ???\"))))","v":0},{"$f":"IF(ISERROR(VLOOKUP(D28,Final!$AF$4:$AI$35,4,FALSE)),\"\",VLOOKUP(D28,Final!$AF$4:$AI$35,4,FALSE))","v":""},{"$f":"IF(ISNA(VLOOKUP(D28,Inscrits!B:E,3,FALSE)),\"\",VLOOKUP(D28,Inscrits!B:E,3,FALSE))","v":""},{"$f":"IF(ISNA(VLOOKUP(D28,Inscrits!B:E,4,FALSE)),\"\",VLOOKUP(D28,Inscrits!B:E,4,FALSE))","v":""},{"$f":"IF(ISNA(VLOOKUP(D28,Inscrits!B:E,5,FALSE)),\"\",VLOOKUP(D28,Inscrits!B:E,5,FALSE))","v":""},{"$f":"IF(NB_JOUEURS_DOWN>5,\"Relégué(e)\",Division)","v":"Relégué(e)"}]
[null,null,28,{"$f":"'2'!AR17","v":""},null,{"$f":"IF(ISNA(IF(LEFT(Division,2)=\"R1\",VLOOKUP(E29,Points!$A$2:$D$36,2,FALSE),IF(LEFT(Division,2)=\"R2\",VLOOKUP(E29,Points!$A$2:$D$36,3,FALSE),IF(LEFT(Division,2)=\"R3\",VLOOKUP(E29,Points!$A$2:$D$36,4,FALSE),\"DIV ???\")))),0,IF(LEFT(Division,2)=\"R1\",VLOOKUP(E29,Points!$A$2:$D$36,2,FALSE),IF(LEFT(Division,2)=\"R2\",VLOOKUP(E29,Points!$A$2:$D$36,3,FALSE),IF(LEFT(Division,2)=\"R3\",VLOOKUP(E29,Points!$A$2:$D$36,4,FALSE),\"DIV ???\"))))","v":0},{"$f":"IF(ISERROR(VLOOKUP(D29,Final!$AF$4:$AI$35,4,FALSE)),\"\",VLOOKUP(D29,Final!$AF$4:$AI$35,4,FALSE))","v":""},{"$f":"IF(ISNA(VLOOKUP(D29,Inscrits!B:E,3,FALSE)),\"\",VLOOKUP(D29,Inscrits!B:E,3,FALSE))","v":""},{"$f":"IF(ISNA(VLOOKUP(D29,Inscrits!B:E,4,FALSE)),\"\",VLOOKUP(D29,Inscrits!B:E,4,FALSE))","v":""},{"$f":"IF(ISNA(VLOOKUP(D29,Inscrits!B:E,5,FALSE)),\"\",VLOOKUP(D29,Inscrits!B:E,5,FALSE))","v":""},{"$f":"IF(NB_JOUEURS_DOWN>4,\"Relégué(e)\",Division)","v":"Relégué(e)"}]
[null,null,29,{"$f":"'3'!AR16","v":""},null,{"$f":"IF(ISNA(IF(LEFT(Division,2)=\"R1\",VLOOKUP(E30,Points!$A$2:$D$36,2,FALSE),IF(LEFT(Division,2)=\"R2\",VLOOKUP(E30,Points!$A$2:$D$36,3,FALSE),IF(LEFT(Division,2)=\"R3\",VLOOKUP(E30,Points!$A$2:$D$36,4,FALSE),\"DIV ???\")))),0,IF(LEFT(Division,2)=\"R1\",VLOOKUP(E30,Points!$A$2:$D$36,2,FALSE),IF(LEFT(Division,2)=\"R2\",VLOOKUP(E30,Points!$A$2:$D$36,3,FALSE),IF(LEFT(Division,2)=\"R3\",VLOOKUP(E30,Points!$A$2:$D$36,4,FALSE),\"DIV ???\"))))","v":0},{"$f":"IF(ISERROR(VLOOKUP(D30,Final!$AF$4:$AI$35,4,FALSE)),\"\",VLOOKUP(D30,Final!$AF$4:$AI$35,4,FALSE))","v":""},{"$f":"IF(ISNA(VLOOKUP(D30,Inscrits!B:E,3,FALSE)),\"\",VLOOKUP(D30,Inscrits!B:E,3,FALSE))","v":""},{"$f":"IF(ISNA(VLOOKUP(D30,Inscrits!B:E,4,FALSE)),\"\",VLOOKUP(D30,Inscrits!B:E,4,FALSE))","v":""},{"$f":"IF(ISNA(VLOOKUP(D30,Inscrits!B:E,5,FALSE)),\"\",VLOOKUP(D30,Inscrits!B:E,5,FALSE))","v":""},{"$f":"IF(NB_JOUEURS_DOWN>3,\"Relégué(e)\",Division)","v":"Relégué(e)"}]
[null,null,30,{"$f":"'3'!AR17","v":""},null,{"$f":"IF(ISNA(IF(LEFT(Division,2)=\"R1\",VLOOKUP(E31,Points!$A$2:$D$36,2,FALSE),IF(LEFT(Division,2)=\"R2\",VLOOKUP(E31,Points!$A$2:$D$36,3,FALSE),IF(LEFT(Division,2)=\"R3\",VLOOKUP(E31,Points!$A$2:$D$36,4,FALSE),\"DIV ???\")))),0,IF(LEFT(Division,2)=\"R1\",VLOOKUP(E31,Points!$A$2:$D$36,2,FALSE),IF(LEFT(Division,2)=\"R2\",VLOOKUP(E31,Points!$A$2:$D$36,3,FALSE),IF(LEFT(Division,2)=\"R3\",VLOOKUP(E31,Points!$A$2:$D$36,4,FALSE),\"DIV ???\"))))","v":0},{"$f":"IF(ISERROR(VLOOKUP(D31,Final!$AF$4:$AI$35,4,FALSE)),\"\",VLOOKUP(D31,Final!$AF$4:$AI$35,4,FALSE))","v":""},{"$f":"IF(ISNA(VLOOKUP(D31,Inscrits!B:E,3,FALSE)),\"\",VLOOKUP(D31,Inscrits!B:E,3,FALSE))","v":""},{"$f":"IF(ISNA(VLOOKUP(D31,Inscrits!B:E,4,FALSE)),\"\",VLOOKUP(D31,Inscrits!B:E,4,FALSE))","v":""},{"$f":"IF(ISNA(VLOOKUP(D31,Inscrits!B:E,5,FALSE)),\"\",VLOOKUP(D31,Inscrits!B:E,5,FALSE))","v":""},{"$f":"IF(NB_JOUEURS_DOWN>2,\"Relégué(e)\",Division)","v":"Relégué(e)"}]
[null,null,31,{"$f":"'4'!AR16","v":""},null,{"$f":"IF(ISNA(IF(LEFT(Division,2)=\"R1\",VLOOKUP(E32,Points!$A$2:$D$36,2,FALSE),IF(LEFT(Division,2)=\"R2\",VLOOKUP(E32,Points!$A$2:$D$36,3,FALSE),IF(LEFT(Division,2)=\"R3\",VLOOKUP(E32,Points!$A$2:$D$36,4,FALSE),\"DIV ???\")))),0,IF(LEFT(Division,2)=\"R1\",VLOOKUP(E32,Points!$A$2:$D$36,2,FALSE),IF(LEFT(Division,2)=\"R2\",VLOOKUP(E32,Points!$A$2:$D$36,3,FALSE),IF(LEFT(Division,2)=\"R3\",VLOOKUP(E32,Points!$A$2:$D$36,4,FALSE),\"DIV ???\"))))","v":0},{"$f":"IF(ISERROR(VLOOKUP(D32,Final!$AF$4:$AI$35,4,FALSE)),\"\",VLOOKUP(D32,Final!$AF$4:$AI$35,4,FALSE))","v":""},{"$f":"IF(ISNA(VLOOKUP(D32,Inscrits!B:E,3,FALSE)),\"\",VLOOKUP(D32,Inscrits!B:E,3,FALSE))","v":""},{"$f":"IF(ISNA(VLOOKUP(D32,Inscrits!B:E,4,FALSE)),\"\",VLOOKUP(D32,Inscrits!B:E,4,FALSE))","v":""},{"$f":"IF(ISNA(VLOOKUP(D32,Inscrits!B:E,5,FALSE)),\"\",VLOOKUP(D32,Inscrits!B:E,5,FALSE))","v":""},{"$f":"IF(NB_JOUEURS_DOWN>1,\"Relégué(e)\",Division)","v":"Relégué(e)"}]
[null,null,32,{"$f":"'4'!AR17","v":""},null,{"$f":"IF(ISNA(IF(LEFT(Division,2)=\"R1\",VLOOKUP(E33,Points!$A$2:$D$36,2,FALSE),IF(LEFT(Division,2)=\"R2\",VLOOKUP(E33,Points!$A$2:$D$36,3,FALSE),IF(LEFT(Division,2)=\"R3\",VLOOKUP(E33,Points!$A$2:$D$36,4,FALSE),\"DIV ???\")))),0,IF(LEFT(Division,2)=\"R1\",VLOOKUP(E33,Points!$A$2:$D$36,2,FALSE),IF(LEFT(Division,2)=\"R2\",VLOOKUP(E33,Points!$A$2:$D$36,3,FALSE),IF(LEFT(Division,2)=\"R3\",VLOOKUP(E33,Points!$A$2:$D$36,4,FALSE),\"DIV ???\"))))","v":0},{"$f":"IF(ISERROR(VLOOKUP(D33,Final!$AF$4:$AI$35,4,FALSE)),\"\",VLOOKUP(D33,Final!$AF$4:$AI$35,4,FALSE))","v":""},{"$f":"IF(ISNA(VLOOKUP(D33,Inscrits!B:E,3,FALSE)),\"\",VLOOKUP(D33,Inscrits!B:E,3,FALSE))","v":""},{"$f":"IF(ISNA(VLOOKUP(D33,Inscrits!B:E,4,FALSE)),\"\",VLOOKUP(D33,Inscrits!B:E,4,FALSE))","v":""},{"$f":"IF(ISNA(VLOOKUP(D33,Inscrits!B:E,5,FALSE)),\"\",VLOOKUP(D33,Inscrits!B:E,5,FALSE))","v":""},{"$f":"IF(NB_JOUEURS_DOWN>0,\"Relégué(e)\",Division)","v":"Relégué(e)"}]

{"sheet":"Feuilles de match","index":9,"n_rows":272,"n_cols":187,"rows_kept":272,"cut":false,"hidden":false,"merged":[[0,1,6,25],[0,28,6,52],[0,55,6,79],[0,82,6,106],[0,109,6,133],[0,136,6,160],[10,3,10,23],[10,30,10,50],[10,57,10,77],[10,84,10,104],[10,111,10,131],[10,138,10,158],[8,109,8,114],[8,116,8,126],[8,128,8,133],[8,136,8,141],[8,143,8,153],[8,155,8,160],[8,55,8,60],[8,62,8,72],[8,74,8,79],[8,82,8,87],[8,89,8,99],[8,101,8,106],[8,1,8,6],[8,8,8,18],[8,20,8,25],[8,28,8,33],[8,35,8,45],[8,47,8,52],[12,124,13,133],[12,136,13,145],[12,147,13,149],[12,151,13,160],[23,1,23,7],[23,19,23,25],[23,28,23,34],[23,46,23,52],[23,55,23,61],[23,73,23,79],[12,70,13,79],[12,82,13,91],[12,93,13,95],[12,97,13,106],[12,109,13,118],[12,120,13,122],[12,1,13,10],[12,12,13,14],[12,16,13,25],[12,28,13,37],[12,39,13,41],[12,43,13,52],[12,55,13,64],[12,66,13,68],[15,28,15,32],[17,28,17,32],[19,28,19,32],[21,28,21,32],[15,1,15,5],[17,1,17,5],[19,1,19,5],[21,1,21,5],[27,1,27,7],[28,9,33,17],[28,63,33,71],[24,7,26,19],[24,34,26,46],[24,61,26,73],[24,88,26,100],[24,115,26,127],[24,142,26,154],[23,82,23,88],[23,100,23,106],[23,109,23,115],[23,127,23,133],[23,136,23,142],[23,154,23,160],[27,55,27,61],[27,73,27,79],[27,28,27,34],[27,46,27,52],[27,19,27,25],[27,154,27,160],[28,144,33,152],[96,9,101,17],[96,36,101,44],[96,63,101,71],[96,90,101,98],[96,117,101,125],[96,144,101,152],[80,109,81,118],[80,120,81,122],[80,124,81,133],[80,136,81,145],[80,82,81,91],[80,93,81,95],[80,97,81,106],[68,28,74,52],[68,55,74,79],[68,1,74,25],[58,142,60,154],[61,1,61,7],[61,19,61,25],[61,28,61,34],[61,127,61,133],[61,136,61,142],[61,154,61,160],[62,9,67,17],[62,36,67,44],[62,63,67,71],[62,90,67,98],[62,117,67,125],[62,144,67,152],[61,46,61,52],[61,55,61,61],[61,73,61,79],[182,82,183,91],[159,82,159,88],[159,100,159,106],[159,109,159,115],[159,127,159,133],[136,136,142,160],[130,9,135,17],[130,36,135,44],[130,63,135,71],[130,90,135,98],[130,117,135,125],[130,144,135,152],[119,1,119,5],[119,28,119,32],[119,55,119,59],[119,82,119,86],[102,28,108,52],[102,55,108,79],[102,1,108,25],[102,82,108,106],[102,109,108,133],[102,136,108,160],[110,1,110,6],[110,8,110,18],[110,20,110,25],[110,28,110,33],[110,35,110,45],[110,47,110,52],[110,55,110,60],[112,138,112,158],[114,1,115,10],[114,12,115,14],[265,127,265,133],[238,28,244,52],[238,1,244,25],[238,55,244,79],[227,1,227,7],[227,19,227,25],[227,28,227,34],[227,46,227,52],[216,55,217,64],[216,66,217,68],[216,70,217,79],[214,3,214,23],[214,30,214,50],[214,57,214,77],[204,1,210,25],[204,28,210,52],[204,55,210,79],[204,82,210,106],[246,109,246,114],[246,116,246,126],[246,128,246,133],[246,55,246,60],[246,62,246,72],[246,74,246,79],[246,82,246,87],[246,89,246,99],[246,101,246,106],[238,82,244,106],[238,109,244,133],[246,1,246,6],[246,8,246,18],[34,1,40,25],[34,28,40,52],[34,55,40,79],[34,82,40,106],[34,109,40,133],[34,136,40,160],[33,0,33,7],[33,27,33,34],[28,117,33,125],[15,136,15,140],[17,136,17,140],[19,136,19,140],[21,136,21,140],[27,136,27,142],[15,109,15,113],[17,109,17,113],[19,109,19,113],[21,109,21,113],[27,109,27,115],[27,127,27,133],[15,82,15,86],[17,82,17,86],[19,82,19,86],[21,82,21,86],[27,82,27,88],[27,100,27,106],[15,55,15,59],[17,55,17,59],[19,55,19,59],[21,55,21,59],[28,36,33,44],[28,90,33,98],[42,143,42,153],[42,155,42,160],[44,3,44,23],[44,30,44,50],[44,57,44,77],[44,84,44,104],[44,111,44,131],[44,138,44,158],[42,89,42,99],[42,101,42,106],[42,109,42,114],[42,116,42,126],[42,128,42,133],[42,136,42,141],[42,35,42,45],[42,47,42,52],[42,55,42,60],[42,62,42,72],[42,74,42,79],[42,82,42,87],[42,1,42,6],[42,8,42,18],[42,20,42,25],[42,28,42,33],[46,124,47,133],[46,136,47,145],[46,147,47,149],[46,151,47,160],[49,1,49,5],[49,28,49,32],[49,55,49,59],[49,82,49,86],[49,109,49,113],[49,136,49,140],[46,55,47,64],[46,66,47,68],[46,70,47,79],[46,82,47,91],[46,93,47,95],[46,97,47,106],[46,1,47,10],[46,12,47,14],[46,16,47,25],[46,28,47,37],[46,39,47,41],[46,43,47,52],[46,109,47,118],[46,120,47,122],[55,1,55,5],[55,28,55,32],[55,55,55,59],[55,82,55,86],[55,109,55,113],[55,136,55,140],[53,1,53,5],[53,28,53,32],[53,55,53,59],[53,82,53,86],[53,109,53,113],[53,136,53,140],[51,1,51,5],[51,28,51,32],[51,55,51,59],[51,82,51,86],[51,109,51,113],[51,136,51,140],[68,82,74,106],[68,109,74,133],[68,136,74,160],[76,1,76,6],[76,8,76,18],[76,20,76,25],[76,28,76,33],[76,35,76,45],[76,47,76,52],[76,55,76,60],[61,82,61,88],[61,100,61,106],[61,109,61,115],[57,100,57,106],[57,109,57,115],[57,127,57,133],[57,136,57,142],[57,154,57,160],[58,7,60,19],[58,34,60,46],[58,61,60,73],[58,88,60,100],[58,115,60,127],[57,19,57,25],[57,28,57,34],[57,46,57,52],[57,55,57,61],[57,73,57,79],[57,82,57,88],[57,1,57,7],[78,138,78,158],[80,1,81,10],[80,12,81,14],[80,16,81,25],[80,28,81,37],[80,39,81,41],[80,43,81,52],[80,55,81,64],[80,66,81,68],[80,70,81,79],[76,116,76,126],[76,128,76,133],[76,136,76,141],[76,143,76,153],[76,155,76,160],[78,3,78,23],[78,30,78,50],[78,57,78,77],[78,84,78,104],[78,111,78,131],[76,62,76,72],[76,74,76,79],[76,82,76,87],[76,89,76,99],[76,101,76,106],[76,109,76,114],[87,1,87,5],[87,28,87,32],[87,55,87,59],[87,82,87,86],[87,109,87,113],[87,136,87,140],[85,1,85,5],[85,28,85,32],[85,55,85,59],[85,82,85,86],[85,109,85,113],[85,136,85,140],[80,147,81,149],[80,151,81,160],[83,1,83,5],[83,28,83,32],[83,55,83,59],[83,82,83,86],[83,109,83,113],[83,136,83,140],[92,142,94,154],[91,82,91,88],[91,100,91,106],[91,109,91,115],[91,127,91,133],[91,136,91,142],[91,154,91,160],[91,1,91,7],[91,19,91,25],[91,28,91,34],[91,46,91,52],[91,55,91,61],[91,73,91,79],[95,154,95,160],[89,1,89,5],[89,28,89,32],[89,55,89,59],[89,82,89,86],[89,109,89,113],[89,136,89,140],[101,0,101,7],[101,27,101,34],[101,54,101,61],[101,81,101,88],[101,108,101,115],[101,135,101,142],[33,54,33,61],[33,81,33,88],[33,108,33,115],[33,135,33,142],[67,0,67,7],[67,27,67,34],[67,54,67,61],[67,81,67,88],[67,108,67,115],[67,135,67,142],[95,82,95,88],[95,100,95,106],[95,109,95,115],[95,127,95,133],[95,136,95,142],[95,1,95,7],[95,19,95,25],[95,28,95,34],[95,46,95,52],[95,55,95,61],[95,73,95,79],[92,7,94,19],[92,34,94,46],[92,61,94,73],[92,88,94,100],[92,115,94,127],[114,43,115,52],[114,55,115,64],[114,66,115,68],[114,70,115,79],[110,116,110,126],[110,128,110,133],[110,136,110,141],[110,143,110,153],[110,155,110,160],[112,3,112,23],[112,30,112,50],[112,57,112,77],[112,84,112,104],[112,111,112,131],[110,62,110,72],[110,74,110,79],[110,82,110,87],[110,89,110,99],[110,101,110,106],[110,109,110,114],[123,1,123,5],[123,28,123,32],[123,55,123,59],[123,82,123,86],[123,109,123,113],[123,136,123,140],[119,109,119,113],[119,136,119,140],[121,1,121,5],[121,28,121,32],[121,55,121,59],[121,82,121,86],[121,109,121,113],[121,136,121,140],[114,136,115,145],[114,147,115,149],[114,151,115,160],[117,1,117,5],[117,28,117,32],[117,55,117,59],[117,82,117,86],[117,109,117,113],[117,136,117,140],[114,82,115,91],[114,93,115,95],[114,97,115,106],[114,109,115,118],[114,120,115,122],[114,124,115,133],[114,16,115,25],[114,28,115,37],[114,39,115,41],[129,127,129,133],[129,136,129,142],[129,154,129,160],[129,1,129,7],[129,19,129,25],[129,28,129,34],[129,46,129,52],[129,55,129,61],[129,73,129,79],[126,7,128,19],[126,34,128,46],[126,61,128,73],[126,88,128,100],[126,115,128,127],[126,142,128,154],[125,82,125,88],[125,100,125,106],[125,109,125,115],[125,127,125,133],[125,136,125,142],[125,154,125,160],[125,1,125,7],[125,19,125,25],[125,28,125,34],[125,46,125,52],[125,55,125,61],[125,73,125,79],[24,169,26,181],[27,163,27,169],[27,181,27,187],[28,171,33,179],[33,162,33,169],[34,163,40,187],[15,163,15,167],[17,163,17,167],[19,163,19,167],[21,163,21,167],[23,163,23,169],[23,181,23,187],[0,163,6,187],[8,163,8,168],[8,170,8,180],[8,182,8,187],[10,165,10,185],[12,163,13,172],[12,174,13,176],[12,178,13,187],[58,169,60,181],[61,163,61,169],[61,181,61,187],[62,171,67,179],[67,162,67,169],[68,163,74,187],[49,163,49,167],[51,163,51,167],[53,163,53,167],[55,163,55,167],[57,163,57,169],[57,181,57,187],[42,163,42,168],[42,170,42,180],[42,182,42,187],[44,165,44,185],[46,163,47,172],[46,174,47,176],[46,178,47,187],[92,169,94,181],[95,163,95,169],[95,181,95,187],[96,171,101,179],[101,162,101,169],[102,163,108,187],[83,163,83,167],[85,163,85,167],[87,163,87,167],[89,163,89,167],[91,163,91,169],[91,181,91,187],[76,163,76,168],[76,170,76,180],[76,182,76,187],[78,165,78,185],[80,163,81,172],[80,174,81,176],[80,178,81,187],[126,169,128,181],[129,163,129,169],[129,181,129,187],[130,171,135,179],[135,162,135,169],[136,1,142,25],[136,28,142,52],[136,55,142,79],[136,82,142,106],[136,109,142,133],[117,163,117,167],[119,163,119,167],[121,163,121,167],[123,163,123,167],[125,163,125,169],[125,181,125,187],[110,163,110,168],[110,170,110,180],[110,182,110,187],[112,165,112,185],[114,163,115,172],[114,174,115,176],[114,178,115,187],[135,0,135,7],[135,27,135,34],[135,54,135,61],[135,81,135,88],[135,108,135,115],[135,135,135,142],[129,82,129,88],[129,100,129,106],[129,109,129,115],[144,136,144,141],[144,143,144,153],[144,155,144,160],[144,163,144,168],[144,170,144,180],[144,182,144,187],[144,82,144,87],[144,89,144,99],[144,101,144,106],[144,109,144,114],[144,116,144,126],[144,128,144,133],[136,163,142,187],[144,1,144,6],[144,8,144,18],[144,20,144,25],[144,28,144,33],[144,35,144,45],[144,47,144,52],[144,55,144,60],[144,62,144,72],[144,74,144,79],[148,136,149,145],[148,147,149,149],[148,151,149,160],[148,163,149,172],[148,174,149,176],[148,178,149,187],[148,82,149,91],[148,93,149,95],[148,97,149,106],[148,109,149,118],[148,120,149,122],[148,124,149,133],[146,165,146,185],[148,1,149,10],[148,12,149,14],[148,16,149,25],[148,28,149,37],[148,39,149,41],[148,43,149,52],[148,55,149,64],[148,66,149,68],[148,70,149,79],[146,3,146,23],[146,30,146,50],[146,57,146,77],[146,84,146,104],[146,111,146,131],[146,138,146,158],[155,163,155,167],[157,1,157,5],[157,28,157,32],[157,55,157,59],[157,82,157,86],[157,109,157,113],[157,136,157,140],[157,163,157,167],[155,1,155,5],[155,28,155,32],[155,55,155,59],[155,82,155,86],[155,109,155,113],[155,136,155,140],[151,163,151,167],[153,1,153,5],[153,28,153,32],[153,55,153,59],[153,82,153,86],[153,109,153,113],[153,136,153,140],[153,163,153,167],[151,1,151,5],[151,28,151,32],[151,55,151,59],[151,82,151,86],[151,109,151,113],[151,136,151,140],[160,169,162,181],[163,1,163,7],[163,19,163,25],[163,28,163,34],[163,46,163,52],[163,55,163,61],[163,73,163,79],[163,82,163,88],[163,100,163,106],[163,109,163,115],[159,136,159,142],[159,154,159,160],[159,163,159,169],[159,181,159,187],[160,7,162,19],[160,34,162,46],[160,61,162,73],[160,88,162,100],[160,115,162,127],[160,142,162,154],[159,1,159,7],[159,19,159,25],[159,28,159,34],[159,46,159,52],[159,55,159,61],[159,73,159,79],[164,144,169,152],[164,171,169,179],[169,0,169,7],[169,27,169,34],[169,54,169,61],[169,81,169,88],[169,108,169,115],[169,135,169,142],[169,162,169,169],[163,127,163,133],[163,136,163,142],[163,154,163,160],[163,163,163,169],[163,181,163,187],[164,9,169,17],[164,36,169,44],[164,63,169,71],[164,90,169,98],[164,117,169,125],[178,136,178,141],[178,143,178,153],[178,155,178,160],[178,163,178,168],[178,170,178,180],[178,182,178,187],[178,82,178,87],[178,89,178,99],[178,101,178,106],[178,109,178,114],[178,116,178,126],[178,128,178,133],[170,163,176,187],[178,1,178,6],[178,8,178,18],[178,20,178,25],[178,28,178,33],[178,35,178,45],[178,47,178,52],[178,55,178,60],[178,62,178,72],[178,74,178,79],[170,1,176,25],[170,28,176,52],[170,55,176,79],[170,82,176,106],[170,109,176,133],[170,136,176,160],[182,147,183,149],[182,151,183,160],[182,163,183,172],[182,174,183,176],[182,178,183,187],[185,1,185,5],[185,28,185,32],[185,55,185,59],[185,82,185,86],[185,109,185,113],[182,93,183,95],[182,97,183,106],[182,109,183,118],[182,120,183,122],[182,124,183,133],[182,136,183,145],[180,165,180,185],[182,1,183,10],[182,12,183,14],[182,16,183,25],[182,28,183,37],[182,39,183,41],[182,43,183,52],[182,55,183,64],[182,66,183,68],[182,70,183,79],[180,3,180,23],[180,30,180,50],[180,57,180,77],[180,84,180,104],[180,111,180,131],[180,138,180,158],[189,55,189,59],[189,82,189,86],[189,109,189,113],[189,136,189,140],[189,163,189,167],[191,1,191,5],[191,28,191,32],[191,55,191,59],[191,82,191,86],[191,109,191,113],[185,136,185,140],[185,163,185,167],[187,1,187,5],[187,28,187,32],[187,55,187,59],[187,82,187,86],[187,109,187,113],[187,136,187,140],[187,163,187,167],[191,136,191,140],[189,1,189,5],[189,28,189,32],[193,163,193,169],[193,181,193,187],[194,7,196,19],[194,34,196,46],[194,61,196,73],[194,88,196,100],[194,115,196,127],[194,142,196,154],[194,169,196,181],[191,163,191,167],[193,1,193,7],[193,19,193,25],[193,28,193,34],[193,46,193,52],[193,55,193,61],[193,73,193,79],[193,82,193,88],[193,100,193,106],[193,109,193,115],[193,127,193,133],[193,136,193,142],[193,154,193,160],[203,0,203,7],[203,27,203,34],[203,54,203,61],[203,81,203,88],[203,108,203,115],[203,135,203,142],[197,163,197,169],[197,181,197,187],[198,9,203,17],[198,36,203,44],[198,63,203,71],[198,90,203,98],[198,117,203,125],[198,144,203,152],[198,171,203,179],[203,162,203,169],[197,82,197,88],[197,100,197,106],[197,109,197,115],[197,127,197,133],[197,136,197,142],[197,154,197,160],[197,1,197,7],[197,19,197,25],[197,28,197,34],[197,46,197,52],[197,55,197,61],[197,73,197,79],[212,136,212,141],[212,143,212,153],[212,155,212,160],[212,163,212,168],[212,170,212,180],[212,182,212,187],[212,82,212,87],[212,89,212,99],[212,101,212,106],[212,109,212,114],[212,116,212,126],[212,128,212,133],[204,163,210,187],[212,1,212,6],[212,8,212,18],[212,20,212,25],[212,28,212,33],[212,35,212,45],[212,47,212,52],[212,55,212,60],[212,62,212,72],[212,74,212,79],[204,109,210,133],[204,136,210,160],[216,136,217,145],[216,147,217,149],[216,151,217,160],[216,163,217,172],[216,174,217,176],[216,178,217,187],[216,82,217,91],[216,93,217,95],[216,97,217,106],[216,109,217,118],[216,120,217,122],[216,124,217,133],[214,84,214,104],[214,111,214,131],[214,138,214,158],[214,165,214,185],[216,1,217,10],[216,12,217,14],[216,16,217,25],[216,28,217,37],[216,39,217,41],[216,43,217,52],[223,163,223,167],[225,1,225,5],[225,28,225,32],[225,55,225,59],[225,82,225,86],[225,109,225,113],[225,136,225,140],[225,163,225,167],[223,1,223,5],[223,28,223,32],[223,55,223,59],[223,82,223,86],[223,109,223,113],[223,136,223,140],[219,163,219,167],[221,1,221,5],[221,28,221,32],[221,55,221,59],[221,82,221,86],[221,109,221,113],[221,136,221,140],[221,163,221,167],[219,1,219,5],[219,28,219,32],[219,55,219,59],[219,82,219,86],[219,109,219,113],[219,136,219,140],[228,169,230,181],[231,1,231,7],[231,19,231,25],[231,28,231,34],[231,46,231,52],[231,55,231,61],[231,73,231,79],[231,82,231,88],[231,100,231,106],[231,109,231,115],[227,136,227,142],[227,154,227,160],[227,163,227,169],[227,181,227,187],[228,7,230,19],[228,34,230,46],[228,61,230,73],[228,88,230,100],[228,115,230,127],[228,142,230,154],[227,55,227,61],[227,73,227,79],[227,82,227,88],[227,100,227,106],[227,109,227,115],[227,127,227,133],[232,144,237,152],[232,171,237,179],[237,0,237,7],[237,27,237,34],[237,54,237,61],[237,81,237,88],[237,108,237,115],[237,135,237,142],[237,162,237,169],[231,127,231,133],[231,136,231,142],[231,154,231,160],[231,163,231,169],[231,181,231,187],[232,9,237,17],[232,36,237,44],[232,63,237,71],[232,90,237,98],[232,117,237,125],[246,20,246,25],[246,28,246,33],[246,35,246,45],[246,47,246,52],[250,124,251,133],[250,55,251,64],[250,66,251,68],[250,70,251,79],[250,82,251,91],[250,93,251,95],[250,97,251,106],[250,1,251,10],[250,12,251,14],[250,16,251,25],[250,28,251,37],[250,39,251,41],[250,43,251,52],[248,3,248,23],[248,30,248,50],[248,57,248,77],[248,84,248,104],[248,111,248,131],[257,1,257,5],[257,28,257,32],[257,55,257,59],[257,82,257,86],[257,109,257,113],[255,1,255,5],[255,28,255,32],[255,55,255,59],[255,82,255,86],[255,109,255,113],[253,1,253,5],[253,28,253,32],[253,55,253,59],[253,82,253,86],[253,109,253,113],[250,109,251,118],[250,120,251,122],[261,127,261,133],[262,7,264,19],[262,34,264,46],[262,61,264,73],[262,88,264,100],[262,115,264,127],[261,1,261,7],[261,19,261,25],[261,28,261,34],[261,46,261,52],[261,55,261,61],[261,73,261,79],[261,82,261,88]],"merged_total":1046,"flags":["merged_cut"]}
[null,"MIXTE",null,null,null,null,null,null,null,null,null,null,null,null,null,null,null,null,null,null,null,null,null,null,null,null,null,null,"MIXTE",null,null,null,null,null,null,null,null,null,null,null,null,null,null,null,null,null,null,null,null,null,null,null,null,null,null,"MIXTE",null,null,null,null,null,null,null,null,null,null,null,null,null,null,null,null,null,null,null,null,null,null,null,null,null,null,"MIXTE",null,null,null,null,null,null,null,null,null,null,null,null,null,null,null,null,null,null,null,null,null,null,null,null,null,null,"MIXTE",null,null,null,null,null,null,null,null,null,null,null,null,null,null,null,null,null,null,null,null,null,null,null,null,null,null,"MIXTE 1/8",null,null,null,null,null,null,null,null,null,null,null,null,null,null,null,null,null,null,null,null,null,null,null,null,null,null,"MIXTE 1/8"]
[]
[]
[]
[]
[]
[]
[]
[null,"JOUEUR A",null,null,null,null,null,null,"BILLARD N° ",null,null,null,null,null,null,null,null,null,null,null,"JOUEUR B",null,null,null,null,null,null,null,"JOUEUR A",null,null,null,null,null,null,"BILLARD N° ",null,null,null,null,null,null,null,null,null,null,null,"JOUEUR B",null,null,null,null,null,null,null,"JOUEUR A",null,null,null,null,null,null,"BILLARD N° ",null,null,null,null,null,null,null,null,null,null,null,"JOUEUR B",null,null,null,null,null,null,null,"JOUEUR A",null,null,null,null,null,null,"BILLARD N° ",null,null,null,null,null,null,null,null,null,null,null,"JOUEUR B",null,null,null,null,null,null,null,"JOUEUR A",null,null,null,null,null,null,"BILLARD N° ",null,null,null,null,null,null,null,null,null,null,null,"JOUEUR B",null,null,null,null,null,null,null,"JOUEUR A",null,null,null,null,null,null,"BILLARD N° ",null,null,null,null,null,null,null,null,null,null,null,"JOUEUR B",null,null,null,null,null,null,null,"JOUEUR A",null,null,null,null,null,null,"BILLARD N° ",null,null,null,null,null,null,null,null,null,null,null,"JOUEUR B"]
[]
[null,null,null,"3 PARTIES GAGNANTES",null,null,null,null,null,null,null,null,null,null,null,null,null,null,null,null,null,null,null,null,null,null,null,null,null,null,"3 PARTIES GAGNANTES",null,null,null,null,null,null,null,null,null,null,null,null,null,null,null,null,null,null,null,null,null,null,null,null,null,null,"3 PARTIES GAGNANTES",null,null,null,null,null,null,null,null,null,null,null,null,null,null,null,null,null,null,null,null,null,null,null,null,null,null,"3 PARTIES GAGNANTES",null,null,null,null,null,null,null,null,null,null,null,null,null,null,null,null,null,null,null,null,null,null,null,null,null,null,"3 PARTIES GAGNANTES",null,null,null,null,null,null,null,null,null,null,null,null,null,null,null,null,null,null,null,null,null,null,null,null,null,null,"4 PARTIES GAGNANTES",null,null,null,null,null,null,null,null,null,null,null,null,null,null,null,null,null,null,null,null,null,null,null,null,null,null,"4 PARTIES GAGNANTES"]
[]
[null,{"$f":"'1'!M3","v":"DUDIT FABIEN"},null,null,null,null,null,null,null,null,null,null,"VS",null,null,null,{"$f":"'1'!M5","v":"CHAIR MOURAD"},null,null,null,null,null,null,null,null,null,null,null,{"$f":"'1'!M7","v":"TRIPLET FREDERIC"},null,null,null,null,null,null,null,null,null,null,"VS",null,null,null,{"$f":"'1'!M9","v":"BRACEIRO JOSE"},null,null,null,null,null,null,null,null,null,null,null,{"$f":"'1'!M13","v":"LAMRANI MEHDI"},null,null,null,null,null,null,null,null,null,null,"VS",null,null,null,{"$f":"'1'!M15","v":"LETOURNEUR SEBASTIEN"},null,null,null,null,null,null,null,null,null,null,null,{"$f":"'1'!M17","v":"SOCKEEL AURORE"},null,null,null,null,null,null,null,null,null,null,"VS",null,null,null,{"$f":"'1'!M19","v":"POTIQUET SEBASTIEN"},null,null,null,null,null,null,null,null,null,null,null,{"$f":"'1'!Q4","v":""},null,null,null,null,null,null,null,null,null,null,"VS",null,null,null,{"$f":"'1'!Q8","v":""},null,null,null,null,null,null,null,null,null,null,null,{"$f":"Final!B4","v":""},null,null,null,null,null,null,null,null,null,null,"VS",null,null,null,{"$f":"Final!B5","v":""},null,null,null,null,null,null,null,null,null,null,null,{"$f":"Final!B7","v":""},null,null,null,null,null,null,null,null,null,null,"VS",null,null,null,{"$f":"Final!B8","v":""}]
[]
[]
[null,"PARTIES",null,null,null,null,null,1,null,2,null,3,null,4,null,5,null,null,null,null,null,null,"TOT.A",null,"TOT.B",null,null,null,"PARTIES",null,null,null,null,null,1,null,2,null,3,null,4,null,5,null,null,null,null,null,null,"TOT.A",null,"TOT.B",null,null,null,"PARTIES",null,null,null,null,null,1,null,2,null,3,null,4,null,5,null,null,null,null,null,null,"TOT.A",null,"TOT.B",null,null,null,"PARTIES",null,null,null,null,null,1,null,2,null,3,null,4,null,5,null,null,null,null,null,null,"TOT.A",null,"TOT.B",null,null,null,"PARTIES",null,null,null,null,null,1,null,2,null,3,null,4,null,5,null,null,null,null,null,null,"TOT.A",null,"TOT.B",null,null,null,"PARTIES",null,null,null,null,null,1,null,2,null,3,null,4,null,5,null,6,null,7,null,null,"TOT.A",null,"TOT.B",null,null,null,"PARTIES",null,null,null,null,null,1,null,2,null,3,null,4,null,5,null,6,null,7,null,null,"TOT.A",null,"TOT.B"]
[]
[null,"GAGNANT",null,null,null,null,null,null,null,null,null,null,null,null,null,null,null,null,null,null,null,null,null,null,null,null,null,null,"GAGNANT",null,null,null,null,null,null,null,null,null,null,null,null,null,null,null,null,null,null,null,null,null,null,null,null,null,null,"GAGNANT",null,null,null,null,null,null,null,null,null,null,null,null,null,null,null,null,null,null,null,null,null,null,null,null,null,null,"GAGNANT",null,null,null,null,null,null,null,null,null,null,null,null,null,null,null,null,null,null,null,null,null,null,null,null,null,null,"GAGNANT",null,null,null,null,null,null,null,null,null,null,null,null,null,null,null,null,null,null,null,null,null,null,null,null,null,null,"GAGNANT",null,null,null,null,null,null,null,null,null,null,null,null,null,null,null,null,null,null,null,null,null,null,null,null,null,null,"GAGNANT"]
[]
[null,"CASSE FERME",null,null,null,null,null,null,null,null,null,null,null,null,null,null,null,null,null,null,null,null,null,null,null,null,null,null,"CASSE FERME",null,null,null,null,null,null,null,null,null,null,null,null,null,null,null,null,null,null,null,null,null,null,null,null,null,null,"CASSE FERME",null,null,null,null,null,null,null,null,null,null,null,null,null,null,null,null,null,null,null,null,null,null,null,null,null,null,"CASSE FERME",null,null,null,null,null,null,null,null,null,null,null,null,null,null,null,null,null,null,null,null,null,null,null,null,null,null,"CASSE FERME",null,null,null,null,null,null,null,null,null,null,null,null,null,null,null,null,null,null,null,null,null,null,null,null,null,null,"CASSE FERME",null,null,null,null,null,null,null,null,null,null,null,null,null,null,null,null,null,null,null,null,null,null,null,null,null,null,"CASSE FERME"]
[]
[null,"REPRISE FERME",null,null,null,null,null,null,null,null,null,null,null,null,null,null,null,null,null,null,null,null,null,null,null,null,null,null,"REPRISE FERME",null,null,null,null,null,null,null,null,null,null,null,null,null,null,null,null,null,null,null,null,null,null,null,null,null,null,"REPRISE FERME",null,null,null,null,null,null,null,null,null,null,null,null,null,null,null,null,null,null,null,null,null,null,null,null,null,null,"REPRISE FERME",null,null,null,null,null,null,null,null,null,null,null,null,null,null,null,null,null,null,null,null,null,null,null,null,null,null,"REPRISE FERME",null,null,null,null,null,null,null,null,null,null,null,null,null,null,null,null,null,null,null,null,null,null,null,null,null,null,"REPRISE FERME",null,null,null,null,null,null,null,null,null,null,null,null,null,null,null,null,null,null,null,null,null,null,null,null,null,null,"REPRISE FERME"]
[]
[null,"Forfait joueur A",null,null,null,null,null,null,null,null,null,null,null,null,null,null,null,null,null,"Forfait joueur B",null,null,null,null,null,null,null,null,"Forfait joueur A",null,null,null,null,null,null,null,null,null,null,null,null,null,null,null,null,null,"Forfait joueur B",null,null,null,null,null,null,null,null,"Forfait joueur A",null,null,null,null,null,null,null,null,null,null,null,null,null,null,null,null,null,"Forfait joueur B",null,null,null,null,null,null,null,null,"Forfait joueur A",null,null,null,null,null,null,null,null,null,null,null,null,null,null,null,null,null,"Forfait joueur B",null,null,null,null,null,null,null,null,"Forfait joueur A",null,null,null,null,null,null,null,null,null,null,null,null,null,null,null,null,null,"Forfait joueur B",null,null,null,null,null,null,null,null,"Forfait joueur A",null,null,null,null,null,null,null,null,null,null,null,null,null,null,null,null,null,"Forfait joueur B",null,null,null,null,null,null,null,null,"Forfait joueur A",null,null,null,null,null,null,null,null,null,null,null,null,null,null,null,null,null,"Forfait joueur B"]
[null,null,null,null,null,null,null,"En cas de litige, cochez la case ci-dessous et décrivez le litige au dos de cette feuille",null,null,null,null,null,null,null,null,null,null,null,null,null,null,null,null,null,null,null,null,null,null,null,null,null,null,"En cas de litige, cochez la case ci-dessous et décrivez le litige au dos de cette feuille",null,null,null,null,null,null,null,null,null,null,null,null,null,null,null,null,null,null,null,null,null,null,null,null,null,null,"En cas de litige, cochez la case ci-dessous et décrivez le litige au dos de cette feuille",null,null,null,null,null,null,null,null,null,null,null,null,null,null,null,null,null,null,null,null,null,null,null,null,null,null,"En cas de litige, cochez la case ci-dessous et décrivez le litige au dos de cette feuille",null,null,null,null,null,null,null,null,null,null,null,null,null,null,null,null,null,null,null,null,null,null,null,null,null,null,"En cas de litige, cochez la case ci-dessous et décrivez le litige au dos de cette feuille",null,null,null,null,null,null,null,null,null,null,null,null,null,null,null,null,null,null,null,null,null,null,null,null,null,null,"En cas de litige, cochez la case ci-dessous et décrivez le litige au dos de cette feuille",null,null,null,null,null,null,null,null,null,null,null,null,null,null,null,null,null,null,null,null,null,null,null,null,null,null,"En cas de litige, cochez la case ci-dessous et décrivez le litige au dos de cette feuille"]
[]
[]
[null,"Signature joueur A",null,null,null,null,null,null,null,null,null,null,null,null,null,null,null,null,null,"Signature joueur B",null,null,null,null,null,null,null,null,"Signature joueur A",null,null,null,null,null,null,null,null,null,null,null,null,null,null,null,null,null,"Signature joueur B",null,null,null,null,null,null,null,null,"Signature joueur A",null,null,null,null,null,null,null,null,null,null,null,null,null,null,null,null,null,"Signature joueur B",null,null,null,null,null,null,null,null,"Signature joueur A",null,null,null,null,null,null,null,null,null,null,null,null,null,null,null,null,null,"Signature joueur B",null,null,null,null,null,null,null,null,"Signature joueur A",null,null,null,null,null,null,null,null,null,null,null,null,null,null,null,null,null,"Signature joueur B",null,null,null,null,null,null,null,null,"Signature joueur A",null,null,null,null,null,null,null,null,null,null,null,null,null,null,null,null,null,"Signature joueur B",null,null,null,null,null,null,null,null,"Signature joueur A",null,null,null,null,null,null,null,null,null,null,null,null,null,null,null,null,null,"Signature joueur B"]
[]
[]
[]
[]
[]
["Match 1 poule 1",null,null,null,null,null,null,null,null,null,null,null,null,null,null,null,null,null,null,null,null,null,null,null,null,null,null,"Match 2 poule 1",null,null,null,null,null,null,null,null,null,null,null,null,null,null,null,null,null,null,null,null,null,null,null,null,null,null,"Match 3 poule 1",null,null,null,null,null,null,null,null,null,null,null,null,null,null,null,null,null,null,null,null,null,null,null,null,null,null,"Match 4 poule 1",null,null,null,null,null,null,null,null,null,null,null,null,null,null,null,null,null,null,null,null,null,null,null,null,null,null,"Match 5 poule 1",null,null,null,null,null,null,null,null,null,null,null,null,null,null,null,null,null,null,null,null,null,null,null,null,null,null,"Match 1 tableau finale",null,null,null,null,null,null,null,null,null,null,null,null,null,null,null,null,null,null,null,null,null,null,null,null,null,null,"Match 2 tableau finale"]
[null,"MIXTE",null,null,null,null,null,null,null,null,null,null,null,null,null,null,null,null,null,null,null,null,null,null,null,null,null,null,"MIXTE",null,null,null,null,null,null,null,null,null,null,null,null,null,null,null,null,null,null,null,null,null,null,null,null,null,null,"MIXTE",null,null,null,null,null,null,null,null,null,null,null,null,null,null,null,null,null,null,null,null,null,null,null,null,null,null,"MIXTE",null,null,null,null,null,null,null,null,null,null,null,null,null,null,null,null,null,null,null,null,null,null,null,null,null,null,"MIXTE",null,null,null,null,null,null,null,null,null,null,null,null,null,null,null,null,null,null,null,null,null,null,null,null,null,null,"MIXTE 1/8",null,null,null,null,null,null,null,null,null,null,null,null,null,null,null,null,null,null,null,null,null,null,null,null,null,null,"MIXTE 1/8"]
[]
[]
[]
[]
[]
[]
[]
[null,"JOUEUR A",null,null,null,null,null,null,"BILLARD N° ",null,null,null,null,null,null,null,null,null,null,null,"JOUEUR B",null,null,null,null,null,null,null,"JOUEUR A",null,null,null,null,null,null,"BILLARD N° ",null,null,null,null,null,null,null,null,null,null,null,"JOUEUR B",null,null,null,null,null,null,null,"JOUEUR A",null,null,null,null,null,null,"BILLARD N° ",null,null,null,null,null,null,null,null,null,null,null,"JOUEUR B",null,null,null,null,null,null,null,"JOUEUR A",null,null,null,null,null,null,"BILLARD N° ",null,null,null,null,null,null,null,null,null,null,null,"JOUEUR B",null,null,null,null,null,null,null,"JOUEUR A",null,null,null,null,null,null,"BILLARD N° ",null,null,null,null,null,null,null,null,null,null,null,"JOUEUR B",null,null,null,null,null,null,null,"JOUEUR A",null,null,null,null,null,null,"BILLARD N° ",null,null,null,null,null,null,null,null,null,null,null,"JOUEUR B",null,null,null,null,null,null,null,"JOUEUR A",null,null,null,null,null,null,"BILLARD N° ",null,null,null,null,null,null,null,null,null,null,null,"JOUEUR B"]
[]
[null,null,null,"3 PARTIES GAGNANTES",null,null,null,null,null,null,null,null,null,null,null,null,null,null,null,null,null,null,null,null,null,null,null,null,null,null,"3 PARTIES GAGNANTES",null,null,null,null,null,null,null,null,null,null,null,null,null,null,null,null,null,null,null,null,null,null,null,null,null,null,"3 PARTIES GAGNANTES",null,null,null,null,null,null,null,null,null,null,null,null,null,null,null,null,null,null,null,null,null,null,null,null,null,null,"3 PARTIES GAGNANTES",null,null,null,null,null,null,null,null,null,null,null,null,null,null,null,null,null,null,null,null,null,null,null,null,null,null,"3 PARTIES GAGNANTES",null,null,null,null,null,null,null,null,null,null,null,null,null,null,null,null,null,null,null,null,null,null,null,null,null,null,"4 PARTIES GAGNANTES",null,null,null,null,null,null,null,null,null,null,null,null,null,null,null,null,null,null,null,null,null,null,null,null,null,null,"4 PARTIES GAGNANTES"]
[]
[null,{"$f":"'1'!Q14","v":""},null,null,null,null,null,null,null,null,null,null,"VS",null,null,null,{"$f":"'1'!Q18","v":""},null,null,null,null,null,null,null,null,null,null,null,{"$f":"'1'!J4","v":""},null,null,null,null,null,null,null,null,null,null,"VS",null,null,null,{"$f":"'1'!J8","v":""},null,null,null,null,null,null,null,null,null,null,null,{"$f":"'1'!J14","v":""},null,null,null,null,null,null,null,null,null,null,"VS",null,null,null,{"$f":"'1'!J18","v":""},null,null,null,null,null,null,null,null,null,null,null,{"$f":"'1'!F6","v":""},null,null,null,null,null,null,null,null,null,null,"VS",null,null,null,{"$f":"'1'!F10","v":""},null,null,null,null,null,null,null,null,null,null,null,{"$f":"'1'!F16","v":""},null,null,null,null,null,null,null,null,null,null,"VS",null,null,null,{"$f":"'1'!F20","v":""},null,null,null,null,null,null,null,null,null,null,null,{"$f":"Final!B10","v":""},null,null,null,null,null,null,null,null,null,null,"VS",null,null,null,{"$f":"Final!B11","v":""},null,null,null,null,null,null,null,null,null,null,null,{"$f":"Final!B13","v":""},null,null,null,null,null,null,null,null,null,null,"VS",null,null,null,{"$f":"Final!B14","v":""}]
[]
[]
[null,"PARTIES",null,null,null,null,null,1,null,2,null,3,null,4,null,5,null,null,null,null,null,null,"TOT.A",null,"TOT.B",null,null,null,"PARTIES",null,null,null,null,null,1,null,2,null,3,null,4,null,5,null,null,null,null,null,null,"TOT.A",null,"TOT.B",null,null,null,"PARTIES",null,null,null,null,null,1,null,2,null,3,null,4,null,5,null,null,null,null,null,null,"TOT.A",null,"TOT.B",null,null,null,"PARTIES",null,null,null,null,null,1,null,2,null,3,null,4,null,5,null,null,null,null,null,null,"TOT.A",null,"TOT.B",null,null,null,"PARTIES",null,null,null,null,null,1,null,2,null,3,null,4,null,5,null,null,null,null,null,null,"TOT.A",null,"TOT.B",null,null,null,"PARTIES",null,null,null,null,null,1,null,2,null,3,null,4,null,5,null,6,null,7,null,null,"TOT.A",null,"TOT.B",null,null,null,"PARTIES",null,null,null,null,null,1,null,2,null,3,null,4,null,5,null,6,null,7,null,null,"TOT.A",null,"TOT.B"]
[]
[null,"GAGNANT",null,null,null,null,null,null,null,null,null,null,null,null,null,null,null,null,null,null,null,null,null,null,null,null,null,null,"GAGNANT",null,null,null,null,null,null,null,null,null,null,null,null,null,null,null,null,null,null,null,null,null,null,null,null,null,null,"GAGNANT",null,null,null,null,null,null,null,null,null,null,null,null,null,null,null,null,null,null,null,null,null,null,null,null,null,null,"GAGNANT",null,null,null,null,null,null,null,null,null,null,null,null,null,null,null,null,null,null,null,null,null,null,null,null,null,null,"GAGNANT",null,null,null,null,null,null,null,null,null,null,null,null,null,null,null,null,null,null,null,null,null,null,null,null,null,null,"GAGNANT",null,null,null,null,null,null,null,null,null,null,null,null,null,null,null,null,null,null,null,null,null,null,null,null,null,null,"GAGNANT"]
[]
[null,"CASSE FERME",null,null,null,null,null,null,null,null,null,null,null,null,null,null,null,null,null,null,null,null,null,null,null,null,null,null,"CASSE FERME",null,null,null,null,null,null,null,null,null,null,null,null,null,null,null,null,null,null,null,null,null,null,null,null,null,null,"CASSE FERME",null,null,null,null,null,null,null,null,null,null,null,null,null,null,null,null,null,null,null,null,null,null,null,null,null,null,"CASSE FERME",null,null,null,null,null,null,null,null,null,null,null,null,null,null,null,null,null,null,null,null,null,null,null,null,null,null,"CASSE FERME",null,null,null,null,null,null,null,null,null,null,null,null,null,null,null,null,null,null,null,null,null,null,null,null,null,null,"CASSE FERME",null,null,null,null,null,null,null,null,null,null,null,null,null,null,null,null,null,null,null,null,null,null,null,null,null,null,"CASSE FERME"]
[]
[null,"REPRISE FERME",null,null,null,null,null,null,null,null,null,null,null,null,null,null,null,null,null,null,null,null,null,null,null,null,null,null,"REPRISE FERME",null,null,null,null,null,null,null,null,null,null,null,null,null,null,null,null,null,null,null,null,null,null,null,null,null,null,"REPRISE FERME",null,null,null,null,null,null,null,null,null,null,null,null,null,null,null,null,null,null,null,null,null,null,null,null,null,null,"REPRISE FERME",null,null,null,null,null,null,null,null,null,null,null,null,null,null,null,null,null,null,null,null,null,null,null,null,null,null,"REPRISE FERME",null,null,null,null,null,null,null,null,null,null,null,null,null,null,null,null,null,null,null,null,null,null,null,null,null,null,"REPRISE FERME",null,null,null,null,null,null,null,null,null,null,null,null,null,null,null,null,null,null,null,null,null,null,null,null,null,null,"REPRISE FERME"]
[]
[null,"Forfait joueur A",null,null,null,null,null,null,null,null,null,null,null,null,null,null,null,null,null,"Forfait joueur B",null,null,null,null,null,null,null,null,"Forfait joueur A",null,null,null,null,null,null,null,null,null,null,null,null,null,null,null,null,null,"Forfait joueur B",null,null,null,null,null,null,null,null,"Forfait joueur A",null,null,null,null,null,null,null,null,null,null,null,null,null,null,null,null,null,"Forfait joueur B",null,null,null,null,null,null,null,null,"Forfait joueur A",null,null,null,null,null,null,null,null,null,null,null,null,null,null,null,null,null,"Forfait joueur B",null,null,null,null,null,null,null,null,"Forfait joueur A",null,null,null,null,null,null,null,null,null,null,null,null,null,null,null,null,null,"Forfait joueur B",null,null,null,null,null,null,null,null,"Forfait joueur A",null,null,null,null,null,null,null,null,null,null,null,null,null,null,null,null,null,"Forfait joueur B",null,null,null,null,null,null,null,null,"Forfait joueur A",null,null,null,null,null,null,null,null,null,null,null,null,null,null,null,null,null,"Forfait joueur B"]
[null,null,null,null,null,null,null,"En cas de litige, cochez la case ci-dessous et décrivez le litige au dos de cette feuille",null,null,null,null,null,null,null,null,null,null,null,null,null,null,null,null,null,null,null,null,null,null,null,null,null,null,"En cas de litige, cochez la case ci-dessous et décrivez le litige au dos de cette feuille",null,null,null,null,null,null,null,null,null,null,null,null,null,null,null,null,null,null,null,null,null,null,null,null,null,null,"En cas de litige, cochez la case ci-dessous et décrivez le litige au dos de cette feuille",null,null,null,null,null,null,null,null,null,null,null,null,null,null,null,null,null,null,null,null,null,null,null,null,null,null,"En cas de litige, cochez la case ci-dessous et décrivez le litige au dos de cette feuille",null,null,null,null,null,null,null,null,null,null,null,null,null,null,null,null,null,null,null,null,null,null,null,null,null,null,"En cas de litige, cochez la case ci-dessous et décrivez le litige au dos de cette feuille",null,null,null,null,null,null,null,null,null,null,null,null,null,null,null,null,null,null,null,null,null,null,null,null,null,null,"En cas de litige, cochez la case ci-dessous et décrivez le litige au dos de cette feuille",null,null,null,null,null,null,null,null,null,null,null,null,null,null,null,null,null,null,null,null,null,null,null,null,null,null,"En cas de litige, cochez la case ci-dessous et décrivez le litige au dos de cette feuille"]
[]
[]
[null,"Signature joueur A",null,null,null,null,null,null,null,null,null,null,null,null,null,null,null,null,null,"Signature joueur B",null,null,null,null,null,null,null,null,"Signature joueur A",null,null,null,null,null,null,null,null,null,null,null,null,null,null,null,null,null,"Signature joueur B",null,null,null,null,null,null,null,null,"Signature joueur A",null,null,null,null,null,null,null,null,null,null,null,null,null,null,null,null,null,"Signature joueur B",null,null,null,null,null,null,null,null,"Signature joueur A",null,null,null,null,null,null,null,null,null,null,null,null,null,null,null,null,null,"Signature joueur B",null,null,null,null,null,null,null,null,"Signature joueur A",null,null,null,null,null,null,null,null,null,null,null,null,null,null,null,null,null,"Signature joueur B",null,null,null,null,null,null,null,null,"Signature joueur A",null,null,null,null,null,null,null,null,null,null,null,null,null,null,null,null,null,"Signature joueur B",null,null,null,null,null,null,null,null,"Signature joueur A",null,null,null,null,null,null,null,null,null,null,null,null,null,null,null,null,null,"Signature joueur B"]
[]
[]
[]
[]
[]
["Match 6 poule 1",null,null,null,null,null,null,null,null,null,null,null,null,null,null,null,null,null,null,null,null,null,null,null,null,null,null,"Match 7 poule 1",null,null,null,null,null,null,null,null,null,null,null,null,null,null,null,null,null,null,null,null,null,null,null,null,null,null,"Match 8 poule 1",null,null,null,null,null,null,null,null,null,null,null,null,null,null,null,null,null,null,null,null,null,null,null,null,null,null,"Match 9 poule 1",null,null,null,null,null,null,null,null,null,null,null,null,null,null,null,null,null,null,null,null,null,null,null,null,null,null,"Match 10 poule 1",null,null,null,null,null,null,null,null,null,null,null,null,null,null,null,null,null,null,null,null,null,null,null,null,null,null,"Match 3 tableau finale",null,null,null,null,null,null,null,null,null,null,null,null,null,null,null,null,null,null,null,null,null,null,null,null,null,null,"Match 4 tableau finale"]
[null,"MIXTE",null,null,null,null,null,null,null,null,null,null,null,null,null,null,null,null,null,null,null,null,null,null,null,null,null,null,"MIXTE",null,null,null,null,null,null,null,null,null,null,null,null,null,null,null,null,null,null,null,null,null,null,null,null,null,null,"MIXTE",null,null,null,null,null,null,null,null,null,null,null,null,null,null,null,null,null,null,null,null,null,null,null,null,null,null,"MIXTE",null,null,null,null,null,null,null,null,null,null,null,null,null,null,null,null,null,null,null,null,null,null,null,null,null,null,"MIXTE",null,null,null,null,null,null,null,null,null,null,null,null,null,null,null,null,null,null,null,null,null,null,null,null,null,null,"MIXTE 1/8",null,null,null,null,null,null,null,null,null,null,null,null,null,null,null,null,null,null,null,null,null,null,null,null,null,null,"MIXTE 1/8"]
[]
[]
[]
[]
[]
[]
[]
[null,"JOUEUR A",null,null,null,null,null,null,"BILLARD N° ",null,null,null,null,null,null,null,null,null,null,null,"JOUEUR B",null,null,null,null,null,null,null,"JOUEUR A",null,null,null,null,null,null,"BILLARD N° ",null,null,null,null,null,null,null,null,null,null,null,"JOUEUR B",null,null,null,null,null,null,null,"JOUEUR A",null,null,null,null,null,null,"BILLARD N° ",null,null,null,null,null,null,null,null,null,null,null,"JOUEUR B",null,null,null,null,null,null,null,"JOUEUR A",null,null,null,null,null,null,"BILLARD N° ",null,null,null,null,null,null,null,null,null,null,null,"JOUEUR B",null,null,null,null,null,null,null,"JOUEUR A",null,null,null,null,null,null,"BILLARD N° ",null,null,null,null,null,null,null,null,null,null,null,"JOUEUR B",null,null,null,null,null,null,null,"JOUEUR A",null,null,null,null,null,null,"BILLARD N° ",null,null,null,null,null,null,null,null,null,null,null,"JOUEUR B",null,null,null,null,null,null,null,"JOUEUR A",null,null,null,null,null,null,"BILLARD N° ",null,null,null,null,null,null,null,null,null,null,null,"JOUEUR B"]
[]
[null,null,null,"3 PARTIES GAGNANTES",null,null,null,null,null,null,null,null,null,null,null,null,null,null,null,null,null,null,null,null,null,null,null,null,null,null,"3 PARTIES GAGNANTES",null,null,null,null,null,null,null,null,null,null,null,null,null,null,null,null,null,null,null,null,null,null,null,null,null,null,"3 PARTIES GAGNANTES",null,null,null,null,null,null,null,null,null,null,null,null,null,null,null,null,null,null,null,null,null,null,null,null,null,null,"3 PARTIES GAGNANTES",null,null,null,null,null,null,null,null,null,null,null,null,null,null,null,null,null,null,null,null,null,null,null,null,null,null,"3 PARTIES GAGNANTES",null,null,null,null,null,null,null,null,null,null,null,null,null,null,null,null,null,null,null,null,null,null,null,null,null,null,"4 PARTIES GAGNANTES",null,null,null,null,null,null,null,null,null,null,null,null,null,null,null,null,null,null,null,null,null,null,null,null,null,null,"4 PARTIES GAGNANTES"]
[]
[null,{"$f":"'2'!M3","v":"BENABDESSELAM YASSINE"},null,null,null,null,null,null,null,null,null,null,"VS",null,null,null,{"$f":"'2'!M5","v":"SOCKEEL YANNICK"},null,null,null,null,null,null,null,null,null,null,null,{"$f":"'2'!M7","v":"SOPIC NICOLAS"},null,null,null,null,null,null,null,null,null,null,"VS",null,null,null,{"$f":"'2'!M9","v":"LAZEREG RADIL"},null,null,null,null,null,null,null,null,null,null,null,{"$f":"'2'!M13","v":"PILLOT VINCENT"},null,null,null,null,null,null,null,null,null,null,"VS",null,null,null,{"$f":"'2'!M15","v":"DELORME STEPHANE"},null,null,null,null,null,null,null,null,null,null,null,{"$f":"'2'!M17","v":"BERRAHOU SOLANGE"},null,null,null,null,null,null,null,null,null,null,"VS",null,null,null,{"$f":"'2'!M19","v":"GARNIER NICOLAS"},null,null,null,null,null,null,null,null,null,null,null,{"$f":"'2'!Q4","v":""},null,null,null,null,null,null,null,null,null,null,"VS",null,null,null,{"$f":"'2'!Q8","v":""},null,null,null,null,null,null,null,null,null,null,null,{"$f":"Final!B16","v":""},null,null,null,null,null,null,null,null,null,null,"VS",null,null,null,{"$f":"Final!B17","v":""},null,null,null,null,null,null,null,null,null,null,null,{"$f":"Final!B19","v":""},null,null,null,null,null,null,null,null,null,null,"VS",null,null,null,{"$f":"Final!B20","v":""}]
[]
[]
[null,"PARTIES",null,null,null,null,null,1,null,2,null,3,null,4,null,5,null,null,null,null,null,null,"TOT.A",null,"TOT.B",null,null,null,"PARTIES",null,null,null,null,null,1,null,2,null,3,null,4,null,5,null,null,null,null,null,null,"TOT.A",null,"TOT.B",null,null,null,"PARTIES",null,null,null,null,null,1,null,2,null,3,null,4,null,5,null,null,null,null,null,null,"TOT.A",null,"TOT.B",null,null,null,"PARTIES",null,null,null,null,null,1,null,2,null,3,null,4,null,5,null,null,null,null,null,null,"TOT.A",null,"TOT.B",null,null,null,"PARTIES",null,null,null,null,null,1,null,2,null,3,null,4,null,5,null,null,null,null,null,null,"TOT.A",null,"TOT.B",null,null,null,"PARTIES",null,null,null,null,null,1,null,2,null,3,null,4,null,5,null,6,null,7,null,null,"TOT.A",null,"TOT.B",null,null,null,"PARTIES",null,null,null,null,null,1,null,2,null,3,null,4,null,5,null,6,null,7,null,null,"TOT.A",null,"TOT.B"]
[]
[null,"GAGNANT",null,null,null,null,null,null,null,null,null,null,null,null,null,null,null,null,null,null,null,null,null,null,null,null,null,null,"GAGNANT",null,null,null,null,null,null,null,null,null,null,null,null,null,null,null,null,null,null,null,null,null,null,null,null,null,null,"GAGNANT",null,null,null,null,null,null,null,null,null,null,null,null,null,null,null,null,null,null,null,null,null,null,null,null,null,null,"GAGNANT",null,null,null,null,null,null,null,null,null,null,null,null,null,null,null,null,null,null,null,null,null,null,null,null,null,null,"GAGNANT",null,null,null,null,null,null,null,null,null,null,null,null,null,null,null,null,null,null,null,null,null,null,null,null,null,null,"GAGNANT",null,null,null,null,null,null,null,null,null,null,null,null,null,null,null,null,null,null,null,null,null,null,null,null,null,null,"GAGNANT"]
[]
[null,"CASSE FERME",null,null,null,null,null,null,null,null,null,null,null,null,null,null,null,null,null,null,null,null,null,null,null,null,null,null,"CASSE FERME",null,null,null,null,null,null,null,null,null,null,null,null,null,null,null,null,null,null,null,null,null,null,null,null,null,null,"CASSE FERME",null,null,null,null,null,null,null,null,null,null,null,null,null,null,null,null,null,null,null,null,null,null,null,null,null,null,"CASSE FERME",null,null,null,null,null,null,null,null,null,null,null,null,null,null,null,null,null,null,null,null,null,null,null,null,null,null,"CASSE FERME",null,null,null,null,null,null,null,null,null,null,null,null,null,null,null,null,null,null,null,null,null,null,null,null,null,null,"CASSE FERME",null,null,null,null,null,null,null,null,null,null,null,null,null,null,null,null,null,null,null,null,null,null,null,null,null,null,"CASSE FERME"]
[]
[null,"REPRISE FERME",null,null,null,null,null,null,null,null,null,null,null,null,null,null,null,null,null,null,null,null,null,null,null,null,null,null,"REPRISE FERME",null,null,null,null,null,null,null,null,null,null,null,null,null,null,null,null,null,null,null,null,null,null,null,null,null,null,"REPRISE FERME",null,null,null,null,null,null,null,null,null,null,null,null,null,null,null,null,null,null,null,null,null,null,null,null,null,null,"REPRISE FERME",null,null,null,null,null,null,null,null,null,null,null,null,null,null,null,null,null,null,null,null,null,null,null,null,null,null,"REPRISE FERME",null,null,null,null,null,null,null,null,null,null,null,null,null,null,null,null,null,null,null,null,null,null,null,null,null,null,"REPRISE FERME",null,null,null,null,null,null,null,null,null,null,null,null,null,null,null,null,null,null,null,null,null,null,null,null,null,null,"REPRISE FERME"]
[]
[null,"Forfait joueur A",null,null,null,null,null,null,null,null,null,null,null,null,null,null,null,null,null,"Forfait joueur B",null,null,null,null,null,null,null,null,"Forfait joueur A",null,null,null,null,null,null,null,null,null,null,null,null,null,null,null,null,null,"Forfait joueur B",null,null,null,null,null,null,null,null,"Forfait joueur A",null,null,null,null,null,null,null,null,null,null,null,null,null,null,null,null,null,"Forfait joueur B",null,null,null,null,null,null,null,null,"Forfait joueur A",null,null,null,null,null,null,null,null,null,null,null,null,null,null,null,null,null,"Forfait joueur B",null,null,null,null,null,null,null,null,"Forfait joueur A",null,null,null,null,null,null,null,null,null,null,null,null,null,null,null,null,null,"Forfait joueur B",null,null,null,null,null,null,null,null,"Forfait joueur A",null,null,null,null,null,null,null,null,null,null,null,null,null,null,null,null,null,"Forfait joueur B",null,null,null,null,null,null,null,null,"Forfait joueur A",null,null,null,null,null,null,null,null,null,null,null,null,null,null,null,null,null,"Forfait joueur B"]
[null,null,null,null,null,null,null,"En cas de litige, cochez la case ci-dessous et décrivez le litige au dos de cette feuille",null,null,null,null,null,null,null,null,null,null,null,null,null,null,null,null,null,null,null,null,null,null,null,null,null,null,"En cas de litige, cochez la case ci-dessous et décrivez le litige au dos de cette feuille",null,null,null,null,null,null,null,null,null,null,null,null,null,null,null,null,null,null,null,null,null,null,null,null,null,null,"En cas de litige, cochez la case ci-dessous et décrivez le litige au dos de cette feuille",null,null,null,null,null,null,null,null,null,null,null,null,null,null,null,null,null,null,null,null,null,null,null,null,null,null,"En cas de litige, cochez la case ci-dessous et décrivez le litige au dos de cette feuille",null,null,null,null,null,null,null,null,null,null,null,null,null,null,null,null,null,null,null,null,null,null,null,null,null,null,"En cas de litige, cochez la case ci-dessous et décrivez le litige au dos de cette feuille",null,null,null,null,null,null,null,null,null,null,null,null,null,null,null,null,null,null,null,null,null,null,null,null,null,null,"En cas de litige, cochez la case ci-dessous et décrivez le litige au dos de cette feuille",null,null,null,null,null,null,null,null,null,null,null,null,null,null,null,null,null,null,null,null,null,null,null,null,null,null,"En cas de litige, cochez la case ci-dessous et décrivez le litige au dos de cette feuille"]
[]
[]
[null,"Signature joueur A",null,null,null,null,null,null,null,null,null,null,null,null,null,null,null,null,null,"Signature joueur B",null,null,null,null,null,null,null,null,"Signature joueur A",null,null,null,null,null,null,null,null,null,null,null,null,null,null,null,null,null,"Signature joueur B",null,null,null,null,null,null,null,null,"Signature joueur A",null,null,null,null,null,null,null,null,null,null,null,null,null,null,null,null,null,"Signature joueur B",null,null,null,null,null,null,null,null,"Signature joueur A",null,null,null,null,null,null,null,null,null,null,null,null,null,null,null,null,null,"Signature joueur B",null,null,null,null,null,null,null,null,"Signature joueur A",null,null,null,null,null,null,null,null,null,null,null,null,null,null,null,null,null,"Signature joueur B",null,null,null,null,null,null,null,null,"Signature joueur A",null,null,null,null,null,null,null,null,null,null,null,null,null,null,null,null,null,"Signature joueur B",null,null,null,null,null,null,null,null,"Signature joueur A",null,null,null,null,null,null,null,null,null,null,null,null,null,null,null,null,null,"Signature joueur B"]
[]
[]
[]
[]
[]
["Match 1 poule 2",null,null,null,null,null,null,null,null,null,null,null,null,null,null,null,null,null,null,null,null,null,null,null,null,null,null,"Match 2 poule 2",null,null,null,null,null,null,null,null,null,null,null,null,null,null,null,null,null,null,null,null,null,null,null,null,null,null,"Match 3 poule 2",null,null,null,null,null,null,null,null,null,null,null,null,null,null,null,null,null,null,null,null,null,null,null,null,null,null,"Match 4 poule 2",null,null,null,null,null,null,null,null,null,null,null,null,null,null,null,null,null,null,null,null,null,null,null,null,null,null,"Match 5 poule 2",null,null,null,null,null,null,null,null,null,null,null,null,null,null,null,null,null,null,null,null,null,null,null,null,null,null,"Match 5 tableau finale",null,null,null,null,null,null,null,null,null,null,null,null,null,null,null,null,null,null,null,null,null,null,null,null,null,null,"Match 6 tableau finale"]
[null,"MIXTE",null,null,null,null,null,null,null,null,null,null,null,null,null,null,null,null,null,null,null,null,null,null,null,null,null,null,"MIXTE",null,null,null,null,null,null,null,null,null,null,null,null,null,null,null,null,null,null,null,null,null,null,null,null,null,null,"MIXTE",null,null,null,null,null,null,null,null,null,null,null,null,null,null,null,null,null,null,null,null,null,null,null,null,null,null,"MIXTE",null,null,null,null,null,null,null,null,null,null,null,null,null,null,null,null,null,null,null,null,null,null,null,null,null,null,"MIXTE",null,null,null,null,null,null,null,null,null,null,null,null,null,null,null,null,null,null,null,null,null,null,null,null,null,null,"MIXTE 1/8",null,null,null,null,null,null,null,null,null,null,null,null,null,null,null,null,null,null,null,null,null,null,null,null,null,null,"MIXTE 1/8"]
[]
[]
[]
[]
[]
[]
[]
[null,"JOUEUR A",null,null,null,null,null,null,"BILLARD N° ",null,null,null,null,null,null,null,null,null,null,null,"JOUEUR B",null,null,null,null,null,null,null,"JOUEUR A",null,null,null,null,null,null,"BILLARD N° ",null,null,null,null,null,null,null,null,null,null,null,"JOUEUR B",null,null,null,null,null,null,null,"JOUEUR A",null,null,null,null,null,null,"BILLARD N° ",null,null,null,null,null,null,null,null,null,null,null,"JOUEUR B",null,null,null,null,null,null,null,"JOUEUR A",null,null,null,null,null,null,"BILLARD N° ",null,null,null,null,null,null,null,null,null,null,null,"JOUEUR B",null,null,null,null,null,null,null,"JOUEUR A",null,null,null,null,null,null,"BILLARD N° ",null,null,null,null,null,null,null,null,null,null,null,"JOUEUR B",null,null,null,null,null,null,null,"JOUEUR A",null,null,null,null,null,null,"BILLARD N° ",null,null,null,null,null,null,null,null,null,null,null,"JOUEUR B",null,null,null,null,null,null,null,"JOUEUR A",null,null,null,null,null,null,"BILLARD N° ",null,null,null,null,null,null,null,null,null,null,null,"JOUEUR B"]
[]
[null,null,null,"3 PARTIES GAGNANTES",null,null,null,null,null,null,null,null,null,null,null,null,null,null,null,null,null,null,null,null,null,null,null,null,null,null,"3 PARTIES GAGNANTES",null,null,null,null,null,null,null,null,null,null,null,null,null,null,null,null,null,null,null,null,null,null,null,null,null,null,"3 PARTIES GAGNANTES",null,null,null,null,null,null,null,null,null,null,null,null,null,null,null,null,null,null,null,null,null,null,null,null,null,null,"3 PARTIES GAGNANTES",null,null,null,null,null,null,null,null,null,null,null,null,null,null,null,null,null,null,null,null,null,null,null,null,null,null,"3 PARTIES GAGNANTES",null,null,null,null,null,null,null,null,null,null,null,null,null,null,null,null,null,null,null,null,null,null,null,null,null,null,"4 PARTIES GAGNANTES",null,null,null,null,null,null,null,null,null,null,null,null,null,null,null,null,null,null,null,null,null,null,null,null,null,null,"4 PARTIES GAGNANTES"]
[]
[null,{"$f":"'2'!Q14","v":""},null,null,null,null,null,null,null,null,null,null,"VS",null,null,null,{"$f":"'2'!Q18","v":""},null,null,null,null,null,null,null,null,null,null,null,{"$f":"'2'!J4","v":""},null,null,null,null,null,null,null,null,null,null,"VS",null,null,null,{"$f":"'2'!J8","v":""},null,null,null,null,null,null,null,null,null,null,null,{"$f":"'2'!J14","v":""},null,null,null,null,null,null,null,null,null,null,"VS",null,null,null,{"$f":"'2'!J18","v":""},null,null,null,null,null,null,null,null,null,null,null,{"$f":"'2'!F6","v":""},null,null,null,null,null,null,null,null,null,null,"VS",null,null,null,{"$f":"'2'!F10","v":""},null,null,null,null,null,null,null,null,null,null,null,{"$f":"'2'!F16","v":""},null,null,null,null,null,null,null,null,null,null,"VS",null,null,null,{"$f":"'2'!F20","v":""},null,null,null,null,null,null,null,null,null,null,null,{"$f":"Final!B22","v":""},null,null,null,null,null,null,null,null,null,null,"VS",null,null,null,{"$f":"Final!B23","v":""},null,null,null,null,null,null,null,null,null,null,null,{"$f":"Final!B25","v":""},null,null,null,null,null,null,null,null,null,null,"VS",null,null,null,{"$f":"Final!B26","v":""}]
[]
[]
[null,"PARTIES",null,null,null,null,null,1,null,2,null,3,null,4,null,5,null,null,null,null,null,null,"TOT.A",null,"TOT.B",null,null,null,"PARTIES",null,null,null,null,null,1,null,2,null,3,null,4,null,5,null,null,null,null,null,null,"TOT.A",null,"TOT.B",null,null,null,"PARTIES",null,null,null,null,null,1,null,2,null,3,null,4,null,5,null,null,null,null,null,null,"TOT.A",null,"TOT.B",null,null,null,"PARTIES",null,null,null,null,null,1,null,2,null,3,null,4,null,5,null,null,null,null,null,null,"TOT.A",null,"TOT.B",null,null,null,"PARTIES",null,null,null,null,null,1,null,2,null,3,null,4,null,5,null,null,null,null,null,null,"TOT.A",null,"TOT.B",null,null,null,"PARTIES",null,null,null,null,null,1,null,2,null,3,null,4,null,5,null,6,null,7,null,null,"TOT.A",null,"TOT.B",null,null,null,"PARTIES",null,null,null,null,null,1,null,2,null,3,null,4,null,5,null,6,null,7,null,null,"TOT.A",null,"TOT.B"]
[]
[null,"GAGNANT",null,null,null,null,null,null,null,null,null,null,null,null,null,null,null,null,null,null,null,null,null,null,null,null,null,null,"GAGNANT",null,null,null,null,null,null,null,null,null,null,null,null,null,null,null,null,null,null,null,null,null,null,null,null,null,null,"GAGNANT",null,null,null,null,null,null,null,null,null,null,null,null,null,null,null,null,null,null,null,null,null,null,null,null,null,null,"GAGNANT",null,null,null,null,null,null,null,null,null,null,null,null,null,null,null,null,null,null,null,null,null,null,null,null,null,null,"GAGNANT",null,null,null,null,null,null,null,null,null,null,null,null,null,null,null,null,null,null,null,null,null,null,null,null,null,null,"GAGNANT",null,null,null,null,null,null,null,null,null,null,null,null,null,null,null,null,null,null,null,null,null,null,null,null,null,null,"GAGNANT"]
[]
[null,"CASSE FERME",null,null,null,null,null,null,null,null,null,null,null,null,null,null,null,null,null,null,null,null,null,null,null,null,null,null,"CASSE FERME",null,null,null,null,null,null,null,null,null,null,null,null,null,null,null,null,null,null,null,null,null,null,null,null,null,null,"CASSE FERME",null,null,null,null,null,null,null,null,null,null,null,null,null,null,null,null,null,null,null,null,null,null,null,null,null,null,"CASSE FERME",null,null,null,null,null,null,null,null,null,null,null,null,null,null,null,null,null,null,null,null,null,null,null,null,null,null,"CASSE FERME",null,null,null,null,null,null,null,null,null,null,null,null,null,null,null,null,null,null,null,null,null,null,null,null,null,null,"CASSE FERME",null,null,null,null,null,null,null,null,null,null,null,null,null,null,null,null,null,null,null,null,null,null,null,null,null,null,"CASSE FERME"]
[]
[null,"REPRISE FERME",null,null,null,null,null,null,null,null,null,null,null,null,null,null,null,null,null,null,null,null,null,null,null,null,null,null,"REPRISE FERME",null,null,null,null,null,null,null,null,null,null,null,null,null,null,null,null,null,null,null,null,null,null,null,null,null,null,"REPRISE FERME",null,null,null,null,null,null,null,null,null,null,null,null,null,null,null,null,null,null,null,null,null,null,null,null,null,null,"REPRISE FERME",null,null,null,null,null,null,null,null,null,null,null,null,null,null,null,null,null,null,null,null,null,null,null,null,null,null,"REPRISE FERME",null,null,null,null,null,null,null,null,null,null,null,null,null,null,null,null,null,null,null,null,null,null,null,null,null,null,"REPRISE FERME",null,null,null,null,null,null,null,null,null,null,null,null,null,null,null,null,null,null,null,null,null,null,null,null,null,null,"REPRISE FERME"]
[]
[null,"Forfait joueur A",null,null,null,null,null,null,null,null,null,null,null,null,null,null,null,null,null,"Forfait joueur B",null,null,null,null,null,null,null,null,"Forfait joueur A",null,null,null,null,null,null,null,null,null,null,null,null,null,null,null,null,null,"Forfait joueur B",null,null,null,null,null,null,null,null,"Forfait joueur A",null,null,null,null,null,null,null,null,null,null,null,null,null,null,null,null,null,"Forfait joueur B",null,null,null,null,null,null,null,null,"Forfait joueur A",null,null,null,null,null,null,null,null,null,null,null,null,null,null,null,null,null,"Forfait joueur B",null,null,null,null,null,null,null,null,"Forfait joueur A",null,null,null,null,null,null,null,null,null,null,null,null,null,null,null,null,null,"Forfait joueur B",null,null,null,null,null,null,null,null,"Forfait joueur A",null,null,null,null,null,null,null,null,null,null,null,null,null,null,null,null,null,"Forfait joueur B",null,null,null,null,null,null,null,null,"Forfait joueur A",null,null,null,null,null,null,null,null,null,null,null,null,null,null,null,null,null,"Forfait joueur B"]
[null,null,null,null,null,null,null,"En cas de litige, cochez la case ci-dessous et décrivez le litige au dos de cette feuille",null,null,null,null,null,null,null,null,null,null,null,null,null,null,null,null,null,null,null,null,null,null,null,null,null,null,"En cas de litige, cochez la case ci-dessous et décrivez le litige au dos de cette feuille",null,null,null,null,null,null,null,null,null,null,null,null,null,null,null,null,null,null,null,null,null,null,null,null,null,null,"En cas de litige, cochez la case ci-dessous et décrivez le litige au dos de cette feuille",null,null,null,null,null,null,null,null,null,null,null,null,null,null,null,null,null,null,null,null,null,null,null,null,null,null,"En cas de litige, cochez la case ci-dessous et décrivez le litige au dos de cette feuille",null,null,null,null,null,null,null,null,null,null,null,null,null,null,null,null,null,null,null,null,null,null,null,null,null,null,"En cas de litige, cochez la case ci-dessous et décrivez le litige au dos de cette feuille",null,null,null,null,null,null,null,null,null,null,null,null,null,null,null,null,null,null,null,null,null,null,null,null,null,null,"En cas de litige, cochez la case ci-dessous et décrivez le litige au dos de cette feuille",null,null,null,null,null,null,null,null,null,null,null,null,null,null,null,null,null,null,null,null,null,null,null,null,null,null,"En cas de litige, cochez la case ci-dessous et décrivez le litige au dos de cette feuille"]
[]
[]
[null,"Signature joueur A",null,null,null,null,null,null,null,null,null,null,null,null,null,null,null,null,null,"Signature joueur B",null,null,null,null,null,null,null,null,"Signature joueur A",null,null,null,null,null,null,null,null,null,null,null,null,null,null,null,null,null,"Signature joueur B",null,null,null,null,null,null,null,null,"Signature joueur A",null,null,null,null,null,null,null,null,null,null,null,null,null,null,null,null,null,"Signature joueur B",null,null,null,null,null,null,null,null,"Signature joueur A",null,null,null,null,null,null,null,null,null,null,null,null,null,null,null,null,null,"Signature joueur B",null,null,null,null,null,null,null,null,"Signature joueur A",null,null,null,null,null,null,null,null,null,null,null,null,null,null,null,null,null,"Signature joueur B",null,null,null,null,null,null,null,null,"Signature joueur A",null,null,null,null,null,null,null,null,null,null,null,null,null,null,null,null,null,"Signature joueur B",null,null,null,null,null,null,null,null,"Signature joueur A",null,null,null,null,null,null,null,null,null,null,null,null,null,null,null,null,null,"Signature joueur B"]
[]
[]
[]
[]
[]
["Match 6 poule 2",null,null,null,null,null,null,null,null,null,null,null,null,null,null,null,null,null,null,null,null,null,null,null,null,null,null,"Match 7 poule 2",null,null,null,null,null,null,null,null,null,null,null,null,null,null,null,null,null,null,null,null,null,null,null,null,null,null,"Match 8 poule 2",null,null,null,null,null,null,null,null,null,null,null,null,null,null,null,null,null,null,null,null,null,null,null,null,null,null,"Match 9 poule 2",null,null,null,null,null,null,null,null,null,null,null,null,null,null,null,null,null,null,null,null,null,null,null,null,null,null,"Match 10 poule 2",null,null,null,null,null,null,null,null,null,null,null,null,null,null,null,null,null,null,null,null,null,null,null,null,null,null,"Match 7 tableau finale",null,null,null,null,null,null,null,null,null,null,null,null,null,null,null,null,null,null,null,null,null,null,null,null,null,null,"Match 8 tableau finale"]
[null,"MIXTE",null,null,null,null,null,null,null,null,null,null,null,null,null,null,null,null,null,null,null,null,null,null,null,null,null,null,"MIXTE",null,null,null,null,null,null,null,null,null,null,null,null,null,null,null,null,null,null,null,null,null,null,null,null,null,null,"MIXTE",null,null,null,null,null,null,null,null,null,null,null,null,null,null,null,null,null,null,null,null,null,null,null,null,null,null,"MIXTE",null,null,null,null,null,null,null,null,null,null,null,null,null,null,null,null,null,null,null,null,null,null,null,null,null,null,"MIXTE",null,null,null,null,null,null,null,null,null,null,null,null,null,null,null,null,null,null,null,null,null,null,null,null,null,null,"MIXTE 1/4",null,null,null,null,null,null,null,null,null,null,null,null,null,null,null,null,null,null,null,null,null,null,null,null,null,null,"MIXTE 1/4"]
[]
[]
[]
[]
[]
[]
[]
[null,"JOUEUR A",null,null,null,null,null,null,"BILLARD N° ",null,null,null,null,null,null,null,null,null,null,null,"JOUEUR B",null,null,null,null,null,null,null,"JOUEUR A",null,null,null,null,null,null,"BILLARD N° ",null,null,null,null,null,null,null,null,null,null,null,"JOUEUR B",null,null,null,null,null,null,null,"JOUEUR A",null,null,null,null,null,null,"BILLARD N° ",null,null,null,null,null,null,null,null,null,null,null,"JOUEUR B",null,null,null,null,null,null,null,"JOUEUR A",null,null,null,null,null,null,"BILLARD N° ",null,null,null,null,null,null,null,null,null,null,null,"JOUEUR B",null,null,null,null,null,null,null,"JOUEUR A",null,null,null,null,null,null,"BILLARD N° ",null,null,null,null,null,null,null,null,null,null,null,"JOUEUR B",null,null,null,null,null,null,null,"JOUEUR A",null,null,null,null,null,null,"BILLARD N° ",null,null,null,null,null,null,null,null,null,null,null,"JOUEUR B",null,null,null,null,null,null,null,"JOUEUR A",null,null,null,null,null,null,"BILLARD N° ",null,null,null,null,null,null,null,null,null,null,null,"JOUEUR B"]
[]
[null,null,null,"3 PARTIES GAGNANTES",null,null,null,null,null,null,null,null,null,null,null,null,null,null,null,null,null,null,null,null,null,null,null,null,null,null,"3 PARTIES GAGNANTES",null,null,null,null,null,null,null,null,null,null,null,null,null,null,null,null,null,null,null,null,null,null,null,null,null,null,"3 PARTIES GAGNANTES",null,null,null,null,null,null,null,null,null,null,null,null,null,null,null,null,null,null,null,null,null,null,null,null,null,null,"3 PARTIES GAGNANTES",null,null,null,null,null,null,null,null,null,null,null,null,null,null,null,null,null,null,null,null,null,null,null,null,null,null,"3 PARTIES GAGNANTES",null,null,null,null,null,null,null,null,null,null,null,null,null,null,null,null,null,null,null,null,null,null,null,null,null,null,"4 PARTIES GAGNANTES",null,null,null,null,null,null,null,null,null,null,null,null,null,null,null,null,null,null,null,null,null,null,null,null,null,null,"4 PARTIES GAGNANTES"]
[]
[null,{"$f":"'3'!M3","v":"CROS DAVID"},null,null,null,null,null,null,null,null,null,null,"VS",null,null,null,{"$f":"'3'!M5","v":"BABEL STEPHANIE"},null,null,null,null,null,null,null,null,null,null,null,{"$f":"'3'!M7","v":"LATORRE ANDRE"},null,null,null,null,null,null,null,null,null,null,"VS",null,null,null,{"$f":"'3'!M9","v":"TASSET JEROME"},null,null,null,null,null,null,null,null,null,null,null,{"$f":"'3'!M13","v":"TEBBANI AZIZ"},null,null,null,null,null,null,null,null,null,null,"VS",null,null,null,{"$f":"'3'!M15","v":"BONTOUX SYLVIE"},null,null,null,null,null,null,null,null,null,null,null,{"$f":"'3'!M17","v":"BRUN CHRISTOPHE"},null,null,null,null,null,null,null,null,null,null,"VS",null,null,null,{"$f":"'3'!M19","v":"HERREMAN FRANCOIS"},null,null,null,null,null,null,null,null,null,null,null,{"$f":"'3'!Q4","v":""},null,null,null,null,null,null,null,null,null,null,"VS",null,null,null,{"$f":"'3'!Q8","v":""},null,null,null,null,null,null,null,null,null,null,null,{"$f":"Final!F5","v":""},null,null,null,null,null,null,null,null,null,null,"VS",null,null,null,{"$f":"Final!F7","v":""},null,null,null,null,null,null,null,null,null,null,null,{"$f":"Final!F11","v":""},null,null,null,null,null,null,null,null,null,null,"VS",null,null,null,{"$f":"Final!F13","v":""}]
[]
[]
[null,"PARTIES",null,null,null,null,null,1,null,2,null,3,null,4,null,5,null,null,null,null,null,null,"TOT.A",null,"TOT.B",null,null,null,"PARTIES",null,null,null,null,null,1,null,2,null,3,null,4,null,5,null,null,null,null,null,null,"TOT.A",null,"TOT.B",null,null,null,"PARTIES",null,null,null,null,null,1,null,2,null,3,null,4,null,5,null,null,null,null,null,null,"TOT.A",null,"TOT.B",null,null,null,"PARTIES",null,null,null,null,null,1,null,2,null,3,null,4,null,5,null,null,null,null,null,null,"TOT.A",null,"TOT.B",null,null,null,"PARTIES",null,null,null,null,null,1,null,2,null,3,null,4,null,5,null,null,null,null,null,null,"TOT.A",null,"TOT.B",null,null,null,"PARTIES",null,null,null,null,null,1,null,2,null,3,null,4,null,5,null,6,null,7,null,null,"TOT.A",null,"TOT.B",null,null,null,"PARTIES",null,null,null,null,null,1,null,2,null,3,null,4,null,5,null,6,null,7,null,null,"TOT.A",null,"TOT.B"]
[]
[null,"GAGNANT",null,null,null,null,null,null,null,null,null,null,null,null,null,null,null,null,null,null,null,null,null,null,null,null,null,null,"GAGNANT",null,null,null,null,null,null,null,null,null,null,null,null,null,null,null,null,null,null,null,null,null,null,null,null,null,null,"GAGNANT",null,null,null,null,null,null,null,null,null,null,null,null,null,null,null,null,null,null,null,null,null,null,null,null,null,null,"GAGNANT",null,null,null,null,null,null,null,null,null,null,null,null,null,null,null,null,null,null,null,null,null,null,null,null,null,null,"GAGNANT",null,null,null,null,null,null,null,null,null,null,null,null,null,null,null,null,null,null,null,null,null,null,null,null,null,null,"GAGNANT",null,null,null,null,null,null,null,null,null,null,null,null,null,null,null,null,null,null,null,null,null,null,null,null,null,null,"GAGNANT"]
[]
[null,"CASSE FERME",null,null,null,null,null,null,null,null,null,null,null,null,null,null,null,null,null,null,null,null,null,null,null,null,null,null,"CASSE FERME",null,null,null,null,null,null,null,null,null,null,null,null,null,null,null,null,null,null,null,null,null,null,null,null,null,null,"CASSE FERME",null,null,null,null,null,null,null,null,null,null,null,null,null,null,null,null,null,null,null,null,null,null,null,null,null,null,"CASSE FERME",null,null,null,null,null,null,null,null,null,null,null,null,null,null,null,null,null,null,null,null,null,null,null,null,null,null,"CASSE FERME",null,null,null,null,null,null,null,null,null,null,null,null,null,null,null,null,null,null,null,null,null,null,null,null,null,null,"CASSE FERME",null,null,null,null,null,null,null,null,null,null,null,null,null,null,null,null,null,null,null,null,null,null,null,null,null,null,"CASSE FERME"]
[]
[null,"REPRISE FERME",null,null,null,null,null,null,null,null,null,null,null,null,null,null,null,null,null,null,null,null,null,null,null,null,null,null,"REPRISE FERME",null,null,null,null,null,null,null,null,null,null,null,null,null,null,null,null,null,null,null,null,null,null,null,null,null,null,"REPRISE FERME",null,null,null,null,null,null,null,null,null,null,null,null,null,null,null,null,null,null,null,null,null,null,null,null,null,null,"REPRISE FERME",null,null,null,null,null,null,null,null,null,null,null,null,null,null,null,null,null,null,null,null,null,null,null,null,null,null,"REPRISE FERME",null,null,null,null,null,null,null,null,null,null,null,null,null,null,null,null,null,null,null,null,null,null,null,null,null,null,"REPRISE FERME",null,null,null,null,null,null,null,null,null,null,null,null,null,null,null,null,null,null,null,null,null,null,null,null,null,null,"REPRISE FERME"]
[]
[null,"Forfait joueur A",null,null,null,null,null,null,null,null,null,null,null,null,null,null,null,null,null,"Forfait joueur B",null,null,null,null,null,null,null,null,"Forfait joueur A",null,null,null,null,null,null,null,null,null,null,null,null,null,null,null,null,null,"Forfait joueur B",null,null,null,null,null,null,null,null,"Forfait joueur A",null,null,null,null,null,null,null,null,null,null,null,null,null,null,null,null,null,"Forfait joueur B",null,null,null,null,null,null,null,null,"Forfait joueur A",null,null,null,null,null,null,null,null,null,null,null,null,null,null,null,null,null,"Forfait joueur B",null,null,null,null,null,null,null,null,"Forfait joueur A",null,null,null,null,null,null,null,null,null,null,null,null,null,null,null,null,null,"Forfait joueur B",null,null,null,null,null,null,null,null,"Forfait joueur A",null,null,null,null,null,null,null,null,null,null,null,null,null,null,null,null,null,"Forfait joueur B",null,null,null,null,null,null,null,null,"Forfait joueur A",null,null,null,null,null,null,null,null,null,null,null,null,null,null,null,null,null,"Forfait joueur B"]
[null,null,null,null,null,null,null,"En cas de litige, cochez la case ci-dessous et décrivez le litige au dos de cette feuille",null,null,null,null,null,null,null,null,null,null,null,null,null,null,null,null,null,null,null,null,null,null,null,null,null,null,"En cas de litige, cochez la case ci-dessous et décrivez le litige au dos de cette feuille",null,null,null,null,null,null,null,null,null,null,null,null,null,null,null,null,null,null,null,null,null,null,null,null,null,null,"En cas de litige, cochez la case ci-dessous et décrivez le litige au dos de cette feuille",null,null,null,null,null,null,null,null,null,null,null,null,null,null,null,null,null,null,null,null,null,null,null,null,null,null,"En cas de litige, cochez la case ci-dessous et décrivez le litige au dos de cette feuille",null,null,null,null,null,null,null,null,null,null,null,null,null,null,null,null,null,null,null,null,null,null,null,null,null,null,"En cas de litige, cochez la case ci-dessous et décrivez le litige au dos de cette feuille",null,null,null,null,null,null,null,null,null,null,null,null,null,null,null,null,null,null,null,null,null,null,null,null,null,null,"En cas de litige, cochez la case ci-dessous et décrivez le litige au dos de cette feuille",null,null,null,null,null,null,null,null,null,null,null,null,null,null,null,null,null,null,null,null,null,null,null,null,null,null,"En cas de litige, cochez la case ci-dessous et décrivez le litige au dos de cette feuille"]
[]
[]
[null,"Signature joueur A",null,null,null,null,null,null,null,null,null,null,null,null,null,null,null,null,null,"Signature joueur B",null,null,null,null,null,null,null,null,"Signature joueur A",null,null,null,null,null,null,null,null,null,null,null,null,null,null,null,null,null,"Signature joueur B",null,null,null,null,null,null,null,null,"Signature joueur A",null,null,null,null,null,null,null,null,null,null,null,null,null,null,null,null,null,"Signature joueur B",null,null,null,null,null,null,null,null,"Signature joueur A",null,null,null,null,null,null,null,null,null,null,null,null,null,null,null,null,null,"Signature joueur B",null,null,null,null,null,null,null,null,"Signature joueur A",null,null,null,null,null,null,null,null,null,null,null,null,null,null,null,null,null,"Signature joueur B",null,null,null,null,null,null,null,null,"Signature joueur A",null,null,null,null,null,null,null,null,null,null,null,null,null,null,null,null,null,"Signature joueur B",null,null,null,null,null,null,null,null,"Signature joueur A",null,null,null,null,null,null,null,null,null,null,null,null,null,null,null,null,null,"Signature joueur B"]
[]
[]
[]
[]
[]
["Match 1 poule 3",null,null,null,null,null,null,null,null,null,null,null,null,null,null,null,null,null,null,null,null,null,null,null,null,null,null,"Match 2 poule 3",null,null,null,null,null,null,null,null,null,null,null,null,null,null,null,null,null,null,null,null,null,null,null,null,null,null,"Match 3 poule 3",null,null,null,null,null,null,null,null,null,null,null,null,null,null,null,null,null,null,null,null,null,null,null,null,null,null,"Match 4 poule 3",null,null,null,null,null,null,null,null,null,null,null,null,null,null,null,null,null,null,null,null,null,null,null,null,null,null,"Match 5 poule 3",null,null,null,null,null,null,null,null,null,null,null,null,null,null,null,null,null,null,null,null,null,null,null,null,null,null,"Match 9 tableau finale",null,null,null,null,null,null,null,null,null,null,null,null,null,null,null,null,null,null,null,null,null,null,null,null,null,null,"Match 10 tableau finale"]
[null,"MIXTE",null,null,null,null,null,null,null,null,null,null,null,null,null,null,null,null,null,null,null,null,null,null,null,null,null,null,"MIXTE",null,null,null,null,null,null,null,null,null,null,null,null,null,null,null,null,null,null,null,null,null,null,null,null,null,null,"MIXTE",null,null,null,null,null,null,null,null,null,null,null,null,null,null,null,null,null,null,null,null,null,null,null,null,null,null,"MIXTE",null,null,null,null,null,null,null,null,null,null,null,null,null,null,null,null,null,null,null,null,null,null,null,null,null,null,"MIXTE",null,null,null,null,null,null,null,null,null,null,null,null,null,null,null,null,null,null,null,null,null,null,null,null,null,null,"MIXTE 1/4",null,null,null,null,null,null,null,null,null,null,null,null,null,null,null,null,null,null,null,null,null,null,null,null,null,null,"MIXTE 1/4"]
[]
[]
[]
[]
[]
[]
[]
[null,"JOUEUR A",null,null,null,null,null,null,"BILLARD N° ",null,null,null,null,null,null,null,null,null,null,null,"JOUEUR B",null,null,null,null,null,null,null,"JOUEUR A",null,null,null,null,null,null,"BILLARD N° ",null,null,null,null,null,null,null,null,null,null,null,"JOUEUR B",null,null,null,null,null,null,null,"JOUEUR A",null,null,null,null,null,null,"BILLARD N° ",null,null,null,null,null,null,null,null,null,null,null,"JOUEUR B",null,null,null,null,null,null,null,"JOUEUR A",null,null,null,null,null,null,"BILLARD N° ",null,null,null,null,null,null,null,null,null,null,null,"JOUEUR B",null,null,null,null,null,null,null,"JOUEUR A",null,null,null,null,null,null,"BILLARD N° ",null,null,null,null,null,null,null,null,null,null,null,"JOUEUR B",null,null,null,null,null,null,null,"JOUEUR A",null,null,null,null,null,null,"BILLARD N° ",null,null,null,null,null,null,null,null,null,null,null,"JOUEUR B",null,null,null,null,null,null,null,"JOUEUR A",null,null,null,null,null,null,"BILLARD N° ",null,null,null,null,null,null,null,null,null,null,null,"JOUEUR B"]
[]
[null,null,null,"3 PARTIES GAGNANTES",null,null,null,null,null,null,null,null,null,null,null,null,null,null,null,null,null,null,null,null,null,null,null,null,null,null,"3 PARTIES GAGNANTES",null,null,null,null,null,null,null,null,null,null,null,null,null,null,null,null,null,null,null,null,null,null,null,null,null,null,"3 PARTIES GAGNANTES",null,null,null,null,null,null,null,null,null,null,null,null,null,null,null,null,null,null,null,null,null,null,null,null,null,null,"3 PARTIES GAGNANTES",null,null,null,null,null,null,null,null,null,null,null,null,null,null,null,null,null,null,null,null,null,null,null,null,null,null,"3 PARTIES GAGNANTES",null,null,null,null,null,null,null,null,null,null,null,null,null,null,null,null,null,null,null,null,null,null,null,null,null,null,"4 PARTIES GAGNANTES",null,null,null,null,null,null,null,null,null,null,null,null,null,null,null,null,null,null,null,null,null,null,null,null,null,null,"4 PARTIES GAGNANTES"]
[]
[null,{"$f":"'3'!Q14","v":""},null,null,null,null,null,null,null,null,null,null,"VS",null,null,null,{"$f":"'3'!Q18","v":""},null,null,null,null,null,null,null,null,null,null,null,{"$f":"'3'!J4","v":""},null,null,null,null,null,null,null,null,null,null,"VS",null,null,null,{"$f":"'3'!J8","v":""},null,null,null,null,null,null,null,null,null,null,null,{"$f":"'3'!J14","v":""},null,null,null,null,null,null,null,null,null,null,"VS",null,null,null,{"$f":"'3'!J18","v":""},null,null,null,null,null,null,null,null,null,null,null,{"$f":"'3'!F6","v":""},null,null,null,null,null,null,null,null,null,null,"VS",null,null,null,{"$f":"'3'!F10","v":""},null,null,null,null,null,null,null,null,null,null,null,{"$f":"'3'!F16","v":""},null,null,null,null,null,null,null,null,null,null,"VS",null,null,null,{"$f":"'3'!F20","v":""},null,null,null,null,null,null,null,null,null,null,null,{"$f":"Final!F17","v":""},null,null,null,null,null,null,null,null,null,null,"VS",null,null,null,{"$f":"Final!F19","v":""},null,null,null,null,null,null,null,null,null,null,null,{"$f":"Final!F23","v":""},null,null,null,null,null,null,null,null,null,null,"VS",null,null,null,{"$f":"Final!F25","v":""}]
[]
[]
[null,"PARTIES",null,null,null,null,null,1,null,2,null,3,null,4,null,5,null,null,null,null,null,null,"TOT.A",null,"TOT.B",null,null,null,"PARTIES",null,null,null,null,null,1,null,2,null,3,null,4,null,5,null,null,null,null,null,null,"TOT.A",null,"TOT.B",null,null,null,"PARTIES",null,null,null,null,null,1,null,2,null,3,null,4,null,5,null,null,null,null,null,null,"TOT.A",null,"TOT.B",null,null,null,"PARTIES",null,null,null,null,null,1,null,2,null,3,null,4,null,5,null,null,null,null,null,null,"TOT.A",null,"TOT.B",null,null,null,"PARTIES",null,null,null,null,null,1,null,2,null,3,null,4,null,5,null,null,null,null,null,null,"TOT.A",null,"TOT.B",null,null,null,"PARTIES",null,null,null,null,null,1,null,2,null,3,null,4,null,5,null,6,null,7,null,null,"TOT.A",null,"TOT.B",null,null,null,"PARTIES",null,null,null,null,null,1,null,2,null,3,null,4,null,5,null,6,null,7,null,null,"TOT.A",null,"TOT.B"]
[]
[null,"GAGNANT",null,null,null,null,null,null,null,null,null,null,null,null,null,null,null,null,null,null,null,null,null,null,null,null,null,null,"GAGNANT",null,null,null,null,null,null,null,null,null,null,null,null,null,null,null,null,null,null,null,null,null,null,null,null,null,null,"GAGNANT",null,null,null,null,null,null,null,null,null,null,null,null,null,null,null,null,null,null,null,null,null,null,null,null,null,null,"GAGNANT",null,null,null,null,null,null,null,null,null,null,null,null,null,null,null,null,null,null,null,null,null,null,null,null,null,null,"GAGNANT",null,null,null,null,null,null,null,null,null,null,null,null,null,null,null,null,null,null,null,null,null,null,null,null,null,null,"GAGNANT",null,null,null,null,null,null,null,null,null,null,null,null,null,null,null,null,null,null,null,null,null,null,null,null,null,null,"GAGNANT"]
[]
[null,"CASSE FERME",null,null,null,null,null,null,null,null,null,null,null,null,null,null,null,null,null,null,null,null,null,null,null,null,null,null,"CASSE FERME",null,null,null,null,null,null,null,null,null,null,null,null,null,null,null,null,null,null,null,null,null,null,null,null,null,null,"CASSE FERME",null,null,null,null,null,null,null,null,null,null,null,null,null,null,null,null,null,null,null,null,null,null,null,null,null,null,"CASSE FERME",null,null,null,null,null,null,null,null,null,null,null,null,null,null,null,null,null,null,null,null,null,null,null,null,null,null,"CASSE FERME",null,null,null,null,null,null,null,null,null,null,null,null,null,null,null,null,null,null,null,null,null,null,null,null,null,null,"CASSE FERME",null,null,null,null,null,null,null,null,null,null,null,null,null,null,null,null,null,null,null,null,null,null,null,null,null,null,"CASSE FERME"]
[]
[null,"REPRISE FERME",null,null,null,null,null,null,null,null,null,null,null,null,null,null,null,null,null,null,null,null,null,null,null,null,null,null,"REPRISE FERME",null,null,null,null,null,null,null,null,null,null,null,null,null,null,null,null,null,null,null,null,null,null,null,null,null,null,"REPRISE FERME",null,null,null,null,null,null,null,null,null,null,null,null,null,null,null,null,null,null,null,null,null,null,null,null,null,null,"REPRISE FERME",null,null,null,null,null,null,null,null,null,null,null,null,null,null,null,null,null,null,null,null,null,null,null,null,null,null,"REPRISE FERME",null,null,null,null,null,null,null,null,null,null,null,null,null,null,null,null,null,null,null,null,null,null,null,null,null,null,"REPRISE FERME",null,null,null,null,null,null,null,null,null,null,null,null,null,null,null,null,null,null,null,null,null,null,null,null,null,null,"REPRISE FERME"]
[]
[null,"Forfait joueur A",null,null,null,null,null,null,null,null,null,null,null,null,null,null,null,null,null,"Forfait joueur B",null,null,null,null,null,null,null,null,"Forfait joueur A",null,null,null,null,null,null,null,null,null,null,null,null,null,null,null,null,null,"Forfait joueur B",null,null,null,null,null,null,null,null,"Forfait joueur A",null,null,null,null,null,null,null,null,null,null,null,null,null,null,null,null,null,"Forfait joueur B",null,null,null,null,null,null,null,null,"Forfait joueur A",null,null,null,null,null,null,null,null,null,null,null,null,null,null,null,null,null,"Forfait joueur B",null,null,null,null,null,null,null,null,"Forfait joueur A",null,null,null,null,null,null,null,null,null,null,null,null,null,null,null,null,null,"Forfait joueur B",null,null,null,null,null,null,null,null,"Forfait joueur A",null,null,null,null,null,null,null,null,null,null,null,null,null,null,null,null,null,"Forfait joueur B",null,null,null,null,null,null,null,null,"Forfait joueur A",null,null,null,null,null,null,null,null,null,null,null,null,null,null,null,null,null,"Forfait joueur B"]
[null,null,null,null,null,null,null,"En cas de litige, cochez la case ci-dessous et décrivez le litige au dos de cette feuille",null,null,null,null,null,null,null,null,null,null,null,null,null,null,null,null,null,null,null,null,null,null,null,null,null,null,"En cas de litige, cochez la case ci-dessous et décrivez le litige au dos de cette feuille",null,null,null,null,null,null,null,null,null,null,null,null,null,null,null,null,null,null,null,null,null,null,null,null,null,null,"En cas de litige, cochez la case ci-dessous et décrivez le litige au dos de cette feuille",null,null,null,null,null,null,null,null,null,null,null,null,null,null,null,null,null,null,null,null,null,null,null,null,null,null,"En cas de litige, cochez la case ci-dessous et décrivez le litige au dos de cette feuille",null,null,null,null,null,null,null,null,null,null,null,null,null,null,null,null,null,null,null,null,null,null,null,null,null,null,"En cas de litige, cochez la case ci-dessous et décrivez le litige au dos de cette feuille",null,null,null,null,null,null,null,null,null,null,null,null,null,null,null,null,null,null,null,null,null,null,null,null,null,null,"En cas de litige, cochez la case ci-dessous et décrivez le litige au dos de cette feuille",null,null,null,null,null,null,null,null,null,null,null,null,null,null,null,null,null,null,null,null,null,null,null,null,null,null,"En cas de litige, cochez la case ci-dessous et décrivez le litige au dos de cette feuille"]
[]
[]
[null,"Signature joueur A",null,null,null,null,null,null,null,null,null,null,null,null,null,null,null,null,null,"Signature joueur B",null,null,null,null,null,null,null,null,"Signature joueur A",null,null,null,null,null,null,null,null,null,null,null,null,null,null,null,null,null,"Signature joueur B",null,null,null,null,null,null,null,null,"Signature joueur A",null,null,null,null,null,null,null,null,null,null,null,null,null,null,null,null,null,"Signature joueur B",null,null,null,null,null,null,null,null,"Signature joueur A",null,null,null,null,null,null,null,null,null,null,null,null,null,null,null,null,null,"Signature joueur B",null,null,null,null,null,null,null,null,"Signature joueur A",null,null,null,null,null,null,null,null,null,null,null,null,null,null,null,null,null,"Signature joueur B",null,null,null,null,null,null,null,null,"Signature joueur A",null,null,null,null,null,null,null,null,null,null,null,null,null,null,null,null,null,"Signature joueur B",null,null,null,null,null,null,null,null,"Signature joueur A",null,null,null,null,null,null,null,null,null,null,null,null,null,null,null,null,null,"Signature joueur B"]
[]
[]
[]
[]
[]
["Match 6 poule 3",null,null,null,null,null,null,null,null,null,null,null,null,null,null,null,null,null,null,null,null,null,null,null,null,null,null,"Match 7 poule 3",null,null,null,null,null,null,null,null,null,null,null,null,null,null,null,null,null,null,null,null,null,null,null,null,null,null,"Match 8 poule 3",null,null,null,null,null,null,null,null,null,null,null,null,null,null,null,null,null,null,null,null,null,null,null,null,null,null,"Match 9 poule 3",null,null,null,null,null,null,null,null,null,null,null,null,null,null,null,null,null,null,null,null,null,null,null,null,null,null,"Match 10 poule 3",null,null,null,null,null,null,null,null,null,null,null,null,null,null,null,null,null,null,null,null,null,null,null,null,null,null,"Match 11 tableau finale",null,null,null,null,null,null,null,null,null,null,null,null,null,null,null,null,null,null,null,null,null,null,null,null,null,null,"Match 12 tableau finale"]
[null,"MIXTE",null,null,null,null,null,null,null,null,null,null,null,null,null,null,null,null,null,null,null,null,null,null,null,null,null,null,"MIXTE",null,null,null,null,null,null,null,null,null,null,null,null,null,null,null,null,null,null,null,null,null,null,null,null,null,null,"MIXTE",null,null,null,null,null,null,null,null,null,null,null,null,null,null,null,null,null,null,null,null,null,null,null,null,null,null,"MIXTE",null,null,null,null,null,null,null,null,null,null,null,null,null,null,null,null,null,null,null,null,null,null,null,null,null,null,"MIXTE",null,null,null,null,null,null,null,null,null,null,null,null,null,null,null,null,null,null,null,null,null,null,null,null,null,null,"MIXTE 1/2",null,null,null,null,null,null,null,null,null,null,null,null,null,null,null,null,null,null,null,null,null,null,null,null,null,null,"MIXTE 1/2"]
[]
[]
[]
[]
[]
[]
[]
[null,"JOUEUR A",null,null,null,null,null,null,"BILLARD N° ",null,null,null,null,null,null,null,null,null,null,null,"JOUEUR B",null,null,null,null,null,null,null,"JOUEUR A",null,null,null,null,null,null,"BILLARD N° ",null,null,null,null,null,null,null,null,null,null,null,"JOUEUR B",null,null,null,null,null,null,null,"JOUEUR A",null,null,null,null,null,null,"BILLARD N° ",null,null,null,null,null,null,null,null,null,null,null,"JOUEUR B",null,null,null,null,null,null,null,"JOUEUR A",null,null,null,null,null,null,"BILLARD N° ",null,null,null,null,null,null,null,null,null,null,null,"JOUEUR B",null,null,null,null,null,null,null,"JOUEUR A",null,null,null,null,null,null,"BILLARD N° ",null,null,null,null,null,null,null,null,null,null,null,"JOUEUR B",null,null,null,null,null,null,null,"JOUEUR A",null,null,null,null,null,null,"BILLARD N° ",null,null,null,null,null,null,null,null,null,null,null,"JOUEUR B",null,null,null,null,null,null,null,"JOUEUR A",null,null,null,null,null,null,"BILLARD N° ",null,null,null,null,null,null,null,null,null,null,null,"JOUEUR B"]
[]
[null,null,null,"3 PARTIES GAGNANTES",null,null,null,null,null,null,null,null,null,null,null,null,null,null,null,null,null,null,null,null,null,null,null,null,null,null,"3 PARTIES GAGNANTES",null,null,null,null,null,null,null,null,null,null,null,null,null,null,null,null,null,null,null,null,null,null,null,null,null,null,"3 PARTIES GAGNANTES",null,null,null,null,null,null,null,null,null,null,null,null,null,null,null,null,null,null,null,null,null,null,null,null,null,null,"3 PARTIES GAGNANTES",null,null,null,null,null,null,null,null,null,null,null,null,null,null,null,null,null,null,null,null,null,null,null,null,null,null,"3 PARTIES GAGNANTES",null,null,null,null,null,null,null,null,null,null,null,null,null,null,null,null,null,null,null,null,null,null,null,null,null,null,"4 PARTIES GAGNANTES",null,null,null,null,null,null,null,null,null,null,null,null,null,null,null,null,null,null,null,null,null,null,null,null,null,null,"4 PARTIES GAGNANTES"]
[]
[null,{"$f":"'4'!M3","v":"DE ALMEIDA DUARTE FREDERICO"},null,null,null,null,null,null,null,null,null,null,"VS",null,null,null,{"$f":"'4'!M5","v":"BRENDEL CHRISTIAN"},null,null,null,null,null,null,null,null,null,null,null,{"$f":"'4'!M7","v":"KUSAR TONY"},null,null,null,null,null,null,null,null,null,null,"VS",null,null,null,{"$f":"'4'!M9","v":"CENDRIER DAVID"},null,null,null,null,null,null,null,null,null,null,null,{"$f":"'4'!M13","v":"LACROIX DYLAN"},null,null,null,null,null,null,null,null,null,null,"VS",null,null,null,{"$f":"'4'!M15","v":"URAY JIMMY"},null,null,null,null,null,null,null,null,null,null,null,{"$f":"'4'!M17","v":"LEPAGE PATRICK"},null,null,null,null,null,null,null,null,null,null,"VS",null,null,null,{"$f":"'4'!M19","v":"DUARTE JOSE"},null,null,null,null,null,null,null,null,null,null,null,{"$f":"'4'!Q4","v":""},null,null,null,null,null,null,null,null,null,null,"VS",null,null,null,{"$f":"'4'!Q8","v":""},null,null,null,null,null,null,null,null,null,null,null,{"$f":"Final!J6","v":""},null,null,null,null,null,null,null,null,null,null,"VS",null,null,null,{"$f":"Final!J12","v":""},null,null,null,null,null,null,null,null,null,null,null,{"$f":"Final!J18","v":""},null,null,null,null,null,null,null,null,null,null,"VS",null,null,null,{"$f":"Final!J24","v":""}]
[]
[]
[null,"PARTIES",null,null,null,null,null,1,null,2,null,3,null,4,null,5,null,null,null,null,null,null,"TOT.A",null,"TOT.B",null,null,null,"PARTIES",null,null,null,null,null,1,null,2,null,3,null,4,null,5,null,null,null,null,null,null,"TOT.A",null,"TOT.B",null,null,null,"PARTIES",null,null,null,null,null,1,null,2,null,3,null,4,null,5,null,null,null,null,null,null,"TOT.A",null,"TOT.B",null,null,null,"PARTIES",null,null,null,null,null,1,null,2,null,3,null,4,null,5,null,null,null,null,null,null,"TOT.A",null,"TOT.B",null,null,null,"PARTIES",null,null,null,null,null,1,null,2,null,3,null,4,null,5,null,null,null,null,null,null,"TOT.A",null,"TOT.B",null,null,null,"PARTIES",null,null,null,null,null,1,null,2,null,3,null,4,null,5,null,6,null,7,null,null,"TOT.A",null,"TOT.B",null,null,null,"PARTIES",null,null,null,null,null,1,null,2,null,3,null,4,null,5,null,6,null,7,null,null,"TOT.A",null,"TOT.B"]
[]
[null,"GAGNANT",null,null,null,null,null,null,null,null,null,null,null,null,null,null,null,null,null,null,null,null,null,null,null,null,null,null,"GAGNANT",null,null,null,null,null,null,null,null,null,null,null,null,null,null,null,null,null,null,null,null,null,null,null,null,null,null,"GAGNANT",null,null,null,null,null,null,null,null,null,null,null,null,null,null,null,null,null,null,null,null,null,null,null,null,null,null,"GAGNANT",null,null,null,null,null,null,null,null,null,null,null,null,null,null,null,null,null,null,null,null,null,null,null,null,null,null,"GAGNANT",null,null,null,null,null,null,null,null,null,null,null,null,null,null,null,null,null,null,null,null,null,null,null,null,null,null,"GAGNANT",null,null,null,null,null,null,null,null,null,null,null,null,null,null,null,null,null,null,null,null,null,null,null,null,null,null,"GAGNANT"]
[]
[null,"CASSE FERME",null,null,null,null,null,null,null,null,null,null,null,null,null,null,null,null,null,null,null,null,null,null,null,null,null,null,"CASSE FERME",null,null,null,null,null,null,null,null,null,null,null,null,null,null,null,null,null,null,null,null,null,null,null,null,null,null,"CASSE FERME",null,null,null,null,null,null,null,null,null,null,null,null,null,null,null,null,null,null,null,null,null,null,null,null,null,null,"CASSE FERME",null,null,null,null,null,null,null,null,null,null,null,null,null,null,null,null,null,null,null,null,null,null,null,null,null,null,"CASSE FERME",null,null,null,null,null,null,null,null,null,null,null,null,null,null,null,null,null,null,null,null,null,null,null,null,null,null,"CASSE FERME",null,null,null,null,null,null,null,null,null,null,null,null,null,null,null,null,null,null,null,null,null,null,null,null,null,null,"CASSE FERME"]
[]
[null,"REPRISE FERME",null,null,null,null,null,null,null,null,null,null,null,null,null,null,null,null,null,null,null,null,null,null,null,null,null,null,"REPRISE FERME",null,null,null,null,null,null,null,null,null,null,null,null,null,null,null,null,null,null,null,null,null,null,null,null,null,null,"REPRISE FERME",null,null,null,null,null,null,null,null,null,null,null,null,null,null,null,null,null,null,null,null,null,null,null,null,null,null,"REPRISE FERME",null,null,null,null,null,null,null,null,null,null,null,null,null,null,null,null,null,null,null,null,null,null,null,null,null,null,"REPRISE FERME",null,null,null,null,null,null,null,null,null,null,null,null,null,null,null,null,null,null,null,null,null,null,null,null,null,null,"REPRISE FERME",null,null,null,null,null,null,null,null,null,null,null,null,null,null,null,null,null,null,null,null,null,null,null,null,null,null,"REPRISE FERME"]
[]
[null,"Forfait joueur A",null,null,null,null,null,null,null,null,null,null,null,null,null,null,null,null,null,"Forfait joueur B",null,null,null,null,null,null,null,null,"Forfait joueur A",null,null,null,null,null,null,null,null,null,null,null,null,null,null,null,null,null,"Forfait joueur B",null,null,null,null,null,null,null,null,"Forfait joueur A",null,null,null,null,null,null,null,null,null,null,null,null,null,null,null,null,null,"Forfait joueur B",null,null,null,null,null,null,null,null,"Forfait joueur A",null,null,null,null,null,null,null,null,null,null,null,null,null,null,null,null,null,"Forfait joueur B",null,null,null,null,null,null,null,null,"Forfait joueur A",null,null,null,null,null,null,null,null,null,null,null,null,null,null,null,null,null,"Forfait joueur B",null,null,null,null,null,null,null,null,"Forfait joueur A",null,null,null,null,null,null,null,null,null,null,null,null,null,null,null,null,null,"Forfait joueur B",null,null,null,null,null,null,null,null,"Forfait joueur A",null,null,null,null,null,null,null,null,null,null,null,null,null,null,null,null,null,"Forfait joueur B"]
[null,null,null,null,null,null,null,"En cas de litige, cochez la case ci-dessous et décrivez le litige au dos de cette feuille",null,null,null,null,null,null,null,null,null,null,null,null,null,null,null,null,null,null,null,null,null,null,null,null,null,null,"En cas de litige, cochez la case ci-dessous et décrivez le litige au dos de cette feuille",null,null,null,null,null,null,null,null,null,null,null,null,null,null,null,null,null,null,null,null,null,null,null,null,null,null,"En cas de litige, cochez la case ci-dessous et décrivez le litige au dos de cette feuille",null,null,null,null,null,null,null,null,null,null,null,null,null,null,null,null,null,null,null,null,null,null,null,null,null,null,"En cas de litige, cochez la case ci-dessous et décrivez le litige au dos de cette feuille",null,null,null,null,null,null,null,null,null,null,null,null,null,null,null,null,null,null,null,null,null,null,null,null,null,null,"En cas de litige, cochez la case ci-dessous et décrivez le litige au dos de cette feuille",null,null,null,null,null,null,null,null,null,null,null,null,null,null,null,null,null,null,null,null,null,null,null,null,null,null,"En cas de litige, cochez la case ci-dessous et décrivez le litige au dos de cette feuille",null,null,null,null,null,null,null,null,null,null,null,null,null,null,null,null,null,null,null,null,null,null,null,null,null,null,"En cas de litige, cochez la case ci-dessous et décrivez le litige au dos de cette feuille"]
[]
[]
[null,"Signature joueur A",null,null,null,null,null,null,null,null,null,null,null,null,null,null,null,null,null,"Signature joueur B",null,null,null,null,null,null,null,null,"Signature joueur A",null,null,null,null,null,null,null,null,null,null,null,null,null,null,null,null,null,"Signature joueur B",null,null,null,null,null,null,null,null,"Signature joueur A",null,null,null,null,null,null,null,null,null,null,null,null,null,null,null,null,null,"Signature joueur B",null,null,null,null,null,null,null,null,"Signature joueur A",null,null,null,null,null,null,null,null,null,null,null,null,null,null,null,null,null,"Signature joueur B",null,null,null,null,null,null,null,null,"Signature joueur A",null,null,null,null,null,null,null,null,null,null,null,null,null,null,null,null,null,"Signature joueur B",null,null,null,null,null,null,null,null,"Signature joueur A",null,null,null,null,null,null,null,null,null,null,null,null,null,null,null,null,null,"Signature joueur B",null,null,null,null,null,null,null,null,"Signature joueur A",null,null,null,null,null,null,null,null,null,null,null,null,null,null,null,null,null,"Signature joueur B"]
[]
[]
[]
[]
[]
["Match 1 poule 4",null,null,null,null,null,null,null,null,null,null,null,null,null,null,null,null,null,null,null,null,null,null,null,null,null,null,"Match 2 poule 4",null,null,null,null,null,null,null,null,null,null,null,null,null,null,null,null,null,null,null,null,null,null,null,null,null,null,"Match 3 poule 4",null,null,null,null,null,null,null,null,null,null,null,null,null,null,null,null,null,null,null,null,null,null,null,null,null,null,"Match 4 poule 4",null,null,null,null,null,null,null,null,null,null,null,null,null,null,null,null,null,null,null,null,null,null,null,null,null,null,"Match 5 poule 4",null,null,null,null,null,null,null,null,null,null,null,null,null,null,null,null,null,null,null,null,null,null,null,null,null,null,"Match 13 tableau finale",null,null,null,null,null,null,null,null,null,null,null,null,null,null,null,null,null,null,null,null,null,null,null,null,null,null,"Match 14 tableau finale"]
[null,"MIXTE",null,null,null,null,null,null,null,null,null,null,null,null,null,null,null,null,null,null,null,null,null,null,null,null,null,null,"MIXTE",null,null,null,null,null,null,null,null,null,null,null,null,null,null,null,null,null,null,null,null,null,null,null,null,null,null,"MIXTE",null,null,null,null,null,null,null,null,null,null,null,null,null,null,null,null,null,null,null,null,null,null,null,null,null,null,"MIXTE",null,null,null,null,null,null,null,null,null,null,null,null,null,null,null,null,null,null,null,null,null,null,null,null,null,null,"MIXTE",null,null,null,null,null,null,null,null,null,null,null,null,null,null,null,null,null,null,null,null,null,null,null,null,null,null,"MIXTE FINALE"]
[]
[]
[]
[]
[]
[]
[]
[null,"JOUEUR A",null,null,null,null,null,null,"BILLARD N° ",null,null,null,null,null,null,null,null,null,null,null,"JOUEUR B",null,null,null,null,null,null,null,"JOUEUR A",null,null,null,null,null,null,"BILLARD N° ",null,null,null,null,null,null,null,null,null,null,null,"JOUEUR B",null,null,null,null,null,null,null,"JOUEUR A",null,null,null,null,null,null,"BILLARD N° ",null,null,null,null,null,null,null,null,null,null,null,"JOUEUR B",null,null,null,null,null,null,null,"JOUEUR A",null,null,null,null,null,null,"BILLARD N° ",null,null,null,null,null,null,null,null,null,null,null,"JOUEUR B",null,null,null,null,null,null,null,"JOUEUR A",null,null,null,null,null,null,"BILLARD N° ",null,null,null,null,null,null,null,null,null,null,null,"JOUEUR B",null,null,null,null,null,null,"JOUEUR A",null,null,null,null,null,null,"BILLARD N° ",null,null,null,null,null,null,null,null,null,null,null,null,null,null,"JOUEUR B"]
[]
[null,null,null,"3 PARTIES GAGNANTES",null,null,null,null,null,null,null,null,null,null,null,null,null,null,null,null,null,null,null,null,null,null,null,null,null,null,"3 PARTIES GAGNANTES",null,null,null,null,null,null,null,null,null,null,null,null,null,null,null,null,null,null,null,null,null,null,null,null,null,null,"3 PARTIES GAGNANTES",null,null,null,null,null,null,null,null,null,null,null,null,null,null,null,null,null,null,null,null,null,null,null,null,null,null,"3 PARTIES GAGNANTES",null,null,null,null,null,null,null,null,null,null,null,null,null,null,null,null,null,null,null,null,null,null,null,null,null,null,"3 PARTIES GAGNANTES",null,null,null,null,null,null,null,null,null,null,null,null,null,null,null,null,null,null,null,null,null,null,null,null,null,"5 PARTIES GAGNANTES"]
[]
[null,{"$f":"'4'!Q14","v":""},null,null,null,null,null,null,null,null,null,null,"VS",null,null,null,{"$f":"'4'!Q18","v":""},null,null,null,null,null,null,null,null,null,null,null,{"$f":"'4'!J4","v":""},null,null,null,null,null,null,null,null,null,null,"VS",null,null,null,{"$f":"'4'!J8","v":""},null,null,null,null,null,null,null,null,null,null,null,{"$f":"'4'!J14","v":""},null,null,null,null,null,null,null,null,null,null,"VS",null,null,null,{"$f":"'4'!J18","v":""},null,null,null,null,null,null,null,null,null,null,null,{"$f":"'4'!F6","v":""},null,null,null,null,null,null,null,null,null,null,"VS",null,null,null,{"$f":"'4'!F10","v":""},null,null,null,null,null,null,null,null,null,null,null,{"$f":"'4'!F16","v":""},null,null,null,null,null,null,null,null,null,null,"VS",null,null,null,{"$f":"'4'!F20","v":""},null,null,null,null,null,null,null,null,null,null,{"$f":"Final!N9","v":""},null,null,null,null,null,null,null,null,null,null,null,"VS",null,null,null,null,null,{"$f":"Final!N21","v":""}]
[]
[]
[null,"PARTIES",null,null,null,null,null,1,null,2,null,3,null,4,null,5,null,null,null,null,null,null,"TOT.A",null,"TOT.B",null,null,null,"PARTIES",null,null,null,null,null,1,null,2,null,3,null,4,null,5,null,null,null,null,null,null,"TOT.A",null,"TOT.B",null,null,null,"PARTIES",null,null,null,null,null,1,null,2,null,3,null,4,null,5,null,null,null,null,null,null,"TOT.A",null,"TOT.B",null,null,null,"PARTIES",null,null,null,null,null,1,null,2,null,3,null,4,null,5,null,null,null,null,null,null,"TOT.A",null,"TOT.B",null,null,null,"PARTIES",null,null,null,null,null,1,null,2,null,3,null,4,null,5,null,null,null,null,null,null,"TOT.A",null,"TOT.B",null,null,"PARTIES",null,null,null,null,null,1,null,2,null,3,null,4,null,5,null,6,null,7,null,8,null,9,null,"TOT.A",null,"TOT.B"]
[]
[null,"GAGNANT",null,null,null,null,null,null,null,null,null,null,null,null,null,null,null,null,null,null,null,null,null,null,null,null,null,null,"GAGNANT",null,null,null,null,null,null,null,null,null,null,null,null,null,null,null,null,null,null,null,null,null,null,null,null,null,null,"GAGNANT",null,null,null,null,null,null,null,null,null,null,null,null,null,null,null,null,null,null,null,null,null,null,null,null,null,null,"GAGNANT",null,null,null,null,null,null,null,null,null,null,null,null,null,null,null,null,null,null,null,null,null,null,null,null,null,null,"GAGNANT",null,null,null,null,null,null,null,null,null,null,null,null,null,null,null,null,null,null,null,null,null,null,null,null,null,"GAGNANT"]
[]
[null,"CASSE FERME",null,null,null,null,null,null,null,null,null,null,null,null,null,null,null,null,null,null,null,null,null,null,null,null,null,null,"CASSE FERME",null,null,null,null,null,null,null,null,null,null,null,null,null,null,null,null,null,null,null,null,null,null,null,null,null,null,"CASSE FERME",null,null,null,null,null,null,null,null,null,null,null,null,null,null,null,null,null,null,null,null,null,null,null,null,null,null,"CASSE FERME",null,null,null,null,null,null,null,null,null,null,null,null,null,null,null,null,null,null,null,null,null,null,null,null,null,null,"CASSE FERME",null,null,null,null,null,null,null,null,null,null,null,null,null,null,null,null,null,null,null,null,null,null,null,null,null,"CASSE FERME"]
[]
[null,"REPRISE FERME",null,null,null,null,null,null,null,null,null,null,null,null,null,null,null,null,null,null,null,null,null,null,null,null,null,null,"REPRISE FERME",null,null,null,null,null,null,null,null,null,null,null,null,null,null,null,null,null,null,null,null,null,null,null,null,null,null,"REPRISE FERME",null,null,null,null,null,null,null,null,null,null,null,null,null,null,null,null,null,null,null,null,null,null,null,null,null,null,"REPRISE FERME",null,null,null,null,null,null,null,null,null,null,null,null,null,null,null,null,null,null,null,null,null,null,null,null,null,null,"REPRISE FERME",null,null,null,null,null,null,null,null,null,null,null,null,null,null,null,null,null,null,null,null,null,null,null,null,null,"REPRISE FERME"]
[]
[null,"Forfait joueur A",null,null,null,null,null,null,null,null,null,null,null,null,null,null,null,null,null,"Forfait joueur B",null,null,null,null,null,null,null,null,"Forfait joueur A",null,null,null,null,null,null,null,null,null,null,null,null,null,null,null,null,null,"Forfait joueur B",null,null,null,null,null,null,null,null,"Forfait joueur A",null,null,null,null,null,null,null,null,null,null,null,null,null,null,null,null,null,"Forfait joueur B",null,null,null,null,null,null,null,null,"Forfait joueur A",null,null,null,null,null,null,null,null,null,null,null,null,null,null,null,null,null,"Forfait joueur B",null,null,null,null,null,null,null,null,"Forfait joueur A",null,null,null,null,null,null,null,null,null,null,null,null,null,null,null,null,null,"Forfait joueur B",null,null,null,null,null,null,null,"Forfait joueur A",null,null,null,null,null,null,null,null,null,null,null,null,null,null,null,null,null,null,null,null,"Forfait joueur B"]
[null,null,null,null,null,null,null,"En cas de litige, cochez la case ci-dessous et décrivez le litige au dos de cette feuille",null,null,null,null,null,null,null,null,null,null,null,null,null,null,null,null,null,null,null,null,null,null,null,null,null,null,"En cas de litige, cochez la case ci-dessous et décrivez le litige au dos de cette feuille",null,null,null,null,null,null,null,null,null,null,null,null,null,null,null,null,null,null,null,null,null,null,null,null,null,null,"En cas de litige, cochez la case ci-dessous et décrivez le litige au dos de cette feuille",null,null,null,null,null,null,null,null,null,null,null,null,null,null,null,null,null,null,null,null,null,null,null,null,null,null,"En cas de litige, cochez la case ci-dessous et décrivez le litige au dos de cette feuille",null,null,null,null,null,null,null,null,null,null,null,null,null,null,null,null,null,null,null,null,null,null,null,null,null,null,"En cas de litige, cochez la case ci-dessous et décrivez le litige au dos de cette feuille",null,null,null,null,null,null,null,null,null,null,null,null,null,null,null,null,null,null,null,null,null,null,null,null,null,"En cas de litige, cochez la case ci-dessous et décrivez le litige au dos de cette feuille"]
[]
[]
[null,"Signature joueur A",null,null,null,null,null,null,null,null,null,null,null,null,null,null,null,null,null,"Signature joueur B",null,null,null,null,null,null,null,null,"Signature joueur A",null,null,null,null,null,null,null,null,null,null,null,null,null,null,null,null,null,"Signature joueur B",null,null,null,null,null,null,null,null,"Signature joueur A",null,null,null,null,null,null,null,null,null,null,null,null,null,null,null,null,null,"Signature joueur B",null,null,null,null,null,null,null,null,"Signature joueur A",null,null,null,null,null,null,null,null,null,null,null,null,null,null,null,null,null,"Signature joueur B",null,null,null,null,null,null,null,null,"Signature joueur A",null,null,null,null,null,null,null,null,null,null,null,null,null,null,null,null,null,"Signature joueur B",null,null,null,null,null,null,null,"Signature joueur A",null,null,null,null,null,null,null,null,null,null,null,null,null,null,null,null,null,null,null,null,"Signature joueur B"]
[]
[]
[]
[]
[]
["Match 6 poule 4",null,null,null,null,null,null,null,null,null,null,null,null,null,null,null,null,null,null,null,null,null,null,null,null,null,null,"Match 7 poule 4",null,null,null,null,null,null,null,null,null,null,null,null,null,null,null,null,null,null,null,null,null,null,null,null,null,null,"Match 8 poule 4",null,null,null,null,null,null,null,null,null,null,null,null,null,null,null,null,null,null,null,null,null,null,null,null,null,null,"Match 9 poule 4",null,null,null,null,null,null,null,null,null,null,null,null,null,null,null,null,null,null,null,null,null,null,null,null,null,null,"Match 10 poule 4"]

{"sheet":"Feuil2","index":10,"n_rows":977,"n_cols":3,"rows_kept":977,"cut":false,"hidden":false,"merged":[]}
["Licence","Nom Prenom","Nom Club"]
["010669J","GUIHEUX DENIS","BILLARD CLUB GRENOBLOIS"]
["010957L","CONTAMINE ALAIN","BILLARD CLUB MONTLUCONNAIS"]
["010959N","DESPREZ SERGE","BILLARD CLUB MONTLUCONNAIS"]
["010960O","MIDROUILLET PATRICK","BILLARD CLUB MONTLUCONNAIS"]
["010978G","VIGILI GINO","B.S.CLERMONTOIS"]
["010984M","LEFEBVRE SERGE","BILLARD CLUB MOULINS"]
["010991T","PICANDET RENE","BILLARD CLUB ST ELOY"]
["011005H","ROESCH PHILIPPE","B.S.CLERMONTOIS"]
["011016S","SANCHEZ CHRISTIAN","BILLARD CLUB VICHY"]
["011026C","DIDIER JEAN PAUL","BILLARD CLUB MOULINS"]
["011036M","CAILLAT ANDRE","BILLARD CLUB MOULINS"]
["011049Z","MOINE ROBERT","B.S.CLERMONTOIS"]
["011051B","PACE MICHEL","B.S.CLERMONTOIS"]
["011061L","PONTRUCHER PIERRE RICHARD","B.S.CLERMONTOIS"]
["011067R","LACOMBE JEAN MARIE","BILLARD CLUB ST ELOY"]
["011105D","BOUDAILLIER PIERRE","B.S.CLERMONTOIS"]
["011120S","SIVADE GERARD","AMIC.SPOR.MONTMARAULTOISE BILLARD"]
["011128A","FERNANDEZ JOSE","B.S.CLERMONTOIS"]
["011908A","CAMBERLIN ERIC","ACADEMIE DE BILLARD DE CHASSIEU"]
["012828K","COHEN STEPHAN","BILLARD CLUB 109"]
["012951D","DEPOND DOMINIQUE","CERCLE DES CHEFS D ATELIER"]
["013137H","FONGARNAND DIDIER","B.S.CLERMONTOIS"]
["013178W","GALLAND GREGORY","ACADEMIE BILLARD OUEST LYONNAIS"]
["013745R","MILLET RAYMOND","BILLARD CLUB ROMANAIS PEAGEOIS"]
["013791L","MORNIE LAURENT","VALENCE BILLARD CLUB"]
["014638A","BLETON CLAUDE","CERCLE DES CHEFS D ATELIER"]
["014960K","MATHIEU YANNIC","VALENCE BILLARD CLUB"]
["015119N","PONCET FRANCIS","BILLARD CLUB PONTOIS"]
["015357R","SAVOLDELLI RENE","BILLARD CLUB SAINT ROMANAIS"]
["015524C","FLORIAN DENIS","CLUB DE BILLARD MONTBRISONNAIS"]
["015717N","ICARD ANDRE","ACADEMIE DE BILLARD DE CHASSIEU"]
["015727X","BROCHAND PATRICK","CERCLE DES CHEFS D ATELIER"]
["015728Y","CHALAND JEAN","CERCLE DES CHEFS D ATELIER"]
["015730A","DANANCIER DOMINIQUE","CERCLE DES CHEFS D ATELIER"]
["015731B","GRANJON CHRISTIAN","BILLARD CLUB PONTOIS"]
["015732C","LACROIX DANIEL","ACADEMIE BILLARD OUEST LYONNAIS"]
["015733D","LAVAUD JEAN MICHEL","ACADEMIE BILLARD OUEST LYONNAIS"]
["015735F","MEVEL HERVE","CERCLE DES CHEFS D ATELIER"]
["015737H","VARLOT HENRI","CERCLE DES CHEFS D ATELIER"]
["015743N","DORIER ALAIN","BILLARD CLUB ROMANAIS PEAGEOIS"]
["015748S","CABANES PHILIPPE","BILLARD CLUB PONTOIS"]
["015758C","DALLOYEAU CHRISTIAN","BILLARD STELLA THONON"]
["015760E","GALLO MICHEL","BILLARD CLUB GRENOBLOIS"]
["015761F","LAURETTA JOSEPH","BILLARD CLUB GRENOBLOIS"]
["015771P","DECROUX BERNARD","VALENCE BILLARD CLUB"]
["015777V","ARMAND BRUNO","VALENCE BILLARD CLUB"]
["015778W","GREMAUD LAURENT","VALENCE BILLARD CLUB"]
["015779X","MOLIERE JEAN PAUL","VALENCE BILLARD CLUB"]
["015787F","BOISSOU ROBERT","CLUB CHAMBERIEN DE BILLARD"]
["015796O","BONNEFOI RICHARD","CLUB OMNISPORTS DE SAINT FONS"]
["015805X","DELANGE GUY","BILLARD CLUB DE VILLEFRANCHE"]
["015813F","CHAPEAUX EMILE","BILLARD CLUB DE VILLEFRANCHE"]
["015815H","HELIN ALAIN","BILLARD CLUB DE VILLEFRANCHE"]
["015816I","MEUNIER MARC","BILLARD CLUB DE VILLEFRANCHE"]
["015824Q","VIDON GERARD","GROUPE SPORTIF LUGDUNUM"]
["015826S","BATAILLE RAYMOND","BILLARD CLUB PONTOIS"]
["015832Y","SAILLANT PHILIPPE","CERCLE DES CHEFS D ATELIER"]
["015837D","DUBUISSON PHILIPPE","BILLARD CLUB DE VILLEFRANCHE"]
["015843J","BOTTON JACKY","BILLARD CLUB PONTOIS"]
["015851R","MUZEAU PATRICK","BILLARD CLUB ROMANAIS PEAGEOIS"]
["015854U","TATIER ERIC","VALENCE BILLARD CLUB"]
["015869J","BAIZET CHRISTIAN","BILLARD CLUB ROMANAIS PEAGEOIS"]
["015873N","ABOUAF DANIEL","ACADEMIE BILLARD OUEST LYONNAIS"]
["015878S","JARDIN GERARD","BILLARD CLUB AIXOIS"]
["015879T","RIONDEL RENE","BILLARD CLUB GRENOBLOIS"]
["015881V","AURAND LOUIS","BILLARD CLUB PONTOIS"]
["015888C","COEURET JACQUES","A.B. DE BOURGOIN-JALLIEU"]
["015895J","PLUVINAGE JEAN CLAUDE","BILLARD STELLA THONON"]
["015900O","BERRUYER ROGER","BILLARD CLUB ROMANAIS PEAGEOIS"]
["015903R","COLLET BERNARD","CERCLE DES CHEFS D ATELIER"]
["015912A","GASS MICHEL","CERCLE DES CHEFS D ATELIER"]
["015919H","VERNET DANIEL","VALENCE BILLARD CLUB"]
["015924M","SANTI SERGE","BILLARD STELLA THONON"]
["015926O","HEBERT ALAIN","BILLARD CLUB ROMANAIS PEAGEOIS"]
["015934W","GASS JEAN LOUIS","CERCLE DES CHEFS D ATELIER"]
["015936Y","PERES CLAUDE","BILLARD CLUB DE SAINT-GALMIER"]
["015939B","DESRAYAUD CHRISTOPHE","GROUPE SPORTIF LUGDUNUM"]
["015944G","PRUVOST JEAN LOUIS","CLUB OMNISPORTS DE SAINT FONS"]
["015956S","PALOMBO ENZO","ACADEMIE DE BILLARD DE CHASSIEU"]
["015957T","LAURENT JEAN LUC","ACADEMIE DE BILLARD DE CHASSIEU"]
["015959V","BERTHELIER PATRICK","LE TAPIS VERT ROANNAIS"]
["015966C","SOLA ALBERT","LE TAPIS VERT ROANNAIS"]
["015983T","CARNAT ROBERT","LE TAPIS VERT ROANNAIS"]
["015992C","DUPLOMB GUY","VALENCE BILLARD CLUB"]
["016015Z","AUDONNET JEREMY","AMICALE LAIQUE RICAMARIE"]
["016020E","FAIDIT SERGE","CLUB DE BILLARD MONTBRISONNAIS"]
["016044C","DIAZ JEAN LOUIS","AMICALE LAIQUE RICAMARIE"]
["016050I","LORON LOUIS","ACAD. DE BILLARD DE SAINT-ETIENNE"]
["016053L","VALLAT DANIEL","ACAD. DE BILLARD DE SAINT-ETIENNE"]
["016054M","CHAUSSAT JEAN MARC","ACAD. DE BILLARD DE SAINT-ETIENNE"]
["016056O","BOURGEOIS GERARD","BILLARD STELLA THONON"]
["016058Q","SOURBE HENRI","BILLARD STELLA THONON"]
["016064W","FAVIER MICHEL","LA CARAMBOLE LISSILOISE"]
["016070C","FLEURY MICHEL","CLUB OMNISPORTS DE SAINT FONS"]
["016073F","BERTHOLON GERARD","ACAD. DE BILLARD DE SAINT-ETIENNE"]
["016075H","PETIT RENE","ACAD. DE BILLARD DE SAINT-ETIENNE"]
["016085R","BAUP PASCAL","ACADEMIE ANNECIENNE DE BILLARD"]
["016108O","FERRE JEAN PAUL","BILLARD CLUB SAINT ROMANAIS"]
["016109P","MONTEL MAURICE","BILLARD CLUB SAINT ROMANAIS"]
["016111R","BORY PHILIPPE","CLUB DE BILLARD MONTBRISONNAIS"]
["016132M","DESSERT STEPHANE","ACAD. DE BILLARD DE SAINT-ETIENNE"]
["016143X","AUGAGNEUR JEAN PAUL","ASS. SPORTIVE MUNICIPALE ST ETIENNE"]
["016150E","VINCENT RENE","LA CARAMBOLE LISSILOISE"]
["016153H","VERSCHOORIS BRUNO","BILLARD CLUB AIXOIS"]
["016154I","CORNET ROGER","ACADEMIE BILLARD OUEST LYONNAIS"]
["016157L","MASSON JOEL","BILLARD CLUB SAINT ROMANAIS"]
["016161P","JULLIAT VINCENT","AMICALE BILLARD CLUB DE DAVEZIEUX"]
["016165T","CUNY ALAIN","AMICALE BILLARD CLUB DE DAVEZIEUX"]
["016166U","FAURE COMTE HENRI","AMICALE BILLARD CLUB DE DAVEZIEUX"]
["016168W","MOUNIER ARMAND","CLUB DE BILLARD MONTBRISONNAIS"]
["016181J","ECHASSOUX PAUL","CERCLE DES CHEFS D ATELIER"]
["016183L","MARCON ETIENNE","CERCLE DES CHEFS D ATELIER"]
["016189R","DRIOT JACKY","CLUB DE BILLARD MONTBRISONNAIS"]
["016194W","DAVID PATRICK","CLUB DE BILLARD MONTBRISONNAIS"]
["016202E","ROBERTON PIERRE","GROUPE SPORTIF LUGDUNUM"]
["016204G","LABEYE JEAN PIERRE","ACADEMIE BILLARD OUEST LYONNAIS"]
["016205H","MAGNIN JEAN PIERRE","BILLARD CLUB PONTOIS"]
["016219V","BLONDOT YVES","ACADEMIE ANNECIENNE DE BILLARD"]
["016247X","CHADELAUD JEAN MICHEL","BILLARD CLUB ALBERTVILLE"]
["016255F","PRIVAT PAUL","ACADEMIE DE BILLARD D AUBENAS"]
["016301Z","SABOT MICHAEL","CLUB DE BILLARD MONTBRISONNAIS"]
["016315N","MARMIESSE JEAN","CERCLE DES CHEFS D ATELIER"]
["016318Q","GOUTALOY SYLVAIN","CERCLE DES CHEFS D ATELIER"]
["016337J","BORNET PHILIPPE","CERCLE DES CHEFS D ATELIER"]
["016352Y","MIKDAD ALI MOHAMMED","CERCLE DES CHEFS D ATELIER"]
["016355B","TUZZOLINO CLAUDE","CERCLE DES CHEFS D ATELIER"]
["016393N","PREBET DANIELLE","BILLARD CLUB AMICALE CHAPELON"]
["016410E","GUENET LAURENT","ACADEMIE BILLARD OUEST LYONNAIS"]
["016411F","BRAYER DENIS","CERCLE DES CHEFS D ATELIER"]
["016416K","BAILLY CLAUDE","CLUB CHAMBERIEN DE BILLARD"]
["016430Y","SABATIER ROLAND","ASS. SPORTIVE MUNICIPALE ST ETIENNE"]
["016433B","MINACORI JULIEN","CERCLE DES CHEFS D ATELIER"]
["016459B","PERROUX DENIS","LA CARAMBOLE LISSILOISE"]
["016475R","RIBES MAURICE","AMICALE BILLARD CLUB DE DAVEZIEUX"]
["016478U","CAMIN NORBERT","ACADEMIE DE BILLARD D AUBENAS"]
["016480W","TOME ERIC","BILLARD CLUB AMICALE CHAPELON"]
["016484A","MERLE MICHEL","BILLARD CLUB DE VILLEFRANCHE"]
["016486C","DEFOSSE MICHEL","LE TAPIS VERT ROANNAIS"]
["016488E","BERGER CHRISTIAN","BILLARD CLUB DE SAINT-GALMIER"]
["016498O","PREYNAT MAURICE","ACAD. DE BILLARD DE SAINT-ETIENNE"]
["017812C","TRAGIN LAURENT","BILLARD CLUB PONTOIS"]
["018158K","KNOSP THIERRY","CERCLE DES CHEFS D ATELIER"]
["020465D","ACHARD PATRICK","ACADEMIE DE BILLARD DE HAUTE LOIRE"]
["021913V","BOURHIS JEAN","BILLARD CLUB PONTOIS"]
["022383X","AUBERT ROUECHE ERIC","CLUB OMNISPORTS DE SAINT FONS"]
["022457T","VAUDAY PATRICK","BILLARD CLUB PONTOIS"]
["022985B","LEGRON GILLES","ACADEMIE ANNECIENNE DE BILLARD"]
["023128O","LASOTA CLAUDE","B.S.CLERMONTOIS"]
["100009N","BOBEE GREGORY","BILLARD CLUB DE SAINT-GALMIER"]
["100019X","VERNEDAL LIONEL","BILLARD CLUB DE SAINT-GALMIER"]
["100834G","CHAPATON DOMINIQUE","BILLARD CLUB 109"]
["100863J","VENDITTELLI FABIO","ACADEMIE BILLARD OUEST LYONNAIS"]
["100867N","BERNILLON MARCEL","CLUB OMNISPORTS DE SAINT FONS"]
["100869P","BERTHIER DOMINIQUE","CLUB OMNISPORTS DE SAINT FONS"]
["100870Q","GAUCHER JEAN FRANCOIS","CLUB OMNISPORTS DE SAINT FONS"]
["100873T","FERRIOL DOMINIQUE","BILLARD CLUB DE VILLEFRANCHE"]
["100883D","HONG LAMHONG PIERRE","SAINT CHAMOND BILLARD CLUB"]
["100893N","MERMET JACQUES","CLUB CHAMBERIEN DE BILLARD"]
["100896Q","ANDRE PASCAL","BILLARD CLUB DE LA PLAINE DU FOREZ"]
["100899T","TERRADE MARC","BILLARD CLUB DE LA PLAINE DU FOREZ"]
["100904Y","CHAMONAZ VANESSA","BILLARD CLUB PONTOIS"]
["100915J","BILLARD JEAN LOUIS","BILLARD CLUB AIXOIS"]
["100928W","DUBART JACQUES","LES SQUALES"]
["100932A","LOBOS MALDONANO OMAR","BILLARD CLUB PONTOIS"]
["100936E","POIX JEAN LUDOVIC","BILLARD CLUB PONTOIS"]
["100942K","ROUX JULIEN","BILLARD CLUB 109"]
["100953V","AVEDISSIAN HENRI","ACADEMIE DE BILLARD DE CHASSIEU"]
["100971N","ARNAUD PHILIPPE","CLUB DE BILLARD MONTBRISONNAIS"]
["100972O","BRUYAS ANTOINE","ASS. SPORTIVE MUNICIPALE ST ETIENNE"]
["100973P","BETTES JEAN LOUIS","BILLARD CLUB ROMANAIS PEAGEOIS"]
["101010A","PANTEL BERNARD","A.B. DE BOURGOIN-JALLIEU"]
["101011B","SIMON ROBERT","A.B. DE BOURGOIN-JALLIEU"]
["101027R","LESKOVSEK LAURENT","LE BLACKBALL MARSANNAIS"]
["101029T","MOLLE ALBAN","LES SQUALES"]
["101033X","PRAL LAURENT","VEYRE-MONTON BILLARD CLUB"]
["101038C","NEBOIT OLIVIER","LE BLACKBALL MARSANNAIS"]
["101044I","MATRAS JEAN MARIE","BILLARD CLUB ROMANAIS PEAGEOIS"]
["101045J","VIOSSAT DAVID","BILLARD CLUB ROMANAIS PEAGEOIS"]
["101047L","LATORRE ANDRE","LES SQUALES"]
["101056U","TSAN SAP NHI","BILLARD CLUB LYONNAIS 8 POOL"]
["101066E","DEPRUGNEY LIONEL","CERCLE BELLECOMBE DE LYON"]
["101069H","JANOIR ERIC","CERCLE BELLECOMBE DE LYON"]
["101070I","JOUVE SAMUEL","CERCLE BELLECOMBE DE LYON"]
["101079R","TASCA ANDRE","BILLARD CLUB 109"]
["101427B","LAHAYE CEDRIC","BILLARD CLUB PONTOIS"]
["101628U","RUSSO MANUEL","BILLARD CLUB DE BOURG EN BRESSE"]
["101757T","DURAND MICHEL","AMICALE BILLARD CLUB DE DAVEZIEUX"]
["102280W","PASTOR BRUNO","BILLARD CLUB DE GAILLARD"]
["102689P","JACOBY HENRIK","ASSOCIATION DU LAKE PUB 74"]
["103512G","REYNE PHILIPPE","ACADEMIE DE BILLARD DE CHASSIEU"]
["103610A","MERMOZ THIERRY","VEYRE-MONTON BILLARD CLUB"]
["103682U","MUSSET OLIVIER","BILLARD CLUB PONTOIS"]
["104537R","FERON PATRICK","CERCLE DES CHEFS D ATELIER"]
["104690O","LESPAGNOL ERIC","VULCAIN 8 POOL"]
["104708G","CHAMPEAU CLAUDE","BILLARD CLUB PONTOIS"]
["104740M","MERMOZ TONY","VEYRE-MONTON BILLARD CLUB"]
["104768O","CENDRIER DAVID","ASSOCIATION DU LAKE PUB 74"]
["104920K","FOURRE NICOLAS","VEYRE-MONTON BILLARD CLUB"]
["105671H","DAMIER NICOLAS","BILLARD CLUB ROMANAIS PEAGEOIS"]
["105704O","DURET CHRISTOPHE","CLUB CHAMBERIEN DE BILLARD"]
["105785R","GUILBAUD JEAN CLAUDE","BLACKBALL BILLARD CLUB BESAYES 26"]
["106254S","POCINHO MARIO","BILLARD CLUB 109"]
["106475F","PAQUIER CHARLES","BILLARD CLUB GRENOBLOIS"]
["107037V","TURCAN FREDERIC","BILLARD CLUB ROMANAIS PEAGEOIS"]
["107243T","BOUCHER JEAN CLAUDE","BILLARD CLUB DE GAILLARD"]
["107336I","DECOMBE JEAN PIERRE","BILLARD CLUB DE VILLEFRANCHE"]
["107357D","ROCHE GUY","AMICALE BILLARD CLUB DE DAVEZIEUX"]
["107365L","PAPILLON FREDERIC","VALENCE BILLARD CLUB"]
["107387H","CHABRAY DANIEL","BILLARD CLUB ROMANAIS PEAGEOIS"]
["107411F","MASCLET ERIC","CERCLE BELLECOMBE DE LYON"]
["107510A","LECROIX FRANCIS","B.S.CLERMONTOIS"]
["107514E","REIS COELHO FERNANDO","B.S.CLERMONTOIS"]
["107633T","GOURDIN MICHEL","CLUB OMNISPORTS DE SAINT FONS"]
["107696E","CORREIA MARC","ACADEMIE ANNECIENNE DE BILLARD"]
["107701J","CUCCO FREDERIC","CERCLE BELLECOMBE DE LYON"]
["107702K","RIMLINGER MARC","CERCLE BELLECOMBE DE LYON"]
["107706O","CLUZEL JACQUES","BILLARD CLUB GRENOBLOIS"]
["107707P","NICOLAS PIERRE","BILLARD CLUB GRENOBLOIS"]
["107766W","BESSON JEAN BAPTISTE","CERCLE DES CHEFS D ATELIER"]
["108521X","CASSIS MAXIME","BILLARD CLUB GRENOBLOIS"]
["108606E","VALLUIS NORBERT","CHARLEMAGNE SNOOKER CLUB"]
["108968C","DOMINGO XAVIER","BILLARD CLUB ROMANAIS PEAGEOIS"]
["109013V","MARKADAS TITUS","ACADEMIE ANNECIENNE DE BILLARD"]
["109048E","VERDIER JACQUES","CERCLE DES CHEFS D ATELIER"]
["110008C","SKNOEZECK YVAN","VULCAIN 8 POOL"]
["110372C","DEJONGHE JEAN MICHEL","BILLARD CLUB VICHY"]
["111359B","MARTELLONI GUY","ACADEMIE BILLARD OUEST LYONNAIS"]
["112460K","CADORE JEAN LUC","ACADEMIE BILLARD OUEST LYONNAIS"]
["112468S","PINET FRANCOIS","BILLARD CLUB ROMANAIS PEAGEOIS"]
["112484I","BROC AIME","ACADEMIE DE BILLARD DE CHASSIEU"]
["112490O","BLANCHARD CLAUDE","ACADEMIE ANNECIENNE DE BILLARD"]
["112505D","POUPON MICHEL","ACADEMIE ANNECIENNE DE BILLARD"]
["112520S","HONG LAMHONG ALEXANDRE","CLUB OMNISPORTS DE SAINT FONS"]
["112524W","DUVOISIN BAPTISTE","BILLARD CLUB 109"]
["112529B","VINAY MICHEL","BILLARD CLUB ROMANAIS PEAGEOIS"]
["112591L","MARION RENE","BILLARD CLUB MOULINS"]
["112600U","LIVEBARDON SONIA","ACAD. DE BILLARD DE SAINT-ETIENNE"]
["112619N","BENAISSA NAIM","BILLARD CLUB 109"]
["112866A","BREDA YVES","BILLARD CLUB AIXOIS"]
["113202Y","ABDOULZABAR CARIME","GROUPE SPORTIF LUGDUNUM"]
["113208E","DOMINICI ALBERT","BILLARD CLUB DE SAINT-GALMIER"]
["113580M","DAGNIAUX DANIEL","BILLARD STELLA THONON"]
["113890K","PENDZIALEK CHRISTIAN","BILLARD STELLA THONON"]
["114585D","MATHIAS GERARD","CERCLE DES CHEFS D ATELIER"]
["114665F","CHEUNG LANDRY","CERCLE BELLECOMBE DE LYON"]
["114964S","RUZ SEBASTIEN","CERCLE BELLECOMBE DE LYON"]
["116284M","FLANDRIN STEPHANE","CERCLE BELLECOMBE DE LYON"]
["116303F","PATTY ALAIN","ACADEMIE ANNECIENNE DE BILLARD"]
["116713Z","THONG A LOC","BILLARD CLUB LYONNAIS 8 POOL"]
["116718E","PALETTE FABRICE","BILLARD CLUB 109"]
["117134E","DEVERGNE JEAN","CLUB CHAMBERIEN DE BILLARD"]
["117149T","DELORME JOSEPH","BILLARD CLUB AMICALE CHAPELON"]
["117153X","BEAL JEAN PAUL","ACADEMIE DE BILLARD DE HAUTE LOIRE"]
["117673X","ODOUARD DANIEL","BILLARD CLUB ROMANAIS PEAGEOIS"]
["117797R","TAVERNA DANIEL","BILLARD CLUB GRENOBLOIS"]
["117801V","POULALIER PAUL","LE TAPIS VERT ROANNAIS"]
["119127V","OX KOSTA","ACADEMIE DE BILLARD D AUBENAS"]
["119290C","JACOBERGER FABIEN","BILLARD CLUB VICHY"]
["119305R","DUBOIS GABY","BILLARD CLUB MONTLUCONNAIS"]
["119307T","HAYEM PATRICK","BILLARD CLUB MOULINS"]
["119308U","MITEAU MICHEL","BILLARD CLUB MOULINS"]
["119728Y","LAZEREG RADIL","LES SQUALES"]
["119744O","PAPIN LAETITIA","LE BLACKBALL MARSANNAIS"]
["119746Q","FEUILLASTRE ALAIN","CLUB DE BILLARD MONTBRISONNAIS"]
["119749T","DELHAYE THOMAS","BILLARD CLUB DE LA PLAINE DU FOREZ"]
["119751V","SABY FREDERIC","BILLARD CLUB DE GAILLARD"]
["119753X","ROLHION DANIEL","ACADEMIE DE BILLARD DE HAUTE LOIRE"]
["119773R","VIOT MICHEL","BILLARD CLUB ROMANAIS PEAGEOIS"]
["120201D","JACQUEMOND OLIVIER","BILLARD CLUB DE SAINT-GALMIER"]
["120680O","MASSON ERIC","BILLARD CLUB PONTOIS"]
["121499B","MENS THOMAS","VEYRE-MONTON BILLARD CLUB"]
["121509L","RODDIER PATRICK","B.S.CLERMONTOIS"]
["121518U","FOURNIER CLAUDIUS","BILLARD CLUB MOULINS"]
["121543T","SCHREIBER ROBERT","LE TAPIS VERT ROANNAIS"]
["122086Q","DEROUALLIERE JEAN MARC","BILLARD CLUB PONTOIS"]
["122306C","DUPRE RAMBAUD FREDERIC","LES SQUALES"]
["122400S","CUBIZOLLES ALAIN","VEYRE-MONTON BILLARD CLUB"]
["122467H","VENNI FABRICE","BILLARD CLUB DE GAILLARD"]
["122474O","FORISSIER PIERRICK","BILLARD CLUB DE SAINT-GALMIER"]
["122481V","VERYSER CLAUDE","LA CARAMBOLE LISSILOISE"]
["122491F","DELORME ANDRE","ASS. SPORTIVE MUNICIPALE ST ETIENNE"]
["122508W","NOEL THIERRY","CLUB CHAMBERIEN DE BILLARD"]
["122563Z","CAO VAN TRUONG JULIEN","GROUPE SPORTIF LUGDUNUM"]
["122566C","MULLER SYLVAIN","CHARLEMAGNE SNOOKER CLUB"]
["122570G","CIVRAIS CHRISTIAN","LE TAPIS VERT ROANNAIS"]
["122770Y","COCHEZ FREDERIC","VEYRE-MONTON BILLARD CLUB"]
["122795X","SAMBEAT JEAN CLAUDE","CLUB CHAMBERIEN DE BILLARD"]
["122802E","RODRIGUEZ STEPHANIE","BILLARD CLUB 109"]
["123195H","MANDONNET MAXIME","ASSOCIATION DU LAKE PUB 74"]
["123367X","VIRGA JOEL","VEYRE-MONTON BILLARD CLUB"]
["123379J","DECHAMPS WILLIAM","VALENCE BILLARD CLUB"]
["123794I","MONNEYRAC KEVIN","BILLARD CLUB DE GAILLARD"]
["124121X","GIRAUD JACQUES","CERCLE DES CHEFS D ATELIER"]
["124159J","DERVILLERS VINCENT","LE BLACKBALL MARSANNAIS"]
["124310E","OUZEAU VINCENT","CLUB CHAMBERIEN DE BILLARD"]
["124461Z","LORTHIOIS JOHN","BILLARD CLUB ISSOIRE"]
["124571F","ROBERT DENIS","ACADEMIE DE BILLARD DE HAUTE LOIRE"]
["124575J","MAISONNEUVE LAURENT","BILLARD CLUB DE VILLEFRANCHE"]
["124587V","MONIER BERNARD","LE TAPIS VERT ROANNAIS"]
["125035B","BERRIN RENAUD","CERCLE DES CHEFS D ATELIER"]
["125596Q","SCHUPPERT JEAN LOUIS","A.B. DE BOURGOIN-JALLIEU"]
["125994Y","AUDOUARD JEAN CLAUDE","BILLARD CLUB DE SAINT-GALMIER"]
["126039R","BAILLY FABRICE","BILLARD CLUB LYONNAIS 8 POOL"]
["126041T","MORIN ANTHONY","BILLARD CLUB 109"]
["126050C","LHERMINIER THIERRY","BILLARD CLUB ALBERTVILLE"]
["126051D","WEILL GILBERT","BILLARD CLUB ALBERTVILLE"]
["126053F","FERNANDES PASCAL","A.B. DE BOURGOIN-JALLIEU"]
["126321N","TACHOIRE ADRIEN","ACADEMIE ANNECIENNE DE BILLARD"]
["126661P","GUILHOT OLIVIER","CLUB CHAMBERIEN DE BILLARD"]
["126989F","AZUELOS MAXIME","CLUB CHAMBERIEN DE BILLARD"]
["127269Z","PICKETT THOMAS","ASSOCIATION DU LAKE PUB 74"]
["127290U","BERGER MICHEL","VALENCE BILLARD CLUB"]
["127300E","KOCAURLU YAVUZ","ACADEMIE DE BILLARD DE CHASSIEU"]
["127310O","BRACEIRO JOSE","LES SQUALES"]
["127378E","ROPARS PATRICK","A.B. DE BOURGOIN-JALLIEU"]
["127551V","SAVONET VALERIE","LES SQUALES"]
["127765B","DELOUCHE ANTOINE","VEYRE-MONTON BILLARD CLUB"]
["128682I","ROSETTE THIBAUT","BILLARD CLUB LYONNAIS 8 POOL"]
["128967H","LEFRANCOIS KEVIN","VULCAIN 8 POOL"]
["128996K","CHIEZE MIREILLE","NIGHT BILLARD CLUB"]
["128998M","SOPIC NICOLAS","NIGHT BILLARD CLUB"]
["128999N","TEBBANI AZIZ","NIGHT BILLARD CLUB"]
["129017F","MEUNIER PHILIPPE","BILLARD CLUB VICHY"]
["129018G","FORCE STEPHANE","B.S.CLERMONTOIS"]
["129026O","BERTOTTO CHRISTIAN","BILLARD CLUB ISSOIRE"]
["129062Y","RENNESSON RICHARD","BILLARD CLUB ROMANAIS PEAGEOIS"]
["129146E","EL HAMDAY ANISS","BILLARD CLUB LYONNAIS 8 POOL"]
["129872C","MOULARD ANDRE","BILLARD CLUB DE LA PLAINE DU FOREZ"]
["129878I","DUQUENNE RICHARD","LA CARAMBOLE LISSILOISE"]
["129879J","COUTAREL YVES","ACADEMIE BILLARD OUEST LYONNAIS"]
["129881L","ELION MAURICE","ACADEMIE ANNECIENNE DE BILLARD"]
["129888S","RAYMOND SERGE","ACADEMIE DE BILLARD DE HAUTE LOIRE"]
["129892W","FERNANDEZ ALPHONSE","BILLARD CLUB GRENOBLOIS"]
["129896A","FERREOL EMILE","BILLARD CLUB DE SAINT-GALMIER"]
["129899D","VERDY MICHEL","B.S.CLERMONTOIS"]
["130046U","BELBECIR MOURAD","BILLARD CLUB 109"]
["130055D","TOBAILEM THIERRY","BILLARD CLUB DE SAINT-GALMIER"]
["130058G","POZZANI CEDRIC","BILLARD CLUB AIXOIS"]
["130059H","DUGAS GERARD","BILLARD CLUB AIXOIS"]
["130074W","MEJEAN JACQUES","ACAD. DE BILLARD DE SAINT-ETIENNE"]
["130075X","RASCLE PIERRE","ACAD. DE BILLARD DE SAINT-ETIENNE"]
["130083F","SCHAFFRAN CLAUDE","CERCLE DES CHEFS D ATELIER"]
["130103Z","RAYMOND DENIS","BILLARD CLUB DE GAILLARD"]
["130105B","DUDIT FABIEN","BILLARD CLUB DE BOURG EN BRESSE"]
["130621X","MAINGUET FELIX","BILLARD CLUB DE CLARAFOND ARCINE"]
["131278E","POTIQUET SEBASTIEN","BILLARD CLUB DE BOURG EN BRESSE"]
["131284K","CURT ALAIN","BILLARD CLUB ALBERTVILLE"]
["131290Q","CHERPIN GUY","LE TAPIS VERT ROANNAIS"]
["131320U","COSNIER ROMAIN","VULCAIN 8 POOL"]
["131653P","FROMENT ALAIN","AMIC.SPOR.MONTMARAULTOISE BILLARD"]
["131818Y","VASSEUR ALEXANDRE","BLACKBALL CULOZIEN"]
["131897Z","DJIARE NINA","BILLARD CLUB LYONNAIS 8 POOL"]
["131904G","CUBIZOLLES EVA","VEYRE-MONTON BILLARD CLUB"]
["132526E","ROQUES ALAIN","ACADEMIE BILLARD OUEST LYONNAIS"]
["132648W","LEVAST VANESSA","VULCAIN 8 POOL"]
["132887B","DEVANNE FREDERIC","BILLARD CLUB GRENOBLOIS"]
["132935X","DECHAMPS JULIE","VALENCE BILLARD CLUB"]
["132936Y","BOUVIER CHRISTIAN","VALENCE BILLARD CLUB"]
["132949L","PORTUGUES RICHARD","ACADEMIE DE BILLARD DE CHASSIEU"]
["132952O","DELLA BOSCA PAOLO","BILLARD CLUB 109"]
["132958U","RENAUT DIDIER","CLUB OMNISPORTS DE SAINT FONS"]
["132960W","BARRAUD PIERRE","BILLARD CLUB DE VILLEFRANCHE"]
["132971H","BAYET BENOIT","CLUB DE BILLARD MONTBRISONNAIS"]
["132972I","GENEVRIER GERARD","BILLARD CLUB SAINT ROMANAIS"]
["133106M","COUSTENOBLE CHRISTOPHE","BILLARD STELLA THONON"]
["133199B","MESNIER JEAN CLAUDE","ACADEMIE DE BILLARD DE LA VALSERINE"]
["133591D","VIDAL DANIEL","ACADEMIE DE BILLARD DE CHASSIEU"]
["133632S","BLUET JEAN MARIE","ACADEMIE DE BILLARD DE CHASSIEU"]
["133657R","VRAUX JACQUES","BILLARD CLUB ROMANAIS PEAGEOIS"]
["133771B","BOSIA JULIEN","BILLARD CLUB DE GAILLARD"]
["134035F","GIRON STEPHANIE","B.S.CLERMONTOIS"]
["134037H","GILLON JEAN CLAUDE","BILLARD CLUB MOULINS"]
["134038I","VINCENT CHRISTIAN","BILLARD CLUB MOULINS"]
["134285V","LONGEREY CHRISTELLE","ACADEMIE ANNECIENNE DE BILLARD"]
["134297H","CAS MICHEL","BILLARD CLUB GRENOBLOIS"]
["135452S","KONIECZNY FABRICE","CERCLE DES CHEFS D ATELIER"]
["135458Y","DESMIDT FRANCOIS","CERCLE DES CHEFS D ATELIER"]
["135589Z","LASSERON CYRIL","VULCAIN 8 POOL"]
["135804G","REPLUMAZ FREDERIC","BILLARD CLUB ROMANAIS PEAGEOIS"]
["135834K","BERARD HERVE","BILLARD CLUB 109"]
["135919R","MANDY NATHALIE","BILLARD CLUB DE BOURG EN BRESSE"]
["135920S","BRENDEL CHRISTIAN","BILLARD CLUB DE BOURG EN BRESSE"]
["135922U","LETOURNEUR SEBASTIEN","BILLARD CLUB DE BOURG EN BRESSE"]
["135925X","BRISSE THIERRY","ACADEMIE DE BILLARD DE HAUTE LOIRE"]
["135928A","MORLIN GUY","CLUB DE BILLARD MONTBRISONNAIS"]
["136030Y","BEZIER RENAUD","ACADEMIE BILLARD OUEST LYONNAIS"]
["136034C","FUENTES RICARDO","ACADEMIE DE BILLARD DE LA VALSERINE"]
["136039H","SUCHAUT ANTOINE","CLUB DE BILLARD MONTBRISONNAIS"]
["136090G","RIVATON PHILIPPE","BILLARD CLUB DE SAINT-GALMIER"]
["136095L","JOFFRE MARC","AMICALE BILLARD CLUB DE DAVEZIEUX"]
["136167F","CAUBERGS JEAN CLAUDE","ACADEMIE DE BILLARD D AUBENAS"]
["136202O","BLANCHIN GERARD","LE TAPIS VERT ROANNAIS"]
["136251L","VADILLO CORENTIN","BLACKBALL BILLARD CLUB BESAYES 26"]
["136272G","LE BRIS STEPHAN","BILLARD STELLA THONON"]
["136673R","SNOUSSI EZZEDINE","ACADEMIE DE BILLARD D AUBENAS"]
["137050E","HILAIRE JIMMY","ACADEMIE BILLARD OUEST LYONNAIS"]
["137228A","TROQUET BERNARD","CLUB CHAMBERIEN DE BILLARD"]
["137273T","NEIMER JOELLE","BILLARD CLUB DE GAILLARD"]
["137422M","VIGUIER FRANCK","BILLARD CLUB VICHY"]
["137433X","CONSTANTIN JACQUES","BILLARD STELLA THONON"]
["137566A","CHAUVET IVAN","BILLARD CLUB ISSOIRE"]
["137569D","VADILLO LAURENT","BLACKBALL BILLARD CLUB BESAYES 26"]
["137571F","HERREMAN FRANCOIS","LES SQUALES"]
["137576K","MOUGIN NICOLAS","BILLARD CLUB 109"]
["137586U","MARECHAL JACQUES","CLUB DE BILLARD MONTBRISONNAIS"]
["137588W","LECONNETABLE CLAUDE","CLUB DE BILLARD MONTBRISONNAIS"]
["137589X","LELOUP ALAIN","CLUB DE BILLARD MONTBRISONNAIS"]
["137591Z","BAYET BRUNO","CLUB DE BILLARD MONTBRISONNAIS"]
["137597F","BACCAM BOUNLIENG","NIGHT BILLARD CLUB"]
["137610S","BERENGUER MANUEL","ACADEMIE DE BILLARD DE CHASSIEU"]
["137611T","MAESTRI ROBERT","ACADEMIE ANNECIENNE DE BILLARD"]
["137613V","DARAKDJIAN CLAUDE","VALENCE BILLARD CLUB"]
["137708M","IMBERT JEAN PAUL","LA CARAMBOLE LISSILOISE"]
["137714S","GROS MARC","ACADEMIE BILLARD OUEST LYONNAIS"]
["137718W","FORISSIER LOUIS","BILLARD CLUB DE SAINT-GALMIER"]
["137719X","FRAGNE MARCEL","BILLARD CLUB DE SAINT-GALMIER"]
["137839N","BIENNE CYRIL","CHARLEMAGNE SNOOKER CLUB"]
["138140C","CIOLEK ALEXANDRE","BLACKBALL BILLARD CLUB BESAYES 26"]
["138176M","PHILIBERT GEORGES","BILLARD CLUB DE SAINT-GALMIER"]
["138180Q","MONNERET MARC","BILLARD CLUB DE VILLEFRANCHE"]
["138185V","SUCHAUT THIERRY","SAINT CHAMOND BILLARD CLUB"]
["138188Y","BLANCHET PATRICK","BLACKBALL BILLARD CLUB BESAYES 26"]
["138326G","URAY JIMMY","NIGHT BILLARD CLUB"]
["138328I","GREGOIRE PHILIPPE","BILLARD CLUB ROMANAIS PEAGEOIS"]
["138977H","BARBIER YANN","BILLARD CLUB DE SAINT-GALMIER"]
["138986Q","OTHMANI SAIF EDDINE","BILLARD CLUB LYONNAIS 8 POOL"]
["139035N","MUNOZ ROMAIN","CLUB CHAMBERIEN DE BILLARD"]
["139036O","VERPILLIER ROBERT","CLUB CHAMBERIEN DE BILLARD"]
["139158G","DORTET ALAIN","BILLARD CLUB VICHY"]
["139212I","SCHMIT ALEXANDRE","CERCLE DES CHEFS D ATELIER"]
["139455R","JARRET ANDRE","ACADEMIE DE BILLARD DE CHASSIEU"]
["139524I","CHEMIN PIERRE","CLUB CHAMBERIEN DE BILLARD"]
["139528M","DUPONT GERARD","ACADEMIE BILLARD OUEST LYONNAIS"]
["139579L","PERSON JEAN PIERRE","CERCLE DES CHEFS D ATELIER"]
["140563H","DELATTRE SERGE","A.B. DE BOURGOIN-JALLIEU"]
["140565J","RANCHON BERNARD","ASS. SPORTIVE MUNICIPALE ST ETIENNE"]
["140694I","ROBEZ FLORENT","NIGHT BILLARD CLUB"]
["140706U","BARBERA ANTHONY","ACADEMIE DE BILLARD D AUBENAS"]
["140811V","BARRALON FREDERIC","BILLARD CLUB DE SAINT-GALMIER"]
["140814Y","CORVAISIER DOMINIQUE","SAINT CHAMOND BILLARD CLUB"]
["140818C","POGGI GERARD","BILLARD CLUB ROMANAIS PEAGEOIS"]
["140821F","GALLON JEAN CLAUDE","ACAD. DE BILLARD DE SAINT-ETIENNE"]
["141021X","CREMY JULIEN","NIGHT BILLARD CLUB"]
["141194O","BRUNET SABRILLA","BILLARD CLUB PONTOIS"]
["141348M","PODESZWA GHISLAIN","ACADEMIE BILLARD OUEST LYONNAIS"]
["141464Y","DE DOMENICO ROBERTO","BILLARD STELLA THONON"]
["141470E","VILLENEUVE PATRICK","BILLARD STELLA THONON"]
["141631J","JULLIAT GUILLAUME","AMICALE BILLARD CLUB DE DAVEZIEUX"]
["141633L","CERVERA IRIS","BILLARD CLUB GRENOBLOIS"]
["141635N","BRUGIERE JEAN LOUIS","CERCLE DES CHEFS D ATELIER"]
["141637P","LAURIER GILLES","ACADEMIE BILLARD OUEST LYONNAIS"]
["142184Q","KLEIN JEAN LUC","CLUB DE BILLARD MONTBRISONNAIS"]
["142217X","VOVELLE LOUIS","CERCLE DES CHEFS D ATELIER"]
["142693F","BERNARD ALAIN","CLUB DE BILLARD MONTBRISONNAIS"]
["142694G","HOGG JEAN CLAUDE","CLUB DE BILLARD MONTBRISONNAIS"]
["142698K","LEVY ALAIN","BILLARD CLUB DE GAILLARD"]
["142699L","ROUSSEL CHRISTOPHE","BILLARD CLUB DE VILLEFRANCHE"]
["142700M","KERLEAUX JEAN CLAUDE","BILLARD CLUB DE VILLEFRANCHE"]
["142707T","SOEHNLEN BRUNO","ACADEMIE ANNECIENNE DE BILLARD"]
["142709V","FLUTTAZ JEAN LOUIS","BILLARD CLUB AIXOIS"]
["142710W","MARLIER CHARLES","ACADEMIE DE BILLARD DE CHASSIEU"]
["142807P","TALEB AMINE","VEYRE-MONTON BILLARD CLUB"]
["143028C","SARIAN PIERRE","ACADEMIE DE BILLARD D AUBENAS"]
["143193L","CHAPON JEAN MARIE","ACADEMIE DE BILLARD DE LA VALSERINE"]
["143251R","VACOSSIN NICOLAS","VEYRE-MONTON BILLARD CLUB"]
["143275P","DA ENCARNACAO JOSE","CERCLE BELLECOMBE DE LYON"]
["143279T","CLEMENT GERARD","CERCLE DES CHEFS D ATELIER"]
["143434S","DUHEM SYLVAIN","BILLARD CLUB ROMANAIS PEAGEOIS"]
["143441Z","BANCILHON JEAN","BILLARD CLUB ROMANAIS PEAGEOIS"]
["143525F","SCILY GERARD","LE TAPIS VERT ROANNAIS"]
["143526G","OLLIVIER FRANCK","LE TAPIS VERT ROANNAIS"]
["143533N","GONZALEZ BORIS","ACADEMIE BILLARD OUEST LYONNAIS"]
["143750W","CELETTE MICHEL","BILLARD CLUB GRENOBLOIS"]
["143892I","GROSJEAN THIERRY","CLUB CHAMBERIEN DE BILLARD"]
["143894K","MONTMAYEUR FRANCOIS","CHARLEMAGNE SNOOKER CLUB"]
["144035V","DEVEDEUX MARC","ACADEMIE BILLARD OUEST LYONNAIS"]
["144173D","BEE JEAN LUC","B.S.CLERMONTOIS"]
["144305F","CROS DAVID","LES SQUALES"]
["144306G","CURTIL SEBASTIEN","BILLARD CLUB 8 POOL EVIAN"]
["144307H","PEREJON FAUSTINO","BILLARD CLUB 8 POOL EVIAN"]
["144450U","MARIN GUY","BILLARD CLUB DE GAILLARD"]
["144703N","CAZANAVE PAUL","BLACKBALL BILLARD CLUB BESAYES 26"]
["144945V","MOUTMIR HAMZA","VEYRE-MONTON BILLARD CLUB"]
["145114I","FRANCE FERNAND","BILLARD CLUB DE SAINT-GALMIER"]
["145118M","ROLET LILIAN","BILLARD CLUB LYONNAIS 8 POOL"]
["145122Q","LEPETIT FRANCOIS","SAINT CHAMOND BILLARD CLUB"]
["145123R","KURADJIAN ALAIN","SAINT CHAMOND BILLARD CLUB"]
["145124S","GUILLAUMOND ALAIN","SAINT CHAMOND BILLARD CLUB"]
["145217H","DUMONT ALEXIS","LES SQUALES"]
["145227R","HANNOU RACHID","BILLARD CLUB DE GAILLARD"]
["145348I","PILLOT VINCENT","BILLARD CLUB PONTOIS"]
["145351L","COSNARD SEBASTIEN","BILLARD CLUB DE GAILLARD"]
["145358S","RICCOBENE MAXIME","BILLARD CLUB DE LA PLAINE DU FOREZ"]
["145370E","GRIOT GILBERT","CLUB DE BILLARD MONTBRISONNAIS"]
["145371F","GARNIER NICOLAS","BILLARD CLUB DE BOURG EN BRESSE"]
["145373H","DEBENOIT FRANCK","CLUB OMNISPORTS DE SAINT FONS"]
["145374I","POCHON JACQUES","BILLARD CLUB ROMANAIS PEAGEOIS"]
["145377L","BOYER BERNARD","BILLARD CLUB ROMANAIS PEAGEOIS"]
["145514S","FRAPPA DIDIER","AMICALE BILLARD CLUB DE DAVEZIEUX"]
["145516U","VALENTIN JEAN MARC","ACAD. DE BILLARD DE SAINT-ETIENNE"]
["145614O","KURTZ RENE","BILLARD CLUB AIXOIS"]
["145618S","REYMOND PIERRE","CLUB CHAMBERIEN DE BILLARD"]
["145627B","COUCHAUD GERARD","CLUB DE BILLARD MONTBRISONNAIS"]
["145631F","PERRET RICHARD","CLUB DE BILLARD MONTBRISONNAIS"]
["145636K","PERRET OLIVIER","CLUB DE BILLARD MONTBRISONNAIS"]
["145661J","LEPAGE PATRICK","VEYRE-MONTON BILLARD CLUB"]
["145972I","REY STEPHANE","AMICALE LAIQUE RICAMARIE"]
["146104K","BACCAM HELENE","NIGHT BILLARD CLUB"]
["146110Q","FANZONE JEAN CLAUDE","BILLARD CLUB GRENOBLOIS"]
["146111R","THINON JEROME","ACADEMIE DE BILLARD D AUBENAS"]
["146112S","BONDOUY FREDERIK","ACADEMIE DE BILLARD D AUBENAS"]
["146252C","POULY ANTOINE","CLUB CHAMBERIEN DE BILLARD"]
["146254E","JACOB BERNARD","CLUB CHAMBERIEN DE BILLARD"]
["146266Q","MADEIRA FERNANDO","ACADEMIE DE BILLARD DE LA VALSERINE"]
["146267R","COFFY JEROME","BILLARD CLUB PONTOIS"]
["146269T","GRIMM PATRICK","ACADEMIE DE BILLARD DE LA VALSERINE"]
["146311J","PHILIPPON FRANCOIS","CERCLE DES CHEFS D ATELIER"]
["146889P","DOMINGUES NICOLAS","BLACKBALL BILLARD CLUB BESAYES 26"]
["146947A","FAVENTIN JACQUES","BILLARD CLUB DE VILLEFRANCHE"]
["146949C","KOWACKI JEAN PIERRE","BILLARD CLUB DE VILLEFRANCHE"]
["146950D","MAISSE ROBERT","BILLARD CLUB DE VILLEFRANCHE"]
["146968Y","DUARTE JOSE","ACADEMIE DE BILLARD DE LA VALSERINE"]
["146970A","MARLET PATRICK","ACADEMIE DE BILLARD DE LA VALSERINE"]
["146971B","DONATO LAURENT","ACADEMIE DE BILLARD DE LA VALSERINE"]
["146972C","DE ALMEIDA DUARTE FREDERICO","BILLARD CLUB DE CLARAFOND ARCINE"]
["146999G","DENNI THIERRY","GROUPE SPORTIF LUGDUNUM"]
["147000H","GARCIA JUAN","GROUPE SPORTIF LUGDUNUM"]
["147001J","MEDINA TOMAS","GROUPE SPORTIF LUGDUNUM"]
["147074N","MERLE JEAN FRANCOIS","GROUPE SPORTIF LUGDUNUM"]
["147110C","MALGOUYARD JEAN PIERRE","BILLARD CLUB AIXOIS"]
["147111D","DUMONT ALAIN","BILLARD CLUB AIXOIS"]
["147113F","HANTZ MICHEL","BILLARD CLUB AIXOIS"]
["147114G","AVET BERNARD","BILLARD CLUB AIXOIS"]
["147132B","SERAYET FREDERIC","AMICALE LAIQUE RICAMARIE"]
["147149V","MAILLARD RENE","BILLARD CLUB DE VILLEFRANCHE"]
["147330R","DUMOULIN LAURENT","LE TAPIS VERT ROANNAIS"]
["147331S","COLLET JEAN CLAUDE","LE TAPIS VERT ROANNAIS"]
["147332T","GELOFFIER MAURICE","LE TAPIS VERT ROANNAIS"]
["147356V","JULLION ANDRE","AMICALE BILLARD CLUB DE DAVEZIEUX"]
["147398Q","MAISSE ROBERT","AMICALE BILLARD CLUB DE DAVEZIEUX"]
["147485K","LARESE PATRICK","ACADEMIE DE BILLARD DE CHASSIEU"]
["147501C","BASTIDA ROBERT","LE TAPIS VERT ROANNAIS"]
["147525D","MANET DOMINIQUE","ASS. SPORTIVE MUNICIPALE ST ETIENNE"]
["147547C","GERARD DANIEL","BILLARD CLUB DE GAILLARD"]
["147555L","DELEPAUT ANDRE","BILLARD CLUB AIXOIS"]
["147591A","GILARDIN JACQUES","BILLARD CLUB MOULINS"]
["147619F","GOLDBACH ERIC","ACADEMIE DE BILLARD D AUBENAS"]
["147707B","OGIER STEPHANE","CHARLEMAGNE SNOOKER CLUB"]
["148023V","AUFFRET MARCEL","BILLARD STELLA THONON"]
["148303Z","BONNEFOND CHRISTIAN","ACADEMIE BILLARD OUEST LYONNAIS"]
["148310G","WOIGNIER ALBERT","BILLARD CLUB ROMANAIS PEAGEOIS"]
["148984P","KLEIN STEPHANE","NIGHT BILLARD CLUB"]
["148985Q","CHAIR MOURAD","NIGHT BILLARD CLUB"]
["149077Q","AUBERT LIBERTO","BILLARD CLUB MOULINS"]
["149078R","DEMARTY ALAIN","BILLARD CLUB MOULINS"]
["149257L","GALLOT RUDY","CLUB DE BILLARD MONTBRISONNAIS"]
["149397N","VACUS KEVIN","VEYRE-MONTON BILLARD CLUB"]
["149406Y","JACQUEMART MICKAEL","VULCAIN 8 POOL"]
["149436F","DUPRE RAMBAUD NATAEL","LES SQUALES"]
["149637Z","GILARDIN SEBASTIEN","BILLARD CLUB MOULINS"]
["149690G","NOEL ROLAND","ACADEMIE DE BILLARD DE LA VALSERINE"]
["149764M","BARSE BRUNO","BILLARD CLUB VICHY"]
["149786L","REBBOH LOUIS","CLUB DE BILLARD MONTBRISONNAIS"]
["149841W","BEAUFILS JEAN PATRICK","CLUB CHAMBERIEN DE BILLARD"]
["149865X","CHANNAUX PATRICK","AMICALE LAIQUE RICAMARIE"]
["149875H","MONTPELLIER BRUNO","BILLARD CLUB 8 POOL EVIAN"]
["149917D","GIRARD FREDERIC","BILLARD CLUB 8 POOL EVIAN"]
["149918E","GARRIDO CARLOS","BILLARD CLUB 8 POOL EVIAN"]
["149951Q","DEZEMPTE MICHEL","BILLARD CLUB DE VILLEFRANCHE"]
["149954T","VALLIN GERARD","AMICALE BILLARD CLUB DE DAVEZIEUX"]
["149988F","BESNIER ALAIN","GROUPE SPORTIF LUGDUNUM"]
["149995N","SILLANS PATRICK","CERCLE DES CHEFS D ATELIER"]
["150007B","PAUVERT JEAN LOUIS","BILLARD CLUB ROMANAIS PEAGEOIS"]
["150014J","BRUNETAUD ALAIN","BILLARD CLUB GRENOBLOIS"]
["150082H","CHANTREAU DIDIER","ACADEMIE ANNECIENNE DE BILLARD"]
["150176K","GROS MARCEL","ACADEMIE DE BILLARD DE CHASSIEU"]
["150253T","LOCCI OLIVIER","BILLARD CLUB 109"]
["150312H","VIRICEL BRUNO","BILLARD CLUB DE SAINT-GALMIER"]
["150468C","COTTIN EMMANUEL","SAINT CHAMOND BILLARD CLUB"]
["150632F","NGAMENI ANACLET","BILLARD CLUB AMICALE CHAPELON"]
["150688R","CHAPUT FRANCOIS","CERCLE DES CHEFS D ATELIER"]
["150689S","CLEMENT JEAN LOUP","CERCLE DES CHEFS D ATELIER"]
["150693X","RAUNET PASCALE","CERCLE DES CHEFS D ATELIER"]
["150869N","CABANET FLORENCE","NIGHT BILLARD CLUB"]
["150870P","LHUILLIER DANIEL","BILLARD CLUB PONTOIS"]
["150876W","BEAUCLAIR JEAN RENE","ACADEMIE DE BILLARD DE LA VALSERINE"]
["150947Y","BESSON JEROME","BILLARD CLUB DE CLARAFOND ARCINE"]
["150948Z","RAY VINCENT","BILLARD CLUB DE CLARAFOND ARCINE"]
["150950B","CHATENOUD ARNAUD","BILLARD CLUB DE CLARAFOND ARCINE"]
["150953E","MOREL FLORENT","BILLARD CLUB DE CLARAFOND ARCINE"]
["151045E","VINOT FRANCOIS","BILLARD CLUB GRENOBLOIS"]
["151151V","VERON PATRICK","BILLARD CLUB MOULINS"]
["151373L","ABLONDI LAURENT","CERCLE DES CHEFS D ATELIER"]
["151374M","ROURE CEDRIC","CERCLE DES CHEFS D ATELIER"]
["151767P","GOSTIAUX MEZIANE","CERCLE DES CHEFS D ATELIER"]
["151771T","BERTHET JACQUES","CERCLE DES CHEFS D ATELIER"]
["152028Y","TRABICHET CHRISTOPHE","BILLARD CLUB 8 POOL EVIAN"]
["152167Z","REDON VALERIE","NIGHT BILLARD CLUB"]
["152190Z","HERRY MIREILLE","NIGHT BILLARD CLUB"]
["152192B","LACROIX DYLAN","NIGHT BILLARD CLUB"]
["152400C","DEFRANOUX FRANCIS","BILLARD CLUB AIXOIS"]
["152401D","BUGIS ANDRE","BILLARD CLUB AIXOIS"]
["152479N","ARMANDI JEAN CLAUDE","BILLARD CLUB MOULINS"]
["152571N","PIGEOL JEROME","VULCAIN 8 POOL"]
["152573Q","PERRIER GERARD","SAINT CHAMOND BILLARD CLUB"]
["152575S","FETTIG SEVERINE","SAINT CHAMOND BILLARD CLUB"]
["152592L","ALTISEN ELIOS","GROUPE SPORTIF LUGDUNUM"]
["152593M","BUISSON JACQUES","GROUPE SPORTIF LUGDUNUM"]
["152601W","TRUANT SEBASTIEN","CERCLE DES CHEFS D ATELIER"]
["152633F","MOREL SYLVAIN","NIGHT BILLARD CLUB"]
["152649Y","COURVOISIER MYRIAM","ACADEMIE DE BILLARD DE CHASSIEU"]
["152651A","BROCHIER PATRICK","ACADEMIE DE BILLARD DE CHASSIEU"]
["152673Z","CARRERES MANUEL","LE TAPIS VERT ROANNAIS"]
["152674A","DUVERGER CHRISTIAN","LE TAPIS VERT ROANNAIS"]
["152780Q","CARAVATI PASCAL","BILLARD CLUB ROMANAIS PEAGEOIS"]
["152852T","TARTARIN MICHEL","BILLARD CLUB DE GAILLARD"]
["152907D","BOURDIER JACQUES","BILLARD CLUB VICHY"]
["152914L","KUSAR HERVE","BILLARD CLUB DE CLARAFOND ARCINE"]
["152956G","ACCETTOLA ELIO","ACADEMIE DE BILLARD DE CHASSIEU"]
["153015W","GORLIER ROLAND","CERCLE DES CHEFS D ATELIER"]
["153046E","PENNEC JEAN CLAUDE","CERCLE DES CHEFS D ATELIER"]
["153073J","SPANGENBERG ALAIN","BILLARD CLUB GRENOBLOIS"]
["153143K","HOSROFIAN EDMOND","CLUB OMNISPORTS DE SAINT FONS"]
["153152V","PHONGSY PHOXAY","BILLARD CLUB LYONNAIS 8 POOL"]
["153217Q","BERRAHOU SOLANGE","ACADEMIE DE BILLARD DE LA VALSERINE"]
["153303J","GOUBET LIONEL","ACADEMIE BILLARD OUEST LYONNAIS"]
["153323F","CHASSAGNE JACQUES","B.S.CLERMONTOIS"]
["153339Y","DONNAT JACKY","CERCLE DES CHEFS D ATELIER"]
["153538P","MICHEL DENIS","CLUB CHAMBERIEN DE BILLARD"]
["153543V","SORU IGNACIO","CLUB CHAMBERIEN DE BILLARD"]
["153544W","DECALF JEAN","CLUB CHAMBERIEN DE BILLARD"]
["153555H","ANDRIEU JEAN PIERRE","BILLARD CLUB GRENOBLOIS"]
["153556J","ANDRIEU EVELYNE","BILLARD CLUB GRENOBLOIS"]
["153560N","MEURISSE JACQUES","BILLARD CLUB GRENOBLOIS"]
["153571A","RACHON CHRISTIAN","VALENCE BILLARD CLUB"]
["153572B","PAPILLON EMILIE","VALENCE BILLARD CLUB"]
["153597D","SAUZON MARC","BILLARD CLUB ROMANAIS PEAGEOIS"]
["153644E","CARDOT MICHEL","ACADEMIE DE BILLARD DE CHASSIEU"]
["153695K","MARTINEZ SERGE","ACADEMIE DE BILLARD DE CHASSIEU"]
["153780C","POIROT THOMAS","BILLARD CLUB ROMANAIS PEAGEOIS"]
["153783F","REFASSI ABDELGHANI","BILLARD CLUB ROMANAIS PEAGEOIS"]
["153804D","GIACOMARRA ENZO","CHARLEMAGNE SNOOKER CLUB"]
["153999Q","VEILLON CORINNE","SAINT CHAMOND BILLARD CLUB"]
["154029Y","BOSQUET HENRI","VALENCE BILLARD CLUB"]
["154058E","SCHAFFRAN SEBASTIEN","CERCLE DES CHEFS D ATELIER"]
["154202L","LUJAN PIERRE","BILLARD CLUB ROMANAIS PEAGEOIS"]
["154624V","POMMIER LUDOVIC","ACADEMIE DE BILLARD DE CHASSIEU"]
["154625W","QUENOT PATRICK","ACADEMIE DE BILLARD DE CHASSIEU"]
["154733N","MILLET MAURICE","CERCLE DES CHEFS D ATELIER"]
["154976C","THIERION DIDIER","CERCLE DES CHEFS D ATELIER"]
["154985M","DUJOUX JEAN YVES","B.S.CLERMONTOIS"]
["155127R","BRUNET GILLES","SAINT CHAMOND BILLARD CLUB"]
["155129T","GRI ALEXANDRE","SAINT CHAMOND BILLARD CLUB"]
["155134Z","RICHIER ROGER","SAINT CHAMOND BILLARD CLUB"]
["155523X","ESPINOSA SEBASTIEN","BILLARD CLUB PONTOIS"]
["155590V","WILLIAMS ARIANE","BILLARD CLUB AIXOIS"]
["155685Y","ROUSSELOT JEAN MARC","ACADEMIE ANNECIENNE DE BILLARD"]
["155700P","KUSAR TONY","BILLARD CLUB DE CLARAFOND ARCINE"]
["155702R","CLERMONT PASCAL","CLUB OMNISPORTS DE SAINT FONS"]
["155784F","DI BELLA STEPHANIE","NIGHT BILLARD CLUB"]
["155793Q","SRUTEK GREG","VULCAIN 8 POOL"]
["155834K","HAINAUT DAVID","BILLARD CLUB AIXOIS"]
["155838P","GENAUDET FLORIAN","BILLARD CLUB 8 POOL EVIAN"]
["155848A","MARLIER JEAN","ACADEMIE DE BILLARD DE CHASSIEU"]
["155850C","SIERRA JUAN","ACADEMIE DE BILLARD DE CHASSIEU"]
["155880K","BOUTET MAYEUL","BILLARD CLUB VICHY"]
["155901H","BERGNES LENNY","BILLARD CLUB PONTOIS"]
["155902J","BRUN CHRISTOPHE","BILLARD CLUB PONTOIS"]
["155903K","GOUTTE LYDIE","BILLARD CLUB PONTOIS"]
["155904L","ORENES LERMA JACKY","BILLARD CLUB PONTOIS"]
["155907P","PAUFIQUE JEAN PAUL","GROUPE SPORTIF LUGDUNUM"]
["155923G","BUISSONNIERE DUSTIN","BILLARD CLUB VICHY"]
["156083F","CUZIN JACQUES","ACADEMIE BILLARD OUEST LYONNAIS"]
["156114P","CALISTRI LIONEL","GROUPE SPORTIF LUGDUNUM"]
["156122Y","FRANCOIS DIDIER","CLUB CHAMBERIEN DE BILLARD"]
["156124A","JAPIOT HUBERT","ACADEMIE DE BILLARD DE CHASSIEU"]
["156212W","DUBROEUCQ PHILIPPE","CHARLEMAGNE SNOOKER CLUB"]
["156213X","GHOMINEJAD KEYVAN","CHARLEMAGNE SNOOKER CLUB"]
["156280V","SIBELLIN GERARD","ACADEMIE DE BILLARD DE CHASSIEU"]
["156334D","VALLOT ROMAIN","BILLARD CLUB DE BOURG EN BRESSE"]
["156368Q","TASSET JEROME","CLUB CHAMBERIEN DE BILLARD"]
["156396W","DERORY SEBASTIEN","VEYRE-MONTON BILLARD CLUB"]
["156425C","DREME BERNARD","ACADEMIE DE BILLARD DE CHASSIEU"]
["156431J","RIVOLIER EMILE","LE TAPIS VERT ROANNAIS"]
["156432K","BOURREAU JEAN LUC","LE TAPIS VERT ROANNAIS"]
["156463T","CAESTEKER MARCEL","BILLARD CLUB ISSOIRE"]
["156507R","GRUET BERNARD","BILLARD CLUB ISSOIRE"]
["156508S","BERCHE JEAN LUC","BILLARD CLUB ISSOIRE"]
["156517C","LEVEQUE PAUL GABRIEL","CERCLE DES CHEFS D ATELIER"]
["156534W","BORGEAT CHRISTIANE","ACADEMIE DE BILLARD DE LA VALSERINE"]
["156554S","CARRION TORRES ALBERTO","CERCLE DES CHEFS D ATELIER"]
["156581X","SUDARA BRUNO","CLUB CHAMBERIEN DE BILLARD"]
["156609C","ROBIN GREGORY","ACADEMIE DE BILLARD DE CHASSIEU"]
["156644Q","MAUCUIT CLAUDE","ACADEMIE DE BILLARD DE CHASSIEU"]
["156663L","HAAS DOMINIQUE","BILLARD CLUB DE SAINT-GALMIER"]
["156788X","DUPAS GILLES","ASS. SPORTIVE MUNICIPALE ST ETIENNE"]
["156918N","LACHAUX BERNARD","LE TAPIS VERT ROANNAIS"]
["156980F","BRUNET MAURICE","BILLARD CLUB DE BOURG EN BRESSE"]
["157067A","ROIG MICHEL","ACADEMIE DE BILLARD D AUBENAS"]
["157080P","VILA VERDE EZEQUIEL","VEYRE-MONTON BILLARD CLUB"]
["157089Z","AMORETTI JACQUES","VALENCE BILLARD CLUB"]
["157148N","THIOT PHILIPPE","BILLARD CLUB GRENOBLOIS"]
["157172P","FAURE ELIE","B.S.CLERMONTOIS"]
["157200V","TALLON JEAN CLAUDE","BILLARD CLUB MONTLUCONNAIS"]
["157214K","SOCKEEL AURORE","DEVIL'S POOL CLUB"]
["157225X","MOUTON ALAIN","CERCLE DES CHEFS D ATELIER"]
["157289R","MALIK HERVE","BILLARD CLUB DE LA PLAINE DU FOREZ"]
["157320A","DI DONATO JEAN","ACAD. DE BILLARD DE SAINT-ETIENNE"]
["157326G","MINARDI ALAIN","GROUPE SPORTIF LUGDUNUM"]
["157347E","PERICAUD ROLAND","VALENCE BILLARD CLUB"]
["157556G","LANDAIS JEAN CLAUDE","BILLARD CLUB MOULINS"]
["157695H","DEMONET ANTOINE","CLUB DE BILLARD MONTBRISONNAIS"]
["157702Q","GALTIER JEAN LUC","ACADEMIE DE BILLARD DE LA VALSERINE"]
["157789K","RUFFET FREDERIC","B.S.CLERMONTOIS"]
["157793P","BELGUERMI NICOLAS","ASS. SPORTIVE MUNICIPALE ST ETIENNE"]
["157824Y","CHASTAGNER PHILIPPE","CERCLE DES CHEFS D ATELIER"]
["157879H","MARTINEZ YOANN","EIGHT'S POOL GAME"]
["157880J","BONTOUX SYLVIE","EIGHT'S POOL GAME"]
["158002R","TROTEMANN PIERRE","VALENCE BILLARD CLUB"]
["158097V","CARRET THALLER EVELYNE","CERCLE DES CHEFS D ATELIER"]
["158166V","VACHERAND JEAN PIERRE","BILLARD STELLA THONON"]
["158168X","SUARD FRANCOISE","BILLARD STELLA THONON"]
["158185Q","BEAUD CHRISTOPHE","CLUB CHAMBERIEN DE BILLARD"]
["158186R","CLARET GEORGES","CLUB CHAMBERIEN DE BILLARD"]
["158189V","DE BORTOLI PATRICK","CLUB CHAMBERIEN DE BILLARD"]
["158191X","LAITHIER GERARD","CLUB CHAMBERIEN DE BILLARD"]
["158193Z","REVERCHON BERNARD","CLUB CHAMBERIEN DE BILLARD"]
["158255R","LOPES ANDRE","BILLARD CLUB 8 POOL EVIAN"]
["158738R","ROYET THOMAS","SAINT CHAMOND BILLARD CLUB"]
["159062T","BABEL STEPHANIE","BILLARD CLUB DE CLARAFOND ARCINE"]
["159063V","ARNAUD JEAN PHILIPPE","BILLARD CLUB DE CLARAFOND ARCINE"]
["159064W","SOCKEEL YANNICK","DEVIL'S POOL CLUB"]
["159065X","SOCKEEL MARIE PIERRE","DEVIL'S POOL CLUB"]
["159121H","RICHET MORGAN","VULCAIN 8 POOL"]
["159122J","GELIBERT ALEXIS","ACADEMIE DE BILLARD DE LA VALSERINE"]
["159123K","GELIBERT MARGAUX","ACADEMIE DE BILLARD DE LA VALSERINE"]
["159156W","DENIS DANIEL","AMIC.SPOR.MONTMARAULTOISE BILLARD"]
["159157X","GRIFFON GILLES","AMIC.SPOR.MONTMARAULTOISE BILLARD"]
["159168J","HUE PHILIPPE","BILLARD CLUB AIXOIS"]
["159235G","DEPUYDT EDDY","VEYRE-MONTON BILLARD CLUB"]
["159237J","COSTA GERARD","BILLARD CLUB AIXOIS"]
["159263M","MOREIRA ALBERTO","VEYRE-MONTON BILLARD CLUB"]
["159347D","BREGRE SEBASTIEN","VULCAIN 8 POOL"]
["159396G","CARENZI ROLLAND","BILLARD CLUB AIXOIS"]
["159482A","JEANTET JEAN CLAUDE","ACADEMIE DE BILLARD DE LA VALSERINE"]
["159584L","PLAT PIERRICK","CLUB DE BILLARD MONTBRISONNAIS"]
["159612R","FAOUEN PATRICK","ACADEMIE BILLARD OUEST LYONNAIS"]
["159641Y","BESSE DANIEL","BILLARD CLUB GRENOBLOIS"]
["159648F","FRECHET JULIEN","BILLARD CLUB GRENOBLOIS"]
["159649G","TERNOY PASCAL","BILLARD CLUB GRENOBLOIS"]
["159700M","IMTIASZ ASHH","BILLARD CLUB LYONNAIS 8 POOL"]
["159763F","CAILLON ANNE CLAIRE","ACADEMIE DE BILLARD DE CHASSIEU"]
["159765H","DOMAS SOPHIE","ACADEMIE DE BILLARD DE CHASSIEU"]
["159766J","MARON ALAIN","ACADEMIE DE BILLARD DE CHASSIEU"]
["159769M","LAMRANI MEHDI","BILLARD CLUB PONTOIS"]
["159789J","BACHELET DANIEL","A.B. DE BOURGOIN-JALLIEU"]
["159790K","BENOIT MICHEL","ACADEMIE DE BILLARD D AUBENAS"]
["159793N","EVERAERT BENJAMIN","VULCAIN 8 POOL"]
["159794P","EVERAERT THOMAS","VULCAIN 8 POOL"]
["159798T","MONTILLET JEAN CLAUDE","ACADEMIE DE BILLARD DE CHASSIEU"]
["159809F","FELIX RENE","ACADEMIE DE BILLARD DE CHASSIEU"]
["159822V","RAMOND VANESSA","VULCAIN 8 POOL"]
["159842R","MARION GERARD","ACAD. DE BILLARD DE SAINT-ETIENNE"]
["159850A","GOYENETCHE STEPHANE","ACADEMIE DE BILLARD DE CHASSIEU"]
["159858J","THANH TRAN","BILLARD CLUB ALBERTVILLE"]
["159866S","ISMALAJ YLBER","BILLARD CLUB 109"]
["159908N","LAVAURS BERNARD","ACADEMIE DE BILLARD DE LA VALSERINE"]
["159910Q","MABON CELINE","CLUB OMNISPORTS DE SAINT FONS"]
["160166T","CORBY JEAN CLAUDE","BILLARD CLUB AIXOIS"]
["160174C","MICHAUD LUC","BILLARD CLUB DE BOURG EN BRESSE"]
["160181K","FERNANDEZ HERRERA GUY","CLUB OMNISPORTS DE SAINT FONS"]
["160186Q","ROSENBERGER MAIA","CERCLE DES CHEFS D ATELIER"]
["160236V","LE GOFF THIERRY","NIGHT BILLARD CLUB"]
["160444W","GOSTIAUX LUCIEN","CERCLE DES CHEFS D ATELIER"]
["160595K","RAMBEAU PHILIPPE","ASS. SPORTIVE MUNICIPALE ST ETIENNE"]
["160605W","BONNARD MARTINE","ACADEMIE DE BILLARD DE CHASSIEU"]
["160643M","BALHAND SEBASTIEN","CLUB CHAMBERIEN DE BILLARD"]
["160681D","DEODATI PIERRE","BILLARD CLUB ROMANAIS PEAGEOIS"]
["160682E","FALLOT EYMERIC","VALENCE BILLARD CLUB"]
["160698X","ROUGET DANIEL","ACADEMIE DE BILLARD DE LA VALSERINE"]
["160730G","BAPST CHRISTIAN","SAINT CHAMOND BILLARD CLUB"]
["160731H","BERTRAND ADRIEN","ACADEMIE DE BILLARD DE CHASSIEU"]
["160742V","JOUBERT ERIC","BILLARD CLUB MONTLUCONNAIS"]
["160749C","VACHER JEAN CLAUDE","BILLARD CLUB DE SAINT-GALMIER"]
["160782N","TESTUD FABIAN","LES SQUALES"]
["160807Q","CHOPIN TANGUY","ASSOCIATION DU LAKE PUB 74"]
["160860Y","IMBERT EVEN","EIGHT'S POOL GAME"]
["160876Q","BAUDIN LILIANE","GROUPE SPORTIF LUGDUNUM"]
["160877R","BOULADE COLETTE","GROUPE SPORTIF LUGDUNUM"]
["160879T","BOUVAIST MARTINE","GROUPE SPORTIF LUGDUNUM"]
["160881W","DUMAS YVES","GROUPE SPORTIF LUGDUNUM"]
["160882X","FURTAK ROLAND","GROUPE SPORTIF LUGDUNUM"]
["160883Y","MALLET LANDRY","GROUPE SPORTIF LUGDUNUM"]
["160905X","LHOMME SYLVAIN","ACADEMIE DE BILLARD D AUBENAS"]
["160912E","FOULTIER JACKY","AMIC.SPOR.MONTMARAULTOISE BILLARD"]
["160972V","FLORET DOMINIQUE","LA CARAMBOLE LISSILOISE"]
["160979C","PFIRSCH MARTINE","ACADEMIE BILLARD OUEST LYONNAIS"]
["161059P","CALYAKA ABDURRAHMAN","SAINT CHAMOND BILLARD CLUB"]
["161067Y","BROCARD GILLES","CERCLE DES CHEFS D ATELIER"]
["161105P","BAUMANN CLAUDE","LE TAPIS VERT ROANNAIS"]
["161258F","ADON MARC OLIVIER","ACADEMIE DE BILLARD DE LA VALSERINE"]
["161278C","CHAFI MAJID","VULCAIN 8 POOL"]
["161384S","CADET DAVID CHRISTOPHER","BILLARD CLUB LYONNAIS 8 POOL"]
["162070N","TRIPLET FREDERIC","CLUB CHAMBERIEN DE BILLARD"]
["162200E","MOREIRA LEONARDO","VEYRE-MONTON BILLARD CLUB"]
["162464R","NAVEL ANGELIQUE","BILLARD CLUB PONTOIS"]
["162465S","RYBAK RAPHAEL","VULCAIN 8 POOL"]
["162474C","GOGORA JACKIE","BILLARD CLUB LYONNAIS 8 POOL"]
["162524G","MASSELOT CEDRIC","BILLARD CLUB ISSOIRE"]
["162532Q","ARTICO JOEL","BILLARD STELLA THONON"]
["162579R","BREGRE MAELYS","VULCAIN 8 POOL"]
["162580S","BREGRE LILOU","VULCAIN 8 POOL"]
["162609Z","SOMVEILLE DOMINIQUE","CLUB CHAMBERIEN DE BILLARD"]
["162644M","BOUZOUZOU HAMID","BILLARD CLUB 109"]
["162697V","FAYOLLE GUY","A.B. DE BOURGOIN-JALLIEU"]
["162698W","KUHN JAMES","A.B. DE BOURGOIN-JALLIEU"]
["162776F","DUVILLARD VINCENT","CHARLEMAGNE SNOOKER CLUB"]
["162803K","KEBE MAMADOU","VALENCE BILLARD CLUB"]
["162814X","BELLET SYLVAIN","CHARLEMAGNE SNOOKER CLUB"]
["162867E","OYONARTE GERARD","BILLARD CLUB ROMANAIS PEAGEOIS"]
["162870H","TOURAINE PATRICE","BILLARD CLUB ROMANAIS PEAGEOIS"]
["162871J","VAN DER HEYDEN JOHN","BILLARD CLUB ROMANAIS PEAGEOIS"]
["162873L","THIVOLLE CECILE","BILLARD CLUB ROMANAIS PEAGEOIS"]
["162874M","THIVOLLE JEAN LOUIS","BILLARD CLUB ROMANAIS PEAGEOIS"]
["162917J","DAUBERT PATRICE","BILLARD CLUB DE VILLEFRANCHE"]
["162918K","VIMAL ALAIN","BILLARD CLUB DE VILLEFRANCHE"]
["162930Y","PEDROTTI LIONEL","BILLARD CLUB ROMANAIS PEAGEOIS"]
["162964K","PONCET ROBERT","SAINT CHAMOND BILLARD CLUB"]
["163037P","BRUNET MARC","B.S.CLERMONTOIS"]
["163038Q","ROBERT HENRY","B.S.CLERMONTOIS"]
["163046Z","PAPET PATRICK","ACADEMIE DE BILLARD DE CHASSIEU"]
["163047A","BORDET LEO","ACADEMIE DE BILLARD DE CHASSIEU"]
["163075F","FERNANDES BENJAMIN","ACADEMIE DE BILLARD DE CHASSIEU"]
["163116A","MAUDUIT DAVID","BILLARD CLUB ROMANAIS PEAGEOIS"]
["163132S","PERUS ERIC ALAIN","LES SQUALES"]
["163159X","LUPO VITO","CLUB CHAMBERIEN DE BILLARD"]
["163160Y","BROCHAND EVELYNE","CERCLE DES CHEFS D ATELIER"]
["163164C","LACAUX TAFFOUREAU STEPHANE","CERCLE DES CHEFS D ATELIER"]
["163244P","PREVOST PATRICK","BILLARD CLUB MONTLUCONNAIS"]
["163262J","MOUGIN PIERRE","ACADEMIE DE BILLARD DE CHASSIEU"]
["163264L","PEYREAUD DENIS","BILLARD STELLA THONON"]
["163282F","AARAB LAHOUSINE","CLUB CHAMBERIEN DE BILLARD"]
["163316S","LAURENT DANIEL","CERCLE DES CHEFS D ATELIER"]
["163317T","SCHOCK ALAIN","CERCLE DES CHEFS D ATELIER"]
["163345Z","GIRARDON ROLAND","LA CARAMBOLE LISSILOISE"]
["163504X","DELORME STEPHANE","BILLARD CLUB LYONNAIS 8 POOL"]
["163507A","GUIRI BAHAEDDINE","BILLARD CLUB DE SAINT-GALMIER"]
["163512F","MARTIN JEAN PAUL","CERCLE DES CHEFS D ATELIER"]
["163543P","CHAPPERT ADRIEN LUDOVIC","CLUB CHAMBERIEN DE BILLARD"]
["163544Q","SILVESTRE JEAN PAUL","CLUB CHAMBERIEN DE BILLARD"]
["163554B","AGNEL FLORENT","LES SQUALES"]
["163592S","BENABDESSELAM YASSINE","BILLARD CLUB LYONNAIS 8 POOL"]
["163670C","HEDOUIN HENRI","BILLARD CLUB AIXOIS"]
["163728Q","JACOULOT CHRISTIAN","ACADEMIE DE BILLARD DE CHASSIEU"]
["163735Y","LAPORTE VALENTIN","VULCAIN 8 POOL"]
["163774Q","VEYRON THOMAS","CLUB CHAMBERIEN DE BILLARD"]
["163788F","BLONDELLE CLEMENT","BILLARD CLUB 8 POOL EVIAN"]
["163857F","BURLET FRANCK","BILLARD CLUB 109"]
["163951H","DELENNE JEAN FRANCOIS","EIGHT'S POOL GAME"]
["163952J","AUVITY SEBASTIEN","EIGHT'S POOL GAME"]
["163954L","JUILLET ALEXI","EIGHT'S POOL GAME"]
["163984T","CHAPUIS MAXIME","BLACKBALL BILLARD CLUB BESAYES 26"]
["163988Y","BAYA FOUAD","DEVIL'S POOL CLUB"]
["164102X","DEVILLARD KARINE","BILLARD CLUB GRENOBLOIS"]
["164109E","BIED CHARRETON OSCAR","ACAD. DE BILLARD DE SAINT-ETIENNE"]
["164144S","MARCON JEAN YVES","SAINT CHAMOND BILLARD CLUB"]
["164148X","GODINOT THIERRY","CERCLE DES CHEFS D ATELIER"]
["164191T","RACHEL BOISGIBAULT","ACADEMIE BILLARD OUEST LYONNAIS"]
["164274J","BARIZZA DANIEL","CLUB CHAMBERIEN DE BILLARD"]
["164275K","ROCCI BERNARD","CLUB CHAMBERIEN DE BILLARD"]
["164276L","DE KEYSER JEAN PIERRE","CLUB CHAMBERIEN DE BILLARD"]
["164355X","MAISONNIAL JEAN LUC","ACAD. DE BILLARD DE SAINT-ETIENNE"]
["164577N","DECOUZON JEAN FRANCOIS","BILLARD CLUB LYONNAIS 8 POOL"]
["164682C","DUPUIS DOMINIQUE","GROUPE SPORTIF LUGDUNUM"]
["164683D","JANIO ALAIN","GROUPE SPORTIF LUGDUNUM"]
["164685F","MIVIERE BERNARD","GROUPE SPORTIF LUGDUNUM"]
["164712K","DUBUY RENAUD","LES SQUALES"]
["164717Q","DEGUILHEN ROMAIN","ACADEMIE DE BILLARD D AUBENAS"]
["164726A","ASTIC JULIAN","BILLARD CLUB ROMANAIS PEAGEOIS"]
["164727B","ABBO SEBASTIAN","CLUB CHAMBERIEN DE BILLARD"]
["164728C","DEMELLIER STEPHANE","CLUB CHAMBERIEN DE BILLARD"]
["164749A","CLAUDON PIERRE YVES","LES SQUALES"]
["164764R","BERNARD MAZZURCO MICHEL","LES SQUALES"]
["164834S","DUBOWYJ MICHEL","ACADEMIE DE BILLARD DE CHASSIEU"]
["164853N","BOUVAT DANIEL","LA CARAMBOLE LISSILOISE"]
["164854P","BREDA CLAUDE","LA CARAMBOLE LISSILOISE"]
["164855Q","BURLET JEAN PAUL","LA CARAMBOLE LISSILOISE"]
["164856R","CAMOUT GILBERT","LA CARAMBOLE LISSILOISE"]
["164857S","CREPEL BENOIT","LA CARAMBOLE LISSILOISE"]
["164858T","DE LA SERNA CESAR","LA CARAMBOLE LISSILOISE"]
["164859V","TERMOZ ROBERT","LA CARAMBOLE LISSILOISE"]
["164876N","BOURJA MOUNIR","BILLARD CLUB LYONNAIS 8 POOL"]
["164924Q","SCHOCH JEAN MARIE","VALENCE BILLARD CLUB"]
["165008G","BUFFERNE CALVIN","AMICALE BILLARD CLUB DE DAVEZIEUX"]
["165321X","STEENHAUT CLEMENTINE","EIGHT'S POOL GAME"]
["165794L","BILLOUX JOHANN","VULCAIN 8 POOL"]
["165809C","FREYBURGER RICHARD","BILLARD CLUB DE VILLEFRANCHE"]
["165810D","KOOMEN PETRUS","BILLARD CLUB DE VILLEFRANCHE"]
["165837H","FLORET MARCELLE","BILLARD STELLA THONON"]
["165861J","VERGORI ROMANO","BILLARD CLUB 8 POOL EVIAN"]
["165888N","GRAND MARGAUX","BILLARD CLUB LYONNAIS 8 POOL"]
["165889P","FABIE GERARD","ACADEMIE DE BILLARD DE CHASSIEU"]
["165890Q","MARTINEZ JOSEPH","ACADEMIE DE BILLARD DE CHASSIEU"]
["165923B","PADROS FREDERIC","BILLARD CLUB LYONNAIS 8 POOL"]
["165940V","BERCHET MOGUET NICOLAS","LA CARAMBOLE LISSILOISE"]
["165944Z","FULCHIRON ULRICH","BILLARD CLUB DE LA PLAINE DU FOREZ"]
["165953J","BIDAULT PASCAL","BILLARD CLUB AIXOIS"]
["165954K","PAUGER JEAN LOUIS","BILLARD CLUB AIXOIS"]
["165955L","VINCENT PHILIPPE","BILLARD CLUB AIXOIS"]
["165964W","ASTIC AURELIEN","BILLARD CLUB ROMANAIS PEAGEOIS"]
["165968A","KROLL HENRI","BILLARD CLUB ROMANAIS PEAGEOIS"]
["165971D","MABILLE DOMINIQUE","BILLARD CLUB ROMANAIS PEAGEOIS"]
["165973F","MORINI MARCEL","BILLARD CLUB ROMANAIS PEAGEOIS"]
["165974G","RENARD DIMITRI","BILLARD CLUB ROMANAIS PEAGEOIS"]
["166052R","LEBRE PHILIPPE","BILLARD CLUB ISSOIRE"]
["166117M","YAZMADJIAN SONIA","CERCLE DES CHEFS D ATELIER"]
["166125W","MAGDELAINE NICOLAS","ACADEMIE DE BILLARD D AUBENAS"]
["166134F","CASTANIER JEAN FRANCOIS","VULCAIN 8 POOL"]
["166170V","JOUFFRAY HENRI","ACADEMIE DE BILLARD DE CHASSIEU"]
["166217W","MORIZET SEBASTIEN","BILLARD CLUB ISSOIRE"]
["166237S","PAQUIER SILVERE","BILLARD CLUB GRENOBLOIS"]
["166264X","TORNIER JORDAN","BILLARD CLUB DE CLARAFOND ARCINE"]
["166265Y","PIGNET BAPTISTE","BILLARD CLUB DE CLARAFOND ARCINE"]
["166303P","JULLIEN NILS","BILLARD CLUB ROMANAIS PEAGEOIS"]
["166366H","MONTAGNON GERARD","AMICALE LAIQUE RICAMARIE"]
["166368K","FERRIOL PATRICE","AMICALE LAIQUE RICAMARIE"]
["166416M","ROBIN JEAN FRANCOIS","CLUB CHAMBERIEN DE BILLARD"]
["166417N","NOURRY AXEL","CLUB CHAMBERIEN DE BILLARD"]
["166428A","IMBERT ELVIS","EIGHT'S POOL GAME"]
["166436J","DUFOUR CEDRIC","CHARLEMAGNE SNOOKER CLUB"]
["166480G","FECHET PASCAL","ACADEMIE DE BILLARD D AUBENAS"]
["166503G","HEDOUIN DOMINIQUE","LA CARAMBOLE LISSILOISE"]
["166504H","FABBRI DOMINIQUE","LA CARAMBOLE LISSILOISE"]
["166505J","FABBRI SABINE","LA CARAMBOLE LISSILOISE"]
["166506K","JACQUEMIN ELISABETH","LA CARAMBOLE LISSILOISE"]
["166507L","LYET JEAN PAUL","LA CARAMBOLE LISSILOISE"]
["166508M","REBOUL MARIE CLAIRE","LA CARAMBOLE LISSILOISE"]
["166509N","REBOUL PATRICK","LA CARAMBOLE LISSILOISE"]
["166510P","ROBERT PIERRE","LA CARAMBOLE LISSILOISE"]
["166516W","CHARRON INGRID","EIGHT'S POOL GAME"]
["166547E","GOUJON VINCENT","BILLARD CLUB AMICALE CHAPELON"]
["166553L","CARON FRANCK","LES SQUALES"]
["166554M","PRAL NINA","LES SQUALES"]
["166555N","POULARD EMMANUEL","LES SQUALES"]
["166579P","DELPLANQUE JEAN PIERRE","BILLARD CLUB DE SAINT-GALMIER"]
["166618G","LEYNAUD VALENTIN","CLUB CHAMBERIEN DE BILLARD"]
["166630V","IMBERT MELVYN","EIGHT'S POOL GAME"]
["166631W","BENSACQ BONTOUX ALICIA","EIGHT'S POOL GAME"]
["166636B","HUSCHARD LOUIS","BILLARD CLUB ALBERTVILLE"]
["166637C","MISCHLER BORIS","EIGHT'S POOL GAME"]
["166654W","GELEZ CHRISTOPHE","BILLARD CLUB DE GAILLARD"]
["166660C","CLAVEL DAMIEN","BILLARD CLUB PONTOIS"]
["166690K","MARTINEZ CHRISTOPHE","BILLARD CLUB DE LA PLAINE DU FOREZ"]
["166692M","BAYON BRUNO","BILLARD CLUB DE LA PLAINE DU FOREZ"]
["166704A","FOUGEROL SESTIER JESSICA","BILLARD CLUB LYONNAIS 8 POOL"]
["166705B","BRANGBOUR MARYACIN","BILLARD CLUB LYONNAIS 8 POOL"]
["166742R","BEDDOUCHE GHALI","ACADEMIE DE BILLARD DE CHASSIEU"]
["166749Z","DUCLOZ NICOLAS","ASSOCIATION DU LAKE PUB 74"]
["166756G","DUPUIS MARC","SAINT CHAMOND BILLARD CLUB"]
["166769W","LUMINET ALEXANDRE","BILLARD CLUB DE SAINT-GALMIER"]
["166783L","FANET HERVE","BILLARD CLUB GRENOBLOIS"]
["166800E","GOURION THOMAS","CERCLE DES CHEFS D ATELIER"]
["166812S","MARTEL BENJAMIN","BLACKBALL CULOZIEN"]
["166813T","BLEIN SEBASTIEN","BLACKBALL CULOZIEN"]
["166839X","DESSE JEAN FRANCOIS","VALENCE BILLARD CLUB"]
["166844C","FLOCH JULIEN","BILLARD CLUB DE LA PLAINE DU FOREZ"]
["166856Q","VICTOR MARTIN","ACADEMIE DE BILLARD DE LA VALSERINE"]
["166881S","FERRO BRUNO","ACADEMIE DE BILLARD DE CHASSIEU"]
["166884W","BRAHIMI BRUNET ADAM","BILLARD CLUB DE BOURG EN BRESSE"]
["166885X","BRAHIMI BRUNET GERMAIN","BILLARD CLUB DE BOURG EN BRESSE"]
["166897K","LANSAQUE JEAN MARIE","BILLARD CLUB DE GAILLARD"]
["166911A","BOTU MATHIEU","ACADEMIE DE BILLARD DE CHASSIEU"]
["166937D","HENRY AGNES","CERCLE DES CHEFS D ATELIER"]
["166949R","MORTELLIER MURIELLE","BILLARD CLUB MOULINS"]
["166950S","REVENIAUD BRUNO","BILLARD CLUB MOULINS"]
[100001,"BLANC 1","LIBRE"]